Workbook

Sheet Index
B3: Exhibit No. 1.4(a)
B4: Olympic Pipe Line Company
B5: Index
B8: Schedule | C8: Schedule Descriptions
B10: Schedule 1 | C10: Input Summary
B11: Schedule 2 | C11: Adjustment to Operating Expenses
B12: Schedule 3 | C12: Total Revenue Requirment (Including Net Carryover)
B13: Schedule 4 | C13: Net Carryover
B14: Schedule 5 | C14: Overall Return on Rate Base
B15: Schedule 6 | C15: Income Tax Allowance
B16: Schedule 7 | C16: Rate Base
B17: Schedule 8 | C17: AFUDC - Calculation
B18: Schedule 9 | C18: AFUDC - Amortization
B19: Schedule 10 | C19: Amortization Rate
B20: Schedule 11 | C20: Tax Depreciation
B21: Schedule 12 | C21: Accumulated Deferred Income Taxes
B22: Schedule 13 | C22: TEFRA Adjustment to ADIT
B23: Schedule 14 | C23: Excess Deferred Income Tax Amortization Adjustment to ADIT
B24: Schedule 15 | C24: Calculation of Tariff Rates
B25: Schedule 16 | C25: Throughput Adjuster - Tariff Rates

Sheet Input
A1: =+Index!B4 -> Olympic Pipe Line Company | J1: =+'Cost of Service'!U1 -> Exhibit No. 1.4(a) | S1: =J1 -> Exhibit No. 1.4(a)
A2: =Index!C10 -> Input Summary | J2: =Index!$B$10 -> Schedule 1 | S2: =Index!$B$10 -> Schedule 1
A3: ($000's) | C3: Input Data
C4: YEAR | D4: 2018 | J4: Page 1 of 10 | S4: Page 6 of 10
A6: Line
A7: No. | B7: Description | C7: Source | E7: 2003 EOY | F7: 2004 | G7: 2005 | H7: 2006 | I7: 2007 | J7: 2008 | K7: 2009 | L7: 2010 | M7: 2011 | N7: 2012 | O7: 2013 | P7: 2014 | Q7: 2015 | R7: 2016 | S7: 2017 | T7: 2018
A9: 1 | B9: Year 1 Adjustment Factor | C9: Stipulated | D9: 1
A10: =1+A9 -> 2 | B10: Annual Maximum Amortization of Transition Costs - Rate Litigation | C10: Stipulated | D10: 3
A11: =1+A10 -> 3 | B11: Annual Maximum Amortization of Transition Costs - Bankruptcy | C11: Stipulated | D11: 24
A12: =1+A11 -> 4 | B12: Max Allowable Other Operating Expenses | C12: Stipulated | D12: 19500
A13: =1+A12 -> 5 | B13: Throughput Adjuster | C13: Stipulated | D13: 0.02
B16: Annual Inputs
A18: =1+A13 -> 6 | B18: Land (EOY) | C18: =+"Ln ("&A19&" + "&A20&" + "&A21&" + Prior "&A18&")" -> Ln (7 + 8 + 9 + Prior 6) | D18: 1/ | E18: 577.22 | F18: =E18+F19+F20+F21 -> 577.22 | G18: =IF(G7<=$D$4,(F18+G19+G20+G21),0) -> 592.22 | H18: =IF(H7<=$D$4,(G18+H19+H20+H21),0) -> 592.22 | I18: =IF(I7<=$D$4,(H18+I19+I20+I21),0) -> 592.22 | J18: 631.958 | K18: 545.071 | L18: 545.071 | M18: 545.071 | N18: 545.071 | O18: 703.071 | P18: 703.071 | Q18: 639.561 | R18: 1190.61447 | S18: 1210.61447 | T18: 1210.61447
A19: =A18+1 -> 7 | B19: Land Additions | C19: Form 6 / Company Projections | D19: 6/ | F19: 0 | G19: ='Annual Data'!F13 -> 15 | H19: 0 | I19: 0 | J19: ='Annual Data'!I13 -> 39.738 | K19: ='Annual Data'!J13 -> 0 | L19: ='Annual Data'!K13 -> 0 | M19: ='Annual Data'!L13 -> 0 | N19: ='Annual Data'!M13 -> 0 | O19: ='Annual Data'!N13 -> 158 | P19: ='Annual Data'!O13 -> 0 | Q19: ='Annual Data'!P13 -> 0 | R19: ='Annual Data'!Q13 -> 0 | S19: ='Annual Data'!R13 -> 20 | T19: ='Annual Data'!S13 -> 0
A20: =A19+1 -> 8 | B20: Land Retirements | C20: Form 6 / Company Projections | D20: 6/ | F20: 0 | G20: ='Annual Data'!F14 -> 0 | H20: ='Annual Data'!G14 -> 0 | I20: ='Annual Data'!H14 -> 0 | J20: ='Annual Data'!I14 -> 0 | K20: ='Annual Data'!J14 -> 0 | L20: ='Annual Data'!K14 -> 0 | M20: ='Annual Data'!L14 -> 0 | N20: ='Annual Data'!M14 -> 0 | O20: 0 | P20: ='Annual Data'!O14 -> 0 | Q20: ='Annual Data'!P14 -> -63.51 | R20: ='Annual Data'!Q14 -> 0 | S20: ='Annual Data'!R11 -> 0 | T20: ='Annual Data'!S11 -> 0
A21: =A20+1 -> 9 | B21: Land Adjustments and Transfers | C21: Form 6 / Company Projections | D21: 6/ , 11/ | F21: 0 | G21: ='Annual Data'!F15 -> 0 | H21: ='Annual Data'!G15 -> 0 | I21: ='Annual Data'!H15 -> 0 | J21: =-J78 -> 0 | K21: ='Annual Data'!J15 -> -86.887 | L21: ='Annual Data'!K15 -> 0 | M21: ='Annual Data'!L15 -> 0 | N21: ='Annual Data'!M15 -> 0 | O21: ='Annual Data'!N15 -> 0 | P21: ='Annual Data'!O15 -> 0 | Q21: ='Annual Data'!P15 -> 0 | R21: ='Annual Data'!Q15 -> 551.05347 | S21: ='Annual Data'!R12 -> 0 | T21: ='Annual Data'!S12 -> 0
A24: =A21+1 -> 10 | B24: Carrier Property in Service (EOY) | C24: =+"Ln ("&A25&" + "&A26&" + "&A27&" + Prior "&A24&")" -> Ln (11 + 12 + 13 + Prior 10) | D24: 1/ | E24: 157552.9134 | F24: =E24+F25+F26+F27 -> 175512.4934 | G24: =IF(G7<=$D$4,(F24+G25+G26+G27),0) -> 194763.1724 | H24: =IF(H7<=$D$4,(G24+H25+H26+H27),0) -> 203457.8984 | I24: =IF(I7<=$D$4,(H24+I25+I26+I27),0) -> 210829.9614 | J24: 219559.6794 | K24: 204132.7374 | L24: =IF(L7<=$D$4,(K24+L25+L26+L27),0) -> 214201.5914 | M24: 220994.5317 | N24: 228025.2418 | O24: 232018.9172 | P24: 241468.1833 | Q24: 247454.9466 | R24: 256730.9771 | S24: 262675.8226 | T24: 267229.9611
A25: =A24+1 -> 11 | B25: Carrier Property Additions | C25: Form 6 / Company Projections | D25: 6/ | F25: 19126.05617 | G25: ='Annual Data'!F16 -> 25801.093 | H25: ='Annual Data'!G16 -> 8771.155 | I25: ='Annual Data'!H16 -> 7376.456 | J25: ='Annual Data'!I16 -> 9530.681 | K25: ='Annual Data'!J16 -> 7457.40808 | L25: ='Annual Data'!K16 -> 10879.487 | M25: ='Annual Data'!L16 -> 6896.7462 | N25: ='Annual Data'!M16 -> 10109.1881 | O25: ='Annual Data'!N16 -> 4339.57569 | P25: ='Annual Data'!O16 -> 9720.792672 | Q25: ='Annual Data'!P16 -> 8670.36511 | R25: ='Annual Data'!Q16 -> 10380.52517 | S25: ='Annual Data'!R16 -> 6075.02237 | T25: ='Annual Data'!S16 -> 4554.1385
A26: =A25+1 -> 12 | B26: Carrier Property Retirements | C26: Form 6 / Company Projections | D26: 6/ | F26: 0 | G26: ='Annual Data'!F17 -> -6550.414 | H26: ='Annual Data'!G17 -> -339.418 | I26: ='Annual Data'!H17 -> -4.393 | J26: ='Annual Data'!I17 -> -800.963 | K26: ='Annual Data'!J17 -> -40.09508 | L26: ='Annual Data'!K17 -> -740.235 | M26: ='Annual Data'!L17 -> -93.81943 | N26: ='Annual Data'!M17 -> -3078.478 | O26: ='Annual Data'!N17 -> -336.84956 | P26: ='Annual Data'!O17 -> -271.52652 | Q26: ='Annual Data'!P17 -> -2683.6018 | R26: ='Annual Data'!Q17 -> -725.92476 | S26: ='Annual Data'!R17 -> -130.17682 | T26: ='Annual Data'!S17 -> 0
A27: =A26+1 -> 13 | B27: Carrier Property Adjustments and Transfers | C27: Form 6 / Company Projections | D27: 6/ , 11/ | F27: -1166.47618 | G27: 0 | H27: ='Annual Data'!G18 -> 262.989 | I27: ='Annual Data'!H18 -> 0 | J27: ='Annual Data'!I18 -> 0 | K27: ='Annual Data'!J18 -> -22844.255 | L27: ='Annual Data'!K18 -> -70.398 | M27: ='Annual Data'!L18 -> -9.98641 | N27: ='Annual Data'!M18 -> 0 | O27: ='Annual Data'!N18 -> -9.0508 | P27: ='Annual Data'!O18 -> 0 | Q27: ='Annual Data'!P18 -> 0 | R27: ='Annual Data'!Q18 -> -378.56997 | S27: ='Annual Data'!R18 -> 0 | T27: ='Annual Data'!S18 -> 0
A30: =A27+1 -> 14 | B30: Accumulated Depreciation of Carrier Property (EOY) | C30: =+"Ln ("&A31&" + "&A32&" + "&A33&" + Prior "&A30&")" -> Ln (15 + 16 + 17 + Prior 14) | D30: 1/ | E30: 53957.40725 | F30: =E30+F31+F32+F33 -> 56778.51225 | G30: =IF(G7<=$D$4,(F30+G31+G32+G33),0) -> 54468.44725 | H30: =IF(H7<=$D$4,(G30+H31+H32+H33),0) -> 58680.93625 | I30: =IF(I7<=$D$4,(H30+I31+I32+I33),0) -> 63535.46225 | J30: 67691.67625 | K30: 68685.61425 | L30: 72733.74825 | M30: 77739.46742 | N30: 79855.57142 | O30: 84847.20873 | P30: 89973.57864 | Q30: 92807.75736 | R30: 97895.02666 | S30: 103728.2313 | T30: 109691.6127
A31: =A30+1 -> 15 | B31: Carrier Depreciation Expense | C31: Form 6 | D31: 6/ , 11/ | F31: 3987.581 | G31: ='Annual Data'!F26 -> 4240.349 | H31: ='Annual Data'!G26 -> 4551.907 | I31: ='Annual Data'!H26 -> 4856.431 | J31: ='Annual Data'!I26 -> 4957.177 | K31: ='Annual Data'!J26 -> 4639.516 | L31: ='Annual Data'!K26 -> 4819.236 | M31: ='Annual Data'!L26 -> 5089.878945 | N31: ='Annual Data'!M26 -> 5194.582 | O31: ='Annual Data'!N26 -> 5337.537673 | P31: ='Annual Data'!O26 -> 5397.896427 | Q31: ='Annual Data'!P26 -> 5454.270529 | R31: ='Annual Data'!Q26 -> 5801.138274 | S31: ='Annual Data'!R26 -> 5963.381449 | T31: ='Annual Data'!S26 -> 5963.381449
A32: =A31+1 -> 16 | B32: Carrier Depreciation Retirements | C32: Form 6 | D32: 6/ | F32: -1166.476 | G32: ='Annual Data'!F27 -> -6550.414 | H32: ='Annual Data'!G27 -> -339.418 | I32: ='Annual Data'!H27 -> -4.393 | J32: ='Annual Data'!I27 -> -800.963 | K32: ='Annual Data'!J27 -> -40.095 | L32: ='Annual Data'!K27 -> -740.235 | M32: ='Annual Data'!L27 -> -78.22563 | N32: ='Annual Data'!M27 -> -3078.478 | O32: ='Annual Data'!N27 -> -336.84956 | P32: ='Annual Data'!O27 -> -271.52652 | Q32: ='Annual Data'!P27 -> -2620.0918 | R32: ='Annual Data'!Q27 -> -725.92476 | S32: ='Annual Data'!R27 -> -130.17682 | T32: ='Annual Data'!S27 -> 0
A33: =A32+1 -> 17 | B33: Carrier Depreciation Transfers / Adjustments | C33: Form 6 | D33: 6/ , 11/ | F33: 0 | G33: ='Annual Data'!F28 -> 0 | H33: ='Annual Data'!G28 -> 0 | I33: ='Annual Data'!H28 -> 2.488 | J33: ='Annual Data'!I28 -> 0 | K33: ='Annual Data'!J28 -> -3605.483 | L33: ='Annual Data'!K28 -> -30.867 | M33: ='Annual Data'!L28 -> -5.93415 | N33: ='Annual Data'!M28 -> 0 | O33: ='Annual Data'!N28 -> -9.0508 | P33: ='Annual Data'!O28 -> 0 | Q33: ='Annual Data'!P24 -> 0 | R33: ='Annual Data'!Q28 -> 12.05578 | S33: ='Annual Data'!R28 -> 0 | T33: ='Annual Data'!S28 -> 0
Q34: =+Q31/Q24 -> 0.02204146898
A35: =A33+1 -> 18 | B35: Oil Inventories | C35: Form 6 | D35: 6/ | E35: 252.4125 | F35: 345.872 | G35: ='Annual Data'!F34 -> 537.31 | H35: ='Annual Data'!G34 -> 729.54 | I35: ='Annual Data'!H34 -> 1000.669 | J35: ='Annual Data'!I34 -> 632.045 | K35: ='Annual Data'!J34 -> 1228.925 | L35: ='Annual Data'!K34 -> 1445.632 | M35: ='Annual Data'!L34 -> 1015.875 | N35: ='Annual Data'!M34 -> 1441.049 | O35: ='Annual Data'!N34 -> 1666.211 | P35: ='Annual Data'!O34 -> 707.428 | Q35: ='Annual Data'!P34 -> 696.259 | R35: ='Annual Data'!Q34 -> 741.198 | S35: ='Annual Data'!R34 -> 632.646 | T35: =S35 -> 632.646
A36: =A35+1 -> 19 | B36: Materials & Supplies | C36: Form 6 | D36: 6/ | E36: 0 | F36: 0 | G36: ='Annual Data'!F35 -> 0 | H36: ='Annual Data'!G35 -> 0 | I36: ='Annual Data'!H35 -> 0 | J36: ='Annual Data'!I35 -> 0 | K36: ='Annual Data'!J35 -> 0 | L36: ='Annual Data'!K35 -> 0 | M36: ='Annual Data'!L35 -> 0 | N36: ='Annual Data'!M35 -> 0 | O36: ='Annual Data'!N35 -> 0 | P36: ='Annual Data'!O35 -> 0 | Q36: ='Annual Data'!P35 -> 0 | R36: ='Annual Data'!Q35 -> 0 | S36: ='Annual Data'!R35 -> 0 | T36: =S36 -> 0
A37: =A36+1 -> 20 | B37: Prepayments | C37: Form 6 | D37: 6/ | E37: 1676.86724 | F37: 1894.618 | G37: ='Annual Data'!F36 -> 2321.488 | H37: ='Annual Data'!G36 -> 2755.055 | I37: ='Annual Data'!H36 -> 1681.657 | J37: ='Annual Data'!I36 -> 2214.375 | K37: ='Annual Data'!J36 -> 2325.276 | L37: ='Annual Data'!K36 -> 1655.152 | M37: ='Annual Data'!L36 -> 2086.795 | N37: ='Annual Data'!M36 -> 2922.205 | O37: ='Annual Data'!N36 -> 2350.041 | P37: ='Annual Data'!O36 -> 2702.418 | Q37: ='Annual Data'!P36 -> 2817.331 | R37: ='Annual Data'!Q36 -> 1902.857 | S37: ='Annual Data'!R36 -> 2132.081 | T37: 2132.081
A39: =1+A37 -> 21 | B39: Federal Income Tax Rate | C39: 2/ | F39: 0.35 | G39: 0.35 | H39: 0.35 | I39: 0.35 | J39: 0.35 | K39: 0.35 | L39: 0.35 | M39: 0.35 | N39: 0.35 | O39: 0.35 | P39: 0.35 | Q39: 0.35 | R39: 0.35 | S39: 0.35 | T39: 0.21
A40: =A39+1 -> 22 | B40: State Income Tax Rate | C40: N/A | F40: 0 | G40: 0 | H40: 0 | I40: 0 | J40: 0 | K40: 0 | L40: 0 | M40: 0 | N40: 0 | O40: 0 | P40: 0 | Q40: 0 | R40: 0 | S40: 0 | T40: 0
A41: =A40+1 -> 23 | B41: Federal Depreciation Factors - MACRS (1987-present) | C41: 3/ | E41: 0.05 | F41: 0.095 | G41: 0.0855 | H41: 0.077 | I41: 0.0693 | J41: 0.0623 | K41: 0.059 | L41: 0.059 | M41: 0.0591 | N41: 0.059 | O41: 0.0591 | P41: 0.059 | Q41: 0.0591 | R41: 0.059 | S41: 0.0591 | T41: 0.0295
A42: =A41+1 -> 24 | B42: Tax Basis Reduction - TEFRA | C42: 4/ | F42: 0 | G42: 0 | H42: 0 | I42: 0 | J42: 0 | K42: 0 | L42: 0 | M42: 0 | N42: 0 | O42: 0 | P42: 0 | Q42: 0 | R42: 0 | S42: 0 | T42: 0
A44: =1+A42 -> 25 | B44: Interest on Revenue Excess (Deficit) | C44: Federal Reserve, Statistical Release H.15 | F44: =(1+0.0434/4)^4-1 -> 0.04411145802 | G44: =(1+6.19%/4)^4-1 -> 0.06335173464 | H44: =(1+7.96%/4)^4-1 -> 0.08200773922 | I44: =(1+0.0805/4)^4-1 -> 0.08296286155 | J44: =(1+0.0509/4)^4-1 -> 0.05187982198 | K44: =(1+0.0325/4)^4-1 -> 0.03289824362 | L44: 0.03289824362 | M44: 0.03289824362 | N44: 0.03289824362 | O44: 0.03289824362 | P44: 0.03289824362 | Q44: =(1+0.0326/4)^4-1 -> 0.03300070479 | R44: =(1+0.035117/4)^4-1 -> 0.03558216397 | S44: =(1+0.040967/4)^4-1 -> 0.04160066883 | T44: =(1+0.040967/4)^4-1 -> 0.04160066883
A45: =1+A44 -> 26 | B45: Inflation Rate | E45: =(184.3-180.9)/180.9 -> 0.01879491432 | F45: =(190.3-184.3)/184.3 -> 0.03255561584 | G45: 0.0342 | H45: 0.0254 | I45: =+(210.036-201.8)/201.8 -> 0.04081268583 | J45: 0.0009 | K45: 0.0272 | L45: 0.015 | M45: 0.0296 | N45: 0.0174 | O45: 0.0150173562 | P45: 0.0076 | Q45: 0.0073 | R45: 0.0207 | S45: 0.0211 | T45: 0
A46: =A45+1 -> 27 | B46: Equity Ratio | C46: Stipulated | F46: 0.5 | G46: =+F46 -> 0.5 | H46: 0.5 | I46: 0.5 | J46: 0.5 | K46: 0.5 | L46: 0.5 | M46: 0.5 | N46: 0.5 | O46: 0.5 | P46: =+O46 -> 0.5 | Q46: 0.5 | R46: 0.5 | S46: 0.5 | T46: 0.5
A47: =A46+1 -> 28 | B47: Cost of Debt | C47: Stipulated | F47: 0.078 | G47: 0.078 | H47: 0.078 | I47: 0.078 | J47: 0.078 | K47: 0.078 | L47: 0.078 | M47: 0.078 | N47: 0.078 | O47: 0.078 | P47: 0.078 | Q47: 0.078 | R47: 0.078 | S47: 0.078 | T47: 0.078
A48: =A47+1 -> 29 | B48: Real Equity Rate of Return | C48: Stipulated | F48: 0.1 | G48: 0.1 | H48: 0.1 | I48: 0.1 | J48: 0.1 | K48: 0.1 | L48: 0.1 | M48: 0.1 | N48: 0.1 | O48: 0.1 | P48: 0.1 | Q48: 0.1 | R48: 0.1 | S48: 0.1 | T48: 0.1
A50: =1+A48 -> 30 | B50: Tariff Revenues - Actual | C50: Form 6 | F50: 51392.076 | G50: 53825.22 | H50: 66442.752 | I50: =Revenue!F19 -> 80369.45 | J50: =Revenue!G19 -> 78142.907 | K50: =Revenue!H19 -> 62982.762 | L50: =Revenue!I19 -> 57467.851 | M50: =Revenue!J19 -> 63131.709 | N50: =IF(N7<$D$4,(Revenue!K19),0) -> 70364.284 | O50: =IF(O7<$D$4,(Revenue!L19),0) -> 81015.331 | P50: =IF(P7<$D$4,(Revenue!M19),0) -> 70967.243 | Q50: =IF(Q7<$D$4,(Revenue!N19),0) -> 60166.961 | R50: =IF(R7<$D$4,(Revenue!O19),0) -> 66106.515 | S50: =IF(S7<$D$4,(Revenue!P19),0) -> 78251.006 | T50: =IF(T7<$D$4,(Revenue!Q19),0) -> 0
A51: =1+A50 -> 31 | B51: Tariff Revenues - Estimated | C51: Company Records | D51: 8/ | T51: =S50 -> 78251.006
K52: .
J53: Page 2 of 10 | N53: Page 7 of 10 | T53: Page 7 of 10
A54: Line
A55: No. | B55: Description | C55: Source | E55: =+E$7 -> 2003 EOY | F55: =+F$7 -> 2004 | G55: =+G$7 -> 2005 | H55: 2006 | I55: 2007 | J55: 2008 | K55: 2009 | L55: 2010 | M55: 2011 | N55: 2012 | O55: 2013 | P55: 2014 | Q55: 2015 | R55: 2016 | S55: 2017 | T55: 2018
A56: =1+A51 -> 32 | B56: =+'AFUDC - Amortization'!B11 -> Accumulated Equity AFUDC | C56: Stipulated | E56: 5073.090838
A57: =1+A56 -> 33 | B57: =+'AFUDC - Amortization'!B17 -> Accumulated Amortization of Equity AFUDC | C57: Stipulated | E57: 548.6079527
A59: =1+A57 -> 34 | B59: =+'AFUDC - Amortization'!B23 -> Accumulated Debt AFUDC | C59: Stipulated | E59: 3170.420488
A60: =1+A59 -> 35 | B60: =+'AFUDC - Amortization'!B29 -> Accumulated Amortization of Debt AFUDC | C60: Stipulated | E60: 327.7472897
A62: =1+A60 -> 36 | B62: Federal ADIT before Excess Deferred Income Tax Amortization Adjustment | C62: Stipulated | E62: 13338.04504
A64: =1+A62 -> 37 | B64: Accumulated Excess Deferred Income Tax Amortization Adjustment | C64: Stipulated | E64: 972.9823247
A66: =1+A64 -> 38 | B66: Accumulated TEFRA Adjustment | C66: Stipulated | E66: 71.6774
A68: =1+A66 -> 39 | B68: Accumulated Amortization of TEFRA Adjustment | C68: Stipulated | E68: 33.25223069
A70: =1+A68 -> 40 | B70: Accumulated Excess Deferred Income Tax Amortization | C70: Stipulated | E70: 2280.809487
A72: =1+A70 -> 41 | B72: Tax Depreciation - Pre-Year 1 | C72: Stipulated | F72: 8133.918137 | G72: 7526.063505 | H72: 7020.720152 | I72: 6555.196964 | J72: 6174.263162 | K72: 5936.570134 | L72: 5783.782866 | M72: 5549.819042 | N72: 5189.078739 | O72: 4299.495911 | P72: 3516.261185 | Q72: 3326.671927 | R72: 2991.80614 | S72: 1955.630376 | T72: 590.5627599
A74: =1+A72 -> 42 | B74: Bayview Tax Depreciation Adjustment | C74: Amended TSA Workpaper 3 Exhibit 3C | K74: -1315.993286 | L74: -1305.622553 | M74: -1303.685644 | N74: -1300.110929 | O74: -1180.504866 | P74: -265.2284442 | Q74: -179.6140786 | R74: -151.7969451 | S74: -130.3727519 | T74: -116.6511432
A75: =1+A74 -> 43 | B75: Bayview ADIT Adjustment | C75: Amended TSA Workpaper 4 Exhibit 4C | K75: -3823.216643
A77: =1+A75 -> 44 | B77: Bayview Terminal Non-Carrier Property Balance | C77: Amended TSA Workpaper 1 Exhibit 1C | K77: 22118.65306
A78: =1+A77 -> 45 | B78: Bayview Non-Carrier Land | C78: Amended TSA Workpaper 1 Exhibit 1C | K78: 86.8874275
A79: 46 | B79: Bayview Terminal Non-Carrier Accumulated Depreciation | C79: Amended TSA Workpaper 2 Exhibit 2C | K79: 3739.014884
A80: 47 | B80: Bayview Terminal Non-Carrier Depreciation Expenses | C80: 2008 Company Records | K80: N/A
A81: 48 | B81: Bayview Terminal Non-Carrier Portion Project Expense | C81: 2008 Company Records | K81: N/A
A82: 49 | B82: Bayview Terminal Non-Carrier Portion Fuel and Power | C82: 2008 Company Records | K82: N/A
A83: 50 | B83: Bayview Terminal Non-Carrier Portion Property Tax | C83: 2008 Company Records | K83: N/A
A84: 51 | B84: Bayview Terminal Non-Carrier Portion Other Operating Expense | C84: 2008 Company Records | K84: N/A
J87: Page 3 of 10 | S87: Page 8 of 10
A88: Line
A89: No. | B89: Description | C89: Source | E89: =+E$7 -> 2003 EOY | F89: =+F$7 -> 2004 | G89: =+G$7 -> 2005 | H89: 2006 | I89: 2007 | J89: 2008 | K89: 2009 | L89: 2010 | M89: 2011 | N89: 2012 | O89: 2013 | P89: 2014 | Q89: 2015 | R89: 2016 | S89: 2017 | T89: 2018
B90: Operating Expenses by FERC Account
B91: OPERATIONS AND MAINTENANCE
A92: =1+A84 -> 52 | B92: Salaries and Wages (300) | C92: Company Records | D92: 7/ | F92: 4213.87733 | G92: 4722.34264 | H92: 4159.86782 | I92: 5044.3808 | J92: 0 | K92: 0 | L92: 0 | M92: 0 | N92: 0 | O92: 0 | P92: 0 | Q92: 0 | R92: 0 | S92: ='Tariff Year Data'!F14 -> 0 | T92: 0
A93: =1+A92 -> 53 | B93: Materials and Supplies(310) | C93: Company Records | D93: 7/ | F93: 362.48968 | G93: 452.19502 | H93: 623.52297 | I93: 844.96353 | J93: 717.09718 | K93: 1157.68746 | L93: 2733.01082 | M93: 2255.6607 | N93: 2181.33851 | O93: 2487.78228 | P93: 2510.10582 | Q93: 2725.96262 | R93: 803.05828 | S93: ='Tariff Year Data'!F15 -> 794.92947 | T93: =S93 -> 794.92947
A94: 54 | B94: Outside Services (320) | C94: Company Records | D94: 7/ | F94: 9817.72619 | G94: 11542.35624 | H94: 9860.71641 | I94: 11294.32947 | J94: 21951.30551 | K94: 16901.83767 | L94: 19167.19696 | M94: 18744.35806 | N94: 19158.71911 | O94: 19887.77133 | P94: 21248.24404 | Q94: 22232.09118 | R94: 21523.69035 | S94: ='Tariff Year Data'!F16 -> 19955.86627 | T94: 19955.86627
A95: 55 | B95: Operating Fuel and Power (330) | C95: Company Records | D95: 7/ | F95: 9452.79988 | G95: 9720.75491 | H95: 10186.0982 | I95: 10707.77338 | J95: 11018.92161 | K95: 10545.92628 | L95: 8647.4194 | M95: 9347.52313 | N95: 9393.2063 | O95: 9760.88501 | P95: 9802.84959 | Q95: 10147.35127 | R95: 12705.12177 | S95: ='Tariff Year Data'!F17 -> 12223.02115 | T95: 12223.02115
A96: 56 | B96: Oil Losses and Shortages (340) | C96: Company Records | D96: 7/ | F96: -126.84427 | G96: 9.99999998e-06 | H96: 0 | I96: -0.00028 | J96: 0 | K96: 0 | L96: 0 | M96: 0 | N96: 0 | O96: 0 | P96: 0 | Q96: 0 | R96: 0 | S96: ='Tariff Year Data'!F18 -> 0 | T96: 0
A97: 57 | B97: Rentals (350) | C97: Company Records | D97: 7/ | F97: 584.54631 | G97: 367.28692 | H97: 195.81146 | I97: 250.97444 | J97: 182.23359 | K97: 173.16734 | L97: 171.95856 | M97: 200.98212 | N97: 84.63956 | O97: 104.1395 | P97: 131.05896 | Q97: 128.73223 | R97: 120.75538 | S97: ='Tariff Year Data'!F19 -> 92.25403 | T97: 92.25403
A98: 58 | B98: Other Expenses (390) | C98: Company Records | D98: 7/ | F98: 73.81486 | G98: 67.28515 | H98: 173.14847 | I98: 415.09552 | J98: 276.35265 | K98: 149.68473 | L98: 165.97236 | M98: 267.53952 | N98: 174.70141 | O98: 556.66874 | P98: 242.26745 | Q98: 201.89894 | R98: 163.71755 | S98: ='Tariff Year Data'!F20 -> 154.96806 | T98: 154.96806
A99: 59 | B99: Total Operations and Maintenance Expenses | C99: =+"Sum Ln ("&A92&" to "&A98&")" -> Sum Ln (52 to 58) | F99: =SUM(F92:F98) -> 24378.40998 | G99: =SUM(G92:G98) -> 26872.22089 | H99: 25199.16533 | I99: 28557.51686 | J99: 34145.91054 | K99: 28928.30348 | L99: 30885.5581 | M99: 30816.06353 | N99: 30992.60489 | O99: 32797.24686 | P99: =SUM(P92:P98) -> 33934.52586 | Q99: =SUM(Q92:Q98) -> 35436.03624 | R99: =SUM(R92:R98) -> 35316.34333 | S99: =SUM(S92:S98) -> 33221.03898 | T99: =SUM(T92:T98) -> 33221.03898
B100: GENERAL
A101: =1+A99 -> 60 | B101: Salaries and Wages (500) | C101: Company Records | D101: 7/ | F101: 1713.73883 | G101: 1151.21667 | H101: 2392.84611 | I101: 2096.78895 | J101: 0 | K101: 0 | L101: 0 | M101: 0 | N101: 0 | O101: 0 | P101: 0 | Q101: 0 | R101: 0 | S101: ='Tariff Year Data'!F24 -> 0 | T101: =S101 -> 0
A102: =1+A101 -> 61 | B102: Materials and Supplies (510) | C102: Company Records | D102: 7/ | F102: 776.00654 | G102: 773.37943 | H102: 607.8761 | I102: 798.52446 | J102: 947.11008 | K102: 239.33026 | L102: 765.90821 | M102: 482.4288 | N102: 763.79852 | O102: 732.16532 | P102: 716.54357 | Q102: 660.49077 | R102: 559.09522 | S102: ='Tariff Year Data'!F25 -> 624.40451 | T102: 624.40451
A103: 62 | B103: Outside Services (520) | C103: Company Records | D103: 7/ | F103: 1124.68253 | G103: 3094.29695 | H103: 3335.38103 | I103: 6057.51186 | J103: 6169.31127 | K103: 6225.01807 | L103: 6105.03672 | M103: 6903.55723 | N103: 6030.95084 | O103: 7176.3016 | P103: 6530.85736 | Q103: 6427.66023 | R103: 6161.33492 | S103: ='Tariff Year Data'!F26 -> 6929.2653 | T103: 6929.2653
A104: 63 | B104: Rentals (530) | C104: Company Records | D104: 7/ | F104: 225.62348 | G104: 497.2916 | H104: 605.21325 | I104: 765.84932 | J104: 755.9222 | K104: 603.85036 | L104: 640.61496 | M104: 633.16937 | N104: 284.24853 | O104: 154.35293 | P104: 246.37575 | Q104: 235.12093 | R104: 250.75578 | S104: ='Tariff Year Data'!F27 -> 358.24109 | T104: 358.24109
A105: 64 | B105: Depreciation and Amortization (540) | C105: =+"Ln "&A31 -> Ln 15 | F105: =+F31 -> 3987.581 | G105: =+G31 -> 4240.349 | H105: =+H31 -> 4551.907 | I105: 4856.431 | J105: 4957.177 | K105: 4639.516 | L105: 4819.236 | M105: 5089.878945 | N105: 5194.582 | O105: 5337.537673 | P105: =+P31 -> 5397.896427 | Q105: =+Q31 -> 5454.270529 | R105: =+R31 -> 5801.138274 | S105: =+S31 -> 5963.381449 | T105: =+T31 -> 5963.381449
A106: 65 | B106: Employee Benefits (550) | C106: Company Records | D106: 7/ | F106: 2421.70292 | G106: 2410.82675 | H106: 2132.93152 | I106: 1986.1857 | J106: 0 | K106: 0 | L106: 0 | M106: 0 | N106: 0 | O106: 0 | P106: 2777.77594 | Q106: 0 | R106: 0 | S106: ='Tariff Year Data'!F30 -> 0 | T106: =S106 -> 0
A107: 66 | B107: Insurance (560) | C107: Company Records | D107: 7/ | F107: 1836.57572 | G107: 1829.24189 | H107: 3021.75429 | I107: 2819.84968 | J107: 2764.72314 | K107: 2550.91043 | L107: 2715.56926 | M107: 2819.67852 | N107: 2779.88145 | O107: 2779.50907 | P107: 0 | Q107: 2696.4371 | R107: 2450.09209 | S107: ='Tariff Year Data'!F31 -> 2099.06899 | T107: 2099.06899
A108: 67 | B108: Casualty and Other Losses (570) | C108: Company Records | D108: 7/ | F108: 10.5 | G108: -38.22702 | H108: 10 | I108: -1.13017 | J108: 16.94213 | K108: 3.04063 | L108: 0 | M108: 0 | N108: 0 | O108: 0 | P108: 0 | Q108: 0 | R108: 0 | S108: ='Tariff Year Data'!F32 -> 0 | T108: 0
A109: 68 | B109: Pipeline Taxes (580) | C109: Company Records | D109: 7/ | F109: 1100.35614 | G109: 1168.28243 | H109: 2759.89579 | I109: 2720.71957 | J109: 2445.42975 | K109: 2156.03569 | L109: 2322.86203 | M109: 2133.05381 | N109: 2610.55071 | O109: 2921.61842 | P109: 2849.26196 | Q109: 2552.8074 | R109: 2145.44211 | S109: ='Tariff Year Data'!F33 -> 1918.83255 | T109: 1918.83255
A110: 69 | B110: Other Expenses (590) | C110: Company Records | D110: 7/ | F110: -607.42221 | G110: 335.66951 | H110: 539.64458 | I110: 413.8965 | J110: 337.89777 | K110: 470.68921 | L110: 380.11927 | M110: 369.55112 | N110: 398.24822 | O110: 364.08477 | P110: 422.91295 | Q110: 446.78256 | R110: 447.60639 | S110: ='Tariff Year Data'!F34 -> 626.0474 | T110: 626.0474
A111: 70 | B111: Total General Expenses | C111: =+"Sum Ln ("&A101&" to "&A110&")" -> Sum Ln (60 to 69) | F111: =SUM(F101:F110) -> 12589.34495 | G111: =SUM(G101:G110) -> 15462.32721 | H111: 19957.44967 | I111: 22514.62687 | J111: 18394.51334 | K111: 16888.39065 | L111: 17749.34645 | M111: 18431.3178 | N111: 18062.26027 | O111: 19465.56978 | P111: =SUM(P101:P110) -> 18941.62396 | Q111: =SUM(Q101:Q110) -> 18473.56952 | R111: =SUM(R101:R110) -> 17815.46478 | S111: =SUM(S101:S110) -> 18519.24129 | T111: =SUM(T101:T110) -> 18519.24129
A113: =1+A111 -> 71 | B113: Total Operating Expenses | C113: =+"Ln ("&A99&" + "&A111&")" -> Ln (59 + 70) | F113: =+F111+F99 -> 36967.75493 | G113: =+G111+G99 -> 42334.5481 | H113: 45156.615 | I113: 51072.14373 | J113: 52540.42388 | K113: 45816.69413 | L113: 48634.90455 | M113: 49247.38133 | N113: 49054.86516 | O113: 52262.81664 | P113: =+P111+P99 -> 52876.14982 | Q113: =+Q111+Q99 -> 53909.60576 | R113: =+R111+R99 -> 53131.80811 | S113: =+S111+S99 -> 51740.28027 | T113: =+T111+T99 -> 51740.28027
A114: =1+A113 -> 72 | B114: Operating Expenses Excluding Depreciation | C114: =+"Ln ("&A113&" - "&A105&")" -> Ln (71 - 64) | F114: =+F113-F105 -> 32980.17393 | G114: =+G113-G105 -> 38094.1991 | H114: 40604.708 | I114: 46215.71273 | J114: 47583.24688 | K114: 41177.17813 | L114: 43815.66855 | M114: 44157.50238 | N114: 43860.28316 | O114: 46925.27897 | P114: =+P113-P105 -> 47478.25339 | Q114: =+Q113-Q105 -> 48455.33523 | R114: =+R113-R105 -> 47330.66984 | S114: =+S113-S105 -> 45776.89882 | T114: =+T113-T105 -> 45776.89882
B116: Project Expenses by FERC Account
B117: OPERATIONS AND MAINTENANCE
A118: =1+A114 -> 73 | B118: Salaries and Wages (300) | C118: Company Records | D118: 7/ | F118: 0 | G118: 0 | H118: 0 | I118: 0 | J118: 0 | K118: 0 | L118: 0 | M118: 0 | N118: 0 | O118: 0 | P118: ='2017 project exp'!U14/1000 -> 0 | Q118: 0 | R118: =Q118 -> 0 | S118: =R118 -> 0 | T118: 0
A119: =1+A118 -> 74 | B119: Materials and Supplies(310) | C119: Company Records | D119: 7/ | F119: 0 | G119: 0 | H119: 0 | I119: 151.352 | J119: 0 | K119: 0 | L119: 0 | M119: 0 | N119: 0 | O119: 0 | P119: ='2017 project exp'!U15/1000 -> 0 | Q119: 0 | R119: 0 | S119: 0 | T119: 0
A120: 75 | B120: Outside Services (320) | C120: Company Records | D120: 7/ | F120: 9308.66386 | G120: 9897.86717 | H120: 10015.00302 | I120: 11678.59178 | J120: 14366.54197 | K120: 9472.52593 | L120: 11048.33584 | M120: 9470.62706 | N120: 9069.43437 | O120: 10058.97321 | P120: 10989.0654 | Q120: 12210.75809 | R120: 11305.81476 | S120: ='Tariff Year Data'!F50 -> 10567.41862 | T120: 10567.41862
A121: 76 | B121: Operating Fuel and Power (330) | C121: Company Records | D121: 7/ | F121: 0 | G121: 0 | H121: 0 | I121: 0 | J121: 0 | K121: 0 | L121: 0 | M121: 0 | N121: 0 | O121: 0 | P121: ='2017 project exp'!U17/1000 -> 0 | Q121: 0 | R121: 0 | S121: 0 | T121: 0
A122: 77 | B122: Oil Losses and Shortages (340) | C122: Company Records | D122: 7/ | F122: 0 | G122: 0 | H122: 0 | I122: 0 | J122: 0 | K122: 0 | L122: 0 | M122: 0 | N122: 0 | O122: 0 | P122: ='2017 project exp'!U18/1000 -> 0 | Q122: 0 | R122: 0 | S122: 0 | T122: 0
A123: 78 | B123: Rentals (350) | C123: Company Records | D123: 7/ | F123: 0 | G123: 0 | H123: 0 | I123: 27.865 | J123: 0 | K123: 0 | L123: 0 | M123: 0 | N123: 0 | O123: 0 | P123: ='2017 project exp'!U19/1000 -> 0 | Q123: 0 | R123: 0 | S123: 0 | T123: 0
A124: 79 | B124: Other Expenses (390) | C124: Company Records | D124: 7/ | F124: 0 | G124: 0 | H124: 0 | I124: 12.016 | J124: 0 | K124: 0 | L124: 0 | M124: 0 | N124: 0 | O124: 0 | P124: ='2017 project exp'!U20/1000 -> 0 | Q124: 0 | R124: 0 | S124: 0 | T124: 0
A125: 80 | B125: Total Operations and Maintenance Expenses | C125: =+"Sum Ln ("&A118&" to "&A124&")" -> Sum Ln (73 to 79) | F125: =SUM(F118:F124) -> 9308.66386 | G125: 9897.86717 | H125: 10015.00302 | I125: 11869.82478 | J125: 14366.54197 | K125: 9472.52593 | L125: 11048.33584 | M125: 9470.62706 | N125: 9069.43437 | O125: 10058.97321 | P125: =SUM(P118:P124) -> 10989.0654 | Q125: =SUM(Q118:Q124) -> 12210.75809 | R125: =SUM(R118:R124) -> 11305.81476 | S125: =SUM(S118:S124) -> 10567.41862 | T125: =SUM(T118:T124) -> 10567.41862
B126: GENERAL
A127: =1+A125 -> 81 | B127: Salaries and Wages (500) | C127: Company Records | D127: 7/ | F127: 0 | G127: 0 | H127: 0 | I127: 0 | J127: 0 | K127: 0 | L127: 0 | M127: 0 | N127: 0 | O127: ='2017 project exp'!T24/1000 -> 0 | P127: =O127 -> 0 | Q127: 0 | R127: =Q127 -> 0 | S127: =R127 -> 0 | T127: 0
A128: =1+A127 -> 82 | B128: Materials and Supplies (510) | C128: Company Records | D128: 7/ | F128: 0 | G128: 0 | H128: 0 | I128: 55.676 | J128: 0 | K128: 0 | L128: 0 | M128: 0 | N128: 0 | O128: ='2017 project exp'!T25/1000 -> 0 | P128: 0 | Q128: 0 | R128: 0 | S128: 0 | T128: 0
A129: 83 | B129: Outside Services (520) | C129: Company Records | D129: 7/ | F129: -640 | G129: 0 | H129: 0 | I129: 2227.417 | J129: 0 | K129: 0 | L129: 0 | M129: 0 | N129: 0 | O129: ='2017 project exp'!T26/1000 -> 0 | P129: 0 | Q129: 0 | R129: 0 | S129: 0 | T129: 0
A130: 84 | B130: Rentals (530) | C130: Company Records | D130: 7/ | F130: 0 | G130: 0 | H130: 0 | I130: 0.3756 | J130: 0 | K130: 0 | L130: 0 | M130: 0 | N130: 0 | O130: ='2017 project exp'!T27/1000 -> 0 | P130: 0 | Q130: 0 | R130: 0 | S130: 0 | T130: 0
A131: 85 | B131: Depreciation and Amortization (540) | C131: Company Records | D131: 7/ | F131: 0 | G131: 0 | H131: 0 | I131: 0 | J131: 0 | K131: 0 | L131: 0 | M131: 0 | N131: 0 | O131: ='2017 project exp'!T28/1000 -> 0 | P131: 0 | Q131: 0 | R131: 0 | S131: 0 | T131: 0
A132: 86 | B132: Employee Benefits (550) | C132: Company Records | D132: 7/ | F132: 0 | G132: 0 | H132: 0 | I132: 0 | J132: 0 | K132: 0 | L132: 0 | M132: 0 | N132: 0 | O132: ='2017 project exp'!T29/1000 -> 0 | P132: 0 | Q132: 0 | R132: 0 | S132: 0 | T132: 0
A133: 87 | B133: Insurance (560) | C133: Company Records | D133: 7/ | F133: 0 | G133: 0 | H133: 0 | I133: 0 | J133: 0 | K133: 0 | L133: 0 | M133: 0 | N133: 0 | O133: ='2017 project exp'!T30/1000 -> 0 | P133: 0 | Q133: 0 | R133: 0 | S133: 0 | T133: 0
A134: 88 | B134: Casualty and Other Losses (570) | C134: Company Records | D134: 7/ | F134: 0 | G134: 0 | H134: 0 | I134: 0 | J134: 0 | K134: 0 | L134: 0 | M134: 0 | N134: 0 | O134: ='2017 project exp'!T31/1000 -> 0 | P134: 0 | Q134: 0 | R134: 0 | S134: 0 | T134: 0
A135: 89 | B135: Pipeline Taxes (580) | C135: Company Records | D135: 7/ | F135: 0 | G135: 0 | H135: 0 | I135: 0 | J135: 0 | K135: 0 | L135: 0 | M135: 0 | N135: 0 | O135: ='2017 project exp'!T32/1000 -> 0 | P135: 0 | Q135: 0 | R135: 0 | S135: 0 | T135: 0
A136: 90 | B136: Other Expenses (590) | C136: Company Records | D136: 7/ | F136: -439.5 | G136: 0 | H136: 0 | I136: 0.08465 | J136: 0.08465 | K136: 0.08465 | L136: 0 | M136: 0 | N136: 0 | O136: ='2017 project exp'!T33/1000 -> 0 | P136: 0 | Q136: 0 | R136: 0 | S136: 0 | T136: 0
A137: 91 | B137: Total General Expenses | C137: =+"Sum Ln ("&A127&" to "&A136&")" -> Sum Ln (81 to 90) | F137: =SUM(F127:F136) -> -1079.5 | G137: 0 | H137: 0 | I137: 2283.55325 | J137: 0.08465 | K137: 0.08465 | L137: 0 | M137: 0 | N137: 0 | O137: 0 | P137: =SUM(P127:P136) -> 0 | Q137: =SUM(Q127:Q136) -> 0 | R137: =SUM(R127:R136) -> 0 | S137: =SUM(S127:S136) -> 0 | T137: =SUM(T127:T136) -> 0
A139: =1+A137 -> 92 | B139: Total Project Expenses | C139: =+"Ln ("&A125&" + "&A137&") - Ln "&A81&"" -> Ln (80 + 91) - Ln 48 | F139: =+F137+F125 -> 8229.16386 | G139: =+G137+G125 -> 9897.86717 | H139: 10015.00302 | I139: 14153.37803 | J139: 14366.62662 | K139: =+K137+K125 -> 9472.61058 | L139: 11048.33584 | M139: 9470.62706 | N139: 9069.43437 | O139: 10058.97321 | P139: =+P137+P125 -> 10989.0654 | Q139: =+Q137+Q125 -> 12210.75809 | R139: =+R137+R125 -> 11305.81476 | S139: =+S137+S125 -> 10567.41862 | T139: =+T137+T125 -> 10567.41862
A141: =1+A139 -> 93 | B141: Other Operating Expenses | C141: =+"Ln ("&A114&" - "&A95&" - "&A139&" - "&A84&" - "&A109&")" -> Ln (72 - 55 - 92 - 51 - 68) | F141: =+F114-F95-F139 -> 15298.21019 | G141: =+G114-G95-G139 -> 18475.57702 | H141: =+H114-H95-H139 -> 20403.60678 | I141: =+I114-I95-I139 -> 21354.56132 | J141: =+J114-J95-J139 -> 22197.69865 | K141: =+K114-K95-K139-K109 -> 19002.60558 | L141: 21797.05128 | M141: 23206.29838 | N141: 22787.09178 | O141: 24183.80233 | P141: 23837.07644 | Q141: =+Q114-Q95-Q139-Q109 -> 23544.41847 | R141: =+R114-R95-R139-R109 -> 21174.2912 | S141: 21067.6265 | T141: 21067.6265
A143: =1+A141 -> 94 | B143: Transition Costs - Rate Litigation | C143: Annual data | D143: 9/ | F143: 2146.34522 | G143: 0 | H143: 0 | I143: =TransitionCosts!J11 -> 0 | J143: =TransitionCosts!K11 -> 0 | K143: =TransitionCosts!L11 -> 0 | L143: =TransitionCosts!M11 -> 0 | M143: =TransitionCosts!N11 -> 0 | N143: =TransitionCosts!O11 -> 0 | O143: =TransitionCosts!P11 -> 0 | P143: =TransitionCosts!Q11 -> 0 | Q143: =TransitionCosts!R11 -> 0 | R143: =TransitionCosts!S11 -> 0 | S143: =TransitionCosts!T11 -> 0 | T143: =TransitionCosts!U11 -> 0
A144: =1+A143 -> 95 | B144: Transition Costs - Bankruptcy | C144: Annual data | D144: 9/ | F144: 3595.60901 | G144: 116.22069 | H144: 0 | I144: =TransitionCosts!J12 -> 0 | J144: =TransitionCosts!K12 -> 0 | K144: =TransitionCosts!L12 -> 0 | L144: =TransitionCosts!M12 -> 0 | M144: =TransitionCosts!N12 -> 0 | N144: =TransitionCosts!O12 -> 0 | O144: =TransitionCosts!P12 -> 0 | P144: =TransitionCosts!Q12 -> 0 | Q144: =TransitionCosts!R12 -> 0 | R144: =TransitionCosts!S12 -> 0 | S144: =TransitionCosts!T12 -> 0 | T144: =TransitionCosts!U12 -> 0
A145: =1+A144 -> 96 | B145: Escalation Factor For Other Expenses | F145: =(1+E45) -> 1.018794914 | G145: =+F145*(1+F45) -> 1.05196241 | H145: 1.087939525 | I145: 1.115573189 | J145: =+I145*(1+I45) -> 1.161102727 | K145: =+J145*(1+J45) -> 1.162147719 | L145: =+K145*(1+K45) -> 1.193758137 | M145: 1.211664509 | N145: 1.247529779 | O145: 1.269236797 | P145: 1.288297378 | Q145: 1.298088438 | R145: 1.307564483 | S145: 1.334631068 | T145: 1.362791784
A146: =1+A145 -> 97 | B146: Other Expenses - Max Allowable | C146: $19.5 million X CPI-U | F146: =$D$12*F145 -> 19866.50083 | G146: =IF(G114=0,0,$D$12*G145) -> 20513.267 | H146: =IF(H114=0,0,$D$12*H145) -> 21214.82073 | I146: =IF(I114=0,0,$D$12*I145) -> 21753.67718 | J146: 22641.50317 | K146: 22661.88052 | L146: =IF(L114=0,0,$D$12*L145) -> 23278.28367 | M146: =IF(M114=0,0,$D$12*M145) -> 23627.45793 | N146: 24326.83068 | O146: 24750.11753 | P146: =IF(P114=0,0,$D$12*P145) -> 25121.79887 | Q146: =IF(Q114=0,0,$D$12*Q145) -> 25312.72454 | R146: =IF(R114=0,0,$D$12*R145) -> 25497.50743 | S146: =IF(S114=0,0,$D$12*S145) -> 26025.30583 | T146: =IF(T114=0,0,$D$12*T145) -> 26574.43978
A148: =1+A146 -> 98 | B148: Total Annual Volume | C148: Company Records | F148: 105960814 | G148: 104055100 | H148: 104885263 | I148: 104230097 | J148: 105295312 | K148: 102426906 | L148: 97528093 | M148: 100173816 | N148: 97251913 | O148: 102074214 | P148: =P153*1000 -> 104180257 | Q148: =Q153*1000 -> 105481092 | R148: =R153*1000 -> 108993917 | S148: =S153*1000 -> 109779977 | T148: =S148 -> 109779977
A150: =1+A148 -> 99 | B150: Volume (000 bbls) - 12 mth Rolling Average - Quarter 1 | F150: 106300.94 | G150: 105857.317 | H150: 104887.09 | I150: 104114.017 | J150: 104362.493 | K150: 103599.58 | L150: 99828.894 | M150: 98189.607 | N150: 98589.511 | O150: 99411.582 | P150: 101862.716 | Q150: 105687.236 | R150: 107055.377 | S150: 107957.593 | T150: =S150 -> 107957.593
A151: =1+A150 -> 100 | B151: Volume (000 bbls) - 12 mth Rolling Average - Quarter 2 | F151: 105472.152 | G151: 105521.321 | H151: 106032.194 | I151: 103887.407 | J151: 105418.218 | K151: 101470.451 | L151: 99086.339 | M151: 98236.414 | N151: 97925.119 | O151: 101898.916 | P151: 102081.098 | Q151: 106107.19 | R151: 107457.649 | S151: 108656.644 | T151: =S151 -> 108656.644
A152: =1+A151 -> 101 | B152: Volume (000 bbls) - 12 mth Rolling Average - Quarter 3 | F152: 106266.295 | G152: 103354.878 | H152: 106065.334 | I152: 103530.181 | J152: 107036.096 | K152: 100637.84 | L152: 97883.491 | M152: 100196.354 | N152: 97844.916 | O152: 102257.91 | P152: 102835.681 | Q152: 105339.661 | R152: 109212.024 | S152: 109078.736 | T152: 109078.736
A153: =1+A152 -> 102 | B153: Volume (000 bbls) - 12 mth Rolling Average - Quarter 4 | F153: 105960.814 | G153: 104055.1 | H153: 104885.263 | I153: 104230.097 | J153: 105295.312 | K153: 102426.906 | L153: 97528.093 | M153: 100173.816 | N153: 97251.913 | O153: 102074.214 | P153: 104180.257 | Q153: 105481.092 | R153: 108993.917 | S153: 109779.977 | T153: 109779.977
B155: ARBITRATION ADJUSTMENT-2004 | F155: =-30000-(610000) -> -640000 | J155: Page 4 of 10 | S155: Page 9 of 10
A156: Line | J156: 2009-07-01 | K156: 2009-01-01
A157: No. | B157: Description | C157: Source | F157: =+F$7 -> 2004 | G157: =+G$7 -> 2005 | H157: 2006 | I157: 2007 | J157: 2008 | K157: 2009 | L157: 2010 | M157: 2011 | N157: 2012 | O157: 2013 | P157: 2014 | Q157: 2015 | R157: 2016 | S157: 2017 | T157: 2018
B158: Effective Tariff Rates January - June ($/Bbl) - Origin to Destination | O158: 5/ | P158: 6/ | Q158: INTERIM RATE Filing March, 2015 | S158: INTERIM RATE Filing January 2017
A159: =1+A153 -> 103 | B159: ANACORTES to LINNTON | C159: Fungible | F159: 0.6373 | G159: 0.6373 | H159: 0.6847 | I159: 0.9079 | J159: 0.8791 | K159: 0.8326 | L159: 0.756 | M159: 0.7377 | N159: 0.8498 | O159: 0.9928 | P159: 0.7785 | Q159: 0.7624 | R159: 0.8559 | S159: 0.8256262833 | T159: 1.0067
A160: =1+A159 -> 104 | B160: ANACORTES to LINNTON | C160: Non-Fungible | F160: 0.6796 | G160: 0.6796 | H160: 0.7302 | I160: 0.9682 | J160: 0.9375 | K160: 0.8879 | L160: 0.8062 | M160: 0.7867 | N160: 0.9062 | O160: 1.0587 | P160: 0.8302 | Q160: 0.8131 | R160: 0.9128 | S160: 0.8805136948 | T160: 1.0736
A161: 105 | B161: BAYVIEW to LINNTON | C161: Fungible | J161: 0.737 | K161: 0.698 | L161: 0.6338 | M161: 0.6184 | N161: 0.7124 | O161: 0.8323 | P161: 0.6526 | Q161: 0.6392 | R161: 0.7177 | S161: 0.6923145035 | T161: 0.8441
A162: 106 | B162: BAYVIEW to LINNTON | C162: Non-Fungible | J162: 0.796 | K162: 0.7539 | L162: 0.6846 | M162: 0.668 | N162: 0.7695 | O162: 0.899 | P162: 0.705 | Q162: 0.6905 | R162: 0.7752 | S162: 0.7477806926 | T162: 0.9118
A163: 107 | B163: CHERRY POINT to LINNTON | C163: Fungible | F163: 0.7107 | G163: 0.7107 | H163: 0.7636 | I163: 1.0125 | J163: 0.9804 | K163: 0.9286 | L163: 0.8432 | M163: 0.8228 | N163: 0.9478 | O163: 1.1073 | P163: 0.8683 | Q163: 0.8504 | R163: 0.9547 | S163: 0.9209316657 | T163: 1.1229
A164: 108 | B164: CHERRY POINT to LINNTON | C164: Non-Fungible | F164: 0.7535 | G164: 0.7535 | H164: 0.8096 | I164: 1.0735 | J164: 1.0394 | K164: 0.9845 | L164: 0.8939 | M164: 0.8722 | N164: 1.0047 | O164: 1.1738 | P164: 0.9204 | Q164: 0.9014 | R164: 1.012 | S164: 0.9762049289 | T164: 1.1903
A165: 109 | B165: FERNDALE to LINNTON | C165: Fungible | F165: 0.6991 | G165: 0.6991 | H165: 0.7511 | I165: 0.996 | J165: 0.9644 | K165: 0.9134 | L165: 0.8294 | M165: 0.8093 | N165: 0.9323 | O165: 1.0892 | P165: 0.8541 | Q165: 0.8365 | R165: 0.9391 | S165: 0.9058834474 | T165: 1.1045
A166: 110 | B166: FERNDALE to LINNTON | C166: Non-Fungible | F166: 0.7417 | G166: 0.7417 | H166: 0.7969 | I166: 1.0567 | J166: 1.0232 | K166: 0.9691 | L166: 0.88 | M166: 0.8587 | N166: 0.9892 | O166: 1.1557 | P166: 0.9063 | Q166: 0.8876 | R166: 0.9965 | S166: 0.9612531736 | T166: 1.172
A167: 111 | B167: ANACORTES to PORTLAND | C167: Fungible | F167: 0.6373 | G167: 0.6373 | H167: 0.6847 | I167: 0.9079 | J167: 0.8791 | K167: 0.8326 | L167: 0.756 | M167: 0.7377 | N167: 0.8498 | O167: 0.9928 | P167: 0.7785 | Q167: 0.7624 | R167: 0.8559 | S167: 0.8256262833 | T167: 1.0067
A168: 112 | B168: ANACORTES to PORTLAND | C168: Non-Fungible | F168: 0.6796 | G168: 0.6796 | H168: 0.7302 | I168: 0.9682 | J168: 0.9375 | K168: 0.8879 | L168: 0.8062 | M168: 0.7867 | N168: 0.9062 | O168: 1.0587 | P168: 0.8302 | Q168: 0.8131 | R168: 0.9128 | S168: 0.8805136948 | T168: 1.0736
A169: 113 | B169: BAYVIEW to PORTLAND | C169: Fungible | J169: 0.737 | K169: 0.698 | L169: 0.6338 | M169: 0.6184 | N169: 0.7124 | O169: 0.8323 | P169: 0.6526 | Q169: 0.6392 | R169: 0.7177 | S169: 0.6923145035 | T169: 0.8441
A170: 114 | B170: BAYVIEW to PORTLAND | C170: Non-Fungible | J170: 0.796 | K170: 0.7539 | L170: 0.6846 | M170: 0.668 | N170: 0.7695 | O170: 0.899 | P170: 0.705 | Q170: 0.6905 | R170: 0.7752 | S170: 0.7477806926 | T170: 0.9118
A171: 115 | B171: CHERRY POINT to PORTLAND | C171: Fungible | F171: 0.7107 | G171: 0.7107 | H171: 0.7636 | I171: 1.0125 | J171: 0.9804 | K171: 0.9286 | L171: 0.8432 | M171: 0.8228 | N171: 0.9478 | O171: 1.1073 | P171: 0.8683 | Q171: 0.8504 | R171: 0.9547 | S171: 0.9209316657 | T171: 1.1229
A172: 116 | B172: CHERRY POINT to PORTLAND | C172: Non-Fungible | F172: 0.7535 | G172: 0.7535 | H172: 0.8096 | I172: 1.0735 | J172: 1.0394 | K172: 0.9845 | L172: 0.8939 | M172: 0.8722 | N172: 1.0047 | O172: 1.1738 | P172: 0.9204 | Q172: 0.9014 | R172: 1.012 | S172: 0.9762049289 | T172: 1.1903
A173: 117 | B173: FERNDALE to PORTLAND | C173: Fungible | F173: 0.6991 | G173: 0.6991 | H173: 0.7511 | I173: 0.996 | J173: 0.9644 | K173: 0.9134 | L173: 0.8294 | M173: 0.8093 | N173: 0.9323 | O173: 1.0892 | P173: 0.8541 | Q173: 0.8365 | R173: 0.9391 | S173: 0.9058834474 | T173: 1.1045
A174: 118 | B174: FERNDALE to PORTLAND | C174: Non-Fungible | F174: 0.7417 | G174: 0.7417 | H174: 0.7569 | I174: 1.0567 | J174: 1.0232 | K174: 0.9691 | L174: 0.88 | M174: 0.8587 | N174: 0.9892 | O174: 1.1557 | P174: 0.9063 | Q174: 0.8876 | R174: 0.9965 | S174: 0.9612531736 | T174: 1.172
A175: =1+A174 -> 119 | B175: ANACORTES to BAYVIEW | C175: N/A | F175: 0 | G175: 0.1069 | H175: 0.1149 | I175: 0.1524 | J175: 0.1476 | K175: 0.1398 | L175: 0.1269 | M175: 0.1238 | N175: 0.1426 | O175: 0.1666 | P175: 0.1307 | Q175: 0.128 | R175: 0.1437 | S175: 0.1386172414 | T175: 0.169
A176: 120 | B176: CHERRY POINT to BAYVIEW | C176: N/A | F176: 0 | G176: 0.1764 | H176: 0.1895 | I176: 0.2513 | J176: 0.2434 | K176: 0.2305 | L176: 0.2093 | M176: 0.2042 | N176: 0.2352 | O176: 0.2748 | P176: 0.2155 | Q176: 0.2111 | R176: 0.2369 | S176: 0.2285206993 | T176: 0.2786
A177: 121 | B177: FERNDALE to BAYVIEW | C177: N/A | F177: 0 | G177: 0.1639 | H177: 0.1761 | I177: 0.2335 | J177: 0.2261 | K177: 0.2141 | L177: 0.1944 | M177: 0.1897 | N177: 0.2185 | O177: 0.2553 | P177: 0.2002 | Q177: 0.1961 | R177: 0.2202 | S177: 0.2124113887 | T177: 0.259
A178: 122 | B178: ANACORTES to RENTON | C178: Fungible | F178: 0.264 | G178: 0.264 | H178: 0.2836 | I178: 0.3761 | J178: 0.3642 | K178: 0.3449 | L178: 0.3132 | M178: 0.3056 | N178: 0.352 | O178: 0.4112 | P178: 0.3224 | Q178: 0.3157 | R178: 0.3545 | S178: 0.3419611139 | T178: 0.4169
A179: 123 | B179: ANACORTES to RENTON | C179: Non-Fungible | F179: 0.3055 | G179: 0.3055 | H179: 0.3282 | I179: 0.4352 | J179: 0.4214 | K179: 0.3991 | L179: 0.3624 | M179: 0.3536 | N179: 0.4073 | O179: 0.4758 | P179: 0.3731 | Q179: 0.3654 | R179: 0.4102 | S179: 0.3956909702 | T179: 0.4825
A180: 124 | B180: BAYVIEW to RENTON | C180: Fungible | J180: 0.2163 | K180: 0.2049 | L180: 0.1861 | M180: 0.1816 | N180: 0.2092 | O180: 0.2444 | P180: 0.1916 | Q180: 0.1876 | R180: 0.2106 | S180: 0.2031509467 | T180: 0.2477
A181: 125 | B181: BAYVIEW to RENTON | C181: Non-Fungible | J181: 0.2741 | K181: 0.2596 | L181: 0.2357 | M181: 0.23 | N181: 0.2649 | O181: 0.3095 | P181: 0.2427 | Q181: 0.2377 | R181: 0.2669 | S181: 0.2574595806 | T181: 0.3139
A182: 126 | B182: CHERRY POINT to RENTON | C182: Fungible | F182: 0.3333 | G182: 0.3333 | H182: 0.3581 | I182: 0.4748 | J182: 0.4597 | K182: 0.4354 | L182: 0.3954 | M182: 0.3858 | N182: 0.4444 | O182: 0.5192 | P182: 0.4071 | Q182: 0.3987 | R182: 0.4477 | S182: 0.4318645718 | T182: 0.5266
A183: 127 | B183: CHERRY POINT to RENTON | C183: Non-Fungible | F183: 0.3751 | G183: 0.3751 | H183: 0.403 | I183: 0.5344 | J183: 0.5175 | K183: 0.4901 | L183: 0.445 | M183: 0.4342 | N183: 0.5002 | O183: 0.5844 | P183: 0.4583 | Q183: 0.4488 | R183: 0.5038 | S183: 0.4859802798 | T183: 0.5926
A184: 128 | B184: FERNDALE to RENTON | C184: Fungible | F184: 0.3208 | G184: 0.3208 | H184: 0.3447 | I184: 0.4571 | J184: 0.4426 | K184: 0.4192 | L184: 0.3806 | M184: 0.3714 | N184: 0.4278 | O184: 0.4998 | P184: 0.3919 | Q184: 0.3838 | R184: 0.4308 | S184: 0.4155623354 | T184: 0.5067
A185: 129 | B185: FERNDALE to RENTON | C185: Non-Fungible | F185: 0.3626 | G185: 0.3626 | H185: 0.3896 | I185: 0.5166 | J185: 0.5002 | K185: 0.4738 | L185: 0.4302 | M185: 0.4198 | N185: 0.4836 | O185: 0.565 | P185: 0.4431 | Q185: 0.434 | R185: 0.4872 | S185: 0.4699674322 | T185: 0.573
A186: 130 | B186: ANACORTES to SEA-TAC | C186: Fungible | F186: 0.2931 | G186: 0.2931 | H186: 0.3149 | I186: 0.4176 | J186: 0.4043 | K186: 0.3829 | L186: 0.3477 | M186: 0.3393 | N186: 0.3908 | O186: 0.4566 | P186: 0.3581 | Q186: 0.3507 | R186: 0.3938 | S186: 0.3798710484 | T186: 0.4632
A187: 131 | B187: ANACORTES to SEA-TAC | C187: Non-Fungible | F187: 0.3348 | G187: 0.3348 | H187: 0.3597 | I187: 0.477 | J187: 0.4619 | K187: 0.4375 | L187: 0.3973 | M187: 0.3877 | N187: 0.4466 | O187: 0.5218 | P187: 0.4091 | Q187: 0.4008 | R187: 0.4499 | S187: 0.4339867565 | T187: 0.5292
A188: 132 | B188: BAYVIEW to SEA-TAC | C188: Fungible | J188: 0.2568 | K188: 0.2432 | L188: 0.2208 | M188: 0.2155 | N188: 0.2482 | O188: 0.29 | P188: 0.2274 | Q188: 0.2227 | R188: 0.25 | S188: 0.2411573441 | T188: 0.294
A189: 133 | B189: BAYVIEW to SEA-TAC | C189: Non-Fungible | J189: 0.314 | K189: 0.2974 | L189: 0.27 | M189: 0.2635 | N189: 0.3035 | O189: 0.3546 | P189: 0.278 | Q189: 0.2723 | R189: 0.3057 | S189: 0.2948872004 | T189: 0.3596
A190: 134 | B190: CHERRY POINT to SEA-TAC | C190: Fungible | F190: 0.3626 | G190: 0.3626 | H190: 0.3896 | I190: 0.5166 | J190: 0.5002 | K190: 0.4738 | L190: 0.4302 | M190: 0.4198 | N190: 0.4836 | O190: 0.565 | P190: 0.4431 | Q190: 0.434 | R190: 0.4872 | S190: 0.4699674322 | T190: 0.573
A191: 135 | B191: CHERRY POINT to SEA-TAC | C191: Non-Fungible | F191: 0.4041 | G191: 0.4041 | H191: 0.4342 | I191: 0.5757 | J191: 0.5574 | K191: 0.5279 | L191: 0.4793 | M191: 0.4677 | N191: 0.5388 | O191: 0.6295 | P191: 0.4936 | Q191: 0.4834 | R191: 0.5427 | S191: 0.5235043626 | T191: 0.6383
A192: 136 | B192: FERNDALE to SEA-TAC | C192: Fungible | F192: 0.3502 | G192: 0.3502 | H192: 0.3763 | I192: 0.499 | J192: 0.4832 | K192: 0.4577 | L192: 0.4156 | M192: 0.4055 | N192: 0.4671 | O192: 0.5457 | P192: 0.4279 | Q192: 0.4191 | R192: 0.4705 | S192: 0.4538581216 | T192: 0.5534
A193: 137 | B193: FERNDALE to SEA-TAC | C193: Non-Fungible | F193: 0.3917 | G193: 0.3917 | H193: 0.4209 | I193: 0.5581 | J193: 0.5404 | K193: 0.5118 | L193: 0.4647 | M193: 0.4534 | N193: 0.5223 | O193: 0.6102 | P193: 0.4785 | Q193: 0.4686 | R193: 0.5262 | S193: 0.5075879779 | T193: 0.6189
A194: 138 | B194: ANACORTES to SEATTLE | C194: Fungible | F194: 0.2862 | G194: 0.2862 | H194: 0.3075 | I194: 0.4077 | J194: 0.3947 | K194: 0.3738 | L194: 0.3394 | M194: 0.3312 | N194: 0.3815 | O194: 0.4457 | P194: 0.3495 | Q194: 0.3423 | R194: 0.3843 | S194: 0.3707070694 | T194: 0.452
A195: 139 | B195: ANACORTES to SEATTLE | C195: Non-Fungible | F195: 0.3277 | G195: 0.3277 | H195: 0.3521 | I195: 0.4669 | J195: 0.4521 | K195: 0.4282 | L195: 0.3888 | M195: 0.3794 | N195: 0.437 | O195: 0.5105 | P195: 0.4003 | Q195: 0.392 | R195: 0.4401 | S195: 0.4245333886 | T195: 0.5176
A196: 140 | B196: BAYVIEW to SEATTLE | C196: Fungible | J196: 0.2473 | K196: 0.2342 | L196: 0.2127 | M196: 0.2075 | N196: 0.239 | O196: 0.2792 | P196: 0.2189 | Q196: 0.2144 | R196: 0.2407 | S196: 0.2321862909 | T196: 0.2831
A197: 141 | B197: BAYVIEW to SEATTLE | C197: Non-Fungible | J197: 0.3045 | K197: 0.2884 | L197: 0.2619 | M197: 0.2556 | N197: 0.2944 | O197: 0.3439 | P197: 0.2697 | Q197: 0.2641 | R197: 0.2965 | S197: 0.2860126101 | T197: 0.3487
A198: 142 | B198: CHERRY POINT to SEATTLE | C198: Fungible | F198: 0.3557 | G198: 0.3557 | H198: 0.3822 | I198: 0.5068 | J198: 0.4907 | K198: 0.4648 | L198: 0.422 | M198: 0.4118 | N198: 0.4744 | O198: 0.5542 | P198: 0.4346 | Q198: 0.4256 | R198: 0.4779 | S198: 0.460996379 | T198: 0.5621
A199: 143 | B199: CHERRY POINT to SEATTLE | C199: Non-Fungible | F199: 0.3972 | G199: 0.3972 | H199: 0.4268 | I199: 0.5659 | J199: 0.5479 | K199: 0.5189 | L199: 0.4712 | M199: 0.4598 | N199: 0.5297 | O199: 0.6188 | P199: 0.4852 | Q199: 0.4752 | R199: 0.5335 | S199: 0.5146297723 | T199: 0.6275
A200: 144 | B200: FERNDALE to SEATTLE | C200: Fungible | F200: 0.3431 | G200: 0.3431 | H200: 0.3686 | I200: 0.4888 | J200: 0.4733 | K200: 0.4483 | L200: 0.4071 | M200: 0.3972 | N200: 0.4575 | O200: 0.5345 | P200: 0.4191 | Q200: 0.4105 | R200: 0.4609 | S200: 0.4445976796 | T200: 0.5421
A201: 145 | B201: FERNDALE to SEATTLE | C201: Non-Fungible | F201: 0.3848 | G201: 0.3848 | H201: 0.4134 | I201: 0.5482 | J201: 0.5309 | K201: 0.5028 | L201: 0.4566 | M201: 0.4455 | N201: 0.5132 | O201: 0.5996 | P201: 0.4702 | Q201: 0.4605 | R201: 0.517 | S201: 0.4987133876 | T201: 0.6081
A202: 146 | B202: ANACORTES to SPANAWAY | C202: Fungible | F202: 0.3292 | G202: 0.3292 | H202: 0.3537 | I202: 0.469 | J202: 0.4542 | K202: 0.4302 | L202: 0.3906 | M202: 0.3811 | N202: 0.439 | O202: 0.5129 | P202: 0 | Q202: 0 | R202: 0 | S202: 0
A203: 147 | B203: ANACORTES to SPANAWAY | C203: Non-Fungible | F203: 0.3709 | G203: 0.3709 | H203: 0.3985 | I203: 0.5284 | J203: 0.5117 | K203: 0.4847 | L203: 0.4401 | M203: 0.4294 | N203: 0.4946 | O203: 0.5778 | P203: 0 | Q203: 0 | R203: 0 | S203: 0
A204: 148 | B204: BAYVIEW to SPANAWAY | C204: Fungible | J204: 0.3065 | K204: 0.2903 | L204: 0.2636 | M204: 0.2572 | N204: 0.2963 | O204: 0.3462 | P204: 0 | Q204: 0 | R204: 0 | S204: 0
A205: 149 | B205: BAYVIEW to SPANAWAY | C205: Non-Fungible | J205: 0.3642 | K205: 0.3449 | L205: 0.3132 | M205: 0.3056 | N205: 0.352 | O205: 0.4112 | P205: 0 | Q205: 0 | R205: 0 | S205: 0
A206: 150 | B206: CHERRY POINT to SPANAWAY | C206: Fungible | F206: 0.3986 | G206: 0.3986 | H206: 0.4283 | I206: 0.5679 | J206: 0.5499 | K206: 0.5208 | L206: 0.4729 | M206: 0.4614 | N206: 0.5315 | O206: 0.6209 | P206: 0 | Q206: 0 | R206: 0 | S206: 0
A207: 151 | B207: CHERRY POINT to SPANAWAY | C207: Non-Fungible | F207: 0.4404 | G207: 0.4404 | H207: 0.4732 | I207: 0.6275 | J207: 0.6076 | K207: 0.5755 | L207: 0.5226 | M207: 0.5099 | N207: 0.5874 | O207: 0.6863 | P207: 0 | Q207: 0 | R207: 0 | S207: 0
A208: 152 | B208: FERNDALE to SPANAWAY | C208: Fungible | F208: 0.3861 | G208: 0.3861 | H208: 0.4148 | I208: 0.55 | J208: 0.5325 | K208: 0.5044 | L208: 0.458 | M208: 0.4469 | N208: 0.5148 | O208: 0.6014 | P208: 0 | Q208: 0 | R208: 0 | S208: 0
A209: 153 | B209: FERNDALE to SPANAWAY | C209: Non-Fungible | F209: 0.4279 | G209: 0.4279 | H209: 0.4597 | I209: 0.6096 | J209: 0.5903 | K209: 0.5591 | L209: 0.5077 | M209: 0.4954 | N209: 0.5707 | O209: 0.6667 | P209: 0 | Q209: 0 | R209: 0 | S209: 0
A210: 154 | B210: ANACORTES to TACOMA | C210: Fungible | F210: 0.3208 | G210: 0.3208 | H210: 0.3447 | I210: 0.4571 | J210: 0.4426 | K210: 0.4192 | L210: 0.3806 | M210: 0.3714 | N210: 0.4278 | O210: 0.4998 | P210: 0.3919 | Q210: 0.3838 | R210: 0.4308 | S210: 0.4155623354 | T210: 0.5067
A211: 155 | B211: ANACORTES to TACOMA | C211: Non-Fungible | F211: 0.3626 | G211: 0.3626 | H211: 0.3896 | I211: 0.5166 | J211: 0.5002 | K211: 0.4738 | L211: 0.4302 | M211: 0.4198 | N211: 0.4836 | O211: 0.565 | P211: 0.4431 | Q211: 0.434 | R211: 0.4872 | S211: 0.4699674322 | T211: 0.573
A212: 156 | B212: BAYVIEW to TACOMA | C212: Fungible | J212: 0.2949 | K212: 0.2793 | L212: 0.2536 | M212: 0.2475 | N212: 0.2851 | O212: 0.3331 | P212: 0.2612 | Q212: 0.2558 | R212: 0.2872 | S212: 0.2770415569 | T212: 0.3378
A213: 157 | B213: BAYVIEW to TACOMA | C213: Non-Fungible | J213: 0.3526 | K213: 0.334 | L213: 0.3033 | M213: 0.296 | N213: 0.341 | O213: 0.3984 | P213: 0.3124 | Q213: 0.306 | R213: 0.3435 | S213: 0.3313501908 | T213: 0.404
A214: 158 | B214: CHERRY POINT to TACOMA | C214: Fungible | F214: 0.3903 | G214: 0.3903 | H214: 0.4193 | I214: 0.556 | J214: 0.5383 | K214: 0.5098 | L214: 0.4629 | M214: 0.4517 | N214: 0.5203 | O214: 0.6079 | P214: 0.4767 | Q214: 0.4669 | R214: 0.5242 | S214: 0.5056587191 | T214: 0.6165
A215: 159 | B215: CHERRY POINT to TACOMA | C215: Non-Fungible | F215: 0.432 | G215: 0.432 | H215: 0.4642 | I215: 0.6155 | J215: 0.596 | K215: 0.5645 | L215: 0.5126 | M215: 0.5002 | N215: 0.5762 | O215: 0.6732 | P215: 0.5279 | Q215: 0.517 | R215: 0.5804 | S215: 0.5598708901 | T215: 0.6826
A216: 160 | B216: FERNDALE to TACOMA | C216: Fungible | F216: 0.3779 | G216: 0.3779 | H216: 0.406 | I216: 0.5384 | J216: 0.5213 | K216: 0.4937 | L216: 0.4483 | M216: 0.4374 | N216: 0.5039 | O216: 0.5887 | P216: 0.4616 | Q216: 0.4521 | R216: 0.5076 | S216: 0.4896458715 | T216: 0.597
A217: 161 | B217: FERNDALE to TACOMA | C217: Non-Fungible | F217: 0.4195 | G217: 0.4195 | H217: 0.4507 | I217: 0.5976 | J217: 0.5787 | K217: 0.5481 | L217: 0.4977 | M217: 0.4856 | N217: 0.5594 | O217: 0.6535 | P217: 0.5124 | Q217: 0.5018 | R217: 0.5633 | S217: 0.5433757277 | T217: 0.6625
A218: 162 | B218: ANACORTES to OLYMPIA | C218: Fungible | F218: 0.414 | G218: 0.414 | H218: 0.4448 | I218: 0.5898 | J218: 0.5711 | K218: 0.5409 | L218: 0.4911 | M218: 0.4792 | N218: 0.552 | O218: 0.6449 | P218: 0 | Q218: 0 | R218: 0 | S218: 0
A219: 163 | B219: ANACORTES to OLYMPIA | C219: Non-Fungible | F219: 0.4557 | G219: 0.4557 | H219: 0.4896 | I219: 0.6492 | J219: 0.6286 | K219: 0.5954 | L219: 0.5406 | M219: 0.5275 | N219: 0.6076 | O219: 0.7099 | P219: 0 | Q219: 0 | R219: 0 | S219: 0
A220: 164 | B220: Bayview to Olympia | C220: Fungible | J220: 0.4235 | K220: 0.4011 | L220: 0.3642 | M220: 0.3554 | N220: 0.4094 | O220: 0.4783 | P220: 0 | Q220: 0 | R220: 0 | S220: 0
A221: 165 | B221: Bayview to Olympia | C221: Non-Fungible | J221: 0.4809 | K221: 0.4555 | L221: 0.4136 | M221: 0.4036 | N221: 0.4649 | O221: 0.5431 | P221: 0 | Q221: 0 | R221: 0 | S221: 0
A222: 166 | B222: CHERRY POINT to OLYMPIA | C222: Fungible | F222: 0.4834 | G222: 0.4834 | H222: 0.5194 | I222: 0.6887 | J222: 0.6669 | K222: 0.6316 | L222: 0.5735 | M222: 0.5596 | N222: 0.6446 | O222: 0.7531 | P222: 0 | Q222: 0 | R222: 0 | S222: 0
A223: 167 | B223: CHERRY POINT to OLYMPIA | C223: Non-Fungible | F223: 0.525 | G223: 0.525 | H223: 0.5641 | I223: 0.748 | J223: 0.7243 | K223: 0.686 | L223: 0.6229 | M223: 0.6078 | N223: 0.7001 | O223: 0.8179 | P223: 0 | Q223: 0 | R223: 0 | S223: 0
A224: 168 | B224: FERNDALE to OLYMPIA | C224: Fungible | F224: 0.4708 | G224: 0.4708 | H224: 0.5058 | I224: 0.6707 | J224: 0.6495 | K224: 0.6152 | L224: 0.5586 | M224: 0.5451 | N224: 0.6279 | O224: 0.7336 | P224: 0 | Q224: 0 | R224: 0 | S224: 0
A225: 169 | B225: FERNDALE to OLYMPIA | C225: Non-Fungible | F225: 0.5126 | G225: 0.5126 | H225: 0.5507 | I225: 0.7302 | J225: 0.707 | K225: 0.6696 | L225: 0.608 | M225: 0.5933 | N225: 0.6834 | O225: 0.7984 | P225: 0 | Q225: 0 | R225: 0 | S225: 0
A226: 170 | B226: ANACORTES to VANCOUVER | C226: Fungible | F226: 0.6097 | G226: 0.6097 | H226: 0.6551 | I226: 0.8687 | J226: 0.8411 | K226: 0.7966 | L226: 0.7233 | M226: 0.7058 | N226: 0.813 | O226: 0.9498 | P226: 0.7448 | Q226: 0.7294 | R226: 0.8189 | S226: 0.7899349963 | T226: 0.9632
A227: 171 | B227: ANACORTES to VANCOUVER | C227: Non-Fungible | F227: 0.6515 | G227: 0.6515 | H227: 0.7 | I227: 0.9282 | J227: 0.8987 | K227: 0.8512 | L227: 0.7729 | M227: 0.7542 | N227: 0.8688 | O227: 1.015 | P227: 0.7959 | Q227: 0.7795 | R227: 0.8751 | S227: 0.8441471673 | T227: 1.0293
A228: 172 | B228: BAYVIEW to VANCOUVER | C228: Fungible | J228: 0.6935 | K228: 0.6568 | L228: 0.5964 | M228: 0.582 | N228: 0.6704 | O228: 0.7832 | P228: 0.6142 | Q228: 0.6015 | R228: 0.6753 | S228: 0.6514142179 | T228: 0.7943
A229: 173 | B229: BAYVIEW to VANCOUVER | C229: Non-Fungible | J229: 0.7512 | K229: 0.7115 | L229: 0.6461 | M229: 0.6305 | N229: 0.7263 | O229: 0.8485 | P229: 0.6653 | Q229: 0.6516 | R229: 0.7315 | S229: 0.7056263889 | T229: 0.8604
A230: 174 | B230: CHERRY POINT to VANCOUVER | C230: Fungible | F230: 0.6792 | G230: 0.6792 | H230: 0.7297 | I230: 0.9676 | J230: 0.9369 | K230: 0.8874 | L230: 0.8058 | M230: 0.7863 | N230: 0.9058 | O230: 1.0582 | P230: 0.8298 | Q230: 0.8127 | R230: 0.9124 | S230: 0.880127843 | T230: 1.0731
A231: 175 | B231: CHERRY POINT to VANCOUVER | C231: Non-Fungible | F231: 0.721 | G231: 0.721 | H231: 0.7747 | I231: 1.0272 | J231: 0.9946 | K231: 0.942 | L231: 0.8554 | M231: 0.8347 | N231: 0.9615 | O231: 1.1233 | P231: 0.8808 | Q231: 0.8626 | R231: 0.9685 | S231: 0.9342435511 | T231: 1.1391
... 58 more rows

Sheet OpEx
A1: =+'Cost of Service'!A1 -> Olympic Pipe Line Company | S1: =+Input!S1 -> Exhibit No. 1.4(a)
A2: =+Index!C11 -> Adjustment to Operating Expenses | S2: =+Index!B11 -> Schedule 2
A3: =+units -> ($000's)
A5: Line
A6: No | B6: Description ($ 000's) | C6: Source | F6: =+Input!F7 -> 2004 | G6: =+Input!G7 -> 2005 | H6: =+Input!H7 -> 2006 | I6: =+Input!I7 -> 2007 | J6: =+Input!J7 -> 2008 | K6: =+Input!K7 -> 2009 | L6: =+Input!L7 -> 2010 | M6: =+Input!M7 -> 2011 | N6: =+Input!N7 -> 2012 | O6: =+Input!O7 -> 2013 | P6: =+Input!P7 -> 2014 | Q6: =+Input!Q7 -> 2015 | R6: =+Input!R7 -> 2016 | S6: =+Input!S7 -> 2017 | T6: =+Input!T7 -> 2018
B8: Operating Expenses - Unadjusted
A9: 1 | B9: Project Expenses | C9: =+Input!$J$2&", Ln "&Input!A139 -> Schedule 1, Ln 92 | F9: =+Input!F139 -> 8229.16386 | G9: =+Input!G139 -> 9897.86717 | H9: =+Input!H139 -> 10015.00302 | I9: =+Input!I139 -> 14153.37803 | J9: =+Input!J139 -> 14366.62662 | K9: =+Input!K139 -> 9472.61058 | L9: =+Input!L139 -> 11048.33584 | M9: =+Input!M139 -> 9470.62706 | N9: =+Input!N139 -> 9069.43437 | O9: =+Input!O139 -> 10058.97321 | P9: =+Input!P139 -> 10989.0654 | Q9: =+Input!Q139 -> 12210.75809 | R9: =+Input!R139 -> 11305.81476 | S9: =+Input!S139 -> 10567.41862 | T9: =+Input!T139 -> 10567.41862
A10: =1+A9 -> 2 | B10: Power and Pipeline Tax Expenses | C10: =+Input!$J$2&", Lns "&Input!A95&" + "&Input!A109&"" -> Schedule 1, Lns 55 + 68 | F10: =+Input!F95 -> 9452.79988 | G10: =+Input!G95 -> 9720.75491 | H10: =+Input!H95 -> 10186.0982 | I10: =+Input!I95 -> 10707.77338 | J10: =+Input!J95 -> 11018.92161 | K10: =+Input!K95+Input!K109 -> 12701.96197 | L10: =+Input!L95+Input!L109 -> 10970.28143 | M10: =+Input!M95+Input!M109 -> 11480.57694 | N10: =+Input!N95+Input!N109 -> 12003.75701 | O10: =+Input!O95+Input!O109 -> 12682.50343 | P10: =+Input!P95+Input!P109 -> 12652.11155 | Q10: =+Input!Q95+Input!Q109 -> 12700.15867 | R10: =+Input!R95+Input!R109 -> 14850.56388 | S10: =+Input!S95+Input!S109 -> 14141.8537 | T10: =+Input!T95+Input!T109 -> 14141.8537
A11: =1+A10 -> 3 | B11: Other Operating Expenses | C11: =+Input!$J$2&", Ln "&Input!A141 -> Schedule 1, Ln 93 | F11: =+Input!F141 -> 15298.21019 | G11: =+Input!G141 -> 18475.57702 | H11: =+Input!H141 -> 20403.60678 | I11: =+Input!I141 -> 21354.56132 | J11: =+Input!J141 -> 22197.69865 | K11: =+Input!K141 -> 19002.60558 | L11: =+Input!L141 -> 21797.05128 | M11: =+Input!M141 -> 23206.29838 | N11: =+Input!N141 -> 22787.09178 | O11: =+Input!O141 -> 24183.80233 | P11: =+Input!P141 -> 23837.07644 | Q11: =+Input!Q141 -> 23544.41847 | R11: =+Input!R141 -> 21174.2912 | S11: =+Input!S141 -> 21067.6265 | T11: =+Input!T141 -> 21067.6265
A12: =1+A11 -> 4 | B12: Transition Costs - Rate Litigation | C12: =+Input!$J$2&", Ln "&Input!A143 -> Schedule 1, Ln 94 | F12: =+Input!F143 -> 2146.34522 | G12: =+Input!G143 -> 0 | H12: =+Input!H143 -> 0 | I12: =+Input!I143 -> 0 | J12: =+Input!J143 -> 0 | K12: =+Input!K143 -> 0 | L12: =+Input!L143 -> 0 | M12: =+Input!M143 -> 0 | N12: =+Input!N143 -> 0 | O12: =+Input!O143 -> 0 | P12: =+Input!P143 -> 0 | Q12: =+Input!Q143 -> 0 | R12: =+Input!R143 -> 0 | S12: =+Input!S143 -> 0 | T12: =+Input!T143 -> 0
A13: =1+A12 -> 5 | B13: Transition Costs - Bankruptcy | C13: =+Input!$J$2&", Ln "&Input!A144 -> Schedule 1, Ln 95 | F13: =+Input!F144 -> 3595.60901 | G13: =+Input!G144 -> 116.22069 | H13: =+Input!H144 -> 0 | I13: =+Input!I144 -> 0 | J13: =+Input!J144 -> 0 | K13: =+Input!K144 -> 0 | L13: =+Input!L144 -> 0 | M13: =+Input!M144 -> 0 | N13: =+Input!N144 -> 0 | O13: =+Input!O144 -> 0 | P13: =+Input!P144 -> 0 | Q13: =+Input!Q144 -> 0 | R13: =+Input!R144 -> 0 | S13: =+Input!S144 -> 0 | T13: =+Input!T144 -> 0
A14: =1+A13 -> 6 | B14: Operating Expenses | C14: =+"Sum Ln ("&A9&" to "&A13&")" -> Sum Ln (1 to 5) | F14: =SUM(F9:F13) -> 38722.12816 | G14: 38210.41979 | H14: 40604.708 | I14: 46215.71273 | J14: 47583.24688 | K14: 41177.17813 | L14: 43815.66855 | M14: 44157.50238 | N14: 43860.28316 | O14: 46925.27897 | P14: =SUM(P9:P13) -> 47478.25339 | Q14: =SUM(Q9:Q13) -> 48455.33523 | R14: =SUM(R9:R13) -> 47330.66984 | S14: =SUM(S9:S13) -> 45776.89882 | T14: =SUM(T9:T13) -> 45776.89882
B16: Operating Expenses - Adjusted
A17: =1+A14 -> 7 | B17: Maximum Allowable Other Expenses | C17: =+Input!$J$2&", Ln "&Input!A146 -> Schedule 1, Ln 97 | F17: =+Input!F146 -> 19866.50083 | G17: =+Input!G146 -> 20513.267 | H17: =+Input!H146 -> 21214.82073 | I17: =+Input!I146 -> 21753.67718 | J17: =+Input!J146 -> 22641.50317 | K17: =+Input!K146 -> 22661.88052 | L17: =+Input!L146 -> 23278.28367 | M17: =+Input!M146 -> 23627.45793 | N17: =+Input!N146 -> 24326.83068 | O17: =+Input!O146 -> 24750.11753 | P17: =+Input!P146 -> 25121.79887 | Q17: =+Input!Q146 -> 25312.72454 | R17: =+Input!R146 -> 25497.50743 | S17: =+Input!S146 -> 26025.30583 | T17: =+Input!T146 -> 26574.43978
A18: =1+A17 -> 8 | B18: Other Operating Expenses | C18: ="Min Ln ("&A11&" or "&A17&")" -> Min Ln (3 or 7) | F18: =MIN(F17,F11) -> 15298.21019 | G18: 18475.57702 | H18: 20403.60678 | I18: 21354.56132 | J18: 22197.69865 | K18: 19002.60558 | L18: 21797.05128 | M18: 23206.29838 | N18: 22787.09178 | O18: 24183.80233 | P18: =MIN(P17,P11) -> 23837.07644 | Q18: =MIN(Q17,Q11) -> 23544.41847 | R18: =MIN(R17,R11) -> 21174.2912 | S18: =MIN(S17,S11) -> 21067.6265 | T18: =MIN(T17,T11) -> 21067.6265
A19: =1+A18 -> 9 | B19: Other Operating Expenses Deficit | C19: =+"Ln ("&A17&" - "&A18&")" -> Ln (7 - 8) | F19: =IF(F17>F18,F17-F18,0) -> 4568.290639 | G19: =IF(G17>G18,G17-G18,0) -> 2037.689978 | H19: 811.2139497 | I19: 399.1158562 | J19: 443.8045184 | K19: 3659.274941 | L19: 1481.232391 | M19: 421.1595465 | N19: 1539.738901 | O19: 566.315205 | P19: =IF(P17>P18,P17-P18,0) -> 1284.722426 | Q19: =IF(Q17>Q18,Q17-Q18,0) -> 1768.306067 | R19: =IF(R17>R18,R17-R18,0) -> 4323.216226 | S19: =IF(S17>S18,S17-S18,0) -> 4957.67933 | T19: =IF(T17>T18,T17-T18,0) -> 5506.813283
A21: =1+A19 -> 10 | B21: Cost Increase Deficit Amount | C21: =+"Ln "&A19 -> Ln 9 | F21: =+F19 -> 4568.290639 | G21: =+G19 -> 2037.689978 | H21: 811.2139497 | I21: 399.1158562 | J21: =+J19 -> 443.8045184 | K21: 3659.274941 | L21: 1481.232391 | M21: 421.1595465 | N21: 1539.738901 | O21: 566.315205 | P21: =+P19 -> 1284.722426 | Q21: =+Q19 -> 1768.306067 | R21: =+R19 -> 4323.216226 | S21: =+S19 -> 4957.67933 | T21: =+T19 -> 5506.813283
A22: =1+A21 -> 11 | B22: Annual Maximum Amortization of Transition Costs - Bankruptcy | C22: =+"Annual Ln "&A13&" Amortized Over "&Input!$D$11&" Yrs" -> Annual Ln 5 Amortized Over 24 Yrs | F22: =IF(F21>0,IF(($F$6+24)>=Input!D4,($F$13/Input!$D$11),0)) -> 149.8170421 | G22: =IF(G21>0,IF(($G$6+24)>=Input!$D$4,($G$13/Input!$D$11)+IF(($F$6+24)>=Input!$D$4,($F$13/Input!$D$11),0))) -> 154.6595708 | H22: =IF(H21>0,IF(($G$6+24)>=Input!$D$4,($G$13/Input!$D$11)+IF(($F$6+24)>=Input!$D$4,($F$13/Input!$D$11)+IF(($H$6+24)>=Input!$D$4,($H$13/Input!$D$11),0)))) -> 154.6595708 | I22: =IF(I21>0,IF(($G$6+24)>=Input!$D$4,($G$13/Input!$D$11)+IF(($F$6+24)>=Input!$D$4,($F$13/Input!$D$11)+IF(($H$6+24)>=Input!$D$4,($H$13/Input!$D$11),0)))) -> 154.6595708 | J22: =IF(J21>0,IF(($G$6+24)>=Input!$D$4,($G$13/Input!$D$11)+IF(($F$6+24)>=Input!$D$4,($F$13/Input!$D$11)+IF(($H$6+24)>=Input!$D$4,($H$13/Input!$D$11),0)))) -> 154.6595708 | K22: =IF(K21>0,IF(($G$6+24)>=Input!$D$4,($G$13/Input!$D$11)+IF(($F$6+24)>=Input!$D$4,($F$13/Input!$D$11)+IF(($H$6+24)>=Input!$D$4,($H$13/Input!$D$11),0)))) -> 154.6595708 | L22: =IF(L21>0,IF(($G$6+24)>=Input!$D$4,($G$13/Input!$D$11)+IF(($F$6+24)>=Input!$D$4,($F$13/Input!$D$11)+IF(($H$6+24)>=Input!$D$4,($H$13/Input!$D$11),0)))) -> 154.6595708 | M22: =IF(M21>0,IF(($G$6+24)>=Input!$D$4,($G$13/Input!$D$11)+IF(($F$6+24)>=Input!$D$4,($F$13/Input!$D$11)+IF(($H$6+24)>=Input!$D$4,($H$13/Input!$D$11),0)))) -> 154.6595708 | N22: =IF(N21>0,IF(($G$6+24)>=Input!$D$4,($G$13/Input!$D$11)+IF(($F$6+24)>=Input!$D$4,($F$13/Input!$D$11)+IF(($H$6+24)>=Input!$D$4,($H$13/Input!$D$11),0)))) -> 154.6595708 | O22: =IF(O21>0,IF(($G$6+24)>=Input!$D$4,($G$13/Input!$D$11)+IF(($F$6+24)>=Input!$D$4,($F$13/Input!$D$11)+IF(($H$6+24)>=Input!$D$4,($H$13/Input!$D$11),0)))) -> 154.6595708 | P22: =IF(P21>0,IF(($G$6+24)>=Input!$D$4,($G$13/Input!$D$11)+IF(($F$6+24)>=Input!$D$4,($F$13/Input!$D$11)+IF(($H$6+24)>=Input!$D$4,($H$13/Input!$D$11),0)))) -> 154.6595708 | Q22: =IF(Q21>0,IF(($G$6+24)>=Input!$D$4,($G$13/Input!$D$11)+IF(($F$6+24)>=Input!$D$4,($F$13/Input!$D$11)+IF(($H$6+24)>=Input!$D$4,($H$13/Input!$D$11),0)))) -> 154.6595708 | R22: =IF(R21>0,IF(($G$6+24)>=Input!$D$4,($G$13/Input!$D$11)+IF(($F$6+24)>=Input!$D$4,($F$13/Input!$D$11)+IF(($H$6+24)>=Input!$D$4,($H$13/Input!$D$11),0)))) -> 154.6595708 | S22: =IF(S21>0,IF(($G$6+24)>=Input!$D$4,($G$13/Input!$D$11)+IF(($F$6+24)>=Input!$D$4,($F$13/Input!$D$11)+IF(($H$6+24)>=Input!$D$4,($H$13/Input!$D$11),0)))) -> 154.6595708 | T22: =IF(T21>0,IF(($G$6+24)>=Input!$D$4,($G$13/Input!$D$11)+IF(($F$6+24)>=Input!$D$4,($F$13/Input!$D$11)+IF(($H$6+24)>=Input!$D$4,($H$13/Input!$D$11),0)))) -> 154.6595708
A23: =1+A22 -> 12 | B23: Difference | C23: =+"Ln ("&A21&" - "&A22&")" -> Ln (10 - 11) | F23: =IF(F22=0,0,F21-F22) -> 4418.473597 | G23: =IF(G22=0,0,G21-G22) -> 1883.030408 | H23: =IF(H22=0,0,H21-H22) -> 656.5543789 | I23: 244.4562854 | J23: 289.1449476 | K23: 3504.61537 | L23: 1326.572821 | M23: 266.4999757 | N23: 1385.07933 | O23: 411.6556342 | P23: =IF(P22=0,0,P21-P22) -> 1130.062855 | Q23: =IF(Q22=0,0,Q21-Q22) -> 1613.646496 | R23: =IF(R22=0,0,R21-R22) -> 4168.556656 | S23: =IF(S22=0,0,S21-S22) -> 4803.019759 | T23: =IF(T22=0,0,T21-T22) -> 5352.153712
A25: =1+A23 -> 13 | B25: Unamortized Balance Transition Costs - Bankruptcy BOY | C25: =+"Prior Ln "&A29 -> Prior Ln 17 | F25: =+F13 -> 3595.60901 | G25: =+F29 -> 3445.791968 | H25: =+G29 -> 3407.353087 | I25: 3252.693516 | J25: 3098.033945 | K25: 2943.374375 | L25: 2788.714804 | M25: 2634.055233 | N25: 2479.395662 | O25: 2324.736091 | P25: =+O29 -> 2170.07652 | Q25: =+P29 -> 2015.41695 | R25: =+Q29 -> 1860.757379 | S25: =+R29 -> 1706.097808 | T25: =+S29 -> 1551.438237
A26: =+A25+1 -> 14 | B26: Add: Additions of Transition Costs - Bankruptcy | C26: Ln 5 | G26: =+G13 -> 116.22069 | H26: =+H13 -> 0 | I26: 0 | J26: =+J13 -> 0 | K26: 0 | L26: 0 | M26: 0 | N26: 0 | O26: 0 | P26: =+P13 -> 0 | Q26: =+Q13 -> 0 | R26: =+R13 -> 0 | S26: =+S13 -> 0 | T26: =+T13 -> 0
A27: =+A26+1 -> 15 | B27: Annual Amortization of Transition Costs - Bankruptcy | C27: ="Min Ln ("&A21&" or "&A22&")" -> Min Ln (10 or 11) | F27: =+IF(E28=$F$13,0,MIN(MIN($F$13-E28,$F$13/Input!$D$11),F21)) -> 149.8170421 | G27: =+IF(F28=$F$13+G13,0,MIN(MIN($F$13+G13-F28-G22,($F$13+G13)/Input!$D$11),G21)) -> 154.6595708 | H27: =+IF(G28=$F$13+G13+H13,0,MIN(MIN($F$13+G13+H13-F28-G28-H22,($F$13+G13+H13)/Input!$D$11),H21)) -> 154.6595708 | I27: =+IF(H28=$F$13+G13+H13+I13,0,MIN(MIN($F$13+G13+H13+I13-G28-H28-I22,($F$13+$G13+$H13+I13)/Input!$D$11),I21)) -> 154.6595708 | J27: =+IF(I28=$F$13+H13+I13+J13,0,MIN(MIN($F$13+H13+I13+J13-H28-I28-J22,($F$13+$G13+$H13+J13)/Input!$D$11),J21)) -> 154.6595708 | K27: =+IF(J28=$F$13+I13+J13+K13,0,MIN(MIN($F$13+I13+J13+K13-I28-J28-K22,($F$13+$G13+$H13+K13)/Input!$D$11),K21)) -> 154.6595708 | L27: =+IF(K28=$F$13+J13+K13+L13,0,MIN(MIN($F$13+J13+K13+L13-J28-K28-L22,($F$13+$G13+$H13+L13)/Input!$D$11),L21)) -> 154.6595708 | M27: =+IF(L28=$F$13+K13+L13+M13,0,MIN(MIN($F$13+K13+L13+M13-K28-L28-M22,($F$13+$G13+$H13+M13)/Input!$D$11),M21)) -> 154.6595708 | N27: =+IF(M28=$F$13+L13+M13+N13,0,MIN(MIN($F$13+L13+M13+N13-L28-M28-N22,($F$13+$G13+$H13+N13)/Input!$D$11),N21)) -> 154.6595708 | O27: =+IF(N28=$F$13+M13+N13+O13,0,MIN(MIN($F$13+M13+N13+O13-M28-N28-O22,($F$13+$G13+$H13+O13)/Input!$D$11),O21)) -> 154.6595708 | P27: =+IF(O28=$F$13+N13+O13+P13,0,MIN(MIN($F$13+N13+O13+P13-N28-O28-P22,($F$13+$G13+$H13+P13)/Input!$D$11),P21)) -> 154.6595708 | Q27: =+IF(P28=$F$13+O13+P13+Q13,0,MIN(MIN($F$13+O13+P13+Q13-O28-P28-Q22,($F$13+$G13+$H13+Q13)/Input!$D$11),Q21)) -> 154.6595708 | R27: =+IF(Q28=$F$13+P13+Q13+R13,0,MIN(MIN($F$13+P13+Q13+R13-Q28-R22,($F$13+$G13+$H13+R13)/Input!$D$11),R21)) -> 154.6595708 | S27: =+IF(R28=$F$13+Q13+R13+S13,0,MIN(MIN($F$13+Q13+R13+S13-R28-S22,($F$13+$G13+$H13+S13)/Input!$D$11),S21)) -> 154.6595708 | T27: =+IF(S28=$F$13+R13+S13+T13,0,MIN(MIN($F$13+R13+S13+T13-S28-T22,($F$13+$G13+$H13+T13)/Input!$D$11),T21)) -> 154.6595708
A28: =+A27+1 -> 16 | B28: Transition Costs - Bankruptcy - Accumulated | C28: =+"Ln ("&A27&" + Prior "&A28&")" -> Ln (15 + Prior 16) | F28: =+E28+F27 -> 149.8170421 | G28: =+F28+G27 -> 304.4766129 | H28: 459.1361837 | I28: 613.7957546 | J28: 768.4553254 | K28: 923.1148962 | L28: 1077.774467 | M28: 1232.434038 | N28: 1387.093609 | O28: 1541.75318 | P28: =+O28+P27 -> 1696.41275 | Q28: =+P28+Q27 -> 1851.072321 | R28: =+Q28+R27 -> 2005.731892 | S28: =+R28+S27 -> 2160.391463 | T28: =+S28+T27 -> 2315.051034
A29: =+A28+1 -> 17 | B29: Unamortized Balance Transition Costs - Bankruptcy EOY | C29: =+"Ln ("&A25&" +"&A26&"- "&A27&")" -> Ln (13 +14- 15) | F29: =F25-F27 -> 3445.791968 | G29: =G25+G26-G27 -> 3407.353087 | H29: =H25+H26-H27 -> 3252.693516 | I29: =I25+I26-I27 -> 3098.033945 | J29: =J25+J26-J27 -> 2943.374375 | K29: 2788.714804 | L29: 2634.055233 | M29: 2479.395662 | N29: 2324.736091 | O29: 2170.07652 | P29: =P25+P26-P27 -> 2015.41695 | Q29: =Q25+Q26-Q27 -> 1860.757379 | R29: =R25+R26-R27 -> 1706.097808 | S29: =S25+S26-S27 -> 1551.438237 | T29: =T25+T26-T27 -> 1396.778666
A31: =1+A29 -> 18 | B31: Cost Deficit Amount | C31: =+"Ln ("&A21&" - "&A27&")" -> Ln (10 - 15) | F31: =F21-F27 -> 4418.473597 | G31: =G21-G27 -> 1883.030408 | H31: =H21-H27 -> 656.5543789 | I31: 244.4562854 | J31: =J21-J27 -> 289.1449476 | K31: 3504.61537 | L31: =L21-L27 -> 1326.572821 | M31: 266.4999757 | N31: 1385.07933 | O31: 411.6556342 | P31: =P21-P27 -> 1130.062855 | Q31: =Q21-Q27 -> 1613.646496 | R31: =R21-R27 -> 4168.556656 | S31: =S21-S27 -> 4803.019759 | T31: =T21-T27 -> 5352.153712
A32: =1+A31 -> 19 | B32: Annual Maximum Amortization of Transition Costs - Rate Litigation | C32: =+"Ln "&A12&" Amortized Over "&Input!D10&" Years" -> Ln 4 Amortized Over 3 Years | F32: =+IF(F31>0,IF(E38<$F$12,$F$12/Input!$D$10,0),0) -> 715.4484067 | G32: =+IF(G31>0,IF(F38<$F$12+G12,($F$12+$G$12)/Input!$D$10,0),0) -> 715.4484067 | H32: =+IF(H31>0,IF(G38<$F$12,$F$12/Input!$D$10,0),0) -> 715.4484067 | I32: =+IF(I31>0,IF(H38<$F$12,$F$12/Input!$D$10,0),0) -> 715.4484067 | J32: =+IF(J31>0,IF(I38<$F$12,$F$12/Input!$D$10,0),0) -> 0 | K32: =+IF(K31>0,IF(J38<$F$12,$F$12/Input!$D$10,0),0) -> 0 | L32: =+IF(L31>0,IF(K38<$F$12,$F$12/Input!$D$10,0),0) -> 0 | M32: =+IF(M31>0,IF(L38<$F$12,$F$12/Input!$D$10,0),0) -> 0 | N32: =+IF(N31>0,IF(M38<$F$12,$F$12/Input!$D$10,0),0) -> 0 | O32: =+IF(O31>0,IF(N38<$F$12,$F$12/Input!$D$10,0),0) -> 0 | P32: =+IF(P31>0,IF(O38<$F$12,$F$12/Input!$D$10,0),0) -> 0 | Q32: =+IF(Q31>0,IF(P38<$F$12,$F$12/Input!$D$10,0),0) -> 0 | R32: =+IF(R31>0,IF(Q38<$F$12,$F$12/Input!$D$10,0),0) -> 0 | S32: =+IF(S31>0,IF(R38<$F$12,$F$12/Input!$D$10,0),0) -> 0 | T32: =+IF(T31>0,IF(S38<$F$12,$F$12/Input!$D$10,0),0) -> 0
A33: =1+A32 -> 20 | B33: Difference | C33: =+"Ln ("&A21&" - "&A32&")" -> Ln (10 - 19) | F33: =IF(F32=0,0,F21-F32) -> 3852.842233 | G33: 1322.241572 | H33: =IF(H32=0,0,H21-H32) -> 95.76554302 | I33: -316.3325504 | J33: 0 | K33: 0 | L33: 0 | M33: 0 | N33: 0 | O33: 0 | P33: =IF(P32=0,0,P21-P32) -> 0 | Q33: =IF(Q32=0,0,Q21-Q32) -> 0 | R33: =IF(R32=0,0,R21-R32) -> 0 | S33: =IF(S32=0,0,S21-S32) -> 0 | T33: =IF(T32=0,0,T21-T32) -> 0
A35: =+A33+1 -> 21 | B35: Unamortized Balance Transition Costs - Rate Litigation BOY | C35: =+"Prior Ln "&A39 -> Prior Ln 25 | F35: =+F12 -> 2146.34522 | G35: =+F39 -> 1430.896813 | H35: =+G39 -> 715.4484067 | I35: =+H39 -> 58.89402782 | J35: 2.273736754e-13 | K35: 2.273736754e-13 | L35: 2.273736754e-13 | M35: 2.273736754e-13 | N35: 2.273736754e-13 | O35: 2.273736754e-13 | P35: =+O39 -> 2.273736754e-13 | Q35: =+P39 -> 2.273736754e-13 | R35: =+Q39 -> 2.273736754e-13 | S35: =+R39 -> 2.273736754e-13 | T35: =+S39 -> 2.273736754e-13
A36: =+A35+1 -> 22 | B36: Add: Additions of Transition Costs - Rate Litigation | C36: Ln 4 | G36: =+G12 -> 0 | H36: 0 | I36: 0 | J36: =+J12 -> 0 | K36: 0 | L36: 0 | M36: 0 | N36: 0 | O36: 0 | P36: =+P12 -> 0 | Q36: =+Q12 -> 0 | R36: =+R12 -> 0 | S36: =+S12 -> 0 | T36: =+T12 -> 0
A37: =+A36+1 -> 23 | B37: Add: Amortization of Transition Costs - Rate Litigation | C37: ="Min Ln ("&A31&" or "&A32&")" -> Min Ln (18 or 19) | F37: =+IF(E38=$F$12,0,MIN(MIN($F$12-E38,$F$12/Input!$D$10),F31)) -> 715.4484067 | G37: =+IF(F38=$F$35+$G$36,0,MIN(MIN($F$12+$G$12-F38,($F$12+$G$12)/Input!$D$10),G31)) -> 715.4484067 | H37: =+IF(G38=$F$12,0,MIN(MIN($F$12-G38,$F$12/Input!$D$10),H31)) -> 656.5543789 | I37: =+IF(H38=$F$12,0,MIN(MIN($F$12-H38,$F$12/Input!$D$10),I31)) -> 58.89402782 | J37: =+IF(I38=$F$12,0,MIN(MIN($F$12-I38,$F$12/Input!$D$10),J31)) -> 0 | K37: =+IF(J38=$F$12,0,MIN(MIN($F$12-J38,$F$12/Input!$D$10),K31)) -> 0 | L37: =+IF(K38=$F$12,0,MIN(MIN($F$12-K38,$F$12/Input!$D$10),L31)) -> 0 | M37: =+IF(L38=$F$12,0,MIN(MIN($F$12-L38,$F$12/Input!$D$10),M31)) -> 0 | N37: =+IF(M38=$F$12,0,MIN(MIN($F$12-M38,$F$12/Input!$D$10),N31)) -> 0 | O37: =+IF(N38=$F$12,0,MIN(MIN($F$12-N38,$F$12/Input!$D$10),O31)) -> 0 | P37: =+IF(O38=$F$12,0,MIN(MIN($F$12-O38,$F$12/Input!$D$10),P31)) -> 0 | Q37: =+IF(P38=$F$12,0,MIN(MIN($F$12-P38,$F$12/Input!$D$10),Q31)) -> 0 | R37: =+IF(Q38=$F$12,0,MIN(MIN($F$12-Q38,$F$12/Input!$D$10),R31)) -> 0 | S37: =+IF(R38=$F$12,0,MIN(MIN($F$12-R38,$F$12/Input!$D$10),S31)) -> 0 | T37: =+IF(S38=$F$12,0,MIN(MIN($F$12-S38,$F$12/Input!$D$10),T31)) -> 0
A38: =+A37+1 -> 24 | B38: Transition Costs - Rate Litigation - Accumulated | C38: =+"Ln ("&A37&" + Prior "&A38&")" -> Ln (23 + Prior 24) | F38: =+E38+F37 -> 715.4484067 | G38: 1430.896813 | H38: 2087.451192 | I38: 2146.34522 | J38: 2146.34522 | K38: 2146.34522 | L38: 2146.34522 | M38: 2146.34522 | N38: 2146.34522 | O38: 2146.34522 | P38: =+O38+P37 -> 2146.34522 | Q38: =+P38+Q37 -> 2146.34522 | R38: =+Q38+R37 -> 2146.34522 | S38: =+R38+S37 -> 2146.34522 | T38: =+S38+T37 -> 2146.34522
A39: =+A38+1 -> 25 | B39: Unamortized Balance Transition Costs - Rate Litigation EOY | C39: =+"Ln ("&A35&"+"&A36&" - "&A37&")" -> Ln (21+22 - 23) | F39: =+F35-F37 -> 1430.896813 | G39: =+G35+G36-G37 -> 715.4484067 | H39: =+H35+H36-H37 -> 58.89402782 | I39: =+I35+I36-I37 -> 2.273736754e-13 | J39: =+J35+J36-J37 -> 2.273736754e-13 | K39: 2.273736754e-13 | L39: 2.273736754e-13 | M39: 2.273736754e-13 | N39: 2.273736754e-13 | O39: 2.273736754e-13 | P39: =+P35+P36-P37 -> 2.273736754e-13 | Q39: =+Q35+Q36-Q37 -> 2.273736754e-13 | R39: =+R35+R36-R37 -> 2.273736754e-13 | S39: =+S35+S36-S37 -> 2.273736754e-13 | T39: =+T35+T36-T37 -> 2.273736754e-13
A41: =1+A39 -> 26 | B41: Total Other Expenses | C41: =+"Ln ("&A18&" + "&A27&" + "&A37&")" -> Ln (8 + 15 + 23) | F41: =+F18+F37+F27 -> 16163.47564 | G41: =+G18+G37+G27 -> 19345.685 | H41: =+H18+H37+H27 -> 21214.82073 | I41: 21568.11492 | J41: =+J18+J37+J27 -> 22352.35822 | K41: 19157.26515 | L41: 21951.71085 | M41: 23360.95795 | N41: 22941.75135 | O41: 24338.4619 | P41: =+P18+P37+P27 -> 23991.73601 | Q41: =+Q18+Q37+Q27 -> 23699.07804 | R41: =+R18+R37+R27 -> 21328.95077 | S41: =+S18+S37+S27 -> 21222.28607 | T41: =+T18+T37+T27 -> 21222.28607
A43: =1+A41 -> 27 | B43: Adjusted Operating Expenses | C43: =+"Ln ("&A9&" + "&A10&" + "&A41&")" -> Ln (1 + 2 + 26) | F43: =F9+F10+F41+F45+F46 -> 34048.43938 | G43: =G9+G10+G41+G45+G46 -> 39387.39041 | H43: =H9+H10+H41+H45+H46 -> 41839.00528 | I43: =I9+I10+I41+I45+I46 -> 46429.26633 | J43: =J9+J10+J41+J45+J46 -> 47737.90645 | K43: =K9+K10+K41 -> 41331.8377 | L43: 43970.32812 | M43: 44312.16195 | N43: 44014.94273 | O43: 47079.93854 | P43: 47632.91296 | Q43: 48609.9948 | R43: 47485.32941 | S43: 45931.55839 | T43: 45931.55839
A45: =1+A43 -> 28 | B45: Arbitration Adustment | F45: 203 | G45: =610/3 -> 203.3333333 | H45: =610/3 -> 203.3333333 | I45: 0
A46: =+A45+1 -> 29 | B46: Renton Fire Adjusment | F46: 0 | G46: 219.75 | H46: 219.75 | I46: 0
B48: Note: The expenseson lines 28 and 29 represent the one-time normalization of operating expenses in 2004 that became
B49: controversial to the parties to the Settlement Agreement. In order to avoid arbitration in 2005, OPL and Shipper parties agreed to
B50: adjust the 2004, 2005, and 2006 Adjusted Operating Expenses as shown above.

Sheet Cost of Service
A1: =+Index!B4 -> Olympic Pipe Line Company | U1: =+Index!B3 -> Exhibit No. 1.4(a)
A2: =Index!$C$12 -> Total Revenue Requirment (Including Net Carryover) | U2: =Index!$B$12 -> Schedule 3
A3: =units -> ($000's)
A6: Line
A7: No. | B7: Description | C7: Source | H7: =+Input!F7 -> 2004 | I7: =+Input!G7 -> 2005 | J7: =+Input!H7 -> 2006 | K7: =+Input!I7 -> 2007 | L7: =+Input!J7 -> 2008 | M7: =+Input!K7 -> 2009 | N7: =+Input!L7 -> 2010 | O7: =+Input!M7 -> 2011 | P7: =+Input!N7 -> 2012 | Q7: =+Input!O7 -> 2013 | R7: =+Input!P7 -> 2014 | S7: =+Input!Q7 -> 2015 | T7: =+Input!R7 -> 2016 | U7: =+Input!S7 -> 2017 | V7: =+Input!T7 -> 2018
A10: 1 | B10: Return on Rate Base | C10: ='Return on Rate Base'!U$2&", Line "&'Return on Rate Base'!A30 -> Schedule 5, Line 7 | H10: ='Return on Rate Base'!H30 -> 10647.72647 | I10: ='Return on Rate Base'!I30 -> 12201.26822 | J10: ='Return on Rate Base'!J30 -> 14599.69648 | K10: ='Return on Rate Base'!K30 -> 14309.8523 | L10: ='Return on Rate Base'!L30 -> 15363.28778 | M10: ='Return on Rate Base'!M30 -> 11384.57073 | N10: ='Return on Rate Base'!N30 -> 13498.16845 | O10: ='Return on Rate Base'!O30 -> 12881.6044 | P10: ='Return on Rate Base'!P30 -> 14087.65033 | Q10: ='Return on Rate Base'!Q30 -> 13332.46921 | R10: ='Return on Rate Base'!R30 -> 13131.51502 | S10: ='Return on Rate Base'!S30 -> 12799.10046 | T10: ='Return on Rate Base'!T30 -> 12917.86502 | U10: ='Return on Rate Base'!U30 -> 13850.01194 | V10: ='Return on Rate Base'!V30 -> 13693.33826
A12: =A10+1 -> 2 | B12: Income Tax Allowance | C12: ='Income Tax Allowance'!U$2&", Line "&'Income Tax Allowance'!A35 -> Schedule 6, Line 14 | H12: ='Income Tax Allowance'!H35 -> 3450.468557 | I12: ='Income Tax Allowance'!I35 -> 4140.732079 | J12: ='Income Tax Allowance'!J35 -> 4986.719999 | K12: ='Income Tax Allowance'!K35 -> 4770.860422 | L12: ='Income Tax Allowance'!L35 -> 5348.573628 | M12: ='Income Tax Allowance'!M35 -> 3485.160474 | N12: ='Income Tax Allowance'!N35 -> 4538.400102 | O12: ='Income Tax Allowance'!O35 -> 4170.507553 | P12: ='Income Tax Allowance'!P35 -> 4776.836645 | Q12: ='Income Tax Allowance'!Q35 -> 4358.942968 | R12: ='Income Tax Allowance'!R35 -> 4262.948887 | S12: ='Income Tax Allowance'!S35 -> 4049.212509 | T12: ='Income Tax Allowance'!T35 -> 4088.246942 | U12: ='Income Tax Allowance'!U35 -> 4594.70361 | V12: ='Income Tax Allowance'!V35 -> 1890.467139
A14: =A12+1 -> 3 | B14: Operating Expenses Excluding Depreciation | C14: =+OpEx!$S$2&", Line "&OpEx!A43 -> Schedule 2, Line 27 | H14: =+OpEx!F43 -> 34048.43938 | I14: =+OpEx!G43 -> 39387.39041 | J14: =+OpEx!H43 -> 41839.00528 | K14: =+OpEx!I43 -> 46429.26633 | L14: =+OpEx!J43 -> 47737.90645 | M14: =+OpEx!K43 -> 41331.8377 | N14: =+OpEx!L43 -> 43970.32812 | O14: =+OpEx!M43 -> 44312.16195 | P14: =+OpEx!N43 -> 44014.94273 | Q14: =+OpEx!O43 -> 47079.93854 | R14: =+OpEx!P43 -> 47632.91296 | S14: =+OpEx!Q43 -> 48609.9948 | T14: =+OpEx!R43 -> 47485.32941 | U14: =+OpEx!S43 -> 45931.55839 | V14: =+OpEx!T43 -> 45931.55839
A16: =A14+1 -> 4 | B16: Depreciation Expense | C16: =Input!J2&", Line "&Input!A31 -> Schedule 1, Line 15 | H16: =Input!F31 -> 3987.581 | I16: =Input!G31 -> 4240.349 | J16: =Input!H31 -> 4551.907 | K16: =Input!I31 -> 4856.431 | L16: =Input!J31 -> 4957.177 | M16: =Input!K31 -> 4639.516 | N16: =Input!L31 -> 4819.236 | O16: =Input!M31 -> 5089.878945 | P16: =Input!N31 -> 5194.582 | Q16: =Input!O31 -> 5337.537673 | R16: =Input!P31 -> 5397.896427 | S16: =Input!Q31 -> 5454.270529 | T16: =Input!R31 -> 5801.138274 | U16: =Input!S31 -> 5963.381449 | V16: =Input!T31 -> 5963.381449
A18: =A16+1 -> 5 | B18: Amortization of AFUDC | C18: ='AFUDC - Amortization'!V2&", Lines ("&'AFUDC - Amortization'!A15&" + "&'AFUDC - Amortization'!A27&")" -> Schedule 9, Lines (4 + 10) | H18: ='AFUDC - Amortization'!I15+'AFUDC - Amortization'!I27 -> 220.3551159 | I18: ='AFUDC - Amortization'!J15+'AFUDC - Amortization'!J27 -> 254.6572701 | J18: ='AFUDC - Amortization'!K15+'AFUDC - Amortization'!K27 -> 284.6185882 | K18: ='AFUDC - Amortization'!L15+'AFUDC - Amortization'!L27 -> 306.6456186 | L18: ='AFUDC - Amortization'!M15+'AFUDC - Amortization'!M27 -> 315.6637572 | M18: ='AFUDC - Amortization'!N15+'AFUDC - Amortization'!N27 -> 312.2671168 | N18: ='AFUDC - Amortization'!O15+'AFUDC - Amortization'!O27 -> 340.1448917 | O18: ='AFUDC - Amortization'!P15+'AFUDC - Amortization'!P27 -> 357.6754718 | P18: ='AFUDC - Amortization'!Q15+'AFUDC - Amortization'!Q27 -> 366.4176058 | Q18: ='AFUDC - Amortization'!R15+'AFUDC - Amortization'!R27 -> 380.359874 | R18: ='AFUDC - Amortization'!S15+'AFUDC - Amortization'!S27 -> 388.2107953 | S18: ='AFUDC - Amortization'!T15+'AFUDC - Amortization'!T27 -> 396.4778573 | T18: ='AFUDC - Amortization'!U15+'AFUDC - Amortization'!U27 -> 425.1309188 | U18: ='AFUDC - Amortization'!V15+'AFUDC - Amortization'!V27 -> 437.7142654 | V18: ='AFUDC - Amortization'!W15+'AFUDC - Amortization'!W27 -> 437.130902
A20: =A18+1 -> 6 | B20: Total Revenue Requirement (Excluding Net Carryover) | C20: ="Sum Lines ("&A10&" through "&A18&")" -> Sum Lines (1 through 5) | H20: =SUM(H10:H19) -> 52354.57052 | I20: =SUM(I10:I18) -> 60224.39698 | J20: 66261.94735 | K20: 70673.05567 | L20: 73722.60861 | M20: 61153.35202 | N20: 67166.27756 | O20: 66811.82832 | P20: 68440.42931 | Q20: 70489.24827 | R20: =SUM(R10:R19) -> 70813.48409 | S20: =SUM(S10:S19) -> 71309.05616 | T20: =SUM(T10:T19) -> 70717.71057 | U20: =SUM(U10:U19) -> 70777.36966 | V20: =SUM(V10:V19) -> 67915.87614
A22: =A20+1 -> 7 | B22: Net Carryover | C22: ='Net Carryover'!$U$2&" Prior Ln "&'Net Carryover'!A16 -> Schedule 4 Prior Ln 6 | H22: N/A | I22: ='Net Carryover'!H16 -> 1004.951561 | J22: ='Net Carryover'!I16 -> 7873.192928 | K22: ='Net Carryover'!J16 -> 8323.223647 | L22: ='Net Carryover'!K16 -> -1487.092855 | M22: ='Net Carryover'!L16 -> -6213.865647 | N22: ='Net Carryover'!M16 -> -8307.88527 | O22: ='Net Carryover'!N16 -> 1436.28766 | P22: ='Net Carryover'!O16 -> 5284.727784 | Q22: ='Net Carryover'!P16 -> 3471.439916 | R22: ='Net Carryover'!Q16 -> -7286.728176 | S22: ='Net Carryover'!R16 -> -7685.266042 | T22: ='Net Carryover'!S16 -> 3570.906915 | U22: ='Net Carryover'!T16 -> 8473.239394 | V22: ='Net Carryover'!U16 -> 1041.187206
A24: =A22+1 -> 8 | B24: Total Revenue Requirement (Including Net Carryover) | C24: =+"Ln ("&A20&" + "&A22&")" -> Ln (6 + 7) | H24: =+H20 -> 52354.57052 | I24: =+I20+I22 -> 61229.34854 | J24: =+J20+J22 -> 74135.14028 | K24: 78996.27931 | L24: 72235.51576 | M24: =+M20+M22 -> 54939.48637 | N24: 58858.39229 | O24: 68248.11598 | P24: 73725.15709 | Q24: 73960.68818 | R24: =+R20+R22 -> 63526.75591 | S24: =+S20+S22 -> 63623.79012 | T24: =+T20+T22 -> 74288.61748 | U24: =+U20+U22 -> 79250.60905 | V24: =+V20+V22 -> 68957.06334
I41: 0

Sheet Net Carryover
A1: =+'Cost of Service'!A1 -> Olympic Pipe Line Company | U1: =+'Cost of Service'!U1 -> Exhibit No. 1.4(a)
A2: =+Index!C13 -> Net Carryover | U2: =+Index!B13 -> Schedule 4
A3: =+'Cost of Service'!A3 -> ($000's)
A6: Line
A7: No. | B7: Description | F7: Source | H7: =+'Cost of Service'!H7 -> 2004 | I7: =+'Cost of Service'!I7 -> 2005 | J7: =+'Cost of Service'!J7 -> 2006 | K7: =+'Cost of Service'!K7 -> 2007 | L7: =+'Cost of Service'!L7 -> 2008 | M7: =+'Cost of Service'!M7 -> 2009 | N7: =+'Cost of Service'!N7 -> 2010 | O7: =+'Cost of Service'!O7 -> 2011 | P7: =+'Cost of Service'!P7 -> 2012 | Q7: =+'Cost of Service'!Q7 -> 2013 | R7: =+'Cost of Service'!R7 -> 2014 | S7: =+'Cost of Service'!S7 -> 2015 | T7: =+'Cost of Service'!T7 -> 2016 | U7: =+'Cost of Service'!U7 -> 2017 | V7: =+'Cost of Service'!V7 -> 2018
A8: 1 | B8: =+'Cost of Service'!B24 -> Total Revenue Requirement (Including Net Carryover) | F8: =+'Cost of Service'!$U$2&" Ln "&'Cost of Service'!A24 -> Schedule 3 Ln 8 | H8: =+'Cost of Service'!H24 -> 52354.57052 | I8: ='Cost of Service'!I24 -> 61229.34854 | J8: =+'Cost of Service'!J24 -> 74135.14028 | K8: =+'Cost of Service'!K24 -> 78996.27931 | L8: =+'Cost of Service'!L24 -> 72235.51576 | M8: =+'Cost of Service'!M24 -> 54939.48637 | N8: =IF(N7<=Input!D4,'Cost of Service'!N24,0) -> 58858.39229 | O8: =+'Cost of Service'!O24 -> 68248.11598 | P8: =+'Cost of Service'!P24 -> 73725.15709 | Q8: =+'Cost of Service'!Q24 -> 73960.68818 | R8: =+'Cost of Service'!R24 -> 63526.75591 | S8: =+'Cost of Service'!S24 -> 63623.79012 | T8: =+'Cost of Service'!T24 -> 74288.61748 | U8: =+'Cost of Service'!U24 -> 79250.60905 | V8: =+'Cost of Service'!V24 -> 68957.06334
A10: =1+A8 -> 2 | B10: Tariff Revenues - Actual | F10: =+Input!$J$2&" Ln "&Input!A50 -> Schedule 1 Ln 30 | H10: =+Input!F50 -> 51392.076 | I10: =+Input!G50 -> 53825.22 | J10: =+Input!H50 -> 66442.752 | K10: =+Input!I50 -> 80369.45 | L10: =+Input!J50 -> 78142.907 | M10: =+Input!K50 -> 62982.762 | N10: =+Input!L50 -> 57467.851 | O10: =+Input!M50 -> 63131.709 | P10: =+Input!N50 -> 70364.284 | Q10: =+Input!O50 -> 81015.331 | R10: =+Input!P50 -> 70967.243 | S10: =+Input!Q50 -> 60166.961 | T10: =+Input!R50 -> 66106.515 | U10: =+Input!S50 -> 78251.006 | V10: =+Input!T50 -> 0
A12: =1+A10 -> 3 | B12: Revenue (Excess)/Deficit - Without Interest | F12: =+"Ln ("&A8&" - "&A10&")" -> Ln (1 - 2) | H12: =IF(H10=0,0,H8-H10) -> 962.4945238 | I12: =IF(I10=0,0,I8-I10) -> 7404.128541 | J12: 7692.388275 | K12: -1373.170686 | L12: -5907.391241 | M12: -8043.275629 | N12: 1390.541294 | O12: 5116.406981 | P12: 3360.873095 | Q12: =IF(Q10=0,0,Q8-Q10) -> -7054.642818 | R12: -7440.487086 | S12: 3456.829118 | T12: 8182.102482 | U12: 999.6030508 | V12: 0
A13: =1+A12 -> 4 | B13: Interest on Revenue (Excess)/Deficit - Rate | F13: =+Input!$J$2&" Ln "&Input!A44 -> Schedule 1 Ln 25 | H13: =+Input!F44 -> 0.04411145802 | I13: =+Input!G44 -> 0.06335173464 | J13: =+Input!H44 -> 0.08200773922 | K13: =+Input!I44 -> 0.08296286155 | L13: =+Input!J44 -> 0.05187982198 | M13: =+Input!K44 -> 0.03289824362 | N13: =+Input!L44 -> 0.03289824362 | O13: =+Input!M44 -> 0.03289824362 | P13: =+Input!N44 -> 0.03289824362 | Q13: =+Input!O44 -> 0.03289824362 | R13: =+Input!P44 -> 0.03289824362 | S13: =+Input!Q44 -> 0.03300070479 | T13: =+Input!R44 -> 0.03558216397 | U13: =+Input!S44 -> 0.04160066883 | V13: =+Input!T44 -> 0.04160066883
A14: =1+A13 -> 5 | B14: Interest on Revenue (Excess)/Deficit | F14: =+"Ln ("&A12&" * "&A13&")" -> Ln (3 * 4) | H14: =+H13*H12 -> 42.45703678 | I14: =+I13*I12 -> 469.0643866 | J14: 630.8353717 | K14: -113.9221695 | L14: -306.474406 | M14: -264.6096411 | N14: 45.74636625 | O14: 168.3208033 | P14: 110.5668218 | Q14: -232.085358 | R14: =+R13*R12 -> -244.7789568 | S14: =+S13*S12 -> 114.0777972 | T14: =+T13*T12 -> 291.1369122 | U14: =+U13*U12 -> 41.58415548 | V14: =+V13*V12 -> 0
A16: =1+A14 -> 6 | B16: Net Carryover | F16: =+"Ln ("&A12&" + "&A14&")" -> Ln (3 + 5) | H16: =+H14+H12 -> 1004.951561 | I16: =+I14+I12 -> 7873.192928 | J16: 8323.223647 | K16: -1487.092855 | L16: -6213.865647 | M16: -8307.88527 | N16: 1436.28766 | O16: 5284.727784 | P16: 3471.439916 | Q16: -7286.728176 | R16: =+R14+R12 -> -7685.266042 | S16: =+S14+S12 -> 3570.906915 | T16: =+T14+T12 -> 8473.239394 | U16: =+U14+U12 -> 1041.187206 | V16: =+V14+V12 -> 0

Sheet Return on Rate Base
A1: =Company_Name -> Olympic Pipe Line Company | U1: =+'Cost of Service'!U1 -> Exhibit No. 1.4(a)
A2: Overall Return on Rate Base | U2: =Index!$B$14 -> Schedule 5
A3: =units -> ($000's)
A6: Line
A7: No. | B7: Description | C7: Source | H7: =+'Cost of Service'!H7 -> 2004 | I7: =+'Cost of Service'!I7 -> 2005 | J7: =+'Cost of Service'!J7 -> 2006 | K7: =+'Cost of Service'!K7 -> 2007 | L7: =+'Cost of Service'!L7 -> 2008 | M7: =+'Cost of Service'!M7 -> 2009 | N7: =+'Cost of Service'!N7 -> 2010 | O7: =+'Cost of Service'!O7 -> 2011 | P7: =+'Cost of Service'!P7 -> 2012 | Q7: =+'Cost of Service'!Q7 -> 2013 | R7: =+'Cost of Service'!R7 -> 2014 | S7: =+'Cost of Service'!S7 -> 2015 | T7: =+'Cost of Service'!T7 -> 2016 | U7: =+'Cost of Service'!U7 -> 2017 | V7: =+'Cost of Service'!V7 -> 2018
A9: 1 | B9: ='Rate Base'!B30 -> Average Original Cost Rate Base | C9: ='Rate Base'!U2&", Line "&'Rate Base'!A30&" 2009 forward" -> Schedule 7, Line 14 2009 forward | H9: ='Rate Base'!H30 -> 108211.3988 | I9: ='Rate Base'!H29 -> 115895.9183 | J9: ='Rate Base'!I29 -> 137603.1713 | K9: ='Rate Base'!J29 -> 140706.5123 | L9: ='Rate Base'!K29 -> 140424.1049 | M9: ='Rate Base'!M30 -> 127273.0098 | N9: ='Rate Base'!N30 -> 131561.096 | O9: ='Rate Base'!O30 -> 133488.1285 | P9: ='Rate Base'!P30 -> 135719.1747 | Q9: ='Rate Base'!Q30 -> 136463.3491 | R9: ='Rate Base'!R30 -> 136065.6397 | S9: ='Rate Base'!S30 -> 137921.3412 | T9: ='Rate Base'!T30 -> 139426.4978 | U9: ='Rate Base'!U30 -> 139406.2601 | V9: ='Rate Base'!V30 -> 137552.3682
A13: =A9+1 -> 2 | B13: Debt Ratio | C13: ="1.0 - Ln "&A14 -> 1.0 - Ln 3 | H13: =1-H14 -> 0.5 | I13: =1-I14 -> 0.5 | J13: 0.5 | K13: 0.5 | L13: 0.5 | M13: 0.5 | N13: 0.5 | O13: 0.5 | P13: 0.5 | Q13: 0.5 | R13: 0.5 | S13: 0.5 | T13: 0.5 | U13: 0.5 | V13: 0.5
A14: =A13+1 -> 3 | B14: Equity Ratio | C14: =Input!$J$2&", Line "&Input!A46 -> Schedule 1, Line 27 | H14: =Input!F46 -> 0.5 | I14: =Input!G46 -> 0.5 | J14: =Input!H46 -> 0.5 | K14: =Input!I46 -> 0.5 | L14: =Input!J46 -> 0.5 | M14: =Input!K46 -> 0.5 | N14: =Input!L46 -> 0.5 | O14: =Input!M46 -> 0.5 | P14: =Input!N46 -> 0.5 | Q14: =Input!O46 -> 0.5 | R14: =Input!P46 -> 0.5 | S14: =Input!Q46 -> 0.5 | T14: =Input!R46 -> 0.5 | U14: =Input!S46 -> 0.5 | V14: =Input!T46 -> 0.5
A25: =A14+1 -> 4 | B25: Cost of Debt | C25: =Input!$J$2&", Line "&Input!A47 -> Schedule 1, Line 28 | H25: =Input!F47 -> 0.078 | I25: =Input!G47 -> 0.078 | J25: =Input!H47 -> 0.078 | K25: =Input!I47 -> 0.078 | L25: =Input!J47 -> 0.078 | M25: =Input!K47 -> 0.078 | N25: =Input!L47 -> 0.078 | O25: =Input!M47 -> 0.078 | P25: =Input!N47 -> 0.078 | Q25: =Input!O47 -> 0.078 | R25: =Input!P47 -> 0.078 | S25: =Input!Q47 -> 0.078 | T25: =Input!R47 -> 0.078 | U25: =Input!S47 -> 0.078 | V25: =Input!T47 -> 0.078
A26: =A25+1 -> 5 | B26: Equity Rate of Return (Nominal) | C26: =Input!$J$2&", Line ("&Input!A48&" + "&Input!A45&")" -> Schedule 1, Line (29 + 26) | H26: =Input!F48+Input!E45 -> 0.1187949143 | I26: =Input!G48+Input!F45 -> 0.1325556158 | J26: =Input!H48+Input!G45 -> 0.1342 | K26: =Input!I48+Input!H45 -> 0.1254 | L26: =Input!J48+Input!I45 -> 0.1408126858 | M26: =Input!K48+Input!J45 -> 0.1009 | N26: =Input!L48+Input!K45 -> 0.1272 | O26: =Input!M48+Input!L45 -> 0.115 | P26: =Input!N48+Input!M45 -> 0.1296 | Q26: =Input!O48+Input!N45 -> 0.1174 | R26: =Input!P48+Input!O45 -> 0.1150173562 | S26: =Input!Q48+Input!P45 -> 0.1076 | T26: =Input!R48+Input!Q45 -> 0.1073 | U26: =Input!S48+Input!R45 -> 0.1207 | V26: =Input!T48+Input!S45 -> 0.1211
A27: =A26+1 -> 6 | B27: Weighted Cost of Capital | C27: ="Lines (("&A13&" * "&A25&") + ("&A14&" * "&A26&"))" -> Lines ((2 * 4) + (3 * 5)) | H27: =H25*H13+H26*H14 -> 0.09839745716 | I27: =I25*I13+I26*I14 -> 0.1052778079 | J27: 0.1061 | K27: 0.1017 | L27: 0.1094063429 | M27: 0.08945 | N27: 0.1026 | O27: 0.0965 | P27: 0.1038 | Q27: 0.0977 | R27: =R25*R13+R26*R14 -> 0.0965086781 | S27: =S25*S13+S26*S14 -> 0.0928 | T27: =T25*T13+T26*T14 -> 0.09265 | U27: =U25*U13+U26*U14 -> 0.09935 | V27: =V25*V13+V26*V14 -> 0.09955
A30: =A27+1 -> 7 | B30: Overall Return on Rate Base | C30: ="Lines ("&A27&" * "&A9&")" -> Lines (6 * 1) | H30: =H9*H27*Input!D9 -> 10647.72647 | I30: =I9*I27 -> 12201.26822 | J30: 14599.69648 | K30: 14309.8523 | L30: 15363.28778 | M30: =M9*M27 -> 11384.57073 | N30: 13498.16845 | O30: 12881.6044 | P30: 14087.65033 | Q30: 13332.46921 | R30: =R9*R27 -> 13131.51502 | S30: =S9*S27 -> 12799.10046 | T30: =T9*T27 -> 12917.86502 | U30: =U9*U27 -> 13850.01194 | V30: =V9*V27 -> 13693.33826
A32: =A30+1 -> 8 | B32: Weighted Cost of Debt | C32: ="Lines ("&A13&" * "&A25&")" -> Lines (2 * 4) | H32: =H25*H13 -> 0.039 | I32: =I25*I13 -> 0.039 | J32: 0.039 | K32: 0.039 | L32: 0.039 | M32: 0.039 | N32: 0.039 | O32: 0.039 | P32: 0.039 | Q32: 0.039 | R32: =R25*R13 -> 0.039 | S32: =S25*S13 -> 0.039 | T32: =T25*T13 -> 0.039 | U32: =U25*U13 -> 0.039 | V32: =V25*V13 -> 0.039
A34: =A32+1 -> 9 | B34: Interest Expense | C34: ="Lines ("&A32&" * "&A9&")" -> Lines (8 * 1) | H34: =H32*H9*Input!D9 -> 4220.244551 | I34: =I32*I9 -> 4519.940812 | J34: 5366.523682 | K34: 5487.553979 | L34: 5476.540092 | M34: 4963.647382 | N34: 5130.882744 | O34: 5206.037011 | P34: 5293.047811 | Q34: 5322.070616 | R34: =R32*R9 -> 5306.559948 | S34: =S32*S9 -> 5378.932307 | T34: =T32*T9 -> 5437.633414 | U34: =U32*U9 -> 5436.844144 | V34: =V32*V9 -> 5364.54236

Sheet Income Tax Allowance
A1: =Company_Name -> Olympic Pipe Line Company | U1: =+'Return on Rate Base'!U1 -> Exhibit No. 1.4(a)
A2: =Index!$C$15 -> Income Tax Allowance | U2: =Index!$B$15 -> Schedule 6
A3: =units -> ($000's)
A6: Line
A7: No. | B7: Description | C7: Source | H7: =+'Return on Rate Base'!H7 -> 2004 | I7: =+'Return on Rate Base'!I7 -> 2005 | J7: =+'Return on Rate Base'!J7 -> 2006 | K7: =+'Return on Rate Base'!K7 -> 2007 | L7: =+'Return on Rate Base'!L7 -> 2008 | M7: =+'Return on Rate Base'!M7 -> 2009 | N7: =+'Return on Rate Base'!N7 -> 2010 | O7: =+'Return on Rate Base'!O7 -> 2011 | P7: =+'Return on Rate Base'!P7 -> 2012 | Q7: =+'Return on Rate Base'!Q7 -> 2013 | R7: =+'Return on Rate Base'!R7 -> 2014 | S7: =+'Return on Rate Base'!S7 -> 2015 | T7: =+'Return on Rate Base'!T7 -> 2016 | U7: =+'Return on Rate Base'!U7 -> 2017 | V7: =+'Return on Rate Base'!V7 -> 2018
A9: 1 | B9: Overall Return on Rate Base | C9: ='Return on Rate Base'!U$2&", Line "&'Return on Rate Base'!A30 -> Schedule 5, Line 7 | H9: ='Return on Rate Base'!H30 -> 10647.72647 | I9: ='Return on Rate Base'!I30 -> 12201.26822 | J9: ='Return on Rate Base'!J30 -> 14599.69648 | K9: ='Return on Rate Base'!K30 -> 14309.8523 | L9: ='Return on Rate Base'!L30 -> 15363.28778 | M9: ='Return on Rate Base'!M30 -> 11384.57073 | N9: ='Return on Rate Base'!N30 -> 13498.16845 | O9: ='Return on Rate Base'!O30 -> 12881.6044 | P9: ='Return on Rate Base'!P30 -> 14087.65033 | Q9: ='Return on Rate Base'!Q30 -> 13332.46921 | R9: ='Return on Rate Base'!R30 -> 13131.51502 | S9: ='Return on Rate Base'!S30 -> 12799.10046 | T9: ='Return on Rate Base'!T30 -> 12917.86502 | U9: ='Return on Rate Base'!U30 -> 13850.01194 | V9: ='Return on Rate Base'!V30 -> 13693.33826
A11: =A9+1 -> 2 | B11: Interest Expense | C11: ='Return on Rate Base'!U$2&", Line "&'Return on Rate Base'!A34 -> Schedule 5, Line 9 | H11: ='Return on Rate Base'!H34 -> 4220.244551 | I11: ='Return on Rate Base'!I34 -> 4519.940812 | J11: ='Return on Rate Base'!J34 -> 5366.523682 | K11: ='Return on Rate Base'!K34 -> 5487.553979 | L11: ='Return on Rate Base'!L34 -> 5476.540092 | M11: ='Return on Rate Base'!M34 -> 4963.647382 | N11: ='Return on Rate Base'!N34 -> 5130.882744 | O11: ='Return on Rate Base'!O34 -> 5206.037011 | P11: ='Return on Rate Base'!P34 -> 5293.047811 | Q11: ='Return on Rate Base'!Q34 -> 5322.070616 | R11: ='Return on Rate Base'!R34 -> 5306.559948 | S11: ='Return on Rate Base'!S34 -> 5378.932307 | T11: ='Return on Rate Base'!T34 -> 5437.633414 | U11: ='Return on Rate Base'!U34 -> 5436.844144 | V11: ='Return on Rate Base'!V34 -> 5364.54236
A13: =A11+1 -> 3 | B13: Return on Equity | C13: ="Line "&A9&" - Line "&A11 -> Line 1 - Line 2 | H13: =H9-H11 -> 6427.481921 | I13: =I9-I11 -> 7681.327409 | J13: 9233.172796 | K13: 8822.29832 | L13: 9886.747685 | M13: 6420.923345 | N13: 8367.285705 | O13: 7675.567389 | P13: 8794.602517 | Q13: 8010.398594 | R13: =R9-R11 -> 7824.955073 | S13: =S9-S11 -> 7420.168157 | T13: =T9-T11 -> 7480.231607 | U13: =U9-U11 -> 8413.167797 | V13: =V9-V11 -> 8328.795895
A17: =A13+1 -> 4 | B17: =TEFRA!B20 -> Amortization of TEFRA Adjustment | C17: =TEFRA!U2&", Line "&TEFRA!A20 -> Schedule 13, Line 6 | H17: =TEFRA!H20 -> 1.72226571 | I17: =TEFRA!I20 -> 1.646881955 | J17: =TEFRA!J20 -> 1.643520187 | K17: =TEFRA!K20 -> 1.685274586 | L17: =TEFRA!L20 -> 1.655853462 | M17: =TEFRA!M20 -> 1.574136487 | N17: =TEFRA!N20 -> 1.655770493 | O17: =TEFRA!O20 -> 1.680830511 | P17: =TEFRA!P20 -> 1.662467073 | Q17: =TEFRA!Q20 -> 1.667760001 | R17: =TEFRA!R20 -> 1.639156057 | S17: =TEFRA!S20 -> 1.603624148 | T17: =TEFRA!T20 -> 1.655442423 | U17: =TEFRA!U20 -> 1.653520587 | V17: =TEFRA!V20 -> 1.620671823
A19: =A17+1 -> 5 | B19: Amortization of Equity AFUDC | C19: ='AFUDC - Amortization'!V2&", Line "&'AFUDC - Amortization'!A15 -> Schedule 9, Line 4 | H19: ='AFUDC - Amortization'!I15 -> 135.3897801 | I19: ='AFUDC - Amortization'!J15 -> 156.6840812 | J19: ='AFUDC - Amortization'!K15 -> 175.6568424 | K19: ='AFUDC - Amortization'!L15 -> 189.4036216 | L19: ='AFUDC - Amortization'!M15 -> 195.2047904 | M19: ='AFUDC - Amortization'!N15 -> 193.0570654 | N19: ='AFUDC - Amortization'!O15 -> 210.0513335 | O19: ='AFUDC - Amortization'!P15 -> 220.7939184 | P19: ='AFUDC - Amortization'!Q15 -> 226.1473706 | Q19: ='AFUDC - Amortization'!R15 -> 234.738954 | R19: ='AFUDC - Amortization'!S15 -> 239.33581 | S19: ='AFUDC - Amortization'!T15 -> 243.9888635 | T19: ='AFUDC - Amortization'!U15 -> 261.0772064 | U19: ='AFUDC - Amortization'!V15 -> 268.5305965 | V19: ='AFUDC - Amortization'!W15 -> 268.1439056
A21: =A19+1 -> 6 | B21: Excess Deferred Income Tax Amortization Adjustment | C21: ='FASB-Excess'!U2&", Line "&'FASB-Excess'!A56 -> Schedule 14, Line 12 | H21: ='FASB-Excess'!H56 -> 54.80332671 | I21: ='FASB-Excess'!I56 -> 52.40457923 | J21: ='FASB-Excess'!J56 -> 52.29760614 | K21: ='FASB-Excess'!K56 -> 53.62625128 | L21: ='FASB-Excess'!L56 -> 52.69005692 | M21: ='FASB-Excess'!M56 -> 50.0897833 | N21: ='FASB-Excess'!N56 -> 52.6874168 | O21: ='FASB-Excess'!O56 -> 53.48483868 | P21: ='FASB-Excess'!P56 -> 52.90050522 | Q21: ='FASB-Excess'!Q56 -> 53.06892872 | R21: ='FASB-Excess'!R56 -> 52.15873743 | S21: ='FASB-Excess'!S56 -> 51.02809492 | T21: ='FASB-Excess'!T56 -> 52.67697745 | U21: ='FASB-Excess'!U56 -> 52.61582371 | V21: ='FASB-Excess'!V56 -> 312.2286595
A23: =A21+1 -> 7 | B23: Taxable Allowed Return | C23: ="Line ("&A13&" + "&A17&" + "&A19&" - "&A21&")" -> Line (3 + 4 + 5 - 6) | H23: =SUM(H13:H19)-H21 -> 6509.79064 | I23: =SUM(I13:I19)-I21 -> 7787.253793 | J23: 9358.175552 | K23: 8959.760964 | L23: 10030.91827 | M23: 6565.464763 | N23: 8526.305392 | O23: 7844.557299 | P23: 8969.51185 | Q23: 8193.736379 | R23: =SUM(R13:R19)-R21 -> 8013.771302 | S23: =SUM(S13:S19)-S21 -> 7614.73255 | T23: =SUM(T13:T19)-T21 -> 7690.287278 | U23: =SUM(U13:U19)-U21 -> 8630.736091 | V23: =SUM(V13:V19)-V21 -> 8286.331813
A25: =A23+1 -> 8 | B25: =Input!B39 -> Federal Income Tax Rate | C25: =Input!J$2&", Ln."&Input!A39 -> Schedule 1, Ln.21 | H25: =Input!F39 -> 0.35 | I25: =Input!G39 -> 0.35 | J25: =Input!H39 -> 0.35 | K25: =Input!I39 -> 0.35 | L25: =Input!J39 -> 0.35 | M25: =Input!K39 -> 0.35 | N25: =Input!L39 -> 0.35 | O25: =Input!M39 -> 0.35 | P25: =Input!N39 -> 0.35 | Q25: =Input!O39 -> 0.35 | R25: =Input!P39 -> 0.35 | S25: =Input!Q39 -> 0.35 | T25: =Input!R39 -> 0.35 | U25: =Input!S39 -> 0.35 | V25: =Input!T39 -> 0.21
A26: =A25+1 -> 9 | B26: =Input!B40 -> State Income Tax Rate | C26: =Input!J$2&", Ln."&Input!A40 -> Schedule 1, Ln.22 | H26: =Input!F40 -> 0 | I26: =Input!G40 -> 0 | J26: =Input!H40 -> 0 | K26: =Input!I40 -> 0 | L26: =Input!J40 -> 0 | M26: =Input!K40 -> 0 | N26: =Input!L40 -> 0 | O26: =Input!M40 -> 0 | P26: =Input!N40 -> 0 | Q26: =Input!O40 -> 0 | R26: =Input!P40 -> 0 | S26: =Input!Q40 -> 0 | T26: =Input!R40 -> 0 | U26: =Input!S40 -> 0 | V26: =Input!T40 -> 0
A27: =A26+1 -> 10 | B27: Composite Income Tax Rate | C27: ="1.0 - ((1.0 - Ln."&A26&") * (1.0 - Ln."&A27&"))" -> 1.0 - ((1.0 - Ln.9) * (1.0 - Ln.10)) | H27: =1-((1-H25)*(1-H26)) -> 0.35 | I27: =1-((1-I25)*(1-I26)) -> 0.35 | J27: 0.35 | K27: 0.35 | L27: 0.35 | M27: 0.35 | N27: 0.35 | O27: 0.35 | P27: 0.35 | Q27: 0.35 | R27: =1-((1-R25)*(1-R26)) -> 0.35 | S27: =1-((1-S25)*(1-S26)) -> 0.35 | T27: =1-((1-T25)*(1-T26)) -> 0.35 | U27: =1-((1-U25)*(1-U26)) -> 0.35 | V27: =1-((1-V25)*(1-V26)) -> 0.21
A29: =A27+1 -> 11 | B29: Net-to-Tax Multiplier | C29: ="Line "&A27&" / (1.0 - Line "&A27&" )" -> Line 10 / (1.0 - Line 10 ) | H29: =(H27/(1-H27)) -> 0.5384615385 | I29: =(I27/(1-I27)) -> 0.5384615385 | J29: 0.5384615385 | K29: 0.5384615385 | L29: 0.5384615385 | M29: 0.5384615385 | N29: 0.5384615385 | O29: 0.5384615385 | P29: 0.5384615385 | Q29: 0.5384615385 | R29: =(R27/(1-R27)) -> 0.5384615385 | S29: =(S27/(1-S27)) -> 0.5384615385 | T29: =(T27/(1-T27)) -> 0.5384615385 | U29: =(U27/(1-U27)) -> 0.5384615385 | V29: =(V27/(1-V27)) -> 0.2658227848
A31: =A29+1 -> 12 | B31: Income Tax Allowance before Excess Deferred Income Tax Amortization Adjustment | C31: ="Line "&A23&" * Line "&A29 -> Line 7 * Line 11 | H31: =H23*H29 -> 3505.271883 | I31: =I23*I29 -> 4193.136658 | J31: 5039.017605 | K31: 4824.486673 | L31: 5401.263685 | M31: 3535.250257 | N31: 4591.087519 | O31: 4223.992392 | P31: 4829.73715 | Q31: 4412.011896 | R31: =R23*R29 -> 4315.107624 | S31: =S23*S29 -> 4100.240604 | T31: =T23*T29 -> 4140.923919 | U31: =U23*U29 -> 4647.319434 | V31: =V23*V29 -> 2202.695798
A33: =A31+1 -> 13 | B33: Excess Deferred Income Tax Amortization Adjustment | C33: ="Line "&A21 -> Line 6 | H33: =H21 -> 54.80332671 | I33: =I21 -> 52.40457923 | J33: 52.29760614 | K33: 53.62625128 | L33: 52.69005692 | M33: 50.0897833 | N33: 52.6874168 | O33: 53.48483868 | P33: 52.90050522 | Q33: 53.06892872 | R33: =R21 -> 52.15873743 | S33: =S21 -> 51.02809492 | T33: =T21 -> 52.67697745 | U33: =U21 -> 52.61582371 | V33: =V21 -> 312.2286595
A35: =A33+1 -> 14 | B35: Income Tax Allowance After | C35: ="Line ("&A31&" - "&A33&")" -> Line (12 - 13) | H35: =H31-H33 -> 3450.468557 | I35: =I31-I33 -> 4140.732079 | J35: 4986.719999 | K35: 4770.860422 | L35: 5348.573628 | M35: 3485.160474 | N35: 4538.400102 | O35: 4170.507553 | P35: 4776.836645 | Q35: 4358.942968 | R35: =R31-R33 -> 4262.948887 | S35: =S31-S33 -> 4049.212509 | T35: =T31-T33 -> 4088.246942 | U35: =U31-U33 -> 4594.70361 | V35: =V31-V33 -> 1890.467139
B36: Excess Deferred Income Tax Amortization Adjustment

Sheet Rate Base
A1: =Company_Name -> Olympic Pipe Line Company | U1: =+'Income Tax Allowance'!U1 -> Exhibit No. 1.4(a)
A2: =Index!$C$16 -> Rate Base | U2: =Index!$B$16 -> Schedule 7
A3: =units -> ($000's)
A6: Line
A7: No. | B7: Description | C7: Source | G7: =+Input!E7 -> 2003 EOY | H7: =+Input!F7 -> 2004 | I7: =+Input!G7 -> 2005 | J7: =+Input!H7 -> 2006 | K7: =+Input!I7 -> 2007 | L7: =+Input!J7 -> 2008 | M7: =+Input!K7 -> 2009 | N7: =+Input!L7 -> 2010 | O7: =+Input!M7 -> 2011 | P7: =+Input!N7 -> 2012 | Q7: =+Input!O7 -> 2013 | R7: =+Input!P7 -> 2014 | S7: =+Input!Q7 -> 2015 | T7: =+Input!R7 -> 2016 | U7: =+Input!S7 -> 2017 | V7: =+Input!T7 -> 2018
M8: 3/
B9: Total Carrier Property in Service
A10: 1 | B10: Carrier Property in Service | C10: =Input!J2&", Line "&Input!A24&" - "&Input!A77 -> Schedule 1, Line 10 - 44 | G10: =Input!E24 -> 157552.9134 | H10: =Input!F24 -> 175512.4934 | I10: =Input!G24 -> 194763.1724 | J10: =Input!H24 -> 203457.8984 | K10: =Input!I24 -> 210829.9614 | L10: =Input!J24 -> 219559.6794 | M10: =Input!K24 -> 204132.7374 | N10: =Input!L24 -> 214201.5914 | O10: =Input!M24 -> 220994.5317 | P10: =Input!N24 -> 228025.2418 | Q10: =Input!O24 -> 232018.9172 | R10: =Input!P24 -> 241468.1833 | S10: =Input!Q24 -> 247454.9466 | T10: =Input!R24 -> 256730.9771 | U10: =Input!S24 -> 262675.8226 | V10: =Input!T24 -> 267229.9611
A11: =A10+1 -> 2 | B11: Accumulated AFUDC | C11: ='AFUDC - Amortization'!V2&", Lns ("&'AFUDC - Amortization'!A11&"+"&'AFUDC - Amortization'!A23&")" -> Schedule 9, Lns (2+8) | F11: 1/ | G11: =+Input!E56+Input!E59 -> 8243.511326 | H11: ='AFUDC - Amortization'!I11+'AFUDC - Amortization'!I23 -> 10098.00438 | I11: =IF(I7<=Input!$D$4,('AFUDC - Amortization'!J11+'AFUDC - Amortization'!J23),0) -> 12068.9408 | J11: =IF(J7<=Input!$D$4,('AFUDC - Amortization'!K11+'AFUDC - Amortization'!K23),0) -> 12756.69938 | K11: =IF(K7<=Input!$D$4,('AFUDC - Amortization'!L11+'AFUDC - Amortization'!L23),0) -> 13327.54926 | L11: =IF(L7<=Input!$D$4,('AFUDC - Amortization'!M11+'AFUDC - Amortization'!M23),0) -> 14000.9045 | M11: =IF(M7<=Input!$D$4,('AFUDC - Amortization'!N11+'AFUDC - Amortization'!N23),0) -> 14436.90279 | N11: =IF(N7<=Input!$D$4,('AFUDC - Amortization'!O11+'AFUDC - Amortization'!O23),0) -> 15012.47025 | O11: =IF(O7<=Input!$D$4,('AFUDC - Amortization'!P11+'AFUDC - Amortization'!P23),0) -> 15492.98249 | P11: =IF(P7<=Input!$D$4,('AFUDC - Amortization'!Q11+'AFUDC - Amortization'!Q23),0) -> 16103.2659 | Q11: =IF(Q7<=Input!$D$4,('AFUDC - Amortization'!R11+'AFUDC - Amortization'!R23),0) -> 16591.13476 | R11: =IF(R7<=Input!$D$4,('AFUDC - Amortization'!S11+'AFUDC - Amortization'!S23),0) -> 17360.41041 | S11: =IF(S7<=Input!$D$4,('AFUDC - Amortization'!T11+'AFUDC - Amortization'!T23),0) -> 18082.43572 | T11: =IF(T7<=Input!$D$4,('AFUDC - Amortization'!U11+'AFUDC - Amortization'!U23),0) -> 18732.22904 | U11: =IF(U7<=Input!$D$4,('AFUDC - Amortization'!V11+'AFUDC - Amortization'!V23),0) -> 19216.15906 | V11: =IF(V7<=Input!$D$4,('AFUDC - Amortization'!W11+'AFUDC - Amortization'!W23),0) -> 19449.78931
A12: =A11+1 -> 3 | B12: Total Carrier Property in Service | C12: ="Lines ("&A10&" + "&A11&")" -> Lines (1 + 2) | G12: =SUM(G10:G11) -> 165796.4247 | H12: =SUM(H10:H11) -> 185610.4977 | I12: =SUM(I10:I11) -> 206832.1132 | J12: 216214.5978 | K12: 224157.5106 | L12: 233560.5839 | M12: 218569.6402 | N12: 229214.0616 | O12: 236487.5142 | P12: 244128.5077 | Q12: 248610.0519 | R12: =SUM(R10:R11) -> 258828.5937 | S12: =SUM(S10:S11) -> 265537.3823 | T12: =SUM(T10:T11) -> 275463.2061 | U12: =SUM(U10:U11) -> 281891.9817 | V12: =SUM(V10:V11) -> 286679.7504
B14: Total Accumulated Depreciation
A15: =A12+1 -> 4 | B15: Accumulated Depreciation of Carrier Property | C15: =Input!J2&", Lines "&Input!A30& " - "&Input!A79 -> Schedule 1, Lines 14 - 46 | G15: =Input!E30 -> 53957.40725 | H15: =Input!F30 -> 56778.51225 | I15: =Input!G30 -> 54468.44725 | J15: =Input!H30 -> 58680.93625 | K15: =Input!I30 -> 63535.46225 | L15: =Input!J30 -> 67691.67625 | M15: =Input!K30 -> 68685.61425 | N15: =Input!L30 -> 72733.74825 | O15: =Input!M30 -> 77739.46742 | P15: =Input!N30 -> 79855.57142 | Q15: =Input!O30 -> 84847.20873 | R15: =Input!P30 -> 89973.57864 | S15: =Input!Q30 -> 92807.75736 | T15: =Input!R30 -> 97895.02666 | U15: =Input!S30 -> 103728.2313 | V15: =Input!T30 -> 109691.6127
A16: =A15+1 -> 5 | B16: Accumulated Amortization of AFUDC | C16: ='AFUDC - Amortization'!V2&", Lns ("&'AFUDC - Amortization'!A17&"+"&'AFUDC - Amortization'!A29&")" -> Schedule 9, Lns (5+11) | F16: 2/ | G16: =+Input!E57+Input!E60 -> 876.3552424 | H16: =+'AFUDC - Amortization'!I17+'AFUDC - Amortization'!I29 -> 1096.710358 | I16: =IF(I7<=Input!$D$4,(+'AFUDC - Amortization'!J17+'AFUDC - Amortization'!J29),0) -> 1351.367628 | J16: =IF(J7<=Input!$D$4,(+'AFUDC - Amortization'!K17+'AFUDC - Amortization'!K29),0) -> 1635.986216 | K16: =IF(K7<=Input!$D$4,(+'AFUDC - Amortization'!L17+'AFUDC - Amortization'!L29),0) -> 1942.631835 | L16: =IF(L7<=Input!$D$4,(+'AFUDC - Amortization'!M17+'AFUDC - Amortization'!M29),0) -> 2258.295592 | M16: =IF(M7<=Input!$D$4,(+'AFUDC - Amortization'!N17+'AFUDC - Amortization'!N29),0) -> 2570.562709 | N16: =IF(N7<=Input!$D$4,(+'AFUDC - Amortization'!O17+'AFUDC - Amortization'!O29),0) -> 2910.707601 | O16: =IF(O7<=Input!$D$4,(+'AFUDC - Amortization'!P17+'AFUDC - Amortization'!P29),0) -> 3268.383072 | P16: =IF(P7<=Input!$D$4,(+'AFUDC - Amortization'!Q17+'AFUDC - Amortization'!Q29),0) -> 3634.800678 | Q16: =IF(Q7<=Input!$D$4,(+'AFUDC - Amortization'!R17+'AFUDC - Amortization'!R29),0) -> 4015.160552 | R16: =IF(R7<=Input!$D$4,(+'AFUDC - Amortization'!S17+'AFUDC - Amortization'!S29),0) -> 4403.371348 | S16: =IF(S7<=Input!$D$4,(+'AFUDC - Amortization'!T17+'AFUDC - Amortization'!T29),0) -> 4799.849205 | T16: =IF(T7<=Input!$D$4,(+'AFUDC - Amortization'!U17+'AFUDC - Amortization'!U29),0) -> 5224.980124 | U16: =IF(U7<=Input!$D$4,(+'AFUDC - Amortization'!V17+'AFUDC - Amortization'!V29),0) -> 5662.694389 | V16: =IF(V7<=Input!$D$4,(+'AFUDC - Amortization'!W17+'AFUDC - Amortization'!W29),0) -> 6099.825291
A17: =A16+1 -> 6 | B17: Total Accumulated Depreciation | C17: ="Lines ("&A15&" + "&A16&")" -> Lines (4 + 5) | G17: =SUM(G15:G16) -> 54833.76249 | H17: =SUM(H15:H16) -> 57875.22261 | I17: =SUM(I15:I16) -> 55819.81488 | J17: 60316.92247 | K17: 65478.09409 | L17: 69949.97184 | M17: 71256.17696 | N17: 75644.45585 | O17: 81007.85049 | P17: 83490.37209 | Q17: 88862.36928 | R17: =SUM(R15:R16) -> 94376.94998 | S17: =SUM(S15:S16) -> 97607.60657 | T17: =SUM(T15:T16) -> 103120.0068 | U17: =SUM(U15:U16) -> 109390.9257 | V17: =SUM(V15:V16) -> 115791.438
A19: =A17+1 -> 7 | B19: Net Carrier Property In Service | C19: ="Lines ("&A12&" - "&A17&")" -> Lines (3 - 6) | G19: =G12-G17 -> 110962.6622 | H19: =H12-H17 -> 127735.2751 | I19: =I12-I17 -> 151012.2983 | J19: =J12-J17 -> 155897.6753 | K19: 158679.4165 | L19: 163610.612 | M19: 147313.4632 | N19: 153569.6058 | O19: 155479.6637 | P19: 160638.1356 | Q19: 159747.6826 | R19: =R12-R17 -> 164451.6437 | S19: =S12-S17 -> 167929.7758 | T19: =T12-T17 -> 172343.1993 | U19: =U12-U17 -> 172501.056 | V19: =V12-V17 -> 170888.3124
B21: Working Capital
A22: =A19+1 -> 8 | B22: Oil Inventory | C22: =Input!J$2&", Line "&Input!A35 -> Schedule 1, Line 18 | G22: =+Input!E35 -> 252.4125 | H22: =+Input!F35 -> 345.872 | I22: =+Input!G35 -> 537.31 | J22: =+Input!H35 -> 729.54 | K22: =+Input!I35 -> 1000.669 | L22: =+Input!J35 -> 632.045 | M22: =+Input!K35 -> 1228.925 | N22: =+Input!L35 -> 1445.632 | O22: =+Input!M35 -> 1015.875 | P22: =+Input!N35 -> 1441.049 | Q22: =+Input!O35 -> 1666.211 | R22: =+Input!P35 -> 707.428 | S22: =+Input!Q35 -> 696.259 | T22: =+Input!R35 -> 741.198 | U22: =+Input!S35 -> 632.646 | V22: =+Input!T35 -> 632.646
A23: =A22+1 -> 9 | B23: Materials and Supplies | C23: =Input!J$2&", Line "&Input!A36 -> Schedule 1, Line 19 | G23: =+Input!E36 -> 0 | H23: =+Input!F36 -> 0 | I23: =+Input!G36 -> 0 | J23: =+Input!H36 -> 0 | K23: =+Input!I36 -> 0 | L23: =+Input!J36 -> 0 | M23: =+Input!K36 -> 0 | N23: =+Input!L36 -> 0 | O23: =+Input!M36 -> 0 | P23: =+Input!N36 -> 0 | Q23: =+Input!O36 -> 0 | R23: =+Input!P36 -> 0 | S23: =+Input!Q36 -> 0 | T23: =+Input!R36 -> 0 | U23: =+Input!S36 -> 0 | V23: =+Input!T36 -> 0
A24: =A23+1 -> 10 | B24: Prepayments | C24: =Input!J$2&", Line "&Input!A37 -> Schedule 1, Line 20 | G24: =+Input!E37 -> 1676.86724 | H24: =+Input!F37 -> 1894.618 | I24: =+Input!G37 -> 2321.488 | J24: =+Input!H37 -> 2755.055 | K24: =+Input!I37 -> 1681.657 | L24: =+Input!J37 -> 2214.375 | M24: =+Input!K37 -> 2325.276 | N24: =+Input!L37 -> 1655.152 | O24: =+Input!M37 -> 2086.795 | P24: =+Input!N37 -> 2922.205 | Q24: =+Input!O37 -> 2350.041 | R24: =+Input!P37 -> 2702.418 | S24: =+Input!Q37 -> 2817.331 | T24: =+Input!R37 -> 1902.857 | U24: =+Input!S37 -> 2132.081 | V24: =+Input!T37 -> 2132.081
A25: =A24+1 -> 11 | B25: Total Working Capital | C25: ="Lines ("&A22&" + "&A23&" + "&A24&")" -> Lines (8 + 9 + 10) | G25: =SUM(G22:G24) -> 1929.27974 | H25: =SUM(H22:H24) -> 2240.49 | I25: =SUM(I22:I24) -> 2858.798 | J25: 3484.595 | K25: 2682.326 | L25: 2846.42 | M25: 3554.201 | N25: 3100.784 | O25: 3102.67 | P25: 4363.254 | Q25: 4016.252 | R25: =SUM(R22:R24) -> 3409.846 | S25: =SUM(S22:S24) -> 3513.59 | T25: =SUM(T22:T24) -> 2644.055 | U25: =SUM(U22:U24) -> 2764.727 | V25: =SUM(V22:V24) -> 2764.727
A27: =A25+1 -> 12 | B27: Accumulated Deferred Income Taxes | C27: =ADIT!$U$2&", Line "&ADIT!A32 -> Schedule 12, Line 11 | G27: =ADIT!G32 -> 12365.06271 | H27: =ADIT!H32 -> 14079.84688 | I27: =IF(I7<=Input!$D$4,ADIT!I32,0) -> 16267.92497 | J27: =IF(J7<=Input!$D$4,ADIT!J32,0) -> 18675.75801 | K27: =IF(K7<=Input!$D$4,ADIT!K32,0) -> 20937.63761 | L27: =IF(L7<=Input!$D$4,ADIT!L32,0) -> 23158.20927 | M27: =IF(M7<=Input!$D$4,ADIT!M32,0) -> 21240.82917 | N27: =IF(N7<=Input!$D$4,ADIT!N32,0) -> 23175.03281 | O27: =IF(O7<=Input!$D$4,ADIT!O32,0) -> 25101.43369 | P27: =IF(P7<=Input!$D$4,ADIT!P32,0) -> 27043.94037 | Q27: =IF(Q7<=Input!$D$4,ADIT!Q32,0) -> 28794.68564 | R27: =IF(R7<=Input!$D$4,ADIT!R32,0) -> 30699.45936 | S27: =IF(S7<=Input!$D$4,ADIT!S32,0) -> 32762.71373 | T27: =IF(T7<=Input!$D$4,ADIT!T32,0) -> 34814.91076 | U27: =IF(U7<=Input!$D$4,ADIT!U32,0) -> 36625.60634 | V27: =IF(V7<=Input!$D$4,ADIT!V32,0) -> 37188.47963
A29: =A27+1 -> 13 | B29: Original Cost Rate Base EOY | C29: ="Lines ("&A19&" + "&A25&" - "&A27&")" -> Lines (7 + 11 - 12) | G29: =G19+G25-G27 -> 100526.8792 | H29: =H19+H25-H27 -> 115895.9183 | I29: =I19+I25-I27 -> 137603.1713 | J29: =J19+J25-J27 -> 140706.5123 | K29: 140424.1049 | L29: =L19+L25-L27 -> 143298.8228 | M29: =M19+M25-M27 -> 129626.835 | N29: =N19+N25-N27 -> 133495.357 | O29: 133480.9 | P29: 137957.4493 | Q29: 134969.249 | R29: =R19+R25-R27 -> 137162.0304 | S29: =S19+S25-S27 -> 138680.652 | T29: =T19+T25-T27 -> 140172.3436 | U29: =U19+U25-U27 -> 138640.1766 | V29: =V19+V25-V27 -> 136464.5598
A30: =A29+1 -> 14 | B30: Average Original Cost Rate Base | C30: ="Average Line "&A29 -> Average Line 13 | H30: =+AVERAGE(G29:H29) -> 108211.3988 | I30: =IF(I7<=Input!$D$4,AVERAGE(H29:I29),0) -> 126749.5448 | J30: =IF(J7<=Input!$D$4,AVERAGE(I29:J29),0) -> 139154.8418 | K30: =IF(K7<=Input!$D$4,AVERAGE(J29:K29),0) -> 140565.3086 | L30: =IF(L7<=Input!$D$4,AVERAGE(K29:L29),0) -> 141861.4638 | M30: =IF(M7<=Input!$D$4,((L29-(Input!K77-Input!K79))+M29)/2,0) -> 127273.0098 | N30: =IF(N7<=Input!$D$4,AVERAGE(M29:N29),0) -> 131561.096 | O30: =IF(O7<=Input!$D$4,AVERAGE(N29:O29),0) -> 133488.1285 | P30: =IF(P7<=Input!$D$4,AVERAGE(O29:P29),0) -> 135719.1747 | Q30: =IF(Q7<=Input!$D$4,AVERAGE(P29:Q29),0) -> 136463.3491 | R30: =IF(R7<=Input!$D$4,AVERAGE(Q29:R29),0) -> 136065.6397 | S30: =IF(S7<=Input!$D$4,AVERAGE(R29:S29),0) -> 137921.3412 | T30: =IF(T7<=Input!$D$4,AVERAGE(S29:T29),0) -> 139426.4978 | U30: =IF(U7<=Input!$D$4,AVERAGE(T29:U29),0) -> 139406.2601 | V30: =IF(V7<=Input!$D$4,AVERAGE(U29:V29),0) -> 137552.3682
A32: =+"1/ Year 1 = "&Input!$J$2&", Ln ("&Input!A56&" + "&Input!A59&")" -> 1/ Year 1 = Schedule 1, Ln (32 + 34)
A33: =+"2/ Year 1 = "&Input!$J$2&", Ln ("&Input!A57&" + "&Input!A60&")" -> 2/ Year 1 = Schedule 1, Ln (33 + 35)
A34: 3/ 2009 Average Rate Base adjusted to reflect Bayview removal 1/1/09

Sheet AFUDC - Calculation
A1: =Company_Name -> Olympic Pipe Line Company | U1: =+'Cost of Service'!U1 -> Exhibit No. 1.4(a)
A2: =Index!$C$17 -> AFUDC - Calculation | U2: =Index!$B$17 -> Schedule 8
A3: =units -> ($000's)
A6: Line
A7: No. | B7: Description | C7: Source | H7: =+'Rate Base'!H7 -> 2004 | I7: =+'Rate Base'!I7 -> 2005 | J7: =+'Rate Base'!J7 -> 2006 | K7: =+'Rate Base'!K7 -> 2007 | L7: =+'Rate Base'!L7 -> 2008 | M7: =+'Rate Base'!M7 -> 2009 | N7: =+'Rate Base'!N7 -> 2010 | O7: =+'Rate Base'!O7 -> 2011 | P7: =+'Rate Base'!P7 -> 2012 | Q7: =+'Rate Base'!Q7 -> 2013 | R7: =+'Rate Base'!R7 -> 2014 | S7: =+'Rate Base'!S7 -> 2015 | T7: =+'Rate Base'!T7 -> 2016 | U7: =+'Rate Base'!U7 -> 2017 | V7: =+'Rate Base'!V7 -> 2018
A9: 1 | B9: Equity Ratio | C9: =Input!J$2&", Line "&Input!A46 -> Schedule 1, Line 27 | H9: =Input!F46 -> 0.5 | I9: =Input!G46 -> 0.5 | J9: =Input!H46 -> 0.5 | K9: =Input!I46 -> 0.5 | L9: =Input!J46 -> 0.5 | M9: =Input!K46 -> 0.5 | N9: =Input!L46 -> 0.5 | O9: =Input!M46 -> 0.5 | P9: =Input!N46 -> 0.5 | Q9: =Input!O46 -> 0.5 | R9: =Input!P46 -> 0.5 | S9: =Input!Q46 -> 0.5 | T9: =Input!R46 -> 0.5 | U9: =Input!S46 -> 0.5 | V9: =Input!T46 -> 0.5
A10: =+A9+1 -> 2 | B10: Debt Ratio | C10: ="1.0 - Line "&A9 -> 1.0 - Line 1 | H10: =1-H9 -> 0.5 | I10: 0.5 | J10: 0.5 | K10: 0.5 | L10: 0.5 | M10: 0.5 | N10: 0.5 | O10: 0.5 | P10: 0.5 | Q10: 0.5 | R10: =1-R9 -> 0.5 | S10: =1-S9 -> 0.5 | T10: =1-T9 -> 0.5 | U10: =1-U9 -> 0.5 | V10: =1-V9 -> 0.5
A11: =+A10+1 -> 3 | B11: Nominal Equity Rate of Return | C11: =Input!J$2&", Lines ("&Input!A48&" + "&Input!A45&")" -> Schedule 1, Lines (29 + 26) | H11: =(Input!F48+Input!E45) -> 0.1187949143 | I11: =(Input!G48+Input!F45) -> 0.1325556158 | J11: =(Input!H48+Input!G45) -> 0.1342 | K11: =(Input!I48+Input!H45) -> 0.1254 | L11: =(Input!J48+Input!I45) -> 0.1408126858 | M11: =(Input!K48+Input!J45) -> 0.1009 | N11: =(Input!L48+Input!K45) -> 0.1272 | O11: =(Input!M48+Input!L45) -> 0.115 | P11: =(Input!N48+Input!M45) -> 0.1296 | Q11: =(Input!O48+Input!N45) -> 0.1174 | R11: =(Input!P48+Input!O45) -> 0.1150173562 | S11: =(Input!Q48+Input!P45) -> 0.1076 | T11: =(Input!R48+Input!Q45) -> 0.1073 | U11: =(Input!S48+Input!R45) -> 0.1207 | V11: =(Input!T48+Input!S45) -> 0.1211
A12: =+A11+1 -> 4 | B12: Cost of Debt | C12: =Input!J$2&", Line "&Input!A47 -> Schedule 1, Line 28 | H12: =Input!F47 -> 0.078 | I12: =Input!G47 -> 0.078 | J12: =Input!H47 -> 0.078 | K12: =Input!I47 -> 0.078 | L12: =Input!J47 -> 0.078 | M12: =Input!K47 -> 0.078 | N12: =Input!L47 -> 0.078 | O12: =Input!M47 -> 0.078 | P12: =Input!N47 -> 0.078 | Q12: =Input!O47 -> 0.078 | R12: =Input!P47 -> 0.078 | S12: =Input!Q47 -> 0.078 | T12: =Input!R47 -> 0.078 | U12: =Input!S47 -> 0.078 | V12: =Input!T47 -> 0.078
A14: Construction Work in Progress ("CWIP") Balances
A16: =A12+1 -> 5 | B16: Month 1 | C16: =+Input!$J$2&", Ln "&Input!A269 -> Schedule 1, Ln 202 | H16: =+Input!F269 -> 12785.98406 | I16: =+Input!G269 -> 14889.88412 | J16: =+Input!H269 -> 2894.71755 | K16: =+Input!I269 -> 3668.39855 | L16: =+Input!J269 -> 4717.30535 | M16: =+Input!K269 -> 4517.85653 | N16: =+Input!L269 -> 3133.27509 | O16: =+Input!M269 -> 1894.40449 | P16: =+Input!N269 -> 3874.56035 | Q16: =+Input!O269 -> 3540.537 | R16: =+Input!P269 -> 6968.11757 | S16: =+Input!Q269 -> 5857.27076 | T16: =+Input!R269 -> 6987.33301 | U16: =+Input!S269 -> 3004.31844 | V16: =+Input!T269 -> 2156.710292
A17: =+A16+1 -> 6 | B17: Month 2 | C17: =+Input!$J$2&", Ln "&Input!A270 -> Schedule 1, Ln 203 | H17: =+Input!F270 -> 13328.92343 | I17: =+Input!G270 -> 15028.52453 | J17: =+Input!H270 -> 3095.86055 | K17: =+Input!I270 -> 3583.42255 | L17: =+Input!J270 -> 4276.95335 | M17: =+Input!K270 -> 4337.59835 | N17: =+Input!L270 -> 3554.59589 | O17: =+Input!M270 -> 2062.40247 | P17: =+Input!N270 -> 4560.2256 | Q17: =+Input!O270 -> 3777.75229 | R17: =+Input!P270 -> 7675.53662 | S17: =+Input!Q270 -> 5444.53666 | T17: =+Input!R270 -> 7082.76799 | U17: =+Input!S270 -> 3558.31499 | V17: =+Input!T270 -> 2180.782083
A18: =+A17+1 -> 7 | B18: Month 3 | C18: =+Input!$J$2&", Ln "&Input!A271 -> Schedule 1, Ln 204 | H18: =+Input!F271 -> 15952.06704 | I18: =+Input!G271 -> 15913.55431 | J18: =+Input!H271 -> 4192.78855 | K18: =+Input!I271 -> 4342.62755 | L18: =+Input!J271 -> 4451.25535 | M18: =+Input!K271 -> 3710.01424 | N18: =+Input!L271 -> 4051.24651 | O18: =+Input!M271 -> 2389.65467 | P18: =+Input!N271 -> 5105.86129 | Q18: =+Input!O271 -> 3640.51833 | R18: =+Input!P271 -> 8704.90043 | S18: =+Input!Q271 -> 5607.21727 | T18: =+Input!R271 -> 7107.97258 | U18: =+Input!S271 -> 4880.57765 | V18: =+Input!T271 -> 2204.853875
A19: =+A18+1 -> 8 | B19: Month 4 | C19: =+Input!$J$2&", Ln "&Input!A272 -> Schedule 1, Ln 205 | H19: =+Input!F272 -> 16103.76375 | I19: =+Input!G272 -> 15681.02543 | J19: =+Input!H272 -> 4371.57155 | K19: =+Input!I272 -> 4732.51755 | L19: =+Input!J272 -> 4773.77135 | M19: =+Input!K272 -> 3899.89097 | N19: =+Input!L272 -> 4260.68388 | O19: =+Input!M272 -> 2826.99576 | P19: =+Input!N272 -> 5615.99556 | Q19: =+Input!O272 -> 3871.05252 | R19: =+Input!P272 -> 7763.70305 | S19: =+Input!Q272 -> 5750.57966 | T19: =+Input!R272 -> 7053.5871 | U19: =+Input!S272 -> 5388.46079 | V19: =+Input!T272 -> 2228.925667
A20: =+A19+1 -> 9 | B20: Month 5 | C20: =+Input!$J$2&", Ln "&Input!A273 -> Schedule 1, Ln 206 | H20: =+Input!F273 -> 15329.82737 | I20: =+Input!G273 -> 16913.02043 | J20: =+Input!H273 -> 5629.57655 | K20: =+Input!I273 -> 5187.10055 | L20: =+Input!J273 -> 5613.32635 | M20: =+Input!K273 -> 4193.40392 | N20: =+Input!L273 -> 5500.66852 | O20: =+Input!M273 -> 3870.54438 | P20: =+Input!N273 -> 6728.8762 | Q20: =+Input!O273 -> 3861.01045 | R20: =+Input!P273 -> 9622.49839 | S20: =+Input!Q273 -> 5991.78962 | T20: =+Input!R273 -> 7324.83342 | U20: =+Input!S273 -> 5622.57007 | V20: =+Input!T273 -> 2252.997458
A21: =+A20+1 -> 10 | B21: Month 6 | C21: =+Input!$J$2&", Ln "&Input!A274 -> Schedule 1, Ln 207 | H21: =+Input!F274 -> 18545.40163 | I21: =+Input!G274 -> 19665.69235 | J21: =+Input!H274 -> 6613.67055 | K21: =+Input!I274 -> 5787.43755 | L21: =+Input!J274 -> 5653.97835 | M21: =+Input!K274 -> 5485.62544 | N21: =+Input!L274 -> 5583.68465 | O21: =+Input!M274 -> 5956.30543 | P21: =+Input!N274 -> 5689.4686 | Q21: =+Input!O274 -> 3500.18575 | R21: =+Input!P274 -> 8045.11239 | S21: =+Input!Q274 -> 7173.78598 | T21: =+Input!R274 -> 7861.79054 | U21: =+Input!S274 -> 2024.45437 | V21: =+Input!T274 -> 2277.06925
A23: =+A21+1 -> 11 | B23: Average CWIP (Jan - Jun) | C23: ="Average Lines "&A16&" through "&A21 -> Average Lines 5 through 10 | H23: =AVERAGE(H16:H21) -> 15340.99455 | I23: =AVERAGE(I16:I21) -> 16348.61686 | J23: 4466.364217 | K23: 4550.250717 | L23: 4914.431683 | M23: 4357.398242 | N23: 4347.35909 | O23: 3166.717867 | P23: 5262.497933 | Q23: 3698.50939 | R23: =AVERAGE(R16:R21) -> 8129.978075 | S23: =AVERAGE(S16:S21) -> 5970.863325 | T23: =AVERAGE(T16:T21) -> 7236.380773 | U23: =AVERAGE(U16:U21) -> 4079.782718 | V23: =AVERAGE(V16:V21) -> 2216.889771
A25: =+A23+1 -> 12 | B25: Equity AFUDC Additions (Jan - Jun) | C25: ="Lines ((("&A9&" * "&A$23&") + "&A42&" ) * "&A$11&") / 2.0" -> Lines (((1 * 11) + 23 ) * 3) / 2.0 | H25: =(H9*H23+H42)*H11/2*Input!D9 -> 455.6080332 | I25: =(I9*I23+I42)*I11/2 -> 541.7752441 | J25: 149.8465195 | K25: 142.65036 | L25: 173.0035812 | M25: 109.9153706 | N25: 138.2460191 | O25: 91.04313867 | P25: 170.504933 | Q25: 108.5512506 | R25: =(R9*R23+R42)*R11/2 -> 233.772146 | S25: =(S9*S23+S42)*S11/2 -> 160.6162234 | T25: =(T9*T23+T42)*T11/2 -> 194.1159142 | U25: =(U9*U23+U42)*U11/2 -> 123.1074435 | V25: =(V9*V23+V42)*V11/2 -> 67.11633781
A26: =+A25+1 -> 13 | B26: Debt AFUDC Additions (Jan - Jun) | C26: ="Lines ((("&A10&" * "&A$23&") + "&A47&" ) * "&A$12&") / 2.0" -> Lines (((2 * 11) + 27 ) * 4) / 2.0 | H26: =(H10*H23+H47)*H12/2*Input!D9 -> 299.1493937 | I26: =(I10*I23+I47)*I12/2 -> 318.7980288 | J26: 87.09410222 | K26: 88.72988897 | L26: 95.83141782 | M26: 84.96926571 | N26: 84.77350225 | O26: 61.7509984 | P26: 102.6187097 | Q26: 72.1209331 | R26: =(R10*R23+R47)*R12/2 -> 158.5345725 | S26: =(S10*S23+S47)*S12/2 -> 116.4318348 | T26: =(T10*T23+T47)*T12/2 -> 141.1094251 | U26: =(U10*U23+U47)*U12/2 -> 79.55576301 | V26: =(V10*V23+V47)*V12/2 -> 43.22935053
A28: =+A26+1 -> 14 | B28: Month 7 | C28: =+Input!$J$2&", Ln "&Input!A275 -> Schedule 1, Ln 208 | H28: =+Input!F275 -> 18571.21836 | I28: =+Input!G275 -> 20013.02159 | J28: =+Input!H275 -> 7129.92555 | K28: =+Input!I275 -> 6780.38255 | L28: =+Input!J275 -> 6458.14835 | M28: =+Input!K275 -> 4987.76749 | N28: =+Input!L275 -> 6197.34303 | O28: =+Input!M275 -> 6258.04636 | P28: =+Input!N275 -> 6865.02258 | Q28: =+Input!O275 -> 4558.25502 | R28: =+Input!P275 -> 8461.78129 | S28: =+Input!Q275 -> 6419.3803 | T28: =+Input!R275 -> 7251.5636 | U28: =+Input!S275 -> 6309.44573 | V28: =+Input!T275 -> 2301.141042
A29: =+A28+1 -> 15 | B29: Month 8 | C29: =+Input!$J$2&", Ln "&Input!A276 -> Schedule 1, Ln 209 | H29: =+Input!F276 -> 20410.59929 | I29: =+Input!G276 -> 21862.32847 | J29: =+Input!H276 -> 8057.25855 | K29: =+Input!I276 -> 6507.02155 | L29: =+Input!J276 -> 7713.60935 | M29: =+Input!K276 -> 4720.7503 | N29: =+Input!L276 -> 7008.032548 | O29: =+Input!M276 -> 6823.14721 | P29: =+Input!N276 -> 7576.46453 | Q29: =+Input!O276 -> 5174.26162 | R29: =+Input!P276 -> 9182.06893 | S29: =+Input!Q276 -> 9276.01044 | T29: =+Input!R276 -> 7251.5636 | U29: =+Input!S276 -> 6457.22209 | V29: =+Input!T276 -> 2325.212833
A30: =+A29+1 -> 16 | B30: Month 9 | C30: =+Input!$J$2&", Ln "&Input!A277 -> Schedule 1, Ln 210 | H30: =+Input!F277 -> 24412.80667 | I30: =+Input!G277 -> 24769.78529 | J30: =+Input!H277 -> 10047.49955 | K30: =+Input!I277 -> 7184.81195 | L30: =+Input!J277 -> 7552.51035 | M30: =+Input!K277 -> 6431.72228 | N30: =+Input!L277 -> 8328.680418 | O30: =+Input!M277 -> 7062.77137 | P30: =+Input!N277 -> 6433.85116 | Q30: =+Input!O277 -> 5336.06079 | R30: =+Input!P277 -> 6670.37578 | S30: =+Input!Q277 -> 10393.97532 | T30: =+Input!R277 -> 6936.62926 | U30: =+Input!S277 -> 5546.84994 | V30: =+Input!T277 -> 2349.284625
A31: =+A30+1 -> 17 | B31: Month 10 | C31: =+Input!$J$2&", Ln "&Input!A278 -> Schedule 1, Ln 211 | H31: =+Input!F278 -> 26550.47826 | I31: =+Input!G278 -> 25313.77621 | J31: =+Input!H278 -> 10230.46255 | K31: =+Input!I278 -> 7014.54795 | L31: =+Input!J278 -> 8558.87635 | M31: =+Input!K278 -> 5910.84132 | N31: =+Input!L278 -> 8238.646668 | O31: =+Input!M278 -> 7571.08456 | P31: =+Input!N278 -> 7233.38368 | Q31: =+Input!O278 -> 6591.92596 | R31: =+Input!P278 -> 7470.57806 | S31: =+Input!Q278 -> 10955.88338 | T31: =+Input!R278 -> 9067.48993 | U31: =+Input!S278 -> 5877.31774 | V31: =+Input!T278 -> 2373.356417
A32: =+A31+1 -> 18 | B32: Month 11 | C32: =+Input!$J$2&", Ln "&Input!A279 -> Schedule 1, Ln 212 | H32: =+Input!F279 -> 24551.46795 | I32: =+Input!G279 -> 26401.21274 | J32: =+Input!H279 -> 10347.84055 | K32: =+Input!I279 -> 7415.54535 | L32: =+Input!J279 -> 9875.10635 | M32: =+Input!K279 -> 5939.86279 | N32: =+Input!L279 -> 8516.30412 | O32: =+Input!M279 -> 8713.57902 | P32: =+Input!N279 -> 6209.81188 | Q32: =+Input!O279 -> 8669.39314 | R32: =+Input!P279 -> 6897.08976 | S32: =+Input!Q279 -> 12267.64807 | T32: =+Input!R279 -> 5442.16847 | U32: =+Input!S279 -> 6377.23261 | V32: =+Input!T279 -> 2397.428208
A33: =+A32+1 -> 19 | B33: Month 12 | C33: =+Input!$J$2&", Ln "&Input!A280 -> Schedule 1, Ln 213 | H33: =+Input!F280 -> 14897.85141 | I33: =+Input!G280 -> 2693.57555 | J33: =+Input!H280 -> 3653.54555 | K33: =+Input!I280 -> 3689.42935 | L33: =+Input!J280 -> 2464.75535 | M33: =+Input!K280 -> 3166.74655 | N33: =+Input!L280 -> 1529.6275 | O33: =+Input!M280 -> 3373.42379 | P33: =+Input!N280 -> 2919.49163 | Q33: =+Input!O280 -> 6273.41958 | R33: =+Input!P280 -> 5750.44083 | S33: =+Input!Q280 -> 6522.69581 | T33: =+Input!R280 -> 2731.69456 | U33: =+Input!S280 -> 2132.6385 | V33: =+Input!T280 -> 2421.5
A35: =+A33+1 -> 20 | B35: Average CWIP (Jul - Dec) | C35: ="Average Lines "&A28&" through "&A33 -> Average Lines 14 through 19 | H35: =AVERAGE(H28:H33) -> 21565.73699 | I35: =AVERAGE(I28:I33) -> 20175.61664 | J35: 8244.42205 | K35: 6431.95645 | L35: 7103.83435 | M35: 5192.948455 | N35: 6636.439047 | O35: 6633.675385 | P35: 6206.337577 | Q35: 6100.552685 | R35: =AVERAGE(R28:R33) -> 7405.389108 | S35: =AVERAGE(S28:S33) -> 9305.93222 | T35: =AVERAGE(T28:T33) -> 6446.85157 | U35: =AVERAGE(U28:U33) -> 5450.117768 | V35: =AVERAGE(V28:V33) -> 2361.320521
A37: =+A35+1 -> 21 | B37: Equity AFUDC Additions (Jul - Dec) | C37: ="Lines ((("&A9&" * "&A$35&") + "&A25&" + "&A42&" ) * "&A$11&") / 2.0" -> Lines (((1 * 20) + 12 + 23 ) * 3) / 2.0 | H37: =(((H35*H9)+H25+H42)*H11)/2*Input!D9 -> 667.5369281 | I37: =(((I35*I9)+I25+I42)*I11)/2 -> 704.5054978 | J37: 286.6550612 | K37: 210.5860123 | L37: 262.2580481 | M37: 136.5373552 | N37: 219.8312085 | O37: 195.9531478 | P37: 212.1340571 | Q37: 185.4231797 | R37: =(((R35*R9)+R25+R42)*R11)/2 -> 226.3809963 | S37: =(((S35*S9)+S25+S42)*S11)/2 -> 258.9707295 | T37: =(((T35*T9)+T25+T42)*T11)/2 -> 183.3511122 | U37: =(((U35*U9)+U25+U42)*U11)/2 -> 171.8868379 | V37: =(((V35*V9)+V25+V42)*V11)/2 -> 75.55287302
A38: =+A37+1 -> 22 | B38: Debt AFUDC Additions (Jul - Dec) | C38: ="Lines ((("&A10&" * "&A$35&") + "&A26&" + "&A47&" ) * "&A$12&") / 2.0" -> Lines (((2 * 20) + 13 + 27 ) * 4) / 2.0 | H38: =(((H35*H10)+H26+H47)*H12)/2*Input!D9 -> 432.1986977 | I38: =(((I35*I10)+I26+I47)*I12)/2 -> 405.8576476 | J38: 164.1629 | K38: 128.8836164 | L38: 142.2621951 | M38: 104.5762962 | N38: 132.716728 | O38: 131.7649589 | P38: 125.0257124 | Q38: 121.7734937 | R38: =(((R35*R10)+R26+R47)*R12)/2 -> 150.5879359 | S38: =(((S35*S10)+S26+S47)*S12)/2 -> 186.0065198 | T38: =(((T35*T10)+T26+T47)*T12)/2 -> 131.2168732 | U38: =(((U35*U10)+U26+U47)*U12)/2 -> 109.3799712 | V38: =(((V35*V10)+V26+V47)*V12)/2 -> 47.73169483
A42: =A38+1 -> 23 | B42: Equity AFUDC (BOY) | C42: ="Prior Line "&A45 -> Prior Line 26 | H42: =+G45 -> 0 | I42: 0 | J42: 0 | K42: 0 | L42: 0 | M42: 0 | N42: 0 | O42: 0 | P42: 0 | Q42: 0 | R42: =+Q45 -> 0 | S42: =+R45 -> 0 | T42: =+S45 -> 0 | U42: =+T45 -> 0 | V42: =+U45 -> 0
A43: =+A42+1 -> 24 | B43: Equity AFUDC Additions | C43: ="Lines ("&A25&" + "&A37&")" -> Lines (12 + 21) | H43: =+(H37+H25) -> 1123.144961 | I43: =+I37+I25 -> 1246.280742 | J43: 436.5015807 | K43: 353.2363722 | L43: 435.2616292 | M43: 246.4527259 | N43: 358.0772276 | O43: 286.9962865 | P43: 382.6389902 | Q43: 293.9744303 | R43: =+R37+R25 -> 460.1531423 | S43: =+S37+S25 -> 419.586953 | T43: =+T37+T25 -> 377.4670264 | U43: =+U37+U25 -> 294.9942814 | V43: =+V37+V25 -> 142.6692108
A44: =+A43+1 -> 25 | B44: Equity AFUDC Transfers to Rate Base | C44: ="Lines ("&A42&" + "&A43&"))" -> Lines (23 + 24)) | H44: =+H42+H43 -> 1123.144961 | I44: 1246.280742 | J44: 436.5015807 | K44: 353.2363722 | L44: 435.2616292 | M44: 246.4527259 | N44: 358.0772276 | O44: 286.9962865 | P44: 382.6389902 | Q44: 293.9744303 | R44: =+R42+R43 -> 460.1531423 | S44: =+S42+S43 -> 419.586953 | T44: =+T42+T43 -> 377.4670264 | U44: =+U42+U43 -> 294.9942814 | V44: =+V42+V43 -> 142.6692108
A45: =+A44+1 -> 26 | B45: Equity AFUDC (EOY) | C45: ="Lines ("&A42&" + "&A43&" - "&A44&")" -> Lines (23 + 24 - 25) | H45: =H42+H43-H44 -> 0 | I45: =I42+I43-I44 -> 0 | J45: 0 | K45: 0 | L45: 0 | M45: 0 | N45: 0 | O45: 0 | P45: 0 | Q45: 0 | R45: =R42+R43-R44 -> 0 | S45: =S42+S43-S44 -> 0 | T45: =T42+T43-T44 -> 0 | U45: =U42+U43-U44 -> 0 | V45: =V42+V43-V44 -> 0
A47: =A45+1 -> 27 | B47: Debt AFUDC (BOY) | C47: ="Prior Line "&A50 -> Prior Line 30 | H47: =+G50 -> 0 | I47: 0 | J47: 0 | K47: 0 | L47: 0 | M47: 0 | N47: 0 | O47: 0 | P47: 0 | Q47: 0 | R47: =+Q50 -> 0 | S47: =+R50 -> 0 | T47: =+S50 -> 0 | U47: =+T50 -> 0 | V47: =+U50 -> 0
A48: =+A47+1 -> 28 | B48: Debt AFUDC Additions | C48: ="Line ("&A26&" + "&A38&")" -> Line (13 + 22) | H48: =+(H26+H38) -> 731.3480913 | I48: =+I26+I38 -> 724.6556764 | J48: 251.2570022 | K48: 217.6135054 | L48: 238.0936129 | M48: 189.5455619 | N48: 217.4902303 | O48: 193.5159573 | P48: 227.6444221 | Q48: 193.8944269 | R48: =+R26+R38 -> 309.1225084 | S48: =+S26+S38 -> 302.4383547 | T48: =+T26+T38 -> 272.3262983 | U48: =+U26+U38 -> 188.9357342 | V48: =+V26+V38 -> 90.96104536
A49: =+A48+1 -> 29 | B49: Debt AFUDC Transfers to Rate Base | C49: ="Lines ("&A47&" + "&A48&")" -> Lines (27 + 28) | H49: =+H47+H48 -> 731.3480913 | I49: 724.6556764 | J49: 251.2570022 | K49: 217.6135054 | L49: 238.0936129 | M49: 189.5455619 | N49: 217.4902303 | O49: 193.5159573 | P49: 227.6444221 | Q49: 193.8944269 | R49: =+R47+R48 -> 309.1225084 | S49: =+S47+S48 -> 302.4383547 | T49: =+T47+T48 -> 272.3262983 | U49: =+U47+U48 -> 188.9357342 | V49: =+V47+V48 -> 90.96104536
A50: =+A49+1 -> 30 | B50: Debt AFUDC (EOY) | C50: ="Lines ("&A47&" + "&A48&" - "&A49&")" -> Lines (27 + 28 - 29) | H50: =H47+H48-H49 -> 0 | I50: =I47+I48-I49 -> 0 | J50: 0 | K50: 0 | L50: 0 | M50: 0 | N50: 0 | O50: 0 | P50: 0 | Q50: 0 | R50: =R47+R48-R49 -> 0 | S50: =S47+S48-S49 -> 0 | T50: =T47+T48-T49 -> 0 | U50: =U47+U48-U49 -> 0 | V50: =V47+V48-V49 -> 0

Sheet AFUDC - Amortization
A1: =Company_Name -> Olympic Pipe Line Company | V1: =+'AFUDC - Calculation'!U1 -> Exhibit No. 1.4(a)
A2: =Index!$C$18 -> AFUDC - Amortization | V2: =Index!$B$18 -> Schedule 9
A3: =units -> ($000's)
A6: Line
A7: No. | B7: Description | C7: Source | H7: =+Input!E7 -> 2003 EOY | I7: =+Input!F7 -> 2004 | J7: =+Input!G7 -> 2005 | K7: =+Input!H7 -> 2006 | L7: =+Input!I7 -> 2007 | M7: =+Input!J7 -> 2008 | N7: =+Input!K7 -> 2009 | O7: =+Input!L7 -> 2010 | P7: =+Input!M7 -> 2011 | Q7: =+Input!N7 -> 2012 | R7: =+Input!O7 -> 2013 | S7: =+Input!P7 -> 2014 | T7: =+Input!Q7 -> 2015 | U7: =+Input!R7 -> 2016 | V7: =+Input!S7 -> 2017 | W7: =+Input!T7 -> 2018
A9: 1 | B9: Equity AFUDC Transfers to Rate Base | C9: ='AFUDC - Calculation'!U2&", Line "&'AFUDC - Calculation'!A44 -> Schedule 8, Line 25 | I9: ='AFUDC - Calculation'!H44 -> 1123.144961 | J9: ='AFUDC - Calculation'!I44 -> 1246.280742 | K9: ='AFUDC - Calculation'!J44 -> 436.5015807 | L9: ='AFUDC - Calculation'!K44 -> 353.2363722 | M9: ='AFUDC - Calculation'!L44 -> 435.2616292 | N9: ='AFUDC - Calculation'!M44 -> 246.4527259 | O9: ='AFUDC - Calculation'!N44 -> 358.0772276 | P9: ='AFUDC - Calculation'!O44 -> 286.9962865 | Q9: ='AFUDC - Calculation'!P44 -> 382.6389902 | R9: ='AFUDC - Calculation'!Q44 -> 293.9744303 | S9: ='AFUDC - Calculation'!R44 -> 460.1531423 | T9: ='AFUDC - Calculation'!S44 -> 419.586953 | U9: ='AFUDC - Calculation'!T44 -> 377.4670264 | V9: ='AFUDC - Calculation'!U44 -> 294.9942814 | W9: ='AFUDC - Calculation'!V44 -> 142.6692108
A11: =+A9+1 -> 2 | B11: Accumulated Equity AFUDC | C11: ="Cumulative Line "&A9 -> Cumulative Line 1 | G11: 1/ | H11: =+Input!E56 -> 5073.090838 | I11: =H11+I9 -> 6196.2358 | J11: =I11+J9 -> 7442.516542 | K11: =IF(K7<=Input!$D$4,J11+K9,0) -> 7879.018122 | L11: =IF(L7<=Input!$D$4,K11+L9,0) -> 8232.254495 | M11: =IF(M7<=Input!$D$4,L11+M9,0) -> 8667.516124 | N11: =IF(N7<=Input!$D$4,M11+N9,0) -> 8913.96885 | O11: =IF(O7<=Input!$D$4,N11+O9,0) -> 9272.046077 | P11: =IF(P7<=Input!$D$4,O11+P9,0) -> 9559.042364 | Q11: =IF(Q7<=Input!$D$4,P11+Q9,0) -> 9941.681354 | R11: =IF(R7<=Input!$D$4,Q11+R9,0) -> 10235.65578 | S11: =IF(S7<=Input!$D$4,R11+S9,0) -> 10695.80893 | T11: =IF(T7<=Input!$D$4,S11+T9,0) -> 11115.39588 | U11: =IF(U7<=Input!$D$4,T11+U9,0) -> 11492.86291 | V11: =IF(V7<=Input!$D$4,U11+V9,0) -> 11787.85719 | W11: =IF(W7<=Input!$D$4,V11+W9,0) -> 11930.5264
A13: =A11+1 -> 3 | B13: Amortization Rate | C13: ='Amortization Rate'!U2&", Line "&'Amortization Rate'!A25 -> Schedule 10, Line 9 | I13: ='Amortization Rate'!H25 -> 0.02402801594 | J13: ='Amortization Rate'!I25 -> 0.02297630711 | K13: ='Amortization Rate'!J25 -> 0.02292940574 | L13: ='Amortization Rate'!K25 -> 0.02351193802 | M13: ='Amortization Rate'!L25 -> 0.02310147218 | N13: ='Amortization Rate'!M25 -> 0.02196140607 | O13: ='Amortization Rate'!N25 -> 0.02310031465 | P13: ='Amortization Rate'!O25 -> 0.02344993696 | Q13: ='Amortization Rate'!P25 -> 0.02319374131 | R13: ='Amortization Rate'!Q25 -> 0.02326758505 | S13: ='Amortization Rate'!R25 -> 0.02286852003 | T13: ='Amortization Rate'!S25 -> 0.02237280019 | U13: ='Amortization Rate'!T25 -> 0.02309573761 | V13: ='Amortization Rate'!U25 -> 0.02306892531 | W13: ='Amortization Rate'!V25 -> 0.0226106391
A15: =+A13+1 -> 4 | B15: Amortization of Equity AFUDC | C15: ="Lines ("&A11&" + "&A9&" / 2.0) * "&A13 -> Lines (2 + 1 / 2.0) * 3 | I15: =+((H11+I9/2)*I13) -> 135.3897801 | J15: =+((I11+J9/2)*J13) -> 156.6840812 | K15: 175.6568424 | L15: 189.4036216 | M15: 195.2047904 | N15: 193.0570654 | O15: 210.0513335 | P15: 220.7939184 | Q15: 226.1473706 | R15: 234.738954 | S15: =+((R11+S9/2)*S13) -> 239.33581 | T15: =+((S11+T9/2)*T13) -> 243.9888635 | U15: =+((T11+U9/2)*U13) -> 261.0772064 | V15: =+((U11+V9/2)*V13) -> 268.5305965 | W15: =+((V11+W9/2)*W13) -> 268.1439056
A17: =+A15+1 -> 5 | B17: Accumulated Amortization of Equity AFUDC | C17: ="Cumulative Line "&A15 -> Cumulative Line 4 | G17: 2/ | H17: =+Input!E57 -> 548.6079527 | I17: =+I15+H17 -> 683.9977327 | J17: =IF(J7<=Input!$D$4,+J15+I17,0) -> 840.681814 | K17: =IF(K7<=Input!$D$4,+K15+J17,0) -> 1016.338656 | L17: =IF(L7<=Input!$D$4,+L15+K17,0) -> 1205.742278 | M17: =IF(M7<=Input!$D$4,+M15+L17,0) -> 1400.947068 | N17: =IF(N7<=Input!$D$4,+N15+M17,0) -> 1594.004134 | O17: =IF(O7<=Input!$D$4,+O15+N17,0) -> 1804.055467 | P17: =IF(P7<=Input!$D$4,+P15+O17,0) -> 2024.849386 | Q17: =IF(Q7<=Input!$D$4,+Q15+P17,0) -> 2250.996756 | R17: =IF(R7<=Input!$D$4,+R15+Q17,0) -> 2485.73571 | S17: =IF(S7<=Input!$D$4,+S15+R17,0) -> 2725.07152 | T17: =IF(T7<=Input!$D$4,+T15+S17,0) -> 2969.060384 | U17: =IF(U7<=Input!$D$4,+U15+T17,0) -> 3230.13759 | V17: =IF(V7<=Input!$D$4,+V15+U17,0) -> 3498.668187 | W17: =IF(W7<=Input!$D$4,+W15+V17,0) -> 3766.812092
A19: =+A17+1 -> 6 | B19: Net Equity AFUDC | C19: ="Line ("&A11&" - "&A17&")" -> Line (2 - 5) | I19: =I11-I17 -> 5512.238067 | J19: =IF(J7<=Input!$D$4,J11-J17,0) -> 6601.834728 | K19: =IF(K7<=Input!$D$4,K11-K17,0) -> 6862.679466 | L19: =IF(L7<=Input!$D$4,L11-L17,0) -> 7026.512217 | M19: =IF(M7<=Input!$D$4,M11-M17,0) -> 7266.569055 | N19: =IF(N7<=Input!$D$4,N11-N17,0) -> 7319.964716 | O19: =IF(O7<=Input!$D$4,O11-O17,0) -> 7467.99061 | P19: =IF(P7<=Input!$D$4,P11-P17,0) -> 7534.192978 | Q19: =IF(Q7<=Input!$D$4,Q11-Q17,0) -> 7690.684597 | R19: =IF(R7<=Input!$D$4,R11-R17,0) -> 7749.920074 | S19: =IF(S7<=Input!$D$4,S11-S17,0) -> 7970.737406 | T19: =IF(T7<=Input!$D$4,T11-T17,0) -> 8146.335496 | U19: =IF(U7<=Input!$D$4,U11-U17,0) -> 8262.725316 | V19: =IF(V7<=Input!$D$4,V11-V17,0) -> 8289.189001 | W19: =IF(W7<=Input!$D$4,W11-W17,0) -> 8163.714306
A21: =A19+1 -> 7 | B21: Debt AFUDC Transfers to Rate Base | C21: ='AFUDC - Calculation'!$U$2&", Line "&'AFUDC - Calculation'!A49 -> Schedule 8, Line 29 | I21: ='AFUDC - Calculation'!H49 -> 731.3480913 | J21: ='AFUDC - Calculation'!I49 -> 724.6556764 | K21: ='AFUDC - Calculation'!J49 -> 251.2570022 | L21: ='AFUDC - Calculation'!K49 -> 217.6135054 | M21: ='AFUDC - Calculation'!L49 -> 238.0936129 | N21: ='AFUDC - Calculation'!M49 -> 189.5455619 | O21: ='AFUDC - Calculation'!N49 -> 217.4902303 | P21: ='AFUDC - Calculation'!O49 -> 193.5159573 | Q21: ='AFUDC - Calculation'!P49 -> 227.6444221 | R21: ='AFUDC - Calculation'!Q49 -> 193.8944269 | S21: ='AFUDC - Calculation'!R49 -> 309.1225084 | T21: ='AFUDC - Calculation'!S49 -> 302.4383547 | U21: ='AFUDC - Calculation'!T49 -> 272.3262983 | V21: ='AFUDC - Calculation'!U49 -> 188.9357342 | W21: ='AFUDC - Calculation'!V49 -> 90.96104536
A23: =+A21+1 -> 8 | B23: Accumulated Debt AFUDC | C23: ="Cumulative Line "&A21 -> Cumulative Line 7 | G23: 3/ | H23: =+Input!E59 -> 3170.420488 | I23: =+H23+I21 -> 3901.768579 | J23: =IF(J7<=Input!$D$4,+I23+J21,0) -> 4626.424256 | K23: =IF(K7<=Input!$D$4,+J23+K21,0) -> 4877.681258 | L23: =IF(L7<=Input!$D$4,+K23+L21,0) -> 5095.294763 | M23: =IF(M7<=Input!$D$4,+L23+M21,0) -> 5333.388376 | N23: =IF(N7<=Input!$D$4,+M23+N21,0) -> 5522.933938 | O23: =IF(O7<=Input!$D$4,+N23+O21,0) -> 5740.424168 | P23: =IF(P7<=Input!$D$4,+O23+P21,0) -> 5933.940126 | Q23: =IF(Q7<=Input!$D$4,+P23+Q21,0) -> 6161.584548 | R23: =IF(R7<=Input!$D$4,+Q23+R21,0) -> 6355.478975 | S23: =IF(S7<=Input!$D$4,+R23+S21,0) -> 6664.601483 | T23: =IF(T7<=Input!$D$4,+S23+T21,0) -> 6967.039838 | U23: =IF(U7<=Input!$D$4,+T23+U21,0) -> 7239.366136 | V23: =IF(V7<=Input!$D$4,+U23+V21,0) -> 7428.30187 | W23: =IF(W7<=Input!$D$4,+V23+W21,0) -> 7519.262916
A25: =A23+1 -> 9 | B25: =B13 -> Amortization Rate | C25: ='Amortization Rate'!U2&", Line "&'Amortization Rate'!A25 -> Schedule 10, Line 9 | I25: ='Amortization Rate'!H25 -> 0.02402801594 | J25: ='Amortization Rate'!I25 -> 0.02297630711 | K25: ='Amortization Rate'!J25 -> 0.02292940574 | L25: ='Amortization Rate'!K25 -> 0.02351193802 | M25: ='Amortization Rate'!L25 -> 0.02310147218 | N25: ='Amortization Rate'!M25 -> 0.02196140607 | O25: ='Amortization Rate'!N25 -> 0.02310031465 | P25: ='Amortization Rate'!O25 -> 0.02344993696 | Q25: ='Amortization Rate'!P25 -> 0.02319374131 | R25: ='Amortization Rate'!Q25 -> 0.02326758505 | S25: ='Amortization Rate'!R25 -> 0.02286852003 | T25: ='Amortization Rate'!S25 -> 0.02237280019 | U25: ='Amortization Rate'!T25 -> 0.02309573761 | V25: ='Amortization Rate'!U25 -> 0.02306892531 | W25: ='Amortization Rate'!V25 -> 0.0226106391
A27: =+A25+1 -> 10 | B27: Amortization of Debt AFUDC | C27: ="Lines ("&A23&" + "&A21&" / 2.0) * "&A25 -> Lines (8 + 7 / 2.0) * 9 | I27: =((H23+I21/2)*I25) -> 84.96533582 | J27: 97.97318885 | K27: 108.9617458 | L27: 117.241997 | M27: 120.4589667 | N27: 119.2100514 | O27: 130.0935581 | P27: 136.8815534 | Q27: 140.2702352 | R27: 145.62092 | S27: =((R23+S21/2)*S25) -> 148.8749854 | T27: =((S23+T21/2)*T25) -> 152.4889938 | U27: =((T23+U21/2)*U25) -> 164.0537124 | V27: =((U23+V21/2)*V25) -> 169.1836689 | W27: =((V23+W21/2)*W25) -> 168.9869964
A29: =+A27+1 -> 11 | B29: Accumulated Amortization of Debt AFUDC | C29: ="Cumulative Line "&A27 -> Cumulative Line 10 | G29: 4/ | H29: =+Input!E60 -> 327.7472897 | I29: =+I27+H29 -> 412.7126255 | J29: =IF(J7<=Input!$D$4,+J27+I29,0) -> 510.6858143 | K29: =IF(K7<=Input!$D$4,+K27+J29,0) -> 619.6475601 | L29: =IF(L7<=Input!$D$4,+L27+K29,0) -> 736.8895571 | M29: =IF(M7<=Input!$D$4,+M27+L29,0) -> 857.3485239 | N29: =IF(N7<=Input!$D$4,+N27+M29,0) -> 976.5585752 | O29: =IF(O7<=Input!$D$4,+O27+N29,0) -> 1106.652133 | P29: =IF(P7<=Input!$D$4,+P27+O29,0) -> 1243.533687 | Q29: =IF(Q7<=Input!$D$4,+Q27+P29,0) -> 1383.803922 | R29: =IF(R7<=Input!$D$4,+R27+Q29,0) -> 1529.424842 | S29: =IF(S7<=Input!$D$4,+S27+R29,0) -> 1678.299827 | T29: =IF(T7<=Input!$D$4,+T27+S29,0) -> 1830.788821 | U29: =IF(U7<=Input!$D$4,+U27+T29,0) -> 1994.842533 | V29: =IF(V7<=Input!$D$4,+V27+U29,0) -> 2164.026202 | W29: =IF(W7<=Input!$D$4,+W27+V29,0) -> 2333.013199
A31: =+A29+1 -> 12 | B31: Net Debt AFUDC | C31: ="Line ("&A23&" - "&A29&")" -> Line (8 - 11) | I31: =I23-I29 -> 3489.055954 | J31: =J23-J29 -> 4115.738441 | K31: 4258.033698 | L31: 4358.405206 | M31: 4476.039852 | N31: 4546.375363 | O31: 4633.772035 | P31: 4690.406439 | Q31: 4777.780626 | R31: =R23-R29 -> 4826.054133 | S31: 4986.301656 | T31: 5136.251017 | U31: 5244.523603 | V31: 5264.275668 | W31: 5186.249717
A33: =+"1/ Year 1 = "&Input!$J$2&", Ln "&Input!A56 -> 1/ Year 1 = Schedule 1, Ln 32
A34: =+"2/ Year 1 = "&Input!$J$2&", Ln "&Input!A57 -> 2/ Year 1 = Schedule 1, Ln 33
A35: =+"3/ Year 1 = "&Input!$J$2&", Ln "&Input!A59 -> 3/ Year 1 = Schedule 1, Ln 34
A36: =+"4/ Year 1 = "&Input!$J$2&", Ln "&Input!A60 -> 4/ Year 1 = Schedule 1, Ln 35

Sheet Amortization Rate
A1: =Company_Name -> Olympic Pipe Line Company | U1: =+'AFUDC - Amortization'!V1 -> Exhibit No. 1.4(a)
A2: =Index!$C$19 -> Amortization Rate | U2: =Index!$B$19 -> Schedule 10
A3: =units -> ($000's)
A6: Line
A7: No. | B7: Description | C7: Source | G7: =+Input!E7 -> 2003 EOY | H7: =+Input!F7 -> 2004 | I7: =+Input!G7 -> 2005 | J7: =+Input!H7 -> 2006 | K7: =+Input!I7 -> 2007 | L7: =+Input!J7 -> 2008 | M7: =+Input!K7 -> 2009 | N7: =+Input!L7 -> 2010 | O7: =+Input!M7 -> 2011 | P7: =+Input!N7 -> 2012 | Q7: =+Input!O7 -> 2013 | R7: =+Input!P7 -> 2014 | S7: =+Input!Q7 -> 2015 | T7: =+Input!R7 -> 2016 | U7: =+Input!S7 -> 2017 | V7: =+Input!T7 -> 2018
A9: 1 | B9: Carrier Property in Service | C9: =Input!J$2&", Line "&Input!A24 -> Schedule 1, Line 10 | G9: =Input!E24 -> 157552.9134 | H9: =Input!F24 -> 175512.4934 | I9: =Input!G24 -> 194763.1724 | J9: =Input!H24 -> 203457.8984 | K9: =Input!I24 -> 210829.9614 | L9: =Input!J24 -> 219559.6794 | M9: =Input!K24 -> 204132.7374 | N9: =Input!L24 -> 214201.5914 | O9: =Input!M24 -> 220994.5317 | P9: =Input!N24 -> 228025.2418 | Q9: =Input!O24 -> 232018.9172 | R9: =Input!P24 -> 241468.1833 | S9: =Input!Q24 -> 247454.9466 | T9: =Input!R24 -> 256730.9771 | U9: =Input!S24 -> 262675.8226 | V9: =Input!T24 -> 267229.9611
A11: =A9+1 -> 2 | B11: Land | C11: =Input!J$2&", Line "&Input!A18 -> Schedule 1, Line 6 | G11: =Input!E18 -> 577.22 | H11: =Input!F18 -> 577.22 | I11: =Input!G18 -> 592.22 | J11: =Input!H18 -> 592.22 | K11: =Input!I18 -> 592.22 | L11: =Input!J18 -> 631.958 | M11: =Input!K18 -> 545.071 | N11: =Input!L18 -> 545.071 | O11: =Input!M18 -> 545.071 | P11: =Input!N18 -> 545.071 | Q11: =Input!O18 -> 703.071 | R11: =Input!P18 -> 703.071 | S11: =Input!Q18 -> 639.561 | T11: =Input!R18 -> 1190.61447 | U11: =Input!S18 -> 1210.61447 | V11: =Input!T18 -> 1210.61447
A13: =A11+1 -> 3 | B13: Depreciable Carrier Property in Service | C13: ="Lines ("&A9&" - "&A11&")" -> Lines (1 - 2) | G13: =G9-G11 -> 156975.6934 | H13: =H9-H11 -> 174935.2734 | I13: =I9-I11 -> 194170.9524 | J13: 202865.6784 | K13: 210237.7414 | L13: 218927.7214 | M13: 203587.6664 | N13: 213656.5204 | O13: 220449.4607 | P13: 227480.1708 | Q13: 231315.8462 | R13: =R9-R11 -> 240765.1123 | S13: =S9-S11 -> 246815.3856 | T13: =T9-T11 -> 255540.3626 | U13: =U9-U11 -> 261465.2081 | V13: =V9-V11 -> 266019.3466
A15: =1+A13 -> 4 | B15: Depreciable Carrier Property in Service - Average | C15: =+"Ln ("&A13&" + Prior "&A13&") / 2.0" -> Ln (3 + Prior 3) / 2.0 | H15: =AVERAGE(G13:H13) -> 165955.4834 | I15: =AVERAGE(H13:I13) -> 184553.1129 | J15: 198518.3154 | K15: 206551.7099 | L15: 214582.7314 | M15: 211257.6939 | N15: 208622.0934 | O15: 217052.9905 | P15: 223964.8158 | Q15: 229398.0085 | R15: =AVERAGE(Q13:R13) -> 236040.4792 | S15: =AVERAGE(R13:S13) -> 243790.249 | T15: =AVERAGE(S13:T13) -> 251177.8741 | U15: =AVERAGE(T13:U13) -> 258502.7854 | V15: =AVERAGE(U13:V13) -> 263742.2774
A17: =1+A15 -> 5 | B17: =Input!B30 -> Accumulated Depreciation of Carrier Property (EOY) | C17: =Input!J$2&", Line "&Input!A30 -> Schedule 1, Line 14 | H17: =Input!F30 -> 56778.51225 | I17: =Input!G30 -> 54468.44725 | J17: =Input!H30 -> 58680.93625 | K17: =Input!I30 -> 63535.46225 | L17: =Input!J30 -> 67691.67625 | M17: =Input!K30 -> 68685.61425 | N17: =Input!L30 -> 72733.74825 | O17: =Input!M30 -> 77739.46742 | P17: =Input!N30 -> 79855.57142 | Q17: =Input!O30 -> 84847.20873 | R17: =Input!P30 -> 89973.57864 | S17: =Input!Q30 -> 92807.75736 | T17: =Input!R30 -> 97895.02666 | U17: =Input!S30 -> 103728.2313 | V17: =Input!T30 -> 109691.6127
A19: =A17+1 -> 6 | B19: Net Depreciable Carrier Property in Service | C19: ="Lines ("&A13&" - "&A17&")" -> Lines (3 - 5) | H19: =H13-H17 -> 118156.7611 | I19: =I13-I17 -> 139702.5051 | J19: 144184.7421 | K19: 146702.2791 | L19: 151236.0451 | M19: 134902.0521 | N19: 140922.7721 | O19: 142709.9933 | P19: 147624.5994 | Q19: 146468.6374 | R19: =R13-R17 -> 150791.5337 | S19: =S13-S17 -> 154007.6283 | T19: =T13-T17 -> 157645.3359 | U19: =U13-U17 -> 157736.9769 | V19: =V13-V17 -> 156327.7339
A21: =A19+1 -> 7 | B21: Carrier Depreciation Expense | C21: =Input!J$2&", Line "&Input!A31 -> Schedule 1, Line 15 | H21: =Input!F31 -> 3987.581 | I21: =Input!G31 -> 4240.349 | J21: =Input!H31 -> 4551.907 | K21: =Input!I31 -> 4856.431 | L21: =Input!J31 -> 4957.177 | M21: =Input!K31 -> 4639.516 | N21: =Input!L31 -> 4819.236 | O21: =Input!M31 -> 5089.878945 | P21: =Input!N31 -> 5194.582 | Q21: =Input!O31 -> 5337.537673 | R21: =Input!P31 -> 5397.896427 | S21: =Input!Q31 -> 5454.270529 | T21: =Input!R31 -> 5801.138274 | U21: =Input!S31 -> 5963.381449 | V21: =Input!T31 -> 5963.381449
A23: =1+A21 -> 8 | B23: Useful Life (Years) | C23: ="Avg Line "&A13&" / Line "&A21 -> Avg Line 3 / Line 7 | H23: =IF(H21=0,0,(H13+G13)/H21/2) -> 41.61808459 | I23: =IF(I21=0,0,(I13+H13)/I21/2) -> 43.52309512 | J23: 43.61212023 | K23: 42.53158541 | L23: 43.28728455 | M23: 45.53442511 | N23: 43.28945363 | O23: 42.64403788 | P23: 43.11507948 | Q23: 42.97824625 | R23: =IF(R21=0,0,(R13+Q13)/R21/2) -> 43.72823422 | S23: =IF(S21=0,0,(S13+R13)/S21/2) -> 44.69713185 | T23: =IF(T21=0,0,(T13+S13)/T21/2) -> 43.2980326 | U23: =IF(U21=0,0,(U13+T13)/U21/2) -> 43.34835656 | V23: =IF(V21=0,0,(V13+U13)/V21/2) -> 44.22696748
A25: =A23+1 -> 9 | B25: Amortization Rate | C25: ="1.0 / Line "&A23 -> 1.0 / Line 8 | H25: =IF(H23=0,0,1/H23) -> 0.02402801594 | I25: =IF(I23=0,0,1/I23) -> 0.02297630711 | J25: 0.02292940574 | K25: 0.02351193802 | L25: 0.02310147218 | M25: 0.02196140607 | N25: 0.02310031465 | O25: 0.02344993696 | P25: 0.02319374131 | Q25: 0.02326758505 | R25: 0.02286852003 | S25: 0.02237280019 | T25: 0.02309573761 | U25: 0.02306892531 | V25: 0.0226106391

Sheet Tax Depreciation
A1: =Company_Name -> Olympic Pipe Line Company | V1: =+'Amortization Rate'!U1 -> Exhibit No. 1.4(a)
A2: =Index!C20 -> Tax Depreciation | V2: =Index!B20 -> Schedule 11
A3: =units -> ($000's)
A6: Line
A7: No. | B7: Description | G7: =+Input!E7 -> 2003 EOY | H7: =+Input!F7 -> 2004 | I7: =+Input!G7 -> 2005 | J7: =+Input!H7 -> 2006 | K7: =+Input!I7 -> 2007 | L7: =+Input!J7 -> 2008 | M7: =+Input!K7 -> 2009 | N7: =+Input!L7 -> 2010 | O7: =+Input!M7 -> 2011 | P7: =+Input!N7 -> 2012 | Q7: =+Input!O7 -> 2013 | R7: =+Input!P7 -> 2014 | S7: =+Input!Q7 -> 2015 | T7: =+Input!R7 -> 2016 | U7: =+Input!S7 -> 2017 | V7: =+Input!T7 -> 2018
A9: A | B9: Year in Service | G9: 1 | H9: =1+G9 -> 2 | I9: =1+H9 -> 3 | J9: 4 | K9: 5 | L9: 6 | M9: 7 | N9: 8 | O9: 9 | P9: 10 | Q9: 11 | R9: 12 | S9: 13 | T9: 14 | U9: 15 | V9: 16
A11: B | B11: Federal Depreciation Factors (1987-present) | F11: =+Input!$T$2&", Ln"&Input!A41 -> , Ln23 | G11: =Input!E41 -> 0.05 | H11: =Input!F41 -> 0.095 | I11: =Input!G41 -> 0.0855 | J11: =Input!H41 -> 0.077 | K11: =Input!I41 -> 0.0693 | L11: =Input!J41 -> 0.0623 | M11: =Input!K41 -> 0.059 | N11: =Input!L41 -> 0.059 | O11: =Input!M41 -> 0.0591 | P11: =Input!N41 -> 0.059 | Q11: =Input!O41 -> 0.0591 | R11: =Input!P41 -> 0.059 | S11: =Input!Q41 -> 0.0591 | T11: =Input!R41 -> 0.059 | U11: =Input!S41 -> 0.0591 | V11: =Input!T41 -> 0.0295
B13: Vintage | C13: Carrier Property | D13: TEFRA | E13: Debt AFUDC | F13: Tax Depreciaiton
B14: Year | C14: Additions | D14: Adjustment | E14: Additions | F14: Base
B15: [A] | C15: [B] | D15: [C] | E15: [D] | F15: [E]
C16: =Input!J2&", Lines ("&Input!A25&" - "&Input!A19&")" -> Schedule 1, Lines (11 - 7) | D16: =TEFRA!U2&", Line "&TEFRA!A14 -> Schedule 13, Line 3 | E16: ='AFUDC - Calculation'!U2&", Line "&'AFUDC - Calculation'!A49 -> Schedule 8, Line 29 | F16: [E] = [B]-[C]+[D]
A37: =A36+1 -> 1 | B37: 2003 EOY | C37: N/A | D37: N/A | E37: N/A | F37: N/A | G37: 1/ | H37: =+Input!F72 -> 8133.918137 | I37: =+Input!G72 -> 7526.063505 | J37: =+Input!H72 -> 7020.720152 | K37: =+Input!I72 -> 6555.196964 | L37: =+Input!J72 -> 6174.263162 | M37: =+Input!K72 -> 5936.570134 | N37: =+Input!L72 -> 5783.782866 | O37: =+Input!M72 -> 5549.819042 | P37: =+Input!N72 -> 5189.078739 | Q37: =+Input!O72 -> 4299.495911 | R37: =+Input!P72 -> 3516.261185 | S37: =+Input!Q72 -> 3326.671927 | T37: =+Input!R72 -> 2991.80614 | U37: =+Input!S72 -> 1955.630376 | V37: =+Input!T72 -> 590.5627599
A38: 2 | B38: =+TRANSPOSE(H7:V7) -> 2004 | C38: =+TRANSPOSE(Input!F25:T25)-TRANSPOSE(Input!F19:T19) -> 19126.05617 | D38: =+TRANSPOSE(TEFRA!H14:V14) -> 0 | E38: =+TRANSPOSE('AFUDC - Calculation'!H49:V49) -> 731.3480913 | F38: =C38-D38+E38 -> 19857.40426 | H38: =IF(H$9<$A38,0,MIN(($F38-SUM($G38:G38)),$F38*INDEX($G$11:$V$11,1,MATCH(H$9,$A38:$A$52,0)))) -> 992.8702131 | I38: =IF(I$9<$A38,0,MIN(($F38-SUM($G38:H38)),$F38*INDEX($G$11:$V$11,1,MATCH(I$9,$A38:$A$52,0)))) -> 1886.453405 | J38: =IF(J$9<$A38,0,MIN(($F38-SUM($G38:I38)),$F38*INDEX($G$11:$V$11,1,MATCH(J$9,$A38:$A$52,0)))) -> 1697.808064 | K38: =IF(K$9<$A38,0,MIN(($F38-SUM($G38:J38)),$F38*INDEX($G$11:$V$11,1,MATCH(K$9,$A38:$A$52,0)))) -> 1529.020128 | L38: =IF(L$9<$A38,0,MIN(($F38-SUM($G38:K38)),$F38*INDEX($G$11:$V$11,1,MATCH(L$9,$A38:$A$52,0)))) -> 1376.118115 | M38: =IF(M$9<$A38,0,MIN(($F38-SUM($G38:L38)),$F38*INDEX($G$11:$V$11,1,MATCH(M$9,$A38:$A$52,0)))) -> 1237.116285 | N38: =IF(N$9<$A38,0,MIN(($F38-SUM($G38:M38)),$F38*INDEX($G$11:$V$11,1,MATCH(N$9,$A38:$A$52,0)))) -> 1171.586851 | O38: =IF(O$9<$A38,0,MIN(($F38-SUM($G38:N38)),$F38*INDEX($G$11:$V$11,1,MATCH(O$9,$A38:$A$52,0)))) -> 1171.586851 | P38: =IF(P$9<$A38,0,MIN(($F38-SUM($G38:O38)),$F38*INDEX($G$11:$V$11,1,MATCH(P$9,$A38:$A$52,0)))) -> 1173.572592 | Q38: =IF(Q$9<$A38,0,MIN(($F38-SUM($G38:P38)),$F38*INDEX($G$11:$V$11,1,MATCH(Q$9,$A38:$A$52,0)))) -> 1171.586851 | R38: =IF(R$9<$A38,0,MIN(($F38-SUM($G38:Q38)),$F38*INDEX($G$11:$V$11,1,MATCH(R$9,$A38:$A$52,0)))) -> 1173.572592 | S38: =IF(S$9<$A38,0,MIN(($F38-SUM($G38:R38)),$F38*INDEX($G$11:$V$11,1,MATCH(S$9,$A38:$A$52,0)))) -> 1171.586851 | T38: =IF(T$9<$A38,0,MIN(($F38-SUM($G38:S38)),$F38*INDEX($G$11:$V$11,1,MATCH(T$9,$A38:$A$52,0)))) -> 1173.572592 | U38: =IF(U$9<$A38,0,MIN(($F38-SUM($G38:T38)),$F38*INDEX($G$11:$V$11,1,MATCH(U$9,$A38:$A$52,0)))) -> 1171.586851 | V38: =IF(V$9<$A38,0,MIN(($F38-SUM($G38:U38)),$F38*INDEX($G$11:$V$11,1,MATCH(V$9,$A38:$A$52,0)))) -> 1173.572592
A39: 3 | B39: 2005 | C39: 25786.093 | D39: 0 | E39: 724.6556764 | F39: 26510.74868 | H39: =IF(H$9<$A39,0,MIN(($F39-SUM($G39:G39)),$F39*INDEX($G$11:$V$11,1,MATCH(H$9,$A39:$A$52,0)))) -> 0 | I39: =IF(I$9<$A39,0,MIN(($F39-SUM($G39:H39)),$F39*INDEX($G$11:$V$11,1,MATCH(I$9,$A39:$A$52,0)))) -> 1325.537434 | J39: =IF(J$9<$A39,0,MIN(($F39-SUM($G39:I39)),$F39*INDEX($G$11:$V$11,1,MATCH(J$9,$A39:$A$52,0)))) -> 2518.521124 | K39: =IF(K$9<$A39,0,MIN(($F39-SUM($G39:J39)),$F39*INDEX($G$11:$V$11,1,MATCH(K$9,$A39:$A$52,0)))) -> 2266.669012 | L39: =IF(L$9<$A39,0,MIN(($F39-SUM($G39:K39)),$F39*INDEX($G$11:$V$11,1,MATCH(L$9,$A39:$A$52,0)))) -> 2041.327648 | M39: =IF(M$9<$A39,0,MIN(($F39-SUM($G39:L39)),$F39*INDEX($G$11:$V$11,1,MATCH(M$9,$A39:$A$52,0)))) -> 1837.194883 | N39: =IF(N$9<$A39,0,MIN(($F39-SUM($G39:M39)),$F39*INDEX($G$11:$V$11,1,MATCH(N$9,$A39:$A$52,0)))) -> 1651.619643 | O39: =IF(O$9<$A39,0,MIN(($F39-SUM($G39:N39)),$F39*INDEX($G$11:$V$11,1,MATCH(O$9,$A39:$A$52,0)))) -> 1564.134172 | P39: =IF(P$9<$A39,0,MIN(($F39-SUM($G39:O39)),$F39*INDEX($G$11:$V$11,1,MATCH(P$9,$A39:$A$52,0)))) -> 1564.134172 | Q39: =IF(Q$9<$A39,0,MIN(($F39-SUM($G39:P39)),$F39*INDEX($G$11:$V$11,1,MATCH(Q$9,$A39:$A$52,0)))) -> 1566.785247 | R39: =IF(R$9<$A39,0,MIN(($F39-SUM($G39:Q39)),$F39*INDEX($G$11:$V$11,1,MATCH(R$9,$A39:$A$52,0)))) -> 1564.134172 | S39: =IF(S$9<$A39,0,MIN(($F39-SUM($G39:R39)),$F39*INDEX($G$11:$V$11,1,MATCH(S$9,$A39:$A$52,0)))) -> 1566.785247 | T39: =IF(T$9<$A39,0,MIN(($F39-SUM($G39:S39)),$F39*INDEX($G$11:$V$11,1,MATCH(T$9,$A39:$A$52,0)))) -> 1564.134172 | U39: =IF(U$9<$A39,0,MIN(($F39-SUM($G39:T39)),$F39*INDEX($G$11:$V$11,1,MATCH(U$9,$A39:$A$52,0)))) -> 1566.785247 | V39: =IF(V$9<$A39,0,MIN(($F39-SUM($G39:U39)),$F39*INDEX($G$11:$V$11,1,MATCH(V$9,$A39:$A$52,0)))) -> 1564.134172
A40: 4 | B40: 2006 | C40: 8771.155 | D40: 0 | E40: 251.2570022 | F40: 9022.412002 | H40: =IF(H$9<$A40,0,MIN(($F40-SUM($G40:G40)),$F40*INDEX($G$11:$V$11,1,MATCH(H$9,$A40:$A$52,0)))) -> 0 | I40: =IF(I$9<$A40,0,MIN(($F40-SUM($G40:H40)),$F40*INDEX($G$11:$V$11,1,MATCH(I$9,$A40:$A$52,0)))) -> 0 | J40: =IF(J$9<$A40,0,MIN(($F40-SUM($G40:I40)),$F40*INDEX($G$11:$V$11,1,MATCH(J$9,$A40:$A$52,0)))) -> 451.1206001 | K40: =IF(K$9<$A40,0,MIN(($F40-SUM($G40:J40)),$F40*INDEX($G$11:$V$11,1,MATCH(K$9,$A40:$A$52,0)))) -> 857.1291402 | L40: =IF(L$9<$A40,0,MIN(($F40-SUM($G40:K40)),$F40*INDEX($G$11:$V$11,1,MATCH(L$9,$A40:$A$52,0)))) -> 771.4162262 | M40: =IF(M$9<$A40,0,MIN(($F40-SUM($G40:L40)),$F40*INDEX($G$11:$V$11,1,MATCH(M$9,$A40:$A$52,0)))) -> 694.7257242 | N40: =IF(N$9<$A40,0,MIN(($F40-SUM($G40:M40)),$F40*INDEX($G$11:$V$11,1,MATCH(N$9,$A40:$A$52,0)))) -> 625.2531518 | O40: =IF(O$9<$A40,0,MIN(($F40-SUM($G40:N40)),$F40*INDEX($G$11:$V$11,1,MATCH(O$9,$A40:$A$52,0)))) -> 562.0962677 | P40: =IF(P$9<$A40,0,MIN(($F40-SUM($G40:O40)),$F40*INDEX($G$11:$V$11,1,MATCH(P$9,$A40:$A$52,0)))) -> 532.3223081 | Q40: =IF(Q$9<$A40,0,MIN(($F40-SUM($G40:P40)),$F40*INDEX($G$11:$V$11,1,MATCH(Q$9,$A40:$A$52,0)))) -> 532.3223081 | R40: =IF(R$9<$A40,0,MIN(($F40-SUM($G40:Q40)),$F40*INDEX($G$11:$V$11,1,MATCH(R$9,$A40:$A$52,0)))) -> 533.2245493 | S40: =IF(S$9<$A40,0,MIN(($F40-SUM($G40:R40)),$F40*INDEX($G$11:$V$11,1,MATCH(S$9,$A40:$A$52,0)))) -> 532.3223081 | T40: =IF(T$9<$A40,0,MIN(($F40-SUM($G40:S40)),$F40*INDEX($G$11:$V$11,1,MATCH(T$9,$A40:$A$52,0)))) -> 533.2245493 | U40: =IF(U$9<$A40,0,MIN(($F40-SUM($G40:T40)),$F40*INDEX($G$11:$V$11,1,MATCH(U$9,$A40:$A$52,0)))) -> 532.3223081 | V40: =IF(V$9<$A40,0,MIN(($F40-SUM($G40:U40)),$F40*INDEX($G$11:$V$11,1,MATCH(V$9,$A40:$A$52,0)))) -> 533.2245493
A41: 5 | B41: 2007 | C41: 7376.456 | D41: 0 | E41: 217.6135054 | F41: 7594.069505 | H41: =IF(H$9<$A41,0,MIN(($F41-SUM($G41:G41)),$F41*INDEX($G$11:$V$11,1,MATCH(H$9,$A41:$A$52,0)))) -> 0 | I41: =IF(I$9<$A41,0,MIN(($F41-SUM($G41:H41)),$F41*INDEX($G$11:$V$11,1,MATCH(I$9,$A41:$A$52,0)))) -> 0 | J41: =IF(J$9<$A41,0,MIN(($F41-SUM($G41:I41)),$F41*INDEX($G$11:$V$11,1,MATCH(J$9,$A41:$A$52,0)))) -> 0 | K41: =IF(K$9<$A41,0,MIN(($F41-SUM($G41:J41)),$F41*INDEX($G$11:$V$11,1,MATCH(K$9,$A41:$A$52,0)))) -> 379.7034753 | L41: =IF(L$9<$A41,0,MIN(($F41-SUM($G41:K41)),$F41*INDEX($G$11:$V$11,1,MATCH(L$9,$A41:$A$52,0)))) -> 721.436603 | M41: =IF(M$9<$A41,0,MIN(($F41-SUM($G41:L41)),$F41*INDEX($G$11:$V$11,1,MATCH(M$9,$A41:$A$52,0)))) -> 649.2929427 | N41: =IF(N$9<$A41,0,MIN(($F41-SUM($G41:M41)),$F41*INDEX($G$11:$V$11,1,MATCH(N$9,$A41:$A$52,0)))) -> 584.7433519 | O41: =IF(O$9<$A41,0,MIN(($F41-SUM($G41:N41)),$F41*INDEX($G$11:$V$11,1,MATCH(O$9,$A41:$A$52,0)))) -> 526.2690167 | P41: =IF(P$9<$A41,0,MIN(($F41-SUM($G41:O41)),$F41*INDEX($G$11:$V$11,1,MATCH(P$9,$A41:$A$52,0)))) -> 473.1105302 | Q41: =IF(Q$9<$A41,0,MIN(($F41-SUM($G41:P41)),$F41*INDEX($G$11:$V$11,1,MATCH(Q$9,$A41:$A$52,0)))) -> 448.0501008 | R41: =IF(R$9<$A41,0,MIN(($F41-SUM($G41:Q41)),$F41*INDEX($G$11:$V$11,1,MATCH(R$9,$A41:$A$52,0)))) -> 448.0501008 | S41: =IF(S$9<$A41,0,MIN(($F41-SUM($G41:R41)),$F41*INDEX($G$11:$V$11,1,MATCH(S$9,$A41:$A$52,0)))) -> 448.8095078 | T41: =IF(T$9<$A41,0,MIN(($F41-SUM($G41:S41)),$F41*INDEX($G$11:$V$11,1,MATCH(T$9,$A41:$A$52,0)))) -> 448.0501008 | U41: =IF(U$9<$A41,0,MIN(($F41-SUM($G41:T41)),$F41*INDEX($G$11:$V$11,1,MATCH(U$9,$A41:$A$52,0)))) -> 448.8095078 | V41: =IF(V$9<$A41,0,MIN(($F41-SUM($G41:U41)),$F41*INDEX($G$11:$V$11,1,MATCH(V$9,$A41:$A$52,0)))) -> 448.0501008
A42: 6 | B42: 2008 | C42: 9490.943 | D42: 0 | E42: 238.0936129 | F42: 9729.036613 | H42: =IF(H$9<$A42,0,MIN(($F42-SUM($G42:G42)),$F42*INDEX($G$11:$V$11,1,MATCH(H$9,$A42:$A$52,0)))) -> 0 | I42: =IF(I$9<$A42,0,MIN(($F42-SUM($G42:H42)),$F42*INDEX($G$11:$V$11,1,MATCH(I$9,$A42:$A$52,0)))) -> 0 | J42: =IF(J$9<$A42,0,MIN(($F42-SUM($G42:I42)),$F42*INDEX($G$11:$V$11,1,MATCH(J$9,$A42:$A$52,0)))) -> 0 | K42: =IF(K$9<$A42,0,MIN(($F42-SUM($G42:J42)),$F42*INDEX($G$11:$V$11,1,MATCH(K$9,$A42:$A$52,0)))) -> 0 | L42: =IF(L$9<$A42,0,MIN(($F42-SUM($G42:K42)),$F42*INDEX($G$11:$V$11,1,MATCH(L$9,$A42:$A$52,0)))) -> 486.4518306 | M42: =IF(M$9<$A42,0,MIN(($F42-SUM($G42:L42)),$F42*INDEX($G$11:$V$11,1,MATCH(M$9,$A42:$A$52,0)))) -> 924.2584782 | N42: =IF(N$9<$A42,0,MIN(($F42-SUM($G42:M42)),$F42*INDEX($G$11:$V$11,1,MATCH(N$9,$A42:$A$52,0)))) -> 831.8326304 | O42: =IF(O$9<$A42,0,MIN(($F42-SUM($G42:N42)),$F42*INDEX($G$11:$V$11,1,MATCH(O$9,$A42:$A$52,0)))) -> 749.1358192 | P42: =IF(P$9<$A42,0,MIN(($F42-SUM($G42:O42)),$F42*INDEX($G$11:$V$11,1,MATCH(P$9,$A42:$A$52,0)))) -> 674.2222373 | Q42: =IF(Q$9<$A42,0,MIN(($F42-SUM($G42:P42)),$F42*INDEX($G$11:$V$11,1,MATCH(Q$9,$A42:$A$52,0)))) -> 606.118981 | R42: =IF(R$9<$A42,0,MIN(($F42-SUM($G42:Q42)),$F42*INDEX($G$11:$V$11,1,MATCH(R$9,$A42:$A$52,0)))) -> 574.0131602 | S42: =IF(S$9<$A42,0,MIN(($F42-SUM($G42:R42)),$F42*INDEX($G$11:$V$11,1,MATCH(S$9,$A42:$A$52,0)))) -> 574.0131602 | T42: =IF(T$9<$A42,0,MIN(($F42-SUM($G42:S42)),$F42*INDEX($G$11:$V$11,1,MATCH(T$9,$A42:$A$52,0)))) -> 574.9860638 | U42: =IF(U$9<$A42,0,MIN(($F42-SUM($G42:T42)),$F42*INDEX($G$11:$V$11,1,MATCH(U$9,$A42:$A$52,0)))) -> 574.0131602 | V42: =IF(V$9<$A42,0,MIN(($F42-SUM($G42:U42)),$F42*INDEX($G$11:$V$11,1,MATCH(V$9,$A42:$A$52,0)))) -> 574.9860638
A43: 7 | B43: 2009 | C43: 7457.40808 | D43: 0 | E43: 189.5455619 | F43: 7646.953642 | H43: =IF(H$9<$A43,0,MIN(($F43-SUM($G43:G43)),$F43*INDEX($G$11:$V$11,1,MATCH(H$9,$A43:$A$52,0)))) -> 0 | I43: =IF(I$9<$A43,0,MIN(($F43-SUM($G43:H43)),$F43*INDEX($G$11:$V$11,1,MATCH(I$9,$A43:$A$52,0)))) -> 0 | J43: =IF(J$9<$A43,0,MIN(($F43-SUM($G43:I43)),$F43*INDEX($G$11:$V$11,1,MATCH(J$9,$A43:$A$52,0)))) -> 0 | K43: =IF(K$9<$A43,0,MIN(($F43-SUM($G43:J43)),$F43*INDEX($G$11:$V$11,1,MATCH(K$9,$A43:$A$52,0)))) -> 0 | L43: =IF(L$9<$A43,0,MIN(($F43-SUM($G43:K43)),$F43*INDEX($G$11:$V$11,1,MATCH(L$9,$A43:$A$52,0)))) -> 0 | M43: =IF(M$9<$A43,0,MIN(($F43-SUM($G43:L43)),$F43*INDEX($G$11:$V$11,1,MATCH(M$9,$A43:$A$52,0)))) -> 382.3476821 | N43: =IF(N$9<$A43,0,MIN(($F43-SUM($G43:M43)),$F43*INDEX($G$11:$V$11,1,MATCH(N$9,$A43:$A$52,0)))) -> 726.460596 | O43: =IF(O$9<$A43,0,MIN(($F43-SUM($G43:N43)),$F43*INDEX($G$11:$V$11,1,MATCH(O$9,$A43:$A$52,0)))) -> 653.8145364 | P43: =IF(P$9<$A43,0,MIN(($F43-SUM($G43:O43)),$F43*INDEX($G$11:$V$11,1,MATCH(P$9,$A43:$A$52,0)))) -> 588.8154304 | Q43: =IF(Q$9<$A43,0,MIN(($F43-SUM($G43:P43)),$F43*INDEX($G$11:$V$11,1,MATCH(Q$9,$A43:$A$52,0)))) -> 529.9338874 | R43: =IF(R$9<$A43,0,MIN(($F43-SUM($G43:Q43)),$F43*INDEX($G$11:$V$11,1,MATCH(R$9,$A43:$A$52,0)))) -> 476.4052119 | S43: =IF(S$9<$A43,0,MIN(($F43-SUM($G43:R43)),$F43*INDEX($G$11:$V$11,1,MATCH(S$9,$A43:$A$52,0)))) -> 451.1702649 | T43: =IF(T$9<$A43,0,MIN(($F43-SUM($G43:S43)),$F43*INDEX($G$11:$V$11,1,MATCH(T$9,$A43:$A$52,0)))) -> 451.1702649 | U43: =IF(U$9<$A43,0,MIN(($F43-SUM($G43:T43)),$F43*INDEX($G$11:$V$11,1,MATCH(U$9,$A43:$A$52,0)))) -> 451.9349602 | V43: =IF(V$9<$A43,0,MIN(($F43-SUM($G43:U43)),$F43*INDEX($G$11:$V$11,1,MATCH(V$9,$A43:$A$52,0)))) -> 451.1702649
A44: 8 | B44: 2010 | C44: 10879.487 | D44: 0 | E44: 217.4902303 | F44: 11096.97723 | H44: =IF(H$9<$A44,0,MIN(($F44-SUM($G44:G44)),$F44*INDEX($G$11:$V$11,1,MATCH(H$9,$A44:$A$52,0)))) -> 0 | I44: =IF(I$9<$A44,0,MIN(($F44-SUM($G44:H44)),$F44*INDEX($G$11:$V$11,1,MATCH(I$9,$A44:$A$52,0)))) -> 0 | J44: =IF(J$9<$A44,0,MIN(($F44-SUM($G44:I44)),$F44*INDEX($G$11:$V$11,1,MATCH(J$9,$A44:$A$52,0)))) -> 0 | K44: =IF(K$9<$A44,0,MIN(($F44-SUM($G44:J44)),$F44*INDEX($G$11:$V$11,1,MATCH(K$9,$A44:$A$52,0)))) -> 0 | L44: =IF(L$9<$A44,0,MIN(($F44-SUM($G44:K44)),$F44*INDEX($G$11:$V$11,1,MATCH(L$9,$A44:$A$52,0)))) -> 0 | M44: =IF(M$9<$A44,0,MIN(($F44-SUM($G44:L44)),$F44*INDEX($G$11:$V$11,1,MATCH(M$9,$A44:$A$52,0)))) -> 0 | N44: =IF(N$9<$A44,0,MIN(($F44-SUM($G44:M44)),$F44*INDEX($G$11:$V$11,1,MATCH(N$9,$A44:$A$52,0)))) -> 554.8488615 | O44: =IF(O$9<$A44,0,MIN(($F44-SUM($G44:N44)),$F44*INDEX($G$11:$V$11,1,MATCH(O$9,$A44:$A$52,0)))) -> 1054.212837 | P44: =IF(P$9<$A44,0,MIN(($F44-SUM($G44:O44)),$F44*INDEX($G$11:$V$11,1,MATCH(P$9,$A44:$A$52,0)))) -> 948.7915532 | Q44: =IF(Q$9<$A44,0,MIN(($F44-SUM($G44:P44)),$F44*INDEX($G$11:$V$11,1,MATCH(Q$9,$A44:$A$52,0)))) -> 854.4672467 | R44: =IF(R$9<$A44,0,MIN(($F44-SUM($G44:Q44)),$F44*INDEX($G$11:$V$11,1,MATCH(R$9,$A44:$A$52,0)))) -> 769.0205221 | S44: =IF(S$9<$A44,0,MIN(($F44-SUM($G44:R44)),$F44*INDEX($G$11:$V$11,1,MATCH(S$9,$A44:$A$52,0)))) -> 691.3416814 | T44: =IF(T$9<$A44,0,MIN(($F44-SUM($G44:S44)),$F44*INDEX($G$11:$V$11,1,MATCH(T$9,$A44:$A$52,0)))) -> 654.7216566 | U44: =IF(U$9<$A44,0,MIN(($F44-SUM($G44:T44)),$F44*INDEX($G$11:$V$11,1,MATCH(U$9,$A44:$A$52,0)))) -> 654.7216566 | V44: =IF(V$9<$A44,0,MIN(($F44-SUM($G44:U44)),$F44*INDEX($G$11:$V$11,1,MATCH(V$9,$A44:$A$52,0)))) -> 655.8313543
A45: 9 | B45: 2011 | C45: 6896.7462 | D45: 0 | E45: 193.5159573 | F45: 7090.262157 | H45: =IF(H$9<$A45,0,MIN(($F45-SUM($G45:G45)),$F45*INDEX($G$11:$V$11,1,MATCH(H$9,$A45:$A$52,0)))) -> 0 | I45: =IF(I$9<$A45,0,MIN(($F45-SUM($G45:H45)),$F45*INDEX($G$11:$V$11,1,MATCH(I$9,$A45:$A$52,0)))) -> 0 | J45: =IF(J$9<$A45,0,MIN(($F45-SUM($G45:I45)),$F45*INDEX($G$11:$V$11,1,MATCH(J$9,$A45:$A$52,0)))) -> 0 | K45: =IF(K$9<$A45,0,MIN(($F45-SUM($G45:J45)),$F45*INDEX($G$11:$V$11,1,MATCH(K$9,$A45:$A$52,0)))) -> 0 | L45: =IF(L$9<$A45,0,MIN(($F45-SUM($G45:K45)),$F45*INDEX($G$11:$V$11,1,MATCH(L$9,$A45:$A$52,0)))) -> 0 | M45: =IF(M$9<$A45,0,MIN(($F45-SUM($G45:L45)),$F45*INDEX($G$11:$V$11,1,MATCH(M$9,$A45:$A$52,0)))) -> 0 | N45: =IF(N$9<$A45,0,MIN(($F45-SUM($G45:M45)),$F45*INDEX($G$11:$V$11,1,MATCH(N$9,$A45:$A$52,0)))) -> 0 | O45: =IF(O$9<$A45,0,MIN(($F45-SUM($G45:N45)),$F45*INDEX($G$11:$V$11,1,MATCH(O$9,$A45:$A$52,0)))) -> 354.5131079 | P45: =IF(P$9<$A45,0,MIN(($F45-SUM($G45:O45)),$F45*INDEX($G$11:$V$11,1,MATCH(P$9,$A45:$A$52,0)))) -> 673.5749049 | Q45: =IF(Q$9<$A45,0,MIN(($F45-SUM($G45:P45)),$F45*INDEX($G$11:$V$11,1,MATCH(Q$9,$A45:$A$52,0)))) -> 606.2174145 | R45: =IF(R$9<$A45,0,MIN(($F45-SUM($G45:Q45)),$F45*INDEX($G$11:$V$11,1,MATCH(R$9,$A45:$A$52,0)))) -> 545.9501861 | S45: =IF(S$9<$A45,0,MIN(($F45-SUM($G45:R45)),$F45*INDEX($G$11:$V$11,1,MATCH(S$9,$A45:$A$52,0)))) -> 491.3551675 | T45: =IF(T$9<$A45,0,MIN(($F45-SUM($G45:S45)),$F45*INDEX($G$11:$V$11,1,MATCH(T$9,$A45:$A$52,0)))) -> 441.7233324 | U45: =IF(U$9<$A45,0,MIN(($F45-SUM($G45:T45)),$F45*INDEX($G$11:$V$11,1,MATCH(U$9,$A45:$A$52,0)))) -> 418.3254673 | V45: =IF(V$9<$A45,0,MIN(($F45-SUM($G45:U45)),$F45*INDEX($G$11:$V$11,1,MATCH(V$9,$A45:$A$52,0)))) -> 418.3254673
A46: 10 | B46: 2012 | C46: 10109.1881 | D46: 0 | E46: 227.6444221 | F46: 10336.83252 | H46: =IF(H$9<$A46,0,MIN(($F46-SUM($G46:G46)),$F46*INDEX($G$11:$V$11,1,MATCH(H$9,$A46:$A$52,0)))) -> 0 | I46: =IF(I$9<$A46,0,MIN(($F46-SUM($G46:H46)),$F46*INDEX($G$11:$V$11,1,MATCH(I$9,$A46:$A$52,0)))) -> 0 | J46: =IF(J$9<$A46,0,MIN(($F46-SUM($G46:I46)),$F46*INDEX($G$11:$V$11,1,MATCH(J$9,$A46:$A$52,0)))) -> 0 | K46: =IF(K$9<$A46,0,MIN(($F46-SUM($G46:J46)),$F46*INDEX($G$11:$V$11,1,MATCH(K$9,$A46:$A$52,0)))) -> 0 | L46: =IF(L$9<$A46,0,MIN(($F46-SUM($G46:K46)),$F46*INDEX($G$11:$V$11,1,MATCH(L$9,$A46:$A$52,0)))) -> 0 | M46: =IF(M$9<$A46,0,MIN(($F46-SUM($G46:L46)),$F46*INDEX($G$11:$V$11,1,MATCH(M$9,$A46:$A$52,0)))) -> 0 | N46: =IF(N$9<$A46,0,MIN(($F46-SUM($G46:M46)),$F46*INDEX($G$11:$V$11,1,MATCH(N$9,$A46:$A$52,0)))) -> 0 | O46: =IF(O$9<$A46,0,MIN(($F46-SUM($G46:N46)),$F46*INDEX($G$11:$V$11,1,MATCH(O$9,$A46:$A$52,0)))) -> 0 | P46: =IF(P$9<$A46,0,MIN(($F46-SUM($G46:O46)),$F46*INDEX($G$11:$V$11,1,MATCH(P$9,$A46:$A$52,0)))) -> 516.8416261 | Q46: =IF(Q$9<$A46,0,MIN(($F46-SUM($G46:P46)),$F46*INDEX($G$11:$V$11,1,MATCH(Q$9,$A46:$A$52,0)))) -> 981.9990896 | R46: =IF(R$9<$A46,0,MIN(($F46-SUM($G46:Q46)),$F46*INDEX($G$11:$V$11,1,MATCH(R$9,$A46:$A$52,0)))) -> 883.7991806 | S46: =IF(S$9<$A46,0,MIN(($F46-SUM($G46:R46)),$F46*INDEX($G$11:$V$11,1,MATCH(S$9,$A46:$A$52,0)))) -> 795.9361042 | T46: =IF(T$9<$A46,0,MIN(($F46-SUM($G46:S46)),$F46*INDEX($G$11:$V$11,1,MATCH(T$9,$A46:$A$52,0)))) -> 716.3424938 | U46: =IF(U$9<$A46,0,MIN(($F46-SUM($G46:T46)),$F46*INDEX($G$11:$V$11,1,MATCH(U$9,$A46:$A$52,0)))) -> 643.9846661 | V46: =IF(V$9<$A46,0,MIN(($F46-SUM($G46:U46)),$F46*INDEX($G$11:$V$11,1,MATCH(V$9,$A46:$A$52,0)))) -> 609.8731188
A47: 11 | B47: 2013 | C47: 4181.57569 | D47: 0 | E47: 193.8944269 | F47: 4375.470117 | H47: =IF(H$9<$A47,0,MIN(($F47-SUM($G47:G47)),$F47*INDEX($G$11:$V$11,1,MATCH(H$9,$A47:$A$52,0)))) -> 0 | I47: =IF(I$9<$A47,0,MIN(($F47-SUM($G47:H47)),$F47*INDEX($G$11:$V$11,1,MATCH(I$9,$A47:$A$52,0)))) -> 0 | J47: =IF(J$9<$A47,0,MIN(($F47-SUM($G47:I47)),$F47*INDEX($G$11:$V$11,1,MATCH(J$9,$A47:$A$52,0)))) -> 0 | K47: =IF(K$9<$A47,0,MIN(($F47-SUM($G47:J47)),$F47*INDEX($G$11:$V$11,1,MATCH(K$9,$A47:$A$52,0)))) -> 0 | L47: =IF(L$9<$A47,0,MIN(($F47-SUM($G47:K47)),$F47*INDEX($G$11:$V$11,1,MATCH(L$9,$A47:$A$52,0)))) -> 0 | M47: =IF(M$9<$A47,0,MIN(($F47-SUM($G47:L47)),$F47*INDEX($G$11:$V$11,1,MATCH(M$9,$A47:$A$52,0)))) -> 0 | N47: =IF(N$9<$A47,0,MIN(($F47-SUM($G47:M47)),$F47*INDEX($G$11:$V$11,1,MATCH(N$9,$A47:$A$52,0)))) -> 0 | O47: =IF(O$9<$A47,0,MIN(($F47-SUM($G47:N47)),$F47*INDEX($G$11:$V$11,1,MATCH(O$9,$A47:$A$52,0)))) -> 0 | P47: =IF(P$9<$A47,0,MIN(($F47-SUM($G47:O47)),$F47*INDEX($G$11:$V$11,1,MATCH(P$9,$A47:$A$52,0)))) -> 0 | Q47: =IF(Q$9<$A47,0,MIN(($F47-SUM($G47:P47)),$F47*INDEX($G$11:$V$11,1,MATCH(Q$9,$A47:$A$52,0)))) -> 218.7735058 | R47: =IF(R$9<$A47,0,MIN(($F47-SUM($G47:Q47)),$F47*INDEX($G$11:$V$11,1,MATCH(R$9,$A47:$A$52,0)))) -> 415.6696611 | S47: =IF(S$9<$A47,0,MIN(($F47-SUM($G47:R47)),$F47*INDEX($G$11:$V$11,1,MATCH(S$9,$A47:$A$52,0)))) -> 374.102695 | T47: =IF(T$9<$A47,0,MIN(($F47-SUM($G47:S47)),$F47*INDEX($G$11:$V$11,1,MATCH(T$9,$A47:$A$52,0)))) -> 336.911199 | U47: =IF(U$9<$A47,0,MIN(($F47-SUM($G47:T47)),$F47*INDEX($G$11:$V$11,1,MATCH(U$9,$A47:$A$52,0)))) -> 303.2200791 | V47: =IF(V$9<$A47,0,MIN(($F47-SUM($G47:U47)),$F47*INDEX($G$11:$V$11,1,MATCH(V$9,$A47:$A$52,0)))) -> 272.5917883
A48: 12 | B48: 2014 | C48: 9720.792672 | D48: 0 | E48: 309.1225084 | F48: 10029.91518 | H48: =IF(H$9<$A48,0,MIN(($F48-SUM($G48:G48)),$F48*INDEX($G$11:$V$11,1,MATCH(H$9,$A48:$A$52,0)))) -> 0 | I48: =IF(I$9<$A48,0,MIN(($F48-SUM($G48:H48)),$F48*INDEX($G$11:$V$11,1,MATCH(I$9,$A48:$A$52,0)))) -> 0 | J48: =IF(J$9<$A48,0,MIN(($F48-SUM($G48:I48)),$F48*INDEX($G$11:$V$11,1,MATCH(J$9,$A48:$A$52,0)))) -> 0 | K48: =IF(K$9<$A48,0,MIN(($F48-SUM($G48:J48)),$F48*INDEX($G$11:$V$11,1,MATCH(K$9,$A48:$A$52,0)))) -> 0 | L48: =IF(L$9<$A48,0,MIN(($F48-SUM($G48:K48)),$F48*INDEX($G$11:$V$11,1,MATCH(L$9,$A48:$A$52,0)))) -> 0 | M48: =IF(M$9<$A48,0,MIN(($F48-SUM($G48:L48)),$F48*INDEX($G$11:$V$11,1,MATCH(M$9,$A48:$A$52,0)))) -> 0 | N48: =IF(N$9<$A48,0,MIN(($F48-SUM($G48:M48)),$F48*INDEX($G$11:$V$11,1,MATCH(N$9,$A48:$A$52,0)))) -> 0 | O48: =IF(O$9<$A48,0,MIN(($F48-SUM($G48:N48)),$F48*INDEX($G$11:$V$11,1,MATCH(O$9,$A48:$A$52,0)))) -> 0 | P48: =IF(P$9<$A48,0,MIN(($F48-SUM($G48:O48)),$F48*INDEX($G$11:$V$11,1,MATCH(P$9,$A48:$A$52,0)))) -> 0 | Q48: =IF(Q$9<$A48,0,MIN(($F48-SUM($G48:P48)),$F48*INDEX($G$11:$V$11,1,MATCH(Q$9,$A48:$A$52,0)))) -> 0 | R48: =IF(R$9<$A48,0,MIN(($F48-SUM($G48:Q48)),$F48*INDEX($G$11:$V$11,1,MATCH(R$9,$A48:$A$52,0)))) -> 501.495759 | S48: =IF(S$9<$A48,0,MIN(($F48-SUM($G48:R48)),$F48*INDEX($G$11:$V$11,1,MATCH(S$9,$A48:$A$52,0)))) -> 952.8419421 | T48: =IF(T$9<$A48,0,MIN(($F48-SUM($G48:S48)),$F48*INDEX($G$11:$V$11,1,MATCH(T$9,$A48:$A$52,0)))) -> 857.5577479 | U48: =IF(U$9<$A48,0,MIN(($F48-SUM($G48:T48)),$F48*INDEX($G$11:$V$11,1,MATCH(U$9,$A48:$A$52,0)))) -> 772.3034689 | V48: =IF(V$9<$A48,0,MIN(($F48-SUM($G48:U48)),$F48*INDEX($G$11:$V$11,1,MATCH(V$9,$A48:$A$52,0)))) -> 695.073122
A49: 13 | B49: 2015 | C49: 8670.36511 | D49: 0 | E49: 302.4383547 | F49: 8972.803465 | H49: =IF(H$9<$A49,0,MIN(($F49-SUM($G49:G49)),$F49*INDEX($G$11:$V$11,1,MATCH(H$9,$A49:$A$52,0)))) -> 0 | I49: =IF(I$9<$A49,0,MIN(($F49-SUM($G49:H49)),$F49*INDEX($G$11:$V$11,1,MATCH(I$9,$A49:$A$52,0)))) -> 0 | J49: =IF(J$9<$A49,0,MIN(($F49-SUM($G49:I49)),$F49*INDEX($G$11:$V$11,1,MATCH(J$9,$A49:$A$52,0)))) -> 0 | K49: =IF(K$9<$A49,0,MIN(($F49-SUM($G49:J49)),$F49*INDEX($G$11:$V$11,1,MATCH(K$9,$A49:$A$52,0)))) -> 0 | L49: =IF(L$9<$A49,0,MIN(($F49-SUM($G49:K49)),$F49*INDEX($G$11:$V$11,1,MATCH(L$9,$A49:$A$52,0)))) -> 0 | M49: =IF(M$9<$A49,0,MIN(($F49-SUM($G49:L49)),$F49*INDEX($G$11:$V$11,1,MATCH(M$9,$A49:$A$52,0)))) -> 0 | N49: =IF(N$9<$A49,0,MIN(($F49-SUM($G49:M49)),$F49*INDEX($G$11:$V$11,1,MATCH(N$9,$A49:$A$52,0)))) -> 0 | O49: =IF(O$9<$A49,0,MIN(($F49-SUM($G49:N49)),$F49*INDEX($G$11:$V$11,1,MATCH(O$9,$A49:$A$52,0)))) -> 0 | P49: =IF(P$9<$A49,0,MIN(($F49-SUM($G49:O49)),$F49*INDEX($G$11:$V$11,1,MATCH(P$9,$A49:$A$52,0)))) -> 0 | Q49: =IF(Q$9<$A49,0,MIN(($F49-SUM($G49:P49)),$F49*INDEX($G$11:$V$11,1,MATCH(Q$9,$A49:$A$52,0)))) -> 0 | R49: =IF(R$9<$A49,0,MIN(($F49-SUM($G49:Q49)),$F49*INDEX($G$11:$V$11,1,MATCH(R$9,$A49:$A$52,0)))) -> 0 | S49: =IF(S$9<$A49,0,MIN(($F49-SUM($G49:R49)),$F49*INDEX($G$11:$V$11,1,MATCH(S$9,$A49:$A$52,0)))) -> 448.6401732 | T49: =IF(T$9<$A49,0,MIN(($F49-SUM($G49:S49)),$F49*INDEX($G$11:$V$11,1,MATCH(T$9,$A49:$A$52,0)))) -> 852.4163291 | U49: =IF(U$9<$A49,0,MIN(($F49-SUM($G49:T49)),$F49*INDEX($G$11:$V$11,1,MATCH(U$9,$A49:$A$52,0)))) -> 767.1746962 | V49: =IF(V$9<$A49,0,MIN(($F49-SUM($G49:U49)),$F49*INDEX($G$11:$V$11,1,MATCH(V$9,$A49:$A$52,0)))) -> 690.9058668
A50: 14 | B50: 2016 | C50: 10380.52517 | D50: 0 | E50: 272.3262983 | F50: 10652.85147 | H50: =IF(H$9<$A50,0,MIN(($F50-SUM($G50:G50)),$F50*INDEX($G$11:$V$11,1,MATCH(H$9,$A50:$A$52,0)))) -> 0 | I50: =IF(I$9<$A50,0,MIN(($F50-SUM($G50:H50)),$F50*INDEX($G$11:$V$11,1,MATCH(I$9,$A50:$A$52,0)))) -> 0 | J50: =IF(J$9<$A50,0,MIN(($F50-SUM($G50:I50)),$F50*INDEX($G$11:$V$11,1,MATCH(J$9,$A50:$A$52,0)))) -> 0 | K50: =IF(K$9<$A50,0,MIN(($F50-SUM($G50:J50)),$F50*INDEX($G$11:$V$11,1,MATCH(K$9,$A50:$A$52,0)))) -> 0 | L50: =IF(L$9<$A50,0,MIN(($F50-SUM($G50:K50)),$F50*INDEX($G$11:$V$11,1,MATCH(L$9,$A50:$A$52,0)))) -> 0 | M50: =IF(M$9<$A50,0,MIN(($F50-SUM($G50:L50)),$F50*INDEX($G$11:$V$11,1,MATCH(M$9,$A50:$A$52,0)))) -> 0 | N50: =IF(N$9<$A50,0,MIN(($F50-SUM($G50:M50)),$F50*INDEX($G$11:$V$11,1,MATCH(N$9,$A50:$A$52,0)))) -> 0 | O50: =IF(O$9<$A50,0,MIN(($F50-SUM($G50:N50)),$F50*INDEX($G$11:$V$11,1,MATCH(O$9,$A50:$A$52,0)))) -> 0 | P50: =IF(P$9<$A50,0,MIN(($F50-SUM($G50:O50)),$F50*INDEX($G$11:$V$11,1,MATCH(P$9,$A50:$A$52,0)))) -> 0 | Q50: =IF(Q$9<$A50,0,MIN(($F50-SUM($G50:P50)),$F50*INDEX($G$11:$V$11,1,MATCH(Q$9,$A50:$A$52,0)))) -> 0 | R50: =IF(R$9<$A50,0,MIN(($F50-SUM($G50:Q50)),$F50*INDEX($G$11:$V$11,1,MATCH(R$9,$A50:$A$52,0)))) -> 0 | S50: =IF(S$9<$A50,0,MIN(($F50-SUM($G50:R50)),$F50*INDEX($G$11:$V$11,1,MATCH(S$9,$A50:$A$52,0)))) -> 0 | T50: =IF(T$9<$A50,0,MIN(($F50-SUM($G50:S50)),$F50*INDEX($G$11:$V$11,1,MATCH(T$9,$A50:$A$52,0)))) -> 532.6425734 | U50: =IF(U$9<$A50,0,MIN(($F50-SUM($G50:T50)),$F50*INDEX($G$11:$V$11,1,MATCH(U$9,$A50:$A$52,0)))) -> 1012.020889 | V50: =IF(V$9<$A50,0,MIN(($F50-SUM($G50:U50)),$F50*INDEX($G$11:$V$11,1,MATCH(V$9,$A50:$A$52,0)))) -> 910.8188005
A51: 15 | B51: 2017 | C51: 6055.02237 | D51: 0 | E51: 188.9357342 | F51: 6243.958104 | H51: =IF(H$9<$A51,0,MIN(($F51-SUM($G51:G51)),$F51*INDEX($G$11:$V$11,1,MATCH(H$9,$A51:$A$52,0)))) -> 0 | I51: =IF(I$9<$A51,0,MIN(($F51-SUM($G51:H51)),$F51*INDEX($G$11:$V$11,1,MATCH(I$9,$A51:$A$52,0)))) -> 0 | J51: =IF(J$9<$A51,0,MIN(($F51-SUM($G51:I51)),$F51*INDEX($G$11:$V$11,1,MATCH(J$9,$A51:$A$52,0)))) -> 0 | K51: =IF(K$9<$A51,0,MIN(($F51-SUM($G51:J51)),$F51*INDEX($G$11:$V$11,1,MATCH(K$9,$A51:$A$52,0)))) -> 0 | L51: =IF(L$9<$A51,0,MIN(($F51-SUM($G51:K51)),$F51*INDEX($G$11:$V$11,1,MATCH(L$9,$A51:$A$52,0)))) -> 0 | M51: =IF(M$9<$A51,0,MIN(($F51-SUM($G51:L51)),$F51*INDEX($G$11:$V$11,1,MATCH(M$9,$A51:$A$52,0)))) -> 0 | N51: =IF(N$9<$A51,0,MIN(($F51-SUM($G51:M51)),$F51*INDEX($G$11:$V$11,1,MATCH(N$9,$A51:$A$52,0)))) -> 0 | O51: =IF(O$9<$A51,0,MIN(($F51-SUM($G51:N51)),$F51*INDEX($G$11:$V$11,1,MATCH(O$9,$A51:$A$52,0)))) -> 0 | P51: =IF(P$9<$A51,0,MIN(($F51-SUM($G51:O51)),$F51*INDEX($G$11:$V$11,1,MATCH(P$9,$A51:$A$52,0)))) -> 0 | Q51: =IF(Q$9<$A51,0,MIN(($F51-SUM($G51:P51)),$F51*INDEX($G$11:$V$11,1,MATCH(Q$9,$A51:$A$52,0)))) -> 0 | R51: =IF(R$9<$A51,0,MIN(($F51-SUM($G51:Q51)),$F51*INDEX($G$11:$V$11,1,MATCH(R$9,$A51:$A$52,0)))) -> 0 | S51: =IF(S$9<$A51,0,MIN(($F51-SUM($G51:R51)),$F51*INDEX($G$11:$V$11,1,MATCH(S$9,$A51:$A$52,0)))) -> 0 | T51: =IF(T$9<$A51,0,MIN(($F51-SUM($G51:S51)),$F51*INDEX($G$11:$V$11,1,MATCH(T$9,$A51:$A$52,0)))) -> 0 | U51: =IF(U$9<$A51,0,MIN(($F51-SUM($G51:T51)),$F51*INDEX($G$11:$V$11,1,MATCH(U$9,$A51:$A$52,0)))) -> 312.1979052 | V51: =IF(V$9<$A51,0,MIN(($F51-SUM($G51:U51)),$F51*INDEX($G$11:$V$11,1,MATCH(V$9,$A51:$A$52,0)))) -> 593.1760199
A52: 16 | B52: 2018 | C52: 4554.1385 | D52: 0 | E52: 90.96104536 | F52: 4645.099545 | H52: =IF(H$9<$A52,0,MIN(($F52-SUM($G52:G52)),$F52*INDEX($G$11:$V$11,1,MATCH(H$9,$A52:$A$52,0)))) -> 0 | I52: =IF(I$9<$A52,0,MIN(($F52-SUM($G52:H52)),$F52*INDEX($G$11:$V$11,1,MATCH(I$9,$A52:$A$52,0)))) -> 0 | J52: =IF(J$9<$A52,0,MIN(($F52-SUM($G52:I52)),$F52*INDEX($G$11:$V$11,1,MATCH(J$9,$A52:$A$52,0)))) -> 0 | K52: =IF(K$9<$A52,0,MIN(($F52-SUM($G52:J52)),$F52*INDEX($G$11:$V$11,1,MATCH(K$9,$A52:$A$52,0)))) -> 0 | L52: =IF(L$9<$A52,0,MIN(($F52-SUM($G52:K52)),$F52*INDEX($G$11:$V$11,1,MATCH(L$9,$A52:$A$52,0)))) -> 0 | M52: =IF(M$9<$A52,0,MIN(($F52-SUM($G52:L52)),$F52*INDEX($G$11:$V$11,1,MATCH(M$9,$A52:$A$52,0)))) -> 0 | N52: =IF(N$9<$A52,0,MIN(($F52-SUM($G52:M52)),$F52*INDEX($G$11:$V$11,1,MATCH(N$9,$A52:$A$52,0)))) -> 0 | O52: =IF(O$9<$A52,0,MIN(($F52-SUM($G52:N52)),$F52*INDEX($G$11:$V$11,1,MATCH(O$9,$A52:$A$52,0)))) -> 0 | P52: =IF(P$9<$A52,0,MIN(($F52-SUM($G52:O52)),$F52*INDEX($G$11:$V$11,1,MATCH(P$9,$A52:$A$52,0)))) -> 0 | Q52: =IF(Q$9<$A52,0,MIN(($F52-SUM($G52:P52)),$F52*INDEX($G$11:$V$11,1,MATCH(Q$9,$A52:$A$52,0)))) -> 0 | R52: =IF(R$9<$A52,0,MIN(($F52-SUM($G52:Q52)),$F52*INDEX($G$11:$V$11,1,MATCH(R$9,$A52:$A$52,0)))) -> 0 | S52: =IF(S$9<$A52,0,MIN(($F52-SUM($G52:R52)),$F52*INDEX($G$11:$V$11,1,MATCH(S$9,$A52:$A$52,0)))) -> 0 | T52: =IF(T$9<$A52,0,MIN(($F52-SUM($G52:S52)),$F52*INDEX($G$11:$V$11,1,MATCH(T$9,$A52:$A$52,0)))) -> 0 | U52: =IF(U$9<$A52,0,MIN(($F52-SUM($G52:T52)),$F52*INDEX($G$11:$V$11,1,MATCH(U$9,$A52:$A$52,0)))) -> 0 | V52: =IF(V$9<$A52,0,MIN(($F52-SUM($G52:U52)),$F52*INDEX($G$11:$V$11,1,MATCH(V$9,$A52:$A$52,0)))) -> 232.2549773
A58: =1+A52 -> 17 | B58: Tax Depreciation | H58: =SUM(H18:H57) -> 9126.78835 | I58: =SUM(I18:I57) -> 10738.05434 | J58: 11688.16994 | K58: 11587.71872 | L58: 11571.01359 | M58: 11661.50613 | N58: 11930.12795 | O58: 12185.58165 | P58: 12334.46409 | Q58: 11815.75054 | R58: =SUM(R18:R57) -> 11401.59628 | S58: =SUM(S18:S57) -> 11825.57703 | T58: =SUM(T18:T57) -> 12129.25921 | U58: =SUM(U18:U57) -> 11585.03124 | V58: =SUM(V18:V57) -> 10414.55102
A59: =1+A58 -> 18 | B59: =Input!B74 -> Bayview Tax Depreciation Adjustment | F59: =Input!J2&", Line"& Input!A74 -> Schedule 1, Line42 | L59: 0 | M59: =Input!K74 -> -1315.993286 | N59: =Input!L74 -> -1305.622553 | O59: =Input!M74 -> -1303.685644 | P59: =Input!N74 -> -1300.110929 | Q59: =Input!O74 -> -1180.504866 | R59: =Input!P74 -> -265.2284442 | S59: =Input!Q74 -> -179.6140786 | T59: =Input!R74 -> -151.7969451 | U59: =Input!S74 -> -130.3727519 | V59: =Input!T74 -> -116.6511432
A60: =1+A59 -> 19 | B60: Tax Depreciation Net of Bayview | F60: Sum Line 17to 18 | H60: =+H58+H59 -> 9126.78835 | I60: 10738.05434 | J60: 11688.16994 | K60: 11587.71872 | L60: 11571.01359 | M60: 10345.51284 | N60: =+N58+N59 -> 10624.5054 | O60: 10881.89601 | P60: 11034.35316 | Q60: 10635.24568 | R60: 11136.36784 | S60: 11645.96295 | T60: 11977.46227 | U60: 11454.65849 | V60: 10297.89987
B61: =+"Years = "&Input!$J$2&", Ln "&Input!A72 -> Years = Schedule 1, Ln 41
A62: 1/ Tax Depreciation amounts for 2002 EOY are stipulated. These amounts are based on all tax depreciation amounts prior to Year 1.

Sheet ADIT
A1: =Company_Name -> Olympic Pipe Line Company | U1: =+'Tax Depreciation'!V1 -> Exhibit No. 1.4(a)
A2: =Index!C21 -> Accumulated Deferred Income Taxes | U2: =Index!$B$21 -> Schedule 12
A3: =units -> ($000's)
A6: Line
A7: No. | B7: Description | C7: Source | G7: =+'Tax Depreciation'!G7 -> 2003 EOY | H7: =+'Tax Depreciation'!H7 -> 2004 | I7: =+'Tax Depreciation'!I7 -> 2005 | J7: =+'Tax Depreciation'!J7 -> 2006 | K7: =+'Tax Depreciation'!K7 -> 2007 | L7: =+'Tax Depreciation'!L7 -> 2008 | M7: =+'Tax Depreciation'!M7 -> 2009 | N7: =+'Tax Depreciation'!N7 -> 2010 | O7: =+'Tax Depreciation'!O7 -> 2011 | P7: =+'Tax Depreciation'!P7 -> 2012 | Q7: =+'Tax Depreciation'!Q7 -> 2013 | R7: =+'Tax Depreciation'!R7 -> 2014 | S7: =+'Tax Depreciation'!S7 -> 2015 | T7: =+'Tax Depreciation'!T7 -> 2016 | U7: =+'Tax Depreciation'!U7 -> 2017 | V7: =+'Tax Depreciation'!V7 -> 2018
A10: 1 | B10: Carrier Depreciation Expense | C10: =Input!J2&", Line "&Input!A31 -> Schedule 1, Line 15 | H10: =Input!F31 -> 3987.581 | I10: =Input!G31 -> 4240.349 | J10: =Input!H31 -> 4551.907 | K10: =Input!I31 -> 4856.431 | L10: =Input!J31 -> 4957.177 | M10: =Input!K31 -> 4639.516 | N10: =Input!L31 -> 4819.236 | O10: =Input!M31 -> 5089.878945 | P10: =Input!N31 -> 5194.582 | Q10: =Input!O31 -> 5337.537673 | R10: =Input!P31 -> 5397.896427 | S10: =Input!Q31 -> 5454.270529 | T10: =Input!R31 -> 5801.138274 | U10: =Input!S31 -> 5963.381449 | V10: =Input!T31 -> 5963.381449
A12: =A10+1 -> 2 | B12: Amortization of TEFRA Adjustment | C12: =TEFRA!U2&", Line "&TEFRA!A20 -> Schedule 13, Line 6 | H12: =TEFRA!H20 -> 1.72226571 | I12: =TEFRA!I20 -> 1.646881955 | J12: =TEFRA!J20 -> 1.643520187 | K12: =TEFRA!K20 -> 1.685274586 | L12: =TEFRA!L20 -> 1.655853462 | M12: =TEFRA!M20 -> 1.574136487 | N12: =TEFRA!N20 -> 1.655770493 | O12: =TEFRA!O20 -> 1.680830511 | P12: =TEFRA!P20 -> 1.662467073 | Q12: =TEFRA!Q20 -> 1.667760001 | R12: =TEFRA!R20 -> 1.639156057 | S12: =TEFRA!S20 -> 1.603624148 | T12: =TEFRA!T20 -> 1.655442423 | U12: =TEFRA!U20 -> 1.653520587 | V12: =TEFRA!V20 -> 1.620671823
A14: =A12+1 -> 3 | B14: Amortization of Debt AFUDC | C14: ='AFUDC - Amortization'!V$2&", Line "&'AFUDC - Amortization'!A27 -> Schedule 9, Line 10 | H14: ='AFUDC - Amortization'!I27 -> 84.96533582 | I14: ='AFUDC - Amortization'!J27 -> 97.97318885 | J14: ='AFUDC - Amortization'!K27 -> 108.9617458 | K14: ='AFUDC - Amortization'!L27 -> 117.241997 | L14: ='AFUDC - Amortization'!M27 -> 120.4589667 | M14: ='AFUDC - Amortization'!N27 -> 119.2100514 | N14: ='AFUDC - Amortization'!O27 -> 130.0935581 | O14: ='AFUDC - Amortization'!P27 -> 136.8815534 | P14: ='AFUDC - Amortization'!Q27 -> 140.2702352 | Q14: ='AFUDC - Amortization'!R27 -> 145.62092 | R14: ='AFUDC - Amortization'!S27 -> 148.8749854 | S14: ='AFUDC - Amortization'!T27 -> 152.4889938 | T14: ='AFUDC - Amortization'!U27 -> 164.0537124 | U14: ='AFUDC - Amortization'!V27 -> 169.1836689 | V14: ='AFUDC - Amortization'!W27 -> 168.9869964
A16: =A12+1 -> 3 | B16: Carrier Depreciation Expense after TEFRA Adjustment | C16: ="Lines ("&A10&" - "&A12&" + "&A14&")" -> Lines (1 - 2 + 3) | H16: =H10-H12+H14 -> 4070.82407 | I16: =I10-I12+I14 -> 4336.675307 | J16: 4659.225226 | K16: 4971.987722 | L16: 5075.980113 | M16: 4757.151915 | N16: 4947.673788 | O16: 5225.079668 | P16: 5333.189768 | Q16: =Q10-Q12+Q14 -> 5481.490833 | R16: 5545.132256 | S16: 5605.155899 | T16: 5963.536544 | U16: 6130.911597 | V16: 6130.747774
B17: including Amortization of Debt AFUDC
A18: =A16+1 -> 4 | B18: Federal Tax Depreciation | C18: ='Tax Depreciation'!V2&", Line "&'Tax Depreciation'!A60 -> Schedule 11, Line 19 | H18: ='Tax Depreciation'!H58 -> 9126.78835 | I18: ='Tax Depreciation'!I58 -> 10738.05434 | J18: ='Tax Depreciation'!J58 -> 11688.16994 | K18: ='Tax Depreciation'!K58 -> 11587.71872 | L18: ='Tax Depreciation'!L60 -> 11571.01359 | M18: ='Tax Depreciation'!M60 -> 10345.51284 | N18: ='Tax Depreciation'!N60 -> 10624.5054 | O18: ='Tax Depreciation'!O60 -> 10881.89601 | P18: ='Tax Depreciation'!P60 -> 11034.35316 | Q18: ='Tax Depreciation'!Q60 -> 10635.24568 | R18: ='Tax Depreciation'!R60 -> 11136.36784 | S18: ='Tax Depreciation'!S60 -> 11645.96295 | T18: ='Tax Depreciation'!T60 -> 11977.46227 | U18: ='Tax Depreciation'!U60 -> 11454.65849 | V18: ='Tax Depreciation'!V60 -> 10297.89987
C19: .
A20: =A18+1 -> 5 | B20: Federal Tax Timing Differences | C20: ="Line "&A18&" - Line "&A16 -> Line 4 - Line 3 | H20: =H18-H16 -> 5055.96428 | I20: =I18-I16 -> 6401.379037 | J20: 7028.944715 | K20: 6615.730997 | L20: 6495.033472 | M20: 5588.360929 | N20: 5676.831611 | O20: 5656.816338 | P20: 5701.163396 | Q20: =Q18-Q16 -> 5153.754844 | R20: 5591.23558 | S20: 6040.807053 | T20: 6013.925725 | U20: 5323.74689 | V20: 4167.152101
A22: =A20+1 -> 6 | B22: Federal Income Tax Rate | C22: =Input!J2&", Line "&Input!A39 -> Schedule 1, Line 21 | H22: =Input!F39 -> 0.35 | I22: =Input!G39 -> 0.35 | J22: =Input!H39 -> 0.35 | K22: =Input!I39 -> 0.35 | L22: =Input!J39 -> 0.35 | M22: =Input!K39 -> 0.35 | N22: =Input!L39 -> 0.35 | O22: =Input!M39 -> 0.35 | P22: =Input!N39 -> 0.35 | Q22: =Input!O39 -> 0.35 | R22: =Input!P39 -> 0.35 | S22: =Input!Q39 -> 0.35 | T22: =Input!R39 -> 0.35 | U22: =Input!S39 -> 0.35 | V22: =Input!T39 -> 0.21
A24: =A22+1 -> 7 | B24: Deferred Income Tax Effect | C24: ="Line "&A20&" * Line "&A22 -> Line 5 * Line 6 | H24: =H20*H22 -> 1769.587498 | I24: =I20*I22 -> 2240.482663 | J24: 2460.13065 | K24: 2315.505849 | L24: 2273.261715 | M24: 1955.926325 | N24: 1986.891064 | O24: 1979.885718 | P24: 1995.407189 | Q24: =Q20*Q22 -> 1803.814196 | R24: 1956.932453 | S24: 2114.282468 | T24: 2104.874004 | U24: 1863.311411 | V24: 875.1019412
A26: =A24+1 -> 8 | B26: Federal ADIT before Excess Deferred Income Tax Amortization Adjustment | C26: ="Cumulative Line "&A24 -> Cumulative Line 7 | F26: 1/ | G26: =+Input!E62 -> 13338.04504 | H26: =+G26+H24 -> 15107.63253 | I26: 17348.1152 | J26: 19808.24585 | K26: 22123.7517 | L26: 24397.01341 | M26: 26352.93974 | N26: =+M26+N24-M30 -> 24516.61416 | O26: =+N26+O24 -> 26496.49988 | P26: 28491.90706 | Q26: 30295.72126 | R26: 32252.65371 | S26: 34366.93618 | T26: 36471.81018 | U26: 38335.1216 | V26: 39210.22354
A28: =A26+1 -> 9 | B28: Accumulated Excess Deferred Income Tax Amortization | C28: ='FASB-Excess'!U2&", Line "&'FASB-Excess'!A58 -> Schedule 14, Line 13 | F28: 2/ | G28: =+Input!E64 -> 972.9823247 | H28: ='FASB-Excess'!H58 -> 1027.785651 | I28: ='FASB-Excess'!I58 -> 1080.190231 | J28: ='FASB-Excess'!J58 -> 1132.487837 | K28: ='FASB-Excess'!K58 -> 1186.114088 | L28: ='FASB-Excess'!L58 -> 1238.804145 | M28: ='FASB-Excess'!M58 -> 1288.893928 | N28: ='FASB-Excess'!N58 -> 1341.581345 | O28: ='FASB-Excess'!O58 -> 1395.066184 | P28: ='FASB-Excess'!P58 -> 1447.966689 | Q28: ='FASB-Excess'!Q58 -> 1501.035618 | R28: ='FASB-Excess'!R58 -> 1553.194355 | S28: ='FASB-Excess'!S58 -> 1604.22245 | T28: ='FASB-Excess'!T58 -> 1656.899428 | U28: ='FASB-Excess'!U58 -> 1709.515251 | V28: ='FASB-Excess'!V58 -> 2021.743911
A30: =1+A28 -> 10 | B30: Accumulated Deferred Income Tax adjustment for Bayview transfer to Non-Carrier Property | C30: =Input!J2&" Line " &Input!A75 -> Schedule 1 Line 43 | M30: =-Input!K75 -> 3823.216643
A32: =A30+1 -> 11 | B32: Accumulated Deferred Income Taxes after Excess Deferred Income Tax Amortization & Bayview Adjustments | C32: ="Lines "&A26&" - "&A28&" - "&A30&"" -> Lines 8 - 9 - 10 | G32: =G26-G28 -> 12365.06271 | H32: 14079.84688 | I32: 16267.92497 | J32: 18675.75801 | K32: 20937.63761 | L32: 23158.20927 | M32: =M26-M28-M30 -> 21240.82917 | N32: =N26-N28 -> 23175.03281 | O32: =O26-O28 -> 25101.43369 | P32: 27043.94037 | Q32: 28794.68564 | R32: 30699.45936 | S32: 32762.71373 | T32: 34814.91076 | U32: 36625.60634 | V32: 37188.47963
A35: =+"1/ Year 1 = "&Input!$J$2&", Ln "&Input!A62 -> 1/ Year 1 = Schedule 1, Ln 36
A36: =+"2/ Year 1 = "&Input!$J$2&", Ln "&Input!A64 -> 2/ Year 1 = Schedule 1, Ln 37

Sheet TEFRA
A1: =Company_Name -> Olympic Pipe Line Company | U1: =+ADIT!U1 -> Exhibit No. 1.4(a)
A2: =Index!C22 -> TEFRA Adjustment to ADIT | U2: =Index!$B$22 -> Schedule 13
A3: =units -> ($000's)
A6: Line
A7: No. | B7: Description | C7: Source | G7: =+ADIT!G7 -> 2003 EOY | H7: =+ADIT!H7 -> 2004 | I7: =+ADIT!I7 -> 2005 | J7: =+ADIT!J7 -> 2006 | K7: =+ADIT!K7 -> 2007 | L7: =+ADIT!L7 -> 2008 | M7: =+ADIT!M7 -> 2009 | N7: =+ADIT!N7 -> 2010 | O7: =+ADIT!O7 -> 2011 | P7: =+ADIT!P7 -> 2012 | Q7: =+ADIT!Q7 -> 2013 | R7: =+ADIT!R7 -> 2014 | S7: =+ADIT!S7 -> 2015 | T7: =+ADIT!T7 -> 2016 | U7: =+ADIT!U7 -> 2017 | V7: =+ADIT!V7 -> 2018
A10: 1 | B10: Additions to Depreciable Carrier Property | C10: =Input!J2&", Lines ("&Input!A25&" - "&Input!A19&")" -> Schedule 1, Lines (11 - 7) | H10: =Input!F25-Input!F19 -> 19126.05617 | I10: =Input!G25-Input!G19 -> 25786.093 | J10: =Input!H25-Input!H19 -> 8771.155 | K10: =Input!I25-Input!I19 -> 7376.456 | L10: =Input!J25-Input!J19 -> 9490.943 | M10: =Input!K25-Input!K19 -> 7457.40808 | N10: =Input!L25-Input!L19 -> 10879.487 | O10: =Input!M25-Input!M19 -> 6896.7462 | P10: =Input!N25-Input!N19 -> 10109.1881 | Q10: =Input!O25-Input!O19 -> 4181.57569 | R10: =Input!P25-Input!P19 -> 9720.792672 | S10: =Input!Q25-Input!Q19 -> 8670.36511 | T10: =Input!R25-Input!R19 -> 10380.52517 | U10: =Input!S25-Input!S19 -> 6055.02237 | V10: =Input!T25-Input!T19 -> 4554.1385
A12: =A10+1 -> 2 | B12: Tax Basis Reduction | C12: =Input!J2&", Line "&Input!A42 -> Schedule 1, Line 24 | H12: =Input!F42 -> 0 | I12: =Input!G42 -> 0 | J12: =Input!H42 -> 0 | K12: =Input!I42 -> 0 | L12: =Input!J42 -> 0 | M12: =Input!K42 -> 0 | N12: =Input!L42 -> 0 | O12: =Input!M42 -> 0 | P12: =Input!N42 -> 0 | Q12: =Input!O42 -> 0 | R12: =Input!P42 -> 0 | S12: =Input!Q42 -> 0 | T12: =Input!R42 -> 0 | U12: =Input!S42 -> 0 | V12: =Input!T42 -> 0
A14: =A12+1 -> 3 | B14: TEFRA Adjustment | C14: ="Line "&A10&" * Line "&A12 -> Line 1 * Line 2 | H14: =H10*H12 -> 0 | I14: 0 | J14: 0 | K14: 0 | L14: 0 | M14: 0 | N14: 0 | O14: 0 | P14: 0 | Q14: 0 | R14: =R10*R12 -> 0 | S14: =S10*S12 -> 0 | T14: =T10*T12 -> 0 | U14: =U10*U12 -> 0 | V14: =V10*V12 -> 0
A16: =A14+1 -> 4 | B16: Accumulated TEFRA Adjustment | C16: ="Line "&A14&" + Prior Line "&A16 -> Line 3 + Prior Line 4 | F16: 1/ | G16: =+Input!E66 -> 71.6774 | H16: =+G16+H14 -> 71.6774 | I16: =+H16+I14 -> 71.6774 | J16: 71.6774 | K16: 71.6774 | L16: 71.6774 | M16: 71.6774 | N16: 71.6774 | O16: 71.6774 | P16: 71.6774 | Q16: 71.6774 | R16: =+Q16+R14 -> 71.6774 | S16: =+R16+S14 -> 71.6774 | T16: =+S16+T14 -> 71.6774 | U16: =+T16+U14 -> 71.6774 | V16: =+U16+V14 -> 71.6774
A18: =A16+1 -> 5 | B18: ='Amortization Rate'!B25 -> Amortization Rate | C18: ='Amortization Rate'!U2&", Line "&'Amortization Rate'!A25 -> Schedule 10, Line 9 | H18: ='Amortization Rate'!H25 -> 0.02402801594 | I18: ='Amortization Rate'!I25 -> 0.02297630711 | J18: ='Amortization Rate'!J25 -> 0.02292940574 | K18: ='Amortization Rate'!K25 -> 0.02351193802 | L18: ='Amortization Rate'!L25 -> 0.02310147218 | M18: ='Amortization Rate'!M25 -> 0.02196140607 | N18: ='Amortization Rate'!N25 -> 0.02310031465 | O18: ='Amortization Rate'!O25 -> 0.02344993696 | P18: ='Amortization Rate'!P25 -> 0.02319374131 | Q18: ='Amortization Rate'!Q25 -> 0.02326758505 | R18: ='Amortization Rate'!R25 -> 0.02286852003 | S18: ='Amortization Rate'!S25 -> 0.02237280019 | T18: ='Amortization Rate'!T25 -> 0.02309573761 | U18: ='Amortization Rate'!U25 -> 0.02306892531 | V18: ='Amortization Rate'!V25 -> 0.0226106391
A20: =A18+1 -> 6 | B20: Amortization of TEFRA Adjustment | C20: ="Lines ("&A16&" + "&A14&" / 2.0) * "&A18 -> Lines (4 + 3 / 2.0) * 5 | H20: =+(G16+H14/2)*H18 -> 1.72226571 | I20: 1.646881955 | J20: 1.643520187 | K20: 1.685274586 | L20: 1.655853462 | M20: 1.574136487 | N20: 1.655770493 | O20: 1.680830511 | P20: 1.662467073 | Q20: 1.667760001 | R20: =+(Q16+R14/2)*R18 -> 1.639156057 | S20: =+(R16+S14/2)*S18 -> 1.603624148 | T20: =+(S16+T14/2)*T18 -> 1.655442423 | U20: =+(T16+U14/2)*U18 -> 1.653520587 | V20: =+(U16+V14/2)*V18 -> 1.620671823
A22: =A20+1 -> 7 | B22: Accumulated Amortization of TEFRA Adjustment | C22: ="Cumulative Line "&A20 -> Cumulative Line 6 | F22: 2/ | G22: =+Input!E68 -> 33.25223069 | H22: =+H20+G22 -> 34.9744964 | I22: 36.62137836 | J22: 38.26489854 | K22: 39.95017313 | L22: 41.60602659 | M22: 43.18016308 | N22: 44.83593357 | O22: 46.51676408 | P22: 48.17923116 | Q22: 49.84699116 | R22: =+R20+Q22 -> 51.48614721 | S22: =+S20+R22 -> 53.08977136 | T22: =+T20+S22 -> 54.74521379 | U22: =+U20+T22 -> 56.39873437 | V22: =+V20+U22 -> 58.0194062
A24: =A22+1 -> 8 | B24: Net Accumulated TEFRA Adjustment | C24: ="Line "&A16&" - Line "&A22 -> Line 4 - Line 7 | H24: =H16-H22 -> 36.7029036 | I24: =I16-I22 -> 35.05602164 | J24: 33.41250146 | K24: 31.72722687 | L24: 30.07137341 | M24: 28.49723692 | N24: 26.84146643 | O24: 25.16063592 | P24: 23.49816884 | Q24: =Q16-Q22 -> 21.83040884 | R24: 20.19125279 | S24: 18.58762864 | T24: 16.93218621 | U24: 15.27866563 | V24: 13.6579938
A26: =+"1/ Year 1 = "&Input!$J$2&", Ln "&Input!A66 -> 1/ Year 1 = Schedule 1, Ln 38
A27: =+"2/ Year 1 = "&Input!$J$2&", Ln "&Input!A68 -> 2/ Year 1 = Schedule 1, Ln 39

Sheet FASB-Excess
A1: =Company_Name -> Olympic Pipe Line Company | U1: =+TEFRA!U1 -> Exhibit No. 1.4(a)
A2: =Index!$C$23 -> Excess Deferred Income Tax Amortization Adjustment to ADIT | U2: =Index!$B$23 -> Schedule 14
A3: =units -> ($000's)
A6: Line
A7: No. | B7: Description | D7: Source | G7: =+TEFRA!G7 -> 2003 EOY | H7: =+TEFRA!H7 -> 2004 | I7: =+TEFRA!I7 -> 2005 | J7: =+TEFRA!J7 -> 2006 | K7: =+TEFRA!K7 -> 2007 | L7: =+TEFRA!L7 -> 2008 | M7: =+TEFRA!M7 -> 2009 | N7: =+TEFRA!N7 -> 2010 | O7: =+TEFRA!O7 -> 2011 | P7: =+TEFRA!P7 -> 2012 | Q7: =+TEFRA!Q7 -> 2013 | R7: =+TEFRA!R7 -> 2014 | S7: =+TEFRA!S7 -> 2015 | T7: =+TEFRA!T7 -> 2016 | U7: =+TEFRA!U7 -> 2017 | V7: =+TEFRA!V7 -> 2018
A9: A | B9: Federal Tax Timing Differences | D9: =ADIT!U2&", Line "&ADIT!A20 -> Schedule 12, Line 5 | H9: =ADIT!H20 -> 5055.96428 | I9: =ADIT!I20 -> 6401.379037 | J9: =ADIT!J20 -> 7028.944715 | K9: =ADIT!K20 -> 6615.730997 | L9: =ADIT!L20 -> 6495.033472 | M9: =ADIT!M20 -> 5588.360929 | N9: =ADIT!N20 -> 5676.831611 | O9: =ADIT!O20 -> 5656.816338 | P9: =ADIT!P20 -> 5701.163396 | Q9: =ADIT!Q20 -> 5153.754844 | R9: =ADIT!R20 -> 5591.23558 | S9: =ADIT!S20 -> 6040.807053 | T9: =ADIT!T20 -> 6013.925725 | U9: =ADIT!U20 -> 5323.74689 | V9: =ADIT!V20 -> 4167.152101
A11: B | B11: Federal Income Tax Rate | D11: =Input!J2&", Lie "&Input!A39 -> Schedule 1, Lie 21 | H11: =Input!F39 -> 0.35 | I11: =Input!G39 -> 0.35 | J11: =Input!H39 -> 0.35 | K11: =Input!I39 -> 0.35 | L11: =Input!J39 -> 0.35 | M11: =Input!K39 -> 0.35 | N11: =Input!L39 -> 0.35 | O11: =Input!M39 -> 0.35 | P11: =Input!N39 -> 0.35 | Q11: =Input!O39 -> 0.35 | R11: =Input!P39 -> 0.35 | S11: =Input!Q39 -> 0.35 | T11: =Input!R39 -> 0.35 | U11: =Input!S39 -> 0.35 | V11: =Input!T39 -> 0.21
A13: C | B13: Excess Deferred Income Tax Amortization Adjustment | D13: ="Cum Ln "&A9&" * Change Ln "&A11 -> Cum Ln A * Change Ln B | F13: 1/ | G13: =+Input!E70 -> 2280.809487 | H13: =+SUM($F9:G9)*(G11-H11) -> 0 | I13: =+SUM($F9:H9)*(H11-I11) -> 0 | J13: =+SUM($F9:I9)*(I11-J11) -> 0 | K13: =+SUM($F9:J9)*(J11-K11) -> 0 | L13: =+SUM($F9:K9)*(K11-L11) -> 0 | M13: =+SUM($F9:L9)*(L11-M11) -> 0 | N13: =+SUM($F9:M9)*(M11-N11) -> 0 | O13: =+SUM($F9:N9)*(N11-O11) -> 0 | P13: =+SUM($F9:O9)*(O11-P11) -> 0 | Q13: =+SUM($F9:P9)*(P11-Q11) -> 0 | R13: =+SUM($F9:Q9)*(Q11-R11) -> 0 | S13: =+SUM($F9:R9)*(R11-S11) -> 0 | T13: =+SUM($F9:S9)*(S11-T11) -> 0 | U13: =+SUM($F9:T9)*(T11-U11) -> 0 | V13: =+SUM($F9:U9)*(U11-V11) -> 11528.11728
A15: D | B15: ='Amortization Rate'!B25 -> Amortization Rate | D15: ='Amortization Rate'!U2&", Line "&'Amortization Rate'!A25 -> Schedule 10, Line 9 | H15: ='Amortization Rate'!H25 -> 0.02402801594 | I15: ='Amortization Rate'!I25 -> 0.02297630711 | J15: ='Amortization Rate'!J25 -> 0.02292940574 | K15: ='Amortization Rate'!K25 -> 0.02351193802 | L15: ='Amortization Rate'!L25 -> 0.02310147218 | M15: ='Amortization Rate'!M25 -> 0.02196140607 | N15: ='Amortization Rate'!N25 -> 0.02310031465 | O15: ='Amortization Rate'!O25 -> 0.02344993696 | P15: ='Amortization Rate'!P25 -> 0.02319374131 | Q15: ='Amortization Rate'!Q25 -> 0.02326758505 | R15: ='Amortization Rate'!R25 -> 0.02286852003 | S15: ='Amortization Rate'!S25 -> 0.02237280019 | T15: ='Amortization Rate'!T25 -> 0.02309573761 | U15: ='Amortization Rate'!U25 -> 0.02306892531 | V15: ='Amortization Rate'!V25 -> 0.0226106391
B17: Year | C17: FASB 96/109 Adjustment
C18: ="Line "&A13 -> Line C | H18: =1+G18 -> 1 | I18: 2 | J18: 3 | K18: 4 | L18: 5 | M18: 6 | N18: 7 | O18: 8 | P18: 9 | Q18: 10 | R18: =1+Q18 -> 11 | S18: =1+R18 -> 12 | T18: =1+S18 -> 13 | U18: =1+T18 -> 14 | V18: =1+U18 -> 15
A38: =A37+1 -> 1 | B38: =+G7 -> 2003 EOY | C38: =+TRANSPOSE(G13:V13) -> 2280.809487 | H38: =IF(H$18<$A38,0,IF($C38>0,MIN($C38-SUM($F38:G38),$C38*H$15),MAX($C38-SUM($F38:G38),H$15*$C38))) -> 54.80332671 | I38: =IF(I$18<$A38,0,IF($C38>0,MIN($C38-SUM($F38:H38),$C38*I$15),MAX($C38-SUM($F38:H38),I$15*$C38))) -> 52.40457923 | J38: =IF(J$18<$A38,0,IF($C38>0,MIN($C38-SUM($F38:I38),$C38*J$15),MAX($C38-SUM($F38:I38),J$15*$C38))) -> 52.29760614 | K38: =IF(K$18<$A38,0,IF($C38>0,MIN($C38-SUM($F38:J38),$C38*K$15),MAX($C38-SUM($F38:J38),K$15*$C38))) -> 53.62625128 | L38: =IF(L$18<$A38,0,IF($C38>0,MIN($C38-SUM($F38:K38),$C38*L$15),MAX($C38-SUM($F38:K38),L$15*$C38))) -> 52.69005692 | M38: =IF(M$18<$A38,0,IF($C38>0,MIN($C38-SUM($F38:L38),$C38*M$15),MAX($C38-SUM($F38:L38),M$15*$C38))) -> 50.0897833 | N38: =IF(N$18<$A38,0,IF($C38>0,MIN($C38-SUM($F38:M38),$C38*N$15),MAX($C38-SUM($F38:M38),N$15*$C38))) -> 52.6874168 | O38: =IF(O$18<$A38,0,IF($C38>0,MIN($C38-SUM($F38:N38),$C38*O$15),MAX($C38-SUM($F38:N38),O$15*$C38))) -> 53.48483868 | P38: =IF(P$18<$A38,0,IF($C38>0,MIN($C38-SUM($F38:O38),$C38*P$15),MAX($C38-SUM($F38:O38),P$15*$C38))) -> 52.90050522 | Q38: =IF(Q$18<$A38,0,IF($C38>0,MIN($C38-SUM($F38:P38),$C38*Q$15),MAX($C38-SUM($F38:P38),Q$15*$C38))) -> 53.06892872 | R38: =IF(R$18<$A38,0,IF($C38>0,MIN($C38-SUM($F38:Q38),$C38*R$15),MAX($C38-SUM($F38:Q38),R$15*$C38))) -> 52.15873743 | S38: =IF(S$18<$A38,0,IF($C38>0,MIN($C38-SUM($F38:R38),$C38*S$15),MAX($C38-SUM($F38:R38),S$15*$C38))) -> 51.02809492 | T38: =IF(T$18<$A38,0,IF($C38>0,MIN($C38-SUM($F38:S38),$C38*T$15),MAX($C38-SUM($F38:S38),T$15*$C38))) -> 52.67697745 | U38: =IF(U$18<$A38,0,IF($C38>0,MIN($C38-SUM($F38:T38),$C38*U$15),MAX($C38-SUM($F38:T38),U$15*$C38))) -> 52.61582371 | V38: =IF(V$18<$A38,0,IF($C38>0,MIN($C38-SUM($F38:U38),$C38*V$15),MAX($C38-SUM($F38:U38),V$15*$C38))) -> 51.57056016
A39: 2 | B39: =+TRANSPOSE(H7:V7) -> 2004 | C39: 0 | H39: =IF(H$18<$A39,0,IF($C39>0,MIN($C39-SUM($F39:G39),$C39*H$15),MAX($C39-SUM($F39:G39),H$15*$C39))) -> 0 | I39: =IF(I$18<$A39,0,IF($C39>0,MIN($C39-SUM($F39:H39),$C39*I$15),MAX($C39-SUM($F39:H39),I$15*$C39))) -> 0 | J39: =IF(J$18<$A39,0,IF($C39>0,MIN($C39-SUM($F39:I39),$C39*J$15),MAX($C39-SUM($F39:I39),J$15*$C39))) -> 0 | K39: =IF(K$18<$A39,0,IF($C39>0,MIN($C39-SUM($F39:J39),$C39*K$15),MAX($C39-SUM($F39:J39),K$15*$C39))) -> 0 | L39: =IF(L$18<$A39,0,IF($C39>0,MIN($C39-SUM($F39:K39),$C39*L$15),MAX($C39-SUM($F39:K39),L$15*$C39))) -> 0 | M39: =IF(M$18<$A39,0,IF($C39>0,MIN($C39-SUM($F39:L39),$C39*M$15),MAX($C39-SUM($F39:L39),M$15*$C39))) -> 0 | N39: =IF(N$18<$A39,0,IF($C39>0,MIN($C39-SUM($F39:M39),$C39*N$15),MAX($C39-SUM($F39:M39),N$15*$C39))) -> 0 | O39: =IF(O$18<$A39,0,IF($C39>0,MIN($C39-SUM($F39:N39),$C39*O$15),MAX($C39-SUM($F39:N39),O$15*$C39))) -> 0 | P39: =IF(P$18<$A39,0,IF($C39>0,MIN($C39-SUM($F39:O39),$C39*P$15),MAX($C39-SUM($F39:O39),P$15*$C39))) -> 0 | Q39: =IF(Q$18<$A39,0,IF($C39>0,MIN($C39-SUM($F39:P39),$C39*Q$15),MAX($C39-SUM($F39:P39),Q$15*$C39))) -> 0 | R39: =IF(R$18<$A39,0,IF($C39>0,MIN($C39-SUM($F39:Q39),$C39*R$15),MAX($C39-SUM($F39:Q39),R$15*$C39))) -> 0 | S39: =IF(S$18<$A39,0,IF($C39>0,MIN($C39-SUM($F39:R39),$C39*S$15),MAX($C39-SUM($F39:R39),S$15*$C39))) -> 0 | T39: =IF(T$18<$A39,0,IF($C39>0,MIN($C39-SUM($F39:S39),$C39*T$15),MAX($C39-SUM($F39:S39),T$15*$C39))) -> 0 | U39: =IF(U$18<$A39,0,IF($C39>0,MIN($C39-SUM($F39:T39),$C39*U$15),MAX($C39-SUM($F39:T39),U$15*$C39))) -> 0 | V39: =IF(V$18<$A39,0,IF($C39>0,MIN($C39-SUM($F39:U39),$C39*V$15),MAX($C39-SUM($F39:U39),V$15*$C39))) -> 0
A40: 3 | B40: 2005 | C40: 0 | H40: =IF(H$18<$A40,0,IF($C40>0,MIN($C40-SUM($F40:G40),$C40*H$15),MAX($C40-SUM($F40:G40),H$15*$C40))) -> 0 | I40: =IF(I$18<$A40,0,IF($C40>0,MIN($C40-SUM($F40:H40),$C40*I$15),MAX($C40-SUM($F40:H40),I$15*$C40))) -> 0 | J40: =IF(J$18<$A40,0,IF($C40>0,MIN($C40-SUM($F40:I40),$C40*J$15),MAX($C40-SUM($F40:I40),J$15*$C40))) -> 0 | K40: =IF(K$18<$A40,0,IF($C40>0,MIN($C40-SUM($F40:J40),$C40*K$15),MAX($C40-SUM($F40:J40),K$15*$C40))) -> 0 | L40: =IF(L$18<$A40,0,IF($C40>0,MIN($C40-SUM($F40:K40),$C40*L$15),MAX($C40-SUM($F40:K40),L$15*$C40))) -> 0 | M40: =IF(M$18<$A40,0,IF($C40>0,MIN($C40-SUM($F40:L40),$C40*M$15),MAX($C40-SUM($F40:L40),M$15*$C40))) -> 0 | N40: =IF(N$18<$A40,0,IF($C40>0,MIN($C40-SUM($F40:M40),$C40*N$15),MAX($C40-SUM($F40:M40),N$15*$C40))) -> 0 | O40: =IF(O$18<$A40,0,IF($C40>0,MIN($C40-SUM($F40:N40),$C40*O$15),MAX($C40-SUM($F40:N40),O$15*$C40))) -> 0 | P40: =IF(P$18<$A40,0,IF($C40>0,MIN($C40-SUM($F40:O40),$C40*P$15),MAX($C40-SUM($F40:O40),P$15*$C40))) -> 0 | Q40: =IF(Q$18<$A40,0,IF($C40>0,MIN($C40-SUM($F40:P40),$C40*Q$15),MAX($C40-SUM($F40:P40),Q$15*$C40))) -> 0 | R40: =IF(R$18<$A40,0,IF($C40>0,MIN($C40-SUM($F40:Q40),$C40*R$15),MAX($C40-SUM($F40:Q40),R$15*$C40))) -> 0 | S40: =IF(S$18<$A40,0,IF($C40>0,MIN($C40-SUM($F40:R40),$C40*S$15),MAX($C40-SUM($F40:R40),S$15*$C40))) -> 0 | T40: =IF(T$18<$A40,0,IF($C40>0,MIN($C40-SUM($F40:S40),$C40*T$15),MAX($C40-SUM($F40:S40),T$15*$C40))) -> 0 | U40: =IF(U$18<$A40,0,IF($C40>0,MIN($C40-SUM($F40:T40),$C40*U$15),MAX($C40-SUM($F40:T40),U$15*$C40))) -> 0 | V40: =IF(V$18<$A40,0,IF($C40>0,MIN($C40-SUM($F40:U40),$C40*V$15),MAX($C40-SUM($F40:U40),V$15*$C40))) -> 0
A41: 4 | B41: 2006 | C41: 0 | H41: =IF(H$18<$A41,0,IF($C41>0,MIN($C41-SUM($F41:G41),$C41*H$15),MAX($C41-SUM($F41:G41),H$15*$C41))) -> 0 | I41: =IF(I$18<$A41,0,IF($C41>0,MIN($C41-SUM($F41:H41),$C41*I$15),MAX($C41-SUM($F41:H41),I$15*$C41))) -> 0 | J41: =IF(J$18<$A41,0,IF($C41>0,MIN($C41-SUM($F41:I41),$C41*J$15),MAX($C41-SUM($F41:I41),J$15*$C41))) -> 0 | K41: =IF(K$18<$A41,0,IF($C41>0,MIN($C41-SUM($F41:J41),$C41*K$15),MAX($C41-SUM($F41:J41),K$15*$C41))) -> 0 | L41: =IF(L$18<$A41,0,IF($C41>0,MIN($C41-SUM($F41:K41),$C41*L$15),MAX($C41-SUM($F41:K41),L$15*$C41))) -> 0 | M41: =IF(M$18<$A41,0,IF($C41>0,MIN($C41-SUM($F41:L41),$C41*M$15),MAX($C41-SUM($F41:L41),M$15*$C41))) -> 0 | N41: =IF(N$18<$A41,0,IF($C41>0,MIN($C41-SUM($F41:M41),$C41*N$15),MAX($C41-SUM($F41:M41),N$15*$C41))) -> 0 | O41: =IF(O$18<$A41,0,IF($C41>0,MIN($C41-SUM($F41:N41),$C41*O$15),MAX($C41-SUM($F41:N41),O$15*$C41))) -> 0 | P41: =IF(P$18<$A41,0,IF($C41>0,MIN($C41-SUM($F41:O41),$C41*P$15),MAX($C41-SUM($F41:O41),P$15*$C41))) -> 0 | Q41: =IF(Q$18<$A41,0,IF($C41>0,MIN($C41-SUM($F41:P41),$C41*Q$15),MAX($C41-SUM($F41:P41),Q$15*$C41))) -> 0 | R41: =IF(R$18<$A41,0,IF($C41>0,MIN($C41-SUM($F41:Q41),$C41*R$15),MAX($C41-SUM($F41:Q41),R$15*$C41))) -> 0 | S41: =IF(S$18<$A41,0,IF($C41>0,MIN($C41-SUM($F41:R41),$C41*S$15),MAX($C41-SUM($F41:R41),S$15*$C41))) -> 0 | T41: =IF(T$18<$A41,0,IF($C41>0,MIN($C41-SUM($F41:S41),$C41*T$15),MAX($C41-SUM($F41:S41),T$15*$C41))) -> 0 | U41: =IF(U$18<$A41,0,IF($C41>0,MIN($C41-SUM($F41:T41),$C41*U$15),MAX($C41-SUM($F41:T41),U$15*$C41))) -> 0 | V41: =IF(V$18<$A41,0,IF($C41>0,MIN($C41-SUM($F41:U41),$C41*V$15),MAX($C41-SUM($F41:U41),V$15*$C41))) -> 0
A42: 5 | B42: 2007 | C42: 0 | H42: =IF(H$18<$A42,0,IF($C42>0,MIN($C42-SUM($F42:G42),$C42*H$15),MAX($C42-SUM($F42:G42),H$15*$C42))) -> 0 | I42: =IF(I$18<$A42,0,IF($C42>0,MIN($C42-SUM($F42:H42),$C42*I$15),MAX($C42-SUM($F42:H42),I$15*$C42))) -> 0 | J42: =IF(J$18<$A42,0,IF($C42>0,MIN($C42-SUM($F42:I42),$C42*J$15),MAX($C42-SUM($F42:I42),J$15*$C42))) -> 0 | K42: =IF(K$18<$A42,0,IF($C42>0,MIN($C42-SUM($F42:J42),$C42*K$15),MAX($C42-SUM($F42:J42),K$15*$C42))) -> 0 | L42: =IF(L$18<$A42,0,IF($C42>0,MIN($C42-SUM($F42:K42),$C42*L$15),MAX($C42-SUM($F42:K42),L$15*$C42))) -> 0 | M42: =IF(M$18<$A42,0,IF($C42>0,MIN($C42-SUM($F42:L42),$C42*M$15),MAX($C42-SUM($F42:L42),M$15*$C42))) -> 0 | N42: =IF(N$18<$A42,0,IF($C42>0,MIN($C42-SUM($F42:M42),$C42*N$15),MAX($C42-SUM($F42:M42),N$15*$C42))) -> 0 | O42: =IF(O$18<$A42,0,IF($C42>0,MIN($C42-SUM($F42:N42),$C42*O$15),MAX($C42-SUM($F42:N42),O$15*$C42))) -> 0 | P42: =IF(P$18<$A42,0,IF($C42>0,MIN($C42-SUM($F42:O42),$C42*P$15),MAX($C42-SUM($F42:O42),P$15*$C42))) -> 0 | Q42: =IF(Q$18<$A42,0,IF($C42>0,MIN($C42-SUM($F42:P42),$C42*Q$15),MAX($C42-SUM($F42:P42),Q$15*$C42))) -> 0 | R42: =IF(R$18<$A42,0,IF($C42>0,MIN($C42-SUM($F42:Q42),$C42*R$15),MAX($C42-SUM($F42:Q42),R$15*$C42))) -> 0 | S42: =IF(S$18<$A42,0,IF($C42>0,MIN($C42-SUM($F42:R42),$C42*S$15),MAX($C42-SUM($F42:R42),S$15*$C42))) -> 0 | T42: =IF(T$18<$A42,0,IF($C42>0,MIN($C42-SUM($F42:S42),$C42*T$15),MAX($C42-SUM($F42:S42),T$15*$C42))) -> 0 | U42: =IF(U$18<$A42,0,IF($C42>0,MIN($C42-SUM($F42:T42),$C42*U$15),MAX($C42-SUM($F42:T42),U$15*$C42))) -> 0 | V42: =IF(V$18<$A42,0,IF($C42>0,MIN($C42-SUM($F42:U42),$C42*V$15),MAX($C42-SUM($F42:U42),V$15*$C42))) -> 0
A43: 6 | B43: 2008 | C43: 0 | H43: =IF(H$18<$A43,0,IF($C43>0,MIN($C43-SUM($F43:G43),$C43*H$15),MAX($C43-SUM($F43:G43),H$15*$C43))) -> 0 | I43: =IF(I$18<$A43,0,IF($C43>0,MIN($C43-SUM($F43:H43),$C43*I$15),MAX($C43-SUM($F43:H43),I$15*$C43))) -> 0 | J43: =IF(J$18<$A43,0,IF($C43>0,MIN($C43-SUM($F43:I43),$C43*J$15),MAX($C43-SUM($F43:I43),J$15*$C43))) -> 0 | K43: =IF(K$18<$A43,0,IF($C43>0,MIN($C43-SUM($F43:J43),$C43*K$15),MAX($C43-SUM($F43:J43),K$15*$C43))) -> 0 | L43: =IF(L$18<$A43,0,IF($C43>0,MIN($C43-SUM($F43:K43),$C43*L$15),MAX($C43-SUM($F43:K43),L$15*$C43))) -> 0 | M43: =IF(M$18<$A43,0,IF($C43>0,MIN($C43-SUM($F43:L43),$C43*M$15),MAX($C43-SUM($F43:L43),M$15*$C43))) -> 0 | N43: =IF(N$18<$A43,0,IF($C43>0,MIN($C43-SUM($F43:M43),$C43*N$15),MAX($C43-SUM($F43:M43),N$15*$C43))) -> 0 | O43: =IF(O$18<$A43,0,IF($C43>0,MIN($C43-SUM($F43:N43),$C43*O$15),MAX($C43-SUM($F43:N43),O$15*$C43))) -> 0 | P43: =IF(P$18<$A43,0,IF($C43>0,MIN($C43-SUM($F43:O43),$C43*P$15),MAX($C43-SUM($F43:O43),P$15*$C43))) -> 0 | Q43: =IF(Q$18<$A43,0,IF($C43>0,MIN($C43-SUM($F43:P43),$C43*Q$15),MAX($C43-SUM($F43:P43),Q$15*$C43))) -> 0 | R43: =IF(R$18<$A43,0,IF($C43>0,MIN($C43-SUM($F43:Q43),$C43*R$15),MAX($C43-SUM($F43:Q43),R$15*$C43))) -> 0 | S43: =IF(S$18<$A43,0,IF($C43>0,MIN($C43-SUM($F43:R43),$C43*S$15),MAX($C43-SUM($F43:R43),S$15*$C43))) -> 0 | T43: =IF(T$18<$A43,0,IF($C43>0,MIN($C43-SUM($F43:S43),$C43*T$15),MAX($C43-SUM($F43:S43),T$15*$C43))) -> 0 | U43: =IF(U$18<$A43,0,IF($C43>0,MIN($C43-SUM($F43:T43),$C43*U$15),MAX($C43-SUM($F43:T43),U$15*$C43))) -> 0 | V43: =IF(V$18<$A43,0,IF($C43>0,MIN($C43-SUM($F43:U43),$C43*V$15),MAX($C43-SUM($F43:U43),V$15*$C43))) -> 0
A44: 7 | B44: 2009 | C44: 0 | H44: =IF(H$18<$A44,0,IF($C44>0,MIN($C44-SUM($F44:G44),$C44*H$15),MAX($C44-SUM($F44:G44),H$15*$C44))) -> 0 | I44: =IF(I$18<$A44,0,IF($C44>0,MIN($C44-SUM($F44:H44),$C44*I$15),MAX($C44-SUM($F44:H44),I$15*$C44))) -> 0 | J44: =IF(J$18<$A44,0,IF($C44>0,MIN($C44-SUM($F44:I44),$C44*J$15),MAX($C44-SUM($F44:I44),J$15*$C44))) -> 0 | K44: =IF(K$18<$A44,0,IF($C44>0,MIN($C44-SUM($F44:J44),$C44*K$15),MAX($C44-SUM($F44:J44),K$15*$C44))) -> 0 | L44: =IF(L$18<$A44,0,IF($C44>0,MIN($C44-SUM($F44:K44),$C44*L$15),MAX($C44-SUM($F44:K44),L$15*$C44))) -> 0 | M44: =IF(M$18<$A44,0,IF($C44>0,MIN($C44-SUM($F44:L44),$C44*M$15),MAX($C44-SUM($F44:L44),M$15*$C44))) -> 0 | N44: =IF(N$18<$A44,0,IF($C44>0,MIN($C44-SUM($F44:M44),$C44*N$15),MAX($C44-SUM($F44:M44),N$15*$C44))) -> 0 | O44: =IF(O$18<$A44,0,IF($C44>0,MIN($C44-SUM($F44:N44),$C44*O$15),MAX($C44-SUM($F44:N44),O$15*$C44))) -> 0 | P44: =IF(P$18<$A44,0,IF($C44>0,MIN($C44-SUM($F44:O44),$C44*P$15),MAX($C44-SUM($F44:O44),P$15*$C44))) -> 0 | Q44: =IF(Q$18<$A44,0,IF($C44>0,MIN($C44-SUM($F44:P44),$C44*Q$15),MAX($C44-SUM($F44:P44),Q$15*$C44))) -> 0 | R44: =IF(R$18<$A44,0,IF($C44>0,MIN($C44-SUM($F44:Q44),$C44*R$15),MAX($C44-SUM($F44:Q44),R$15*$C44))) -> 0 | S44: =IF(S$18<$A44,0,IF($C44>0,MIN($C44-SUM($F44:R44),$C44*S$15),MAX($C44-SUM($F44:R44),S$15*$C44))) -> 0 | T44: =IF(T$18<$A44,0,IF($C44>0,MIN($C44-SUM($F44:S44),$C44*T$15),MAX($C44-SUM($F44:S44),T$15*$C44))) -> 0 | U44: =IF(U$18<$A44,0,IF($C44>0,MIN($C44-SUM($F44:T44),$C44*U$15),MAX($C44-SUM($F44:T44),U$15*$C44))) -> 0 | V44: =IF(V$18<$A44,0,IF($C44>0,MIN($C44-SUM($F44:U44),$C44*V$15),MAX($C44-SUM($F44:U44),V$15*$C44))) -> 0
A45: 8 | B45: 2010 | C45: 0 | H45: =IF(H$18<$A45,0,IF($C45>0,MIN($C45-SUM($F45:G45),$C45*H$15),MAX($C45-SUM($F45:G45),H$15*$C45))) -> 0 | I45: =IF(I$18<$A45,0,IF($C45>0,MIN($C45-SUM($F45:H45),$C45*I$15),MAX($C45-SUM($F45:H45),I$15*$C45))) -> 0 | J45: =IF(J$18<$A45,0,IF($C45>0,MIN($C45-SUM($F45:I45),$C45*J$15),MAX($C45-SUM($F45:I45),J$15*$C45))) -> 0 | K45: =IF(K$18<$A45,0,IF($C45>0,MIN($C45-SUM($F45:J45),$C45*K$15),MAX($C45-SUM($F45:J45),K$15*$C45))) -> 0 | L45: =IF(L$18<$A45,0,IF($C45>0,MIN($C45-SUM($F45:K45),$C45*L$15),MAX($C45-SUM($F45:K45),L$15*$C45))) -> 0 | M45: =IF(M$18<$A45,0,IF($C45>0,MIN($C45-SUM($F45:L45),$C45*M$15),MAX($C45-SUM($F45:L45),M$15*$C45))) -> 0 | N45: =IF(N$18<$A45,0,IF($C45>0,MIN($C45-SUM($F45:M45),$C45*N$15),MAX($C45-SUM($F45:M45),N$15*$C45))) -> 0 | O45: =IF(O$18<$A45,0,IF($C45>0,MIN($C45-SUM($F45:N45),$C45*O$15),MAX($C45-SUM($F45:N45),O$15*$C45))) -> 0 | P45: =IF(P$18<$A45,0,IF($C45>0,MIN($C45-SUM($F45:O45),$C45*P$15),MAX($C45-SUM($F45:O45),P$15*$C45))) -> 0 | Q45: =IF(Q$18<$A45,0,IF($C45>0,MIN($C45-SUM($F45:P45),$C45*Q$15),MAX($C45-SUM($F45:P45),Q$15*$C45))) -> 0 | R45: =IF(R$18<$A45,0,IF($C45>0,MIN($C45-SUM($F45:Q45),$C45*R$15),MAX($C45-SUM($F45:Q45),R$15*$C45))) -> 0 | S45: =IF(S$18<$A45,0,IF($C45>0,MIN($C45-SUM($F45:R45),$C45*S$15),MAX($C45-SUM($F45:R45),S$15*$C45))) -> 0 | T45: =IF(T$18<$A45,0,IF($C45>0,MIN($C45-SUM($F45:S45),$C45*T$15),MAX($C45-SUM($F45:S45),T$15*$C45))) -> 0 | U45: =IF(U$18<$A45,0,IF($C45>0,MIN($C45-SUM($F45:T45),$C45*U$15),MAX($C45-SUM($F45:T45),U$15*$C45))) -> 0 | V45: =IF(V$18<$A45,0,IF($C45>0,MIN($C45-SUM($F45:U45),$C45*V$15),MAX($C45-SUM($F45:U45),V$15*$C45))) -> 0
A46: 9 | B46: 2011 | C46: 0 | H46: =IF(H$18<$A46,0,IF($C46>0,MIN($C46-SUM($F46:G46),$C46*H$15),MAX($C46-SUM($F46:G46),H$15*$C46))) -> 0 | I46: =IF(I$18<$A46,0,IF($C46>0,MIN($C46-SUM($F46:H46),$C46*I$15),MAX($C46-SUM($F46:H46),I$15*$C46))) -> 0 | J46: =IF(J$18<$A46,0,IF($C46>0,MIN($C46-SUM($F46:I46),$C46*J$15),MAX($C46-SUM($F46:I46),J$15*$C46))) -> 0 | K46: =IF(K$18<$A46,0,IF($C46>0,MIN($C46-SUM($F46:J46),$C46*K$15),MAX($C46-SUM($F46:J46),K$15*$C46))) -> 0 | L46: =IF(L$18<$A46,0,IF($C46>0,MIN($C46-SUM($F46:K46),$C46*L$15),MAX($C46-SUM($F46:K46),L$15*$C46))) -> 0 | M46: =IF(M$18<$A46,0,IF($C46>0,MIN($C46-SUM($F46:L46),$C46*M$15),MAX($C46-SUM($F46:L46),M$15*$C46))) -> 0 | N46: =IF(N$18<$A46,0,IF($C46>0,MIN($C46-SUM($F46:M46),$C46*N$15),MAX($C46-SUM($F46:M46),N$15*$C46))) -> 0 | O46: =IF(O$18<$A46,0,IF($C46>0,MIN($C46-SUM($F46:N46),$C46*O$15),MAX($C46-SUM($F46:N46),O$15*$C46))) -> 0 | P46: =IF(P$18<$A46,0,IF($C46>0,MIN($C46-SUM($F46:O46),$C46*P$15),MAX($C46-SUM($F46:O46),P$15*$C46))) -> 0 | Q46: =IF(Q$18<$A46,0,IF($C46>0,MIN($C46-SUM($F46:P46),$C46*Q$15),MAX($C46-SUM($F46:P46),Q$15*$C46))) -> 0 | R46: =IF(R$18<$A46,0,IF($C46>0,MIN($C46-SUM($F46:Q46),$C46*R$15),MAX($C46-SUM($F46:Q46),R$15*$C46))) -> 0 | S46: =IF(S$18<$A46,0,IF($C46>0,MIN($C46-SUM($F46:R46),$C46*S$15),MAX($C46-SUM($F46:R46),S$15*$C46))) -> 0 | T46: =IF(T$18<$A46,0,IF($C46>0,MIN($C46-SUM($F46:S46),$C46*T$15),MAX($C46-SUM($F46:S46),T$15*$C46))) -> 0 | U46: =IF(U$18<$A46,0,IF($C46>0,MIN($C46-SUM($F46:T46),$C46*U$15),MAX($C46-SUM($F46:T46),U$15*$C46))) -> 0 | V46: =IF(V$18<$A46,0,IF($C46>0,MIN($C46-SUM($F46:U46),$C46*V$15),MAX($C46-SUM($F46:U46),V$15*$C46))) -> 0
A47: 10 | B47: 2012 | C47: 0 | H47: =IF(H$18<$A47,0,IF($C47>0,MIN($C47-SUM($F47:G47),$C47*H$15),MAX($C47-SUM($F47:G47),H$15*$C47))) -> 0 | I47: =IF(I$18<$A47,0,IF($C47>0,MIN($C47-SUM($F47:H47),$C47*I$15),MAX($C47-SUM($F47:H47),I$15*$C47))) -> 0 | J47: =IF(J$18<$A47,0,IF($C47>0,MIN($C47-SUM($F47:I47),$C47*J$15),MAX($C47-SUM($F47:I47),J$15*$C47))) -> 0 | K47: =IF(K$18<$A47,0,IF($C47>0,MIN($C47-SUM($F47:J47),$C47*K$15),MAX($C47-SUM($F47:J47),K$15*$C47))) -> 0 | L47: =IF(L$18<$A47,0,IF($C47>0,MIN($C47-SUM($F47:K47),$C47*L$15),MAX($C47-SUM($F47:K47),L$15*$C47))) -> 0 | M47: =IF(M$18<$A47,0,IF($C47>0,MIN($C47-SUM($F47:L47),$C47*M$15),MAX($C47-SUM($F47:L47),M$15*$C47))) -> 0 | N47: =IF(N$18<$A47,0,IF($C47>0,MIN($C47-SUM($F47:M47),$C47*N$15),MAX($C47-SUM($F47:M47),N$15*$C47))) -> 0 | O47: =IF(O$18<$A47,0,IF($C47>0,MIN($C47-SUM($F47:N47),$C47*O$15),MAX($C47-SUM($F47:N47),O$15*$C47))) -> 0 | P47: =IF(P$18<$A47,0,IF($C47>0,MIN($C47-SUM($F47:O47),$C47*P$15),MAX($C47-SUM($F47:O47),P$15*$C47))) -> 0 | Q47: =IF(Q$18<$A47,0,IF($C47>0,MIN($C47-SUM($F47:P47),$C47*Q$15),MAX($C47-SUM($F47:P47),Q$15*$C47))) -> 0 | R47: =IF(R$18<$A47,0,IF($C47>0,MIN($C47-SUM($F47:Q47),$C47*R$15),MAX($C47-SUM($F47:Q47),R$15*$C47))) -> 0 | S47: =IF(S$18<$A47,0,IF($C47>0,MIN($C47-SUM($F47:R47),$C47*S$15),MAX($C47-SUM($F47:R47),S$15*$C47))) -> 0 | T47: =IF(T$18<$A47,0,IF($C47>0,MIN($C47-SUM($F47:S47),$C47*T$15),MAX($C47-SUM($F47:S47),T$15*$C47))) -> 0 | U47: =IF(U$18<$A47,0,IF($C47>0,MIN($C47-SUM($F47:T47),$C47*U$15),MAX($C47-SUM($F47:T47),U$15*$C47))) -> 0 | V47: =IF(V$18<$A47,0,IF($C47>0,MIN($C47-SUM($F47:U47),$C47*V$15),MAX($C47-SUM($F47:U47),V$15*$C47))) -> 0
A48: 11 | B48: 2013 | C48: 0 | H48: =IF(H$18<$A48,0,IF($C48>0,MIN($C48-SUM($F48:G48),$C48*H$15),MAX($C48-SUM($F48:G48),H$15*$C48))) -> 0 | I48: =IF(I$18<$A48,0,IF($C48>0,MIN($C48-SUM($F48:H48),$C48*I$15),MAX($C48-SUM($F48:H48),I$15*$C48))) -> 0 | J48: =IF(J$18<$A48,0,IF($C48>0,MIN($C48-SUM($F48:I48),$C48*J$15),MAX($C48-SUM($F48:I48),J$15*$C48))) -> 0 | K48: =IF(K$18<$A48,0,IF($C48>0,MIN($C48-SUM($F48:J48),$C48*K$15),MAX($C48-SUM($F48:J48),K$15*$C48))) -> 0 | L48: =IF(L$18<$A48,0,IF($C48>0,MIN($C48-SUM($F48:K48),$C48*L$15),MAX($C48-SUM($F48:K48),L$15*$C48))) -> 0 | M48: =IF(M$18<$A48,0,IF($C48>0,MIN($C48-SUM($F48:L48),$C48*M$15),MAX($C48-SUM($F48:L48),M$15*$C48))) -> 0 | N48: =IF(N$18<$A48,0,IF($C48>0,MIN($C48-SUM($F48:M48),$C48*N$15),MAX($C48-SUM($F48:M48),N$15*$C48))) -> 0 | O48: =IF(O$18<$A48,0,IF($C48>0,MIN($C48-SUM($F48:N48),$C48*O$15),MAX($C48-SUM($F48:N48),O$15*$C48))) -> 0 | P48: =IF(P$18<$A48,0,IF($C48>0,MIN($C48-SUM($F48:O48),$C48*P$15),MAX($C48-SUM($F48:O48),P$15*$C48))) -> 0 | Q48: =IF(Q$18<$A48,0,IF($C48>0,MIN($C48-SUM($F48:P48),$C48*Q$15),MAX($C48-SUM($F48:P48),Q$15*$C48))) -> 0 | R48: =IF(R$18<$A48,0,IF($C48>0,MIN($C48-SUM($F48:Q48),$C48*R$15),MAX($C48-SUM($F48:Q48),R$15*$C48))) -> 0 | S48: =IF(S$18<$A48,0,IF($C48>0,MIN($C48-SUM($F48:R48),$C48*S$15),MAX($C48-SUM($F48:R48),S$15*$C48))) -> 0 | T48: =IF(T$18<$A48,0,IF($C48>0,MIN($C48-SUM($F48:S48),$C48*T$15),MAX($C48-SUM($F48:S48),T$15*$C48))) -> 0 | U48: =IF(U$18<$A48,0,IF($C48>0,MIN($C48-SUM($F48:T48),$C48*U$15),MAX($C48-SUM($F48:T48),U$15*$C48))) -> 0 | V48: =IF(V$18<$A48,0,IF($C48>0,MIN($C48-SUM($F48:U48),$C48*V$15),MAX($C48-SUM($F48:U48),V$15*$C48))) -> 0
A49: 12 | B49: 2014 | C49: 0 | H49: =IF(H$18<$A49,0,IF($C49>0,MIN($C49-SUM($F49:G49),$C49*H$15),MAX($C49-SUM($F49:G49),H$15*$C49))) -> 0 | I49: =IF(I$18<$A49,0,IF($C49>0,MIN($C49-SUM($F49:H49),$C49*I$15),MAX($C49-SUM($F49:H49),I$15*$C49))) -> 0 | J49: =IF(J$18<$A49,0,IF($C49>0,MIN($C49-SUM($F49:I49),$C49*J$15),MAX($C49-SUM($F49:I49),J$15*$C49))) -> 0 | K49: =IF(K$18<$A49,0,IF($C49>0,MIN($C49-SUM($F49:J49),$C49*K$15),MAX($C49-SUM($F49:J49),K$15*$C49))) -> 0 | L49: =IF(L$18<$A49,0,IF($C49>0,MIN($C49-SUM($F49:K49),$C49*L$15),MAX($C49-SUM($F49:K49),L$15*$C49))) -> 0 | M49: =IF(M$18<$A49,0,IF($C49>0,MIN($C49-SUM($F49:L49),$C49*M$15),MAX($C49-SUM($F49:L49),M$15*$C49))) -> 0 | N49: =IF(N$18<$A49,0,IF($C49>0,MIN($C49-SUM($F49:M49),$C49*N$15),MAX($C49-SUM($F49:M49),N$15*$C49))) -> 0 | O49: =IF(O$18<$A49,0,IF($C49>0,MIN($C49-SUM($F49:N49),$C49*O$15),MAX($C49-SUM($F49:N49),O$15*$C49))) -> 0 | P49: =IF(P$18<$A49,0,IF($C49>0,MIN($C49-SUM($F49:O49),$C49*P$15),MAX($C49-SUM($F49:O49),P$15*$C49))) -> 0 | Q49: =IF(Q$18<$A49,0,IF($C49>0,MIN($C49-SUM($F49:P49),$C49*Q$15),MAX($C49-SUM($F49:P49),Q$15*$C49))) -> 0 | R49: =IF(R$18<$A49,0,IF($C49>0,MIN($C49-SUM($F49:Q49),$C49*R$15),MAX($C49-SUM($F49:Q49),R$15*$C49))) -> 0 | S49: =IF(S$18<$A49,0,IF($C49>0,MIN($C49-SUM($F49:R49),$C49*S$15),MAX($C49-SUM($F49:R49),S$15*$C49))) -> 0 | T49: =IF(T$18<$A49,0,IF($C49>0,MIN($C49-SUM($F49:S49),$C49*T$15),MAX($C49-SUM($F49:S49),T$15*$C49))) -> 0 | U49: =IF(U$18<$A49,0,IF($C49>0,MIN($C49-SUM($F49:T49),$C49*U$15),MAX($C49-SUM($F49:T49),U$15*$C49))) -> 0 | V49: =IF(V$18<$A49,0,IF($C49>0,MIN($C49-SUM($F49:U49),$C49*V$15),MAX($C49-SUM($F49:U49),V$15*$C49))) -> 0
A50: 13 | B50: 2015 | C50: 0 | H50: =IF(H$18<$A50,0,IF($C50>0,MIN($C50-SUM($F50:G50),$C50*H$15),MAX($C50-SUM($F50:G50),H$15*$C50))) -> 0 | I50: =IF(I$18<$A50,0,IF($C50>0,MIN($C50-SUM($F50:H50),$C50*I$15),MAX($C50-SUM($F50:H50),I$15*$C50))) -> 0 | J50: =IF(J$18<$A50,0,IF($C50>0,MIN($C50-SUM($F50:I50),$C50*J$15),MAX($C50-SUM($F50:I50),J$15*$C50))) -> 0 | K50: =IF(K$18<$A50,0,IF($C50>0,MIN($C50-SUM($F50:J50),$C50*K$15),MAX($C50-SUM($F50:J50),K$15*$C50))) -> 0 | L50: =IF(L$18<$A50,0,IF($C50>0,MIN($C50-SUM($F50:K50),$C50*L$15),MAX($C50-SUM($F50:K50),L$15*$C50))) -> 0 | M50: =IF(M$18<$A50,0,IF($C50>0,MIN($C50-SUM($F50:L50),$C50*M$15),MAX($C50-SUM($F50:L50),M$15*$C50))) -> 0 | N50: =IF(N$18<$A50,0,IF($C50>0,MIN($C50-SUM($F50:M50),$C50*N$15),MAX($C50-SUM($F50:M50),N$15*$C50))) -> 0 | O50: =IF(O$18<$A50,0,IF($C50>0,MIN($C50-SUM($F50:N50),$C50*O$15),MAX($C50-SUM($F50:N50),O$15*$C50))) -> 0 | P50: =IF(P$18<$A50,0,IF($C50>0,MIN($C50-SUM($F50:O50),$C50*P$15),MAX($C50-SUM($F50:O50),P$15*$C50))) -> 0 | Q50: =IF(Q$18<$A50,0,IF($C50>0,MIN($C50-SUM($F50:P50),$C50*Q$15),MAX($C50-SUM($F50:P50),Q$15*$C50))) -> 0 | R50: =IF(R$18<$A50,0,IF($C50>0,MIN($C50-SUM($F50:Q50),$C50*R$15),MAX($C50-SUM($F50:Q50),R$15*$C50))) -> 0 | S50: =IF(S$18<$A50,0,IF($C50>0,MIN($C50-SUM($F50:R50),$C50*S$15),MAX($C50-SUM($F50:R50),S$15*$C50))) -> 0 | T50: =IF(T$18<$A50,0,IF($C50>0,MIN($C50-SUM($F50:S50),$C50*T$15),MAX($C50-SUM($F50:S50),T$15*$C50))) -> 0 | U50: =IF(U$18<$A50,0,IF($C50>0,MIN($C50-SUM($F50:T50),$C50*U$15),MAX($C50-SUM($F50:T50),U$15*$C50))) -> 0 | V50: =IF(V$18<$A50,0,IF($C50>0,MIN($C50-SUM($F50:U50),$C50*V$15),MAX($C50-SUM($F50:U50),V$15*$C50))) -> 0
A51: 14 | B51: 2016 | C51: 0 | H51: =IF(H$18<$A51,0,IF($C51>0,MIN($C51-SUM($F51:G51),$C51*H$15),MAX($C51-SUM($F51:G51),H$15*$C51))) -> 0 | I51: =IF(I$18<$A51,0,IF($C51>0,MIN($C51-SUM($F51:H51),$C51*I$15),MAX($C51-SUM($F51:H51),I$15*$C51))) -> 0 | J51: =IF(J$18<$A51,0,IF($C51>0,MIN($C51-SUM($F51:I51),$C51*J$15),MAX($C51-SUM($F51:I51),J$15*$C51))) -> 0 | K51: =IF(K$18<$A51,0,IF($C51>0,MIN($C51-SUM($F51:J51),$C51*K$15),MAX($C51-SUM($F51:J51),K$15*$C51))) -> 0 | L51: =IF(L$18<$A51,0,IF($C51>0,MIN($C51-SUM($F51:K51),$C51*L$15),MAX($C51-SUM($F51:K51),L$15*$C51))) -> 0 | M51: =IF(M$18<$A51,0,IF($C51>0,MIN($C51-SUM($F51:L51),$C51*M$15),MAX($C51-SUM($F51:L51),M$15*$C51))) -> 0 | N51: =IF(N$18<$A51,0,IF($C51>0,MIN($C51-SUM($F51:M51),$C51*N$15),MAX($C51-SUM($F51:M51),N$15*$C51))) -> 0 | O51: =IF(O$18<$A51,0,IF($C51>0,MIN($C51-SUM($F51:N51),$C51*O$15),MAX($C51-SUM($F51:N51),O$15*$C51))) -> 0 | P51: =IF(P$18<$A51,0,IF($C51>0,MIN($C51-SUM($F51:O51),$C51*P$15),MAX($C51-SUM($F51:O51),P$15*$C51))) -> 0 | Q51: =IF(Q$18<$A51,0,IF($C51>0,MIN($C51-SUM($F51:P51),$C51*Q$15),MAX($C51-SUM($F51:P51),Q$15*$C51))) -> 0 | R51: =IF(R$18<$A51,0,IF($C51>0,MIN($C51-SUM($F51:Q51),$C51*R$15),MAX($C51-SUM($F51:Q51),R$15*$C51))) -> 0 | S51: =IF(S$18<$A51,0,IF($C51>0,MIN($C51-SUM($F51:R51),$C51*S$15),MAX($C51-SUM($F51:R51),S$15*$C51))) -> 0 | T51: =IF(T$18<$A51,0,IF($C51>0,MIN($C51-SUM($F51:S51),$C51*T$15),MAX($C51-SUM($F51:S51),T$15*$C51))) -> 0 | U51: =IF(U$18<$A51,0,IF($C51>0,MIN($C51-SUM($F51:T51),$C51*U$15),MAX($C51-SUM($F51:T51),U$15*$C51))) -> 0 | V51: =IF(V$18<$A51,0,IF($C51>0,MIN($C51-SUM($F51:U51),$C51*V$15),MAX($C51-SUM($F51:U51),V$15*$C51))) -> 0
A52: 15 | B52: 2017 | C52: 0 | H52: =IF(H$18<$A52,0,IF($C52>0,MIN($C52-SUM($F52:G52),$C52*H$15),MAX($C52-SUM($F52:G52),H$15*$C52))) -> 0 | I52: =IF(I$18<$A52,0,IF($C52>0,MIN($C52-SUM($F52:H52),$C52*I$15),MAX($C52-SUM($F52:H52),I$15*$C52))) -> 0 | J52: =IF(J$18<$A52,0,IF($C52>0,MIN($C52-SUM($F52:I52),$C52*J$15),MAX($C52-SUM($F52:I52),J$15*$C52))) -> 0 | K52: =IF(K$18<$A52,0,IF($C52>0,MIN($C52-SUM($F52:J52),$C52*K$15),MAX($C52-SUM($F52:J52),K$15*$C52))) -> 0 | L52: =IF(L$18<$A52,0,IF($C52>0,MIN($C52-SUM($F52:K52),$C52*L$15),MAX($C52-SUM($F52:K52),L$15*$C52))) -> 0 | M52: =IF(M$18<$A52,0,IF($C52>0,MIN($C52-SUM($F52:L52),$C52*M$15),MAX($C52-SUM($F52:L52),M$15*$C52))) -> 0 | N52: =IF(N$18<$A52,0,IF($C52>0,MIN($C52-SUM($F52:M52),$C52*N$15),MAX($C52-SUM($F52:M52),N$15*$C52))) -> 0 | O52: =IF(O$18<$A52,0,IF($C52>0,MIN($C52-SUM($F52:N52),$C52*O$15),MAX($C52-SUM($F52:N52),O$15*$C52))) -> 0 | P52: =IF(P$18<$A52,0,IF($C52>0,MIN($C52-SUM($F52:O52),$C52*P$15),MAX($C52-SUM($F52:O52),P$15*$C52))) -> 0 | Q52: =IF(Q$18<$A52,0,IF($C52>0,MIN($C52-SUM($F52:P52),$C52*Q$15),MAX($C52-SUM($F52:P52),Q$15*$C52))) -> 0 | R52: =IF(R$18<$A52,0,IF($C52>0,MIN($C52-SUM($F52:Q52),$C52*R$15),MAX($C52-SUM($F52:Q52),R$15*$C52))) -> 0 | S52: =IF(S$18<$A52,0,IF($C52>0,MIN($C52-SUM($F52:R52),$C52*S$15),MAX($C52-SUM($F52:R52),S$15*$C52))) -> 0 | T52: =IF(T$18<$A52,0,IF($C52>0,MIN($C52-SUM($F52:S52),$C52*T$15),MAX($C52-SUM($F52:S52),T$15*$C52))) -> 0 | U52: =IF(U$18<$A52,0,IF($C52>0,MIN($C52-SUM($F52:T52),$C52*U$15),MAX($C52-SUM($F52:T52),U$15*$C52))) -> 0 | V52: =IF(V$18<$A52,0,IF($C52>0,MIN($C52-SUM($F52:U52),$C52*V$15),MAX($C52-SUM($F52:U52),V$15*$C52))) -> 0
A53: 16 | B53: 2018 | C53: 11528.11728 | H53: =IF(H$18+1<$A53,0,IF($C53>0,MIN($C53-SUM($F53:G53),$C53*H$15),MAX($C53-SUM($F53:G53),H$15*$C53))) -> 0 | I53: =IF(I$18+1<$A53,0,IF($C53>0,MIN($C53-SUM($F53:H53),$C53*I$15),MAX($C53-SUM($F53:H53),I$15*$C53))) -> 0 | J53: =IF(J$18+1<$A53,0,IF($C53>0,MIN($C53-SUM($F53:I53),$C53*J$15),MAX($C53-SUM($F53:I53),J$15*$C53))) -> 0 | K53: =IF(K$18+1<$A53,0,IF($C53>0,MIN($C53-SUM($F53:J53),$C53*K$15),MAX($C53-SUM($F53:J53),K$15*$C53))) -> 0 | L53: =IF(L$18+1<$A53,0,IF($C53>0,MIN($C53-SUM($F53:K53),$C53*L$15),MAX($C53-SUM($F53:K53),L$15*$C53))) -> 0 | M53: =IF(M$18+1<$A53,0,IF($C53>0,MIN($C53-SUM($F53:L53),$C53*M$15),MAX($C53-SUM($F53:L53),M$15*$C53))) -> 0 | N53: =IF(N$18+1<$A53,0,IF($C53>0,MIN($C53-SUM($F53:M53),$C53*N$15),MAX($C53-SUM($F53:M53),N$15*$C53))) -> 0 | O53: =IF(O$18+1<$A53,0,IF($C53>0,MIN($C53-SUM($F53:N53),$C53*O$15),MAX($C53-SUM($F53:N53),O$15*$C53))) -> 0 | P53: =IF(P$18+1<$A53,0,IF($C53>0,MIN($C53-SUM($F53:O53),$C53*P$15),MAX($C53-SUM($F53:O53),P$15*$C53))) -> 0 | Q53: =IF(Q$18+1<$A53,0,IF($C53>0,MIN($C53-SUM($F53:P53),$C53*Q$15),MAX($C53-SUM($F53:P53),Q$15*$C53))) -> 0 | R53: =IF(R$18+1<$A53,0,IF($C53>0,MIN($C53-SUM($F53:Q53),$C53*R$15),MAX($C53-SUM($F53:Q53),R$15*$C53))) -> 0 | S53: =IF(S$18+1<$A53,0,IF($C53>0,MIN($C53-SUM($F53:R53),$C53*S$15),MAX($C53-SUM($F53:R53),S$15*$C53))) -> 0 | T53: =IF(T$18+1<$A53,0,IF($C53>0,MIN($C53-SUM($F53:S53),$C53*T$15),MAX($C53-SUM($F53:S53),T$15*$C53))) -> 0 | U53: =IF(U$18+1<$A53,0,IF($C53>0,MIN($C53-SUM($F53:T53),$C53*U$15),MAX($C53-SUM($F53:T53),U$15*$C53))) -> 0 | V53: =IF(V$18+1<$A53,0,IF($C53>0,MIN($C53-SUM($F53:U53),$C53*V$15),MAX($C53-SUM($F53:U53),V$15*$C53))) -> 260.6580993
A56: =A48+1 -> 12 | B56: Excess Deferred Income Tax Amortization Adjustment | D56: =+"Sum Ln ("&A20&" to "&A48&")" -> Sum Ln ( to 11) | H56: =SUM(H20:H54) -> 54.80332671 | I56: =SUM(I20:I54) -> 52.40457923 | J56: 52.29760614 | K56: 53.62625128 | L56: 52.69005692 | M56: 50.0897833 | N56: 52.6874168 | O56: 53.48483868 | P56: 52.90050522 | Q56: 53.06892872 | R56: =SUM(R20:R54) -> 52.15873743 | S56: =SUM(S20:S54) -> 51.02809492 | T56: =SUM(T20:T54) -> 52.67697745 | U56: =SUM(U20:U54) -> 52.61582371 | V56: =SUM(V20:V54) -> 312.2286595
A58: =A56+1 -> 13 | B58: Accumulated Excess Deferred Income Tax Amortization | D58: ="Ln ("&A56&" + Prior "&A58&")" -> Ln (12 + Prior 13) | F58: 2/ | G58: =+Input!E64 -> 972.9823247 | H58: =+H56+G58 -> 1027.785651 | I58: 1080.190231 | J58: 1132.487837 | K58: 1186.114088 | L58: 1238.804145 | M58: 1288.893928 | N58: 1341.581345 | O58: 1395.066184 | P58: 1447.966689 | Q58: 1501.035618 | R58: =+R56+Q58 -> 1553.194355 | S58: =+S56+R58 -> 1604.22245 | T58: =+T56+S58 -> 1656.899428 | U58: =+U56+T58 -> 1709.515251 | V58: =+V56+U58 -> 2021.743911
A60: =+"1/ Year 1 = "&Input!$J$2&", Ln "&Input!A70 -> 1/ Year 1 = Schedule 1, Ln 40
A61: =+"2/ Year 1 = "&Input!$J$2&", Ln "&Input!A64 -> 2/ Year 1 = Schedule 1, Ln 37

Sheet Rates
A1: =+'FASB-Excess'!A1 -> Olympic Pipe Line Company | U1: =+Input!S1 -> Exhibit No. 1.4(a)
A2: =+Index!C24 -> Calculation of Tariff Rates | U2: =+Index!B24 -> Schedule 15
U5: Page 1 of 2
A6: Line
A7: No. | B7: Description | E7: Source | H7: =+'FASB-Excess'!H7 -> 2004 | I7: =+'FASB-Excess'!I7 -> 2005 | J7: =+'FASB-Excess'!J7 -> 2006 | K7: =+'FASB-Excess'!K7 -> 2007 | L7: =+'FASB-Excess'!L7 -> 2008 | M7: =+'FASB-Excess'!M7 -> 2009 | N7: =+'FASB-Excess'!N7 -> 2010 | O7: =+'FASB-Excess'!O7 -> 2011 | P7: =+'FASB-Excess'!P7 -> 2012 | Q7: =+'FASB-Excess'!Q7 -> 2013 | R7: =+'FASB-Excess'!R7 -> 2014 | S7: =+'FASB-Excess'!S7 -> 2015 | T7: =+'FASB-Excess'!T7 -> 2016 | U7: =+'FASB-Excess'!U7 -> 2017 | V7: =+'FASB-Excess'!V7 -> 2018
A9: 1 | B9: Total Revenue Requirement (Including Net Carryover) - $000's | E9: =+'Cost of Service'!$U$2&" Ln "&'Cost of Service'!A24 -> Schedule 3 Ln 8 | H9: =+'Cost of Service'!H24 -> 52354.57052 | I9: =+'Cost of Service'!I24 -> 61229.34854 | J9: =+'Cost of Service'!J24 -> 74135.14028 | K9: =+'Cost of Service'!K24 -> 78996.27931 | L9: =+'Cost of Service'!L24 -> 72235.51576 | M9: =+'Cost of Service'!M24 -> 54939.48637 | N9: =+'Cost of Service'!N24 -> 58858.39229 | O9: =+'Cost of Service'!O24 -> 68248.11598 | P9: =+'Cost of Service'!P24 -> 73725.15709 | Q9: =+'Cost of Service'!Q24 -> 73960.68818 | R9: =+'Cost of Service'!R24 -> 63526.75591 | S9: =+'Cost of Service'!S24 -> 63623.79012 | T9: =+'Cost of Service'!T24 -> 74288.61748 | U9: =+'Cost of Service'!U24 -> 79250.60905 | V9: =+'Cost of Service'!V24 -> 68957.06334
A11: =1+A9 -> 2 | B11: Tariff Revenues - Estimated ($000's) | E11: =+Input!$J$2&" Ln "&Input!A51 -> Schedule 1 Ln 31 | H11: =+Input!F51 -> 0 | I11: =+Input!G51 -> 0 | J11: =+Input!H51 -> 0 | K11: =+Input!I51 -> 0 | L11: =+Input!J51 -> 0 | M11: =+Input!K51 -> 0 | N11: =+Input!L51 -> 0 | O11: 0 | P11: =+Input!N51 -> 0 | Q11: =+Input!O51 -> 0 | R11: =+Input!P51 -> 0 | S11: =+Input!Q51 -> 0 | T11: =+Input!R51 -> 0 | U11: =+Input!S51 -> 0 | V11: =+Input!T51 -> 78251.006
A13: =1+A11 -> 3 | B13: Rate Adjustment Factor | E13: =+"( Ln "&A9&") / Ln "&A11&"" -> ( Ln 1) / Ln 2 | H13: =+IF(H11=0,0,H9/H11) -> 0 | I13: =+IF(I11=0,0,I9/I11) -> 0 | J13: =+IF(J11=0,0,J9/J11) -> 0 | K13: =+IF(K11=0,0,K9/K11) -> 0 | L13: =+IF(L11=0,0,1-(70765.7031706306-L9)/L11) -> 0 | M13: =+IF(M11=0,0,M9/M11) -> 0 | N13: =+IF(N11=0,0,N9/N11) -> 0 | O13: 0 | P13: 0 | Q13: 0 | R13: =+IF(R11=0,0,((R9/R11)/(1-0.0514745))) -> 0 | S13: =+IF(S11=0,0,((S9/S11)/(1-0.0206))) -> 0 | T13: =+IF(T11=0,0,T9/T11) -> 0 | U13: 0 | V13: 0.8812290968 | X13: Tariff Multiplier for 2018
B15: Effective Tariff Rates January - June ($/Bbl) | L15: Effective Rates July - Dec. 2008 | M15: Effective Rates Jan - June 2009 | S15: Effective Rates March 2015 - June 2015 | U15: Effective Rates January 2017
A16: =1+A13 -> 4 | B16: ANACORTES to LINNTON | C16: Fungible | D16: FERC | E16: =+Input!$J$2&" Ln "&Input!A159 -> Schedule 1 Ln 103 | H16: =+Input!F159 -> 0.6373 | I16: =+Input!G159 -> 0.6373 | J16: =+Input!H159 -> 0.6847 | K16: =+Input!I159 -> 0.9079 | L16: =+Input!J159 -> 0.8791 | M16: =+Input!K159 -> 0.8326 | N16: =+Input!L159 -> 0.756 | O16: =+Input!M159 -> 0.7377 | P16: =+Input!N159 -> 0.8498 | Q16: =+Input!O159 -> 0.9928 | R16: =+Input!P159 -> 0.7785 | S16: =+Input!Q159 -> 0.7624 | T16: =+Input!R159 -> 0.8559 | U16: =+Input!S159 -> 0.8256262833 | V16: =+Input!T159 -> 1.0067 | X16: see new tariffs next section below
A17: =1+A16 -> 5 | B17: ANACORTES to LINNTON | C17: Non-Fungible | D17: FERC | E17: =+Input!$J$2&" Ln "&Input!A160 -> Schedule 1 Ln 104 | H17: =+Input!F160 -> 0.6796 | I17: =+Input!G160 -> 0.6796 | J17: =+Input!H160 -> 0.7302 | K17: =+Input!I160 -> 0.9682 | L17: =+Input!J160 -> 0.9375 | M17: =+Input!K160 -> 0.8879 | N17: =+Input!L160 -> 0.8062 | O17: =+Input!M160 -> 0.7867 | P17: =+Input!N160 -> 0.9062 | Q17: =+Input!O160 -> 1.0587 | R17: =+Input!P160 -> 0.8302 | S17: =+Input!Q160 -> 0.8131 | T17: =+Input!R160 -> 0.9128 | U17: =+Input!S160 -> 0.8805136948 | V17: =+Input!T160 -> 1.0736
A18: =1+A17 -> 6 | B18: BAYVIEW to LINNTON | C18: Fungible | D18: FERC | E18: =+Input!$J$2&" Ln "&Input!A161 -> Schedule 1 Ln 105 | H18: =+Input!F161 -> 0 | I18: =+Input!G161 -> 0 | J18: =+Input!H161 -> 0 | K18: =+Input!I161 -> 0 | L18: =+Input!J161 -> 0.737 | M18: =+Input!K161 -> 0.698 | N18: =+Input!L161 -> 0.6338 | O18: =+Input!M161 -> 0.6184 | P18: =+Input!N161 -> 0.7124 | Q18: =+Input!O161 -> 0.8323 | R18: =+Input!P161 -> 0.6526 | S18: =+Input!Q161 -> 0.6392 | T18: =+Input!R161 -> 0.7177 | U18: =+Input!S161 -> 0.6923145035 | V18: =+Input!T161 -> 0.8441
A19: 7 | B19: BAYVIEW to LINNTON | C19: Non-Fungible | D19: FERC | E19: =+Input!$J$2&" Ln "&Input!A162 -> Schedule 1 Ln 106 | H19: =+Input!F162 -> 0 | I19: =+Input!G162 -> 0 | J19: =+Input!H162 -> 0 | K19: =+Input!I162 -> 0 | L19: =+Input!J162 -> 0.796 | M19: =+Input!K162 -> 0.7539 | N19: =+Input!L162 -> 0.6846 | O19: =+Input!M162 -> 0.668 | P19: =+Input!N162 -> 0.7695 | Q19: =+Input!O162 -> 0.899 | R19: =+Input!P162 -> 0.705 | S19: =+Input!Q162 -> 0.6905 | T19: =+Input!R162 -> 0.7752 | U19: =+Input!S162 -> 0.7477806926 | V19: =+Input!T162 -> 0.9118
A20: 8 | B20: CHERRY POINT to LINNTON | C20: Fungible | D20: FERC | E20: =+Input!$J$2&" Ln "&Input!A163 -> Schedule 1 Ln 107 | H20: =+Input!F163 -> 0.7107 | I20: =+Input!G163 -> 0.7107 | J20: =+Input!H163 -> 0.7636 | K20: =+Input!I163 -> 1.0125 | L20: =+Input!J163 -> 0.9804 | M20: =+Input!K163 -> 0.9286 | N20: =+Input!L163 -> 0.8432 | O20: =+Input!M163 -> 0.8228 | P20: =+Input!N163 -> 0.9478 | Q20: =+Input!O163 -> 1.1073 | R20: =+Input!P163 -> 0.8683 | S20: =+Input!Q163 -> 0.8504 | T20: =+Input!R163 -> 0.9547 | U20: =+Input!S163 -> 0.9209316657 | V20: =+Input!T163 -> 1.1229
A21: 9 | B21: CHERRY POINT to LINNTON | C21: Non-Fungible | D21: FERC | E21: =+Input!$J$2&" Ln "&Input!A164 -> Schedule 1 Ln 108 | H21: =+Input!F164 -> 0.7535 | I21: =+Input!G164 -> 0.7535 | J21: =+Input!H164 -> 0.8096 | K21: =+Input!I164 -> 1.0735 | L21: =+Input!J164 -> 1.0394 | M21: =+Input!K164 -> 0.9845 | N21: =+Input!L164 -> 0.8939 | O21: =+Input!M164 -> 0.8722 | P21: =+Input!N164 -> 1.0047 | Q21: =+Input!O164 -> 1.1738 | R21: =+Input!P164 -> 0.9204 | S21: =+Input!Q164 -> 0.9014 | T21: =+Input!R164 -> 1.012 | U21: =+Input!S164 -> 0.9762049289 | V21: =+Input!T164 -> 1.1903
A22: 10 | B22: FERNDALE to LINNTON | C22: Fungible | D22: FERC | E22: =+Input!$J$2&" Ln "&Input!A165 -> Schedule 1 Ln 109 | H22: =+Input!F165 -> 0.6991 | I22: =+Input!G165 -> 0.6991 | J22: =+Input!H165 -> 0.7511 | K22: =+Input!I165 -> 0.996 | L22: =+Input!J165 -> 0.9644 | M22: =+Input!K165 -> 0.9134 | N22: =+Input!L165 -> 0.8294 | O22: =+Input!M165 -> 0.8093 | P22: =+Input!N165 -> 0.9323 | Q22: =+Input!O165 -> 1.0892 | R22: =+Input!P165 -> 0.8541 | S22: =+Input!Q165 -> 0.8365 | T22: =+Input!R165 -> 0.9391 | U22: =+Input!S165 -> 0.9058834474 | V22: =+Input!T165 -> 1.1045
A23: 11 | B23: FERNDALE to LINNTON | C23: Non-Fungible | D23: FERC | E23: =+Input!$J$2&" Ln "&Input!A166 -> Schedule 1 Ln 110 | H23: =+Input!F166 -> 0.7417 | I23: =+Input!G166 -> 0.7417 | J23: =+Input!H166 -> 0.7969 | K23: =+Input!I166 -> 1.0567 | L23: =+Input!J166 -> 1.0232 | M23: =+Input!K166 -> 0.9691 | N23: =+Input!L166 -> 0.88 | O23: =+Input!M166 -> 0.8587 | P23: =+Input!N166 -> 0.9892 | Q23: =+Input!O166 -> 1.1557 | R23: =+Input!P166 -> 0.9063 | S23: =+Input!Q166 -> 0.8876 | T23: =+Input!R166 -> 0.9965 | U23: =+Input!S166 -> 0.9612531736 | V23: =+Input!T166 -> 1.172
A24: 12 | B24: ANACORTES to PORTLAND | C24: Fungible | D24: FERC | E24: =+Input!$J$2&" Ln "&Input!A167 -> Schedule 1 Ln 111 | H24: =+Input!F167 -> 0.6373 | I24: =+Input!G167 -> 0.6373 | J24: =+Input!H167 -> 0.6847 | K24: =+Input!I167 -> 0.9079 | L24: =+Input!J167 -> 0.8791 | M24: =+Input!K167 -> 0.8326 | N24: =+Input!L167 -> 0.756 | O24: =+Input!M167 -> 0.7377 | P24: =+Input!N167 -> 0.8498 | Q24: =+Input!O167 -> 0.9928 | R24: =+Input!P167 -> 0.7785 | S24: =+Input!Q167 -> 0.7624 | T24: =+Input!R167 -> 0.8559 | U24: =+Input!S167 -> 0.8256262833 | V24: =+Input!T167 -> 1.0067
A25: 13 | B25: ANACORTES to PORTLAND | C25: Non-Fungible | D25: FERC | E25: =+Input!$J$2&" Ln "&Input!A168 -> Schedule 1 Ln 112 | H25: =+Input!F168 -> 0.6796 | I25: =+Input!G168 -> 0.6796 | J25: =+Input!H168 -> 0.7302 | K25: =+Input!I168 -> 0.9682 | L25: =+Input!J168 -> 0.9375 | M25: =+Input!K168 -> 0.8879 | N25: =+Input!L168 -> 0.8062 | O25: =+Input!M168 -> 0.7867 | P25: =+Input!N168 -> 0.9062 | Q25: =+Input!O168 -> 1.0587 | R25: =+Input!P168 -> 0.8302 | S25: =+Input!Q168 -> 0.8131 | T25: =+Input!R168 -> 0.9128 | U25: =+Input!S168 -> 0.8805136948 | V25: =+Input!T168 -> 1.0736
A26: 14 | B26: BAYVIEW to PORTLAND | C26: Fungible | D26: FERC | E26: =+Input!$J$2&" Ln "&Input!A169 -> Schedule 1 Ln 113 | H26: =+Input!F169 -> 0 | I26: =+Input!G169 -> 0 | J26: =+Input!H169 -> 0 | K26: =+Input!I169 -> 0 | L26: =+Input!J169 -> 0.737 | M26: =+Input!K169 -> 0.698 | N26: =+Input!L169 -> 0.6338 | O26: =+Input!M169 -> 0.6184 | P26: =+Input!N169 -> 0.7124 | Q26: =+Input!O169 -> 0.8323 | R26: =+Input!P169 -> 0.6526 | S26: =+Input!Q169 -> 0.6392 | T26: =+Input!R169 -> 0.7177 | U26: =+Input!S169 -> 0.6923145035 | V26: =+Input!T169 -> 0.8441
A27: 15 | B27: BAYVIEW to PORTLAND | C27: Non-Fungible | D27: FERC | E27: =+Input!$J$2&" Ln "&Input!A170 -> Schedule 1 Ln 114 | H27: =+Input!F170 -> 0 | I27: =+Input!G170 -> 0 | J27: =+Input!H170 -> 0 | K27: =+Input!I170 -> 0 | L27: =+Input!J170 -> 0.796 | M27: =+Input!K170 -> 0.7539 | N27: =+Input!L170 -> 0.6846 | O27: =+Input!M170 -> 0.668 | P27: =+Input!N170 -> 0.7695 | Q27: =+Input!O170 -> 0.899 | R27: =+Input!P170 -> 0.705 | S27: =+Input!Q170 -> 0.6905 | T27: =+Input!R170 -> 0.7752 | U27: =+Input!S170 -> 0.7477806926 | V27: =+Input!T170 -> 0.9118
A28: 16 | B28: CHERRY POINT to PORTLAND | C28: Fungible | D28: FERC | E28: =+Input!$J$2&" Ln "&Input!A171 -> Schedule 1 Ln 115 | H28: =+Input!F171 -> 0.7107 | I28: =+Input!G171 -> 0.7107 | J28: =+Input!H171 -> 0.7636 | K28: =+Input!I171 -> 1.0125 | L28: =+Input!J171 -> 0.9804 | M28: =+Input!K171 -> 0.9286 | N28: =+Input!L171 -> 0.8432 | O28: =+Input!M171 -> 0.8228 | P28: =+Input!N171 -> 0.9478 | Q28: =+Input!O171 -> 1.1073 | R28: =+Input!P171 -> 0.8683 | S28: =+Input!Q171 -> 0.8504 | T28: =+Input!R171 -> 0.9547 | U28: =+Input!S171 -> 0.9209316657 | V28: =+Input!T171 -> 1.1229
A29: 17 | B29: CHERRY POINT to PORTLAND | C29: Non-Fungible | D29: FERC | E29: =+Input!$J$2&" Ln "&Input!A172 -> Schedule 1 Ln 116 | H29: =+Input!F172 -> 0.7535 | I29: =+Input!G172 -> 0.7535 | J29: =+Input!H172 -> 0.8096 | K29: =+Input!I172 -> 1.0735 | L29: =+Input!J172 -> 1.0394 | M29: =+Input!K172 -> 0.9845 | N29: =+Input!L172 -> 0.8939 | O29: =+Input!M172 -> 0.8722 | P29: =+Input!N172 -> 1.0047 | Q29: =+Input!O172 -> 1.1738 | R29: =+Input!P172 -> 0.9204 | S29: =+Input!Q172 -> 0.9014 | T29: =+Input!R172 -> 1.012 | U29: =+Input!S172 -> 0.9762049289 | V29: =+Input!T172 -> 1.1903
A30: 18 | B30: FERNDALE to PORTLAND | C30: Fungible | D30: FERC | E30: =+Input!$J$2&" Ln "&Input!A173 -> Schedule 1 Ln 117 | H30: =+Input!F173 -> 0.6991 | I30: =+Input!G173 -> 0.6991 | J30: =+Input!H173 -> 0.7511 | K30: =+Input!I173 -> 0.996 | L30: =+Input!J173 -> 0.9644 | M30: =+Input!K173 -> 0.9134 | N30: =+Input!L173 -> 0.8294 | O30: =+Input!M173 -> 0.8093 | P30: =+Input!N173 -> 0.9323 | Q30: =+Input!O173 -> 1.0892 | R30: =+Input!P173 -> 0.8541 | S30: =+Input!Q173 -> 0.8365 | T30: =+Input!R173 -> 0.9391 | U30: =+Input!S173 -> 0.9058834474 | V30: =+Input!T173 -> 1.1045
A31: 19 | B31: FERNDALE to PORTLAND | C31: Non-Fungible | D31: FERC | E31: =+Input!$J$2&" Ln "&Input!A174 -> Schedule 1 Ln 118 | H31: =+Input!F174 -> 0.7417 | I31: =+Input!G174 -> 0.7417 | J31: =+Input!H174 -> 0.7569 | K31: =+Input!I174 -> 1.0567 | L31: =+Input!J174 -> 1.0232 | M31: =+Input!K174 -> 0.9691 | N31: =+Input!L174 -> 0.88 | O31: =+Input!M174 -> 0.8587 | P31: =+Input!N174 -> 0.9892 | Q31: =+Input!O174 -> 1.1557 | R31: =+Input!P174 -> 0.9063 | S31: =+Input!Q174 -> 0.8876 | T31: =+Input!R174 -> 0.9965 | U31: =+Input!S174 -> 0.9612531736 | V31: =+Input!T174 -> 1.172
A32: 20 | B32: ANACORTES to BAYVIEW | C32: N/A | D32: WUTC | E32: =+Input!$J$2&" Ln "&Input!A179 -> Schedule 1 Ln 123 | H32: =+Input!F175 -> 0 | I32: =+Input!G175 -> 0.1069 | J32: =+Input!H175 -> 0.1149 | K32: =+Input!I175 -> 0.1524 | L32: =+Input!J175 -> 0.1476 | M32: =+Input!K175 -> 0.1398 | N32: =+Input!L175 -> 0.1269 | O32: =+Input!M175 -> 0.1238 | P32: =+Input!N175 -> 0.1426 | Q32: =+Input!O175 -> 0.1666 | R32: =+Input!P175 -> 0.1307 | S32: =+Input!Q175 -> 0.128 | T32: =+Input!R175 -> 0.1437 | U32: =+Input!S175 -> 0.1386172414 | V32: =+Input!T175 -> 0.169
A33: 21 | B33: CHERRY POINT to BAYVIEW | C33: N/A | D33: WUTC | E33: =+Input!$J$2&" Ln "&Input!A182 -> Schedule 1 Ln 126 | H33: =+Input!F176 -> 0 | I33: =+Input!G176 -> 0.1764 | J33: =+Input!H176 -> 0.1895 | K33: =+Input!I176 -> 0.2513 | L33: =+Input!J176 -> 0.2434 | M33: =+Input!K176 -> 0.2305 | N33: =+Input!L176 -> 0.2093 | O33: =+Input!M176 -> 0.2042 | P33: =+Input!N176 -> 0.2352 | Q33: =+Input!O176 -> 0.2748 | R33: =+Input!P176 -> 0.2155 | S33: =+Input!Q176 -> 0.2111 | T33: =+Input!R176 -> 0.2369 | U33: =+Input!S176 -> 0.2285206993 | V33: =+Input!T176 -> 0.2786
A34: 22 | B34: FERNDALE to BAYVIEW | C34: N/A | D34: WUTC | E34: =+Input!$J$2&" Ln "&Input!A183 -> Schedule 1 Ln 127 | H34: =+Input!F177 -> 0 | I34: =+Input!G177 -> 0.1639 | J34: =+Input!H177 -> 0.1761 | K34: =+Input!I177 -> 0.2335 | L34: =+Input!J177 -> 0.2261 | M34: =+Input!K177 -> 0.2141 | N34: =+Input!L177 -> 0.1944 | O34: =+Input!M177 -> 0.1897 | P34: =+Input!N177 -> 0.2185 | Q34: =+Input!O177 -> 0.2553 | R34: =+Input!P177 -> 0.2002 | S34: =+Input!Q177 -> 0.1961 | T34: =+Input!R177 -> 0.2202 | U34: =+Input!S177 -> 0.2124113887 | V34: =+Input!T177 -> 0.259
A35: 23 | B35: ANACORTES to RENTON | C35: Fungible | D35: WUTC | E35: =+Input!$J$2&" Ln "&Input!A184 -> Schedule 1 Ln 128 | H35: =+Input!F178 -> 0.264 | I35: =+Input!G178 -> 0.264 | J35: =+Input!H178 -> 0.2836 | K35: =+Input!I178 -> 0.3761 | L35: =+Input!J178 -> 0.3642 | M35: =+Input!K178 -> 0.3449 | N35: =+Input!L178 -> 0.3132 | O35: =+Input!M178 -> 0.3056 | P35: =+Input!N178 -> 0.352 | Q35: =+Input!O178 -> 0.4112 | R35: =+Input!P178 -> 0.3224 | S35: =+Input!Q178 -> 0.3157 | T35: =+Input!R178 -> 0.3545 | U35: =+Input!S178 -> 0.3419611139 | V35: =+Input!T178 -> 0.4169
A36: 24 | B36: ANACORTES to RENTON | C36: Non-Fungible | D36: WUTC | E36: =+Input!$J$2&" Ln "&Input!A185 -> Schedule 1 Ln 129 | H36: =+Input!F179 -> 0.3055 | I36: =+Input!G179 -> 0.3055 | J36: =+Input!H179 -> 0.3282 | K36: =+Input!I179 -> 0.4352 | L36: =+Input!J179 -> 0.4214 | M36: =+Input!K179 -> 0.3991 | N36: =+Input!L179 -> 0.3624 | O36: =+Input!M179 -> 0.3536 | P36: =+Input!N179 -> 0.4073 | Q36: =+Input!O179 -> 0.4758 | R36: =+Input!P179 -> 0.3731 | S36: =+Input!Q179 -> 0.3654 | T36: =+Input!R179 -> 0.4102 | U36: =+Input!S179 -> 0.3956909702 | V36: =+Input!T179 -> 0.4825
A37: 25 | B37: BAYVIEW to RENTON | C37: Fungible | D37: WUTC | E37: =+Input!$J$2&" Ln "&Input!A186 -> Schedule 1 Ln 130 | H37: =+Input!F180 -> 0 | I37: =+Input!G180 -> 0 | J37: =+Input!H180 -> 0 | K37: =+Input!I180 -> 0 | L37: =+Input!J180 -> 0.2163 | M37: =+Input!K180 -> 0.2049 | N37: =+Input!L180 -> 0.1861 | O37: =+Input!M180 -> 0.1816 | P37: =+Input!N180 -> 0.2092 | Q37: =+Input!O180 -> 0.2444 | R37: =+Input!P180 -> 0.1916 | S37: =+Input!Q180 -> 0.1876 | T37: =+Input!R180 -> 0.2106 | U37: =+Input!S180 -> 0.2031509467 | V37: =+Input!T180 -> 0.2477
A38: 26 | B38: BAYVIEW to RENTON | C38: Non-Fungible | D38: WUTC | E38: =+Input!$J$2&" Ln "&Input!A187 -> Schedule 1 Ln 131 | H38: =+Input!F181 -> 0 | I38: =+Input!G181 -> 0 | J38: =+Input!H181 -> 0 | K38: =+Input!I181 -> 0 | L38: =+Input!J181 -> 0.2741 | M38: =+Input!K181 -> 0.2596 | N38: =+Input!L181 -> 0.2357 | O38: =+Input!M181 -> 0.23 | P38: =+Input!N181 -> 0.2649 | Q38: =+Input!O181 -> 0.3095 | R38: =+Input!P181 -> 0.2427 | S38: =+Input!Q181 -> 0.2377 | T38: =+Input!R181 -> 0.2669 | U38: =+Input!S181 -> 0.2574595806 | V38: =+Input!T181 -> 0.3139
A39: 27 | B39: CHERRY POINT to RENTON | C39: Fungible | D39: WUTC | E39: =+Input!$J$2&" Ln "&Input!A188 -> Schedule 1 Ln 132 | H39: =+Input!F182 -> 0.3333 | I39: =+Input!G182 -> 0.3333 | J39: =+Input!H182 -> 0.3581 | K39: =+Input!I182 -> 0.4748 | L39: =+Input!J182 -> 0.4597 | M39: =+Input!K182 -> 0.4354 | N39: =+Input!L182 -> 0.3954 | O39: =+Input!M182 -> 0.3858 | P39: =+Input!N182 -> 0.4444 | Q39: =+Input!O182 -> 0.5192 | R39: =+Input!P182 -> 0.4071 | S39: =+Input!Q182 -> 0.3987 | T39: =+Input!R182 -> 0.4477 | U39: =+Input!S182 -> 0.4318645718 | V39: =+Input!T182 -> 0.5266
A40: 28 | B40: CHERRY POINT to RENTON | C40: Non-Fungible | D40: WUTC | E40: =+Input!$J$2&" Ln "&Input!A189 -> Schedule 1 Ln 133 | H40: =+Input!F183 -> 0.3751 | I40: =+Input!G183 -> 0.3751 | J40: =+Input!H183 -> 0.403 | K40: =+Input!I183 -> 0.5344 | L40: =+Input!J183 -> 0.5175 | M40: =+Input!K183 -> 0.4901 | N40: =+Input!L183 -> 0.445 | O40: =+Input!M183 -> 0.4342 | P40: =+Input!N183 -> 0.5002 | Q40: =+Input!O183 -> 0.5844 | R40: =+Input!P183 -> 0.4583 | S40: =+Input!Q183 -> 0.4488 | T40: =+Input!R183 -> 0.5038 | U40: =+Input!S183 -> 0.4859802798 | V40: =+Input!T183 -> 0.5926
A41: 29 | B41: FERNDALE to RENTON | C41: Fungible | D41: WUTC | E41: =+Input!$J$2&" Ln "&Input!A192 -> Schedule 1 Ln 136 | H41: =+Input!F184 -> 0.3208 | I41: =+Input!G184 -> 0.3208 | J41: =+Input!H184 -> 0.3447 | K41: =+Input!I184 -> 0.4571 | L41: =+Input!J184 -> 0.4426 | M41: =+Input!K184 -> 0.4192 | N41: =+Input!L184 -> 0.3806 | O41: =+Input!M184 -> 0.3714 | P41: =+Input!N184 -> 0.4278 | Q41: =+Input!O184 -> 0.4998 | R41: =+Input!P184 -> 0.3919 | S41: =+Input!Q184 -> 0.3838 | T41: =+Input!R184 -> 0.4308 | U41: =+Input!S184 -> 0.4155623354 | V41: =+Input!T184 -> 0.5067
A42: 30 | B42: FERNDALE to RENTON | C42: Non-Fungible | D42: WUTC | E42: =+Input!$J$2&" Ln "&Input!A193 -> Schedule 1 Ln 137 | H42: =+Input!F185 -> 0.3626 | I42: =+Input!G185 -> 0.3626 | J42: =+Input!H185 -> 0.3896 | K42: =+Input!I185 -> 0.5166 | L42: =+Input!J185 -> 0.5002 | M42: =+Input!K185 -> 0.4738 | N42: =+Input!L185 -> 0.4302 | O42: =+Input!M185 -> 0.4198 | P42: =+Input!N185 -> 0.4836 | Q42: =+Input!O185 -> 0.565 | R42: =+Input!P185 -> 0.4431 | S42: =+Input!Q185 -> 0.434 | T42: =+Input!R185 -> 0.4872 | U42: =+Input!S185 -> 0.4699674322 | V42: =+Input!T185 -> 0.573
A43: 31 | B43: ANACORTES to SEA-TAC | C43: Fungible | D43: WUTC | E43: =+Input!$J$2&" Ln "&Input!A194 -> Schedule 1 Ln 138 | H43: =+Input!F186 -> 0.2931 | I43: =+Input!G186 -> 0.2931 | J43: =+Input!H186 -> 0.3149 | K43: =+Input!I186 -> 0.4176 | L43: =+Input!J186 -> 0.4043 | M43: =+Input!K186 -> 0.3829 | N43: =+Input!L186 -> 0.3477 | O43: =+Input!M186 -> 0.3393 | P43: =+Input!N186 -> 0.3908 | Q43: =+Input!O186 -> 0.4566 | R43: =+Input!P186 -> 0.3581 | S43: =+Input!Q186 -> 0.3507 | T43: =+Input!R186 -> 0.3938 | U43: =+Input!S186 -> 0.3798710484 | V43: =+Input!T186 -> 0.4632
A44: 32 | B44: ANACORTES to SEA-TAC | C44: Non-Fungible | D44: WUTC | E44: =+Input!$J$2&" Ln "&Input!A195 -> Schedule 1 Ln 139 | H44: =+Input!F187 -> 0.3348 | I44: =+Input!G187 -> 0.3348 | J44: =+Input!H187 -> 0.3597 | K44: =+Input!I187 -> 0.477 | L44: =+Input!J187 -> 0.4619 | M44: =+Input!K187 -> 0.4375 | N44: =+Input!L187 -> 0.3973 | O44: =+Input!M187 -> 0.3877 | P44: =+Input!N187 -> 0.4466 | Q44: =+Input!O187 -> 0.5218 | R44: =+Input!P187 -> 0.4091 | S44: =+Input!Q187 -> 0.4008 | T44: =+Input!R187 -> 0.4499 | U44: =+Input!S187 -> 0.4339867565 | V44: =+Input!T187 -> 0.5292
A45: 33 | B45: BAYVIEW to SEA-TAC | C45: Fungible | D45: WUTC | E45: =+Input!$J$2&" Ln "&Input!A198 -> Schedule 1 Ln 142 | H45: =+Input!F188 -> 0 | I45: =+Input!G188 -> 0 | J45: =+Input!H188 -> 0 | K45: =+Input!I188 -> 0 | L45: =+Input!J188 -> 0.2568 | M45: =+Input!K188 -> 0.2432 | N45: =+Input!L188 -> 0.2208 | O45: =+Input!M188 -> 0.2155 | P45: =+Input!N188 -> 0.2482 | Q45: =+Input!O188 -> 0.29 | R45: =+Input!P188 -> 0.2274 | S45: =+Input!Q188 -> 0.2227 | T45: =+Input!R188 -> 0.25 | U45: =+Input!S188 -> 0.2411573441 | V45: =+Input!T188 -> 0.294
A46: 34 | B46: BAYVIEW to SEA-TAC | C46: Non-Fungible | D46: WUTC | E46: =+Input!$J$2&" Ln "&Input!A199 -> Schedule 1 Ln 143 | H46: =+Input!F189 -> 0 | I46: =+Input!G189 -> 0 | J46: =+Input!H189 -> 0 | K46: =+Input!I189 -> 0 | L46: =+Input!J189 -> 0.314 | M46: =+Input!K189 -> 0.2974 | N46: =+Input!L189 -> 0.27 | O46: =+Input!M189 -> 0.2635 | P46: =+Input!N189 -> 0.3035 | Q46: =+Input!O189 -> 0.3546 | R46: =+Input!P189 -> 0.278 | S46: =+Input!Q189 -> 0.2723 | T46: =+Input!R189 -> 0.3057 | U46: =+Input!S189 -> 0.2948872004 | V46: =+Input!T189 -> 0.3596
A47: 35 | B47: CHERRY POINT to SEA-TAC | C47: Fungible | D47: WUTC | E47: =+Input!$J$2&" Ln "&Input!A200 -> Schedule 1 Ln 144 | H47: =+Input!F190 -> 0.3626 | I47: =+Input!G190 -> 0.3626 | J47: =+Input!H190 -> 0.3896 | K47: =+Input!I190 -> 0.5166 | L47: =+Input!J190 -> 0.5002 | M47: =+Input!K190 -> 0.4738 | N47: =+Input!L190 -> 0.4302 | O47: =+Input!M190 -> 0.4198 | P47: =+Input!N190 -> 0.4836 | Q47: =+Input!O190 -> 0.565 | R47: =+Input!P190 -> 0.4431 | S47: =+Input!Q190 -> 0.434 | T47: =+Input!R190 -> 0.4872 | U47: =+Input!S190 -> 0.4699674322 | V47: =+Input!T190 -> 0.573
A48: 36 | B48: CHERRY POINT to SEA-TAC | C48: Non-Fungible | D48: WUTC | E48: =+Input!$J$2&" Ln "&Input!A201 -> Schedule 1 Ln 145 | H48: =+Input!F191 -> 0.4041 | I48: =+Input!G191 -> 0.4041 | J48: =+Input!H191 -> 0.4342 | K48: =+Input!I191 -> 0.5757 | L48: =+Input!J191 -> 0.5574 | M48: =+Input!K191 -> 0.5279 | N48: =+Input!L191 -> 0.4793 | O48: =+Input!M191 -> 0.4677 | P48: =+Input!N191 -> 0.5388 | Q48: =+Input!O191 -> 0.6295 | R48: =+Input!P191 -> 0.4936 | S48: =+Input!Q191 -> 0.4834 | T48: =+Input!R191 -> 0.5427 | U48: =+Input!S191 -> 0.5235043626 | V48: =+Input!T191 -> 0.6383
A49: 37 | B49: FERNDALE to SEA-TAC | C49: Fungible | D49: WUTC | E49: =+Input!$J$2&" Ln "&Input!A202 -> Schedule 1 Ln 146 | H49: =+Input!F192 -> 0.3502 | I49: =+Input!G192 -> 0.3502 | J49: =+Input!H192 -> 0.3763 | K49: =+Input!I192 -> 0.499 | L49: =+Input!J192 -> 0.4832 | M49: =+Input!K192 -> 0.4577 | N49: =+Input!L192 -> 0.4156 | O49: =+Input!M192 -> 0.4055 | P49: =+Input!N192 -> 0.4671 | Q49: =+Input!O192 -> 0.5457 | R49: =+Input!P192 -> 0.4279 | S49: =+Input!Q192 -> 0.4191 | T49: =+Input!R192 -> 0.4705 | U49: =+Input!S192 -> 0.4538581216 | V49: =+Input!T192 -> 0.5534
A50: 38 | B50: FERNDALE to SEA-TAC | C50: Non-Fungible | D50: WUTC | E50: =+Input!$J$2&" Ln "&Input!A203 -> Schedule 1 Ln 147 | H50: =+Input!F193 -> 0.3917 | I50: =+Input!G193 -> 0.3917 | J50: =+Input!H193 -> 0.4209 | K50: =+Input!I193 -> 0.5581 | L50: =+Input!J193 -> 0.5404 | M50: =+Input!K193 -> 0.5118 | N50: =+Input!L193 -> 0.4647 | O50: =+Input!M193 -> 0.4534 | P50: =+Input!N193 -> 0.5223 | Q50: =+Input!O193 -> 0.6102 | R50: =+Input!P193 -> 0.4785 | S50: =+Input!Q193 -> 0.4686 | T50: =+Input!R193 -> 0.5262 | U50: =+Input!S193 -> 0.5075879779 | V50: =+Input!T193 -> 0.6189
A51: 39 | B51: ANACORTES to SEATTLE | C51: Fungible | D51: WUTC | E51: =+Input!$J$2&" Ln "&Input!A206 -> Schedule 1 Ln 150 | H51: =+Input!F194 -> 0.2862 | I51: =+Input!G194 -> 0.2862 | J51: =+Input!H194 -> 0.3075 | K51: =+Input!I194 -> 0.4077 | L51: =+Input!J194 -> 0.3947 | M51: =+Input!K194 -> 0.3738 | N51: =+Input!L194 -> 0.3394 | O51: =+Input!M194 -> 0.3312 | P51: =+Input!N194 -> 0.3815 | Q51: =+Input!O194 -> 0.4457 | R51: =+Input!P194 -> 0.3495 | S51: =+Input!Q194 -> 0.3423 | T51: =+Input!R194 -> 0.3843 | U51: =+Input!S194 -> 0.3707070694 | V51: =+Input!T194 -> 0.452
A52: 40 | B52: ANACORTES to SEATTLE | C52: Non-Fungible | D52: WUTC | E52: =+Input!$J$2&" Ln "&Input!A207 -> Schedule 1 Ln 151 | H52: =+Input!F195 -> 0.3277 | I52: =+Input!G195 -> 0.3277 | J52: =+Input!H195 -> 0.3521 | K52: =+Input!I195 -> 0.4669 | L52: =+Input!J195 -> 0.4521 | M52: =+Input!K195 -> 0.4282 | N52: =+Input!L195 -> 0.3888 | O52: =+Input!M195 -> 0.3794 | P52: =+Input!N195 -> 0.437 | Q52: =+Input!O195 -> 0.5105 | R52: =+Input!P195 -> 0.4003 | S52: =+Input!Q195 -> 0.392 | T52: =+Input!R195 -> 0.4401 | U52: =+Input!S195 -> 0.4245333886 | V52: =+Input!T195 -> 0.5176
A53: 41 | B53: BAYVIEW to SEATTLE | C53: Fungible | D53: WUTC | E53: =+Input!$J$2&" Ln "&Input!A208 -> Schedule 1 Ln 152 | H53: =+Input!F196 -> 0 | I53: =+Input!G196 -> 0 | J53: =+Input!H196 -> 0 | K53: =+Input!I196 -> 0 | L53: =+Input!J196 -> 0.2473 | M53: =+Input!K196 -> 0.2342 | N53: =+Input!L196 -> 0.2127 | O53: =+Input!M196 -> 0.2075 | P53: =+Input!N196 -> 0.239 | Q53: =+Input!O196 -> 0.2792 | R53: =+Input!P196 -> 0.2189 | S53: =+Input!Q196 -> 0.2144 | T53: =+Input!R196 -> 0.2407 | U53: =+Input!S196 -> 0.2321862909 | V53: =+Input!T196 -> 0.2831
A54: 42 | B54: BAYVIEW to SEATTLE | C54: Non-Fungible | D54: WUTC | E54: =+Input!$J$2&" Ln "&Input!A209 -> Schedule 1 Ln 153 | H54: =+Input!F197 -> 0 | I54: =+Input!G197 -> 0 | J54: =+Input!H197 -> 0 | K54: =+Input!I197 -> 0 | L54: =+Input!J197 -> 0.3045 | M54: =+Input!K197 -> 0.2884 | N54: =+Input!L197 -> 0.2619 | O54: =+Input!M197 -> 0.2556 | P54: =+Input!N197 -> 0.2944 | Q54: =+Input!O197 -> 0.3439 | R54: =+Input!P197 -> 0.2697 | S54: =+Input!Q197 -> 0.2641 | T54: =+Input!R197 -> 0.2965 | U54: =+Input!S197 -> 0.2860126101 | V54: =+Input!T197 -> 0.3487
A55: 43 | B55: CHERRY POINT to SEATTLE | C55: Fungible | D55: WUTC | E55: =+Input!$J$2&" Ln "&Input!A210 -> Schedule 1 Ln 154 | H55: =+Input!F198 -> 0.3557 | I55: =+Input!G198 -> 0.3557 | J55: =+Input!H198 -> 0.3822 | K55: =+Input!I198 -> 0.5068 | L55: =+Input!J198 -> 0.4907 | M55: =+Input!K198 -> 0.4648 | N55: =+Input!L198 -> 0.422 | O55: =+Input!M198 -> 0.4118 | P55: =+Input!N198 -> 0.4744 | Q55: =+Input!O198 -> 0.5542 | R55: =+Input!P198 -> 0.4346 | S55: =+Input!Q198 -> 0.4256 | T55: =+Input!R198 -> 0.4779 | U55: =+Input!S198 -> 0.460996379 | V55: =+Input!T198 -> 0.5621
A56: 44 | B56: CHERRY POINT to SEATTLE | C56: Non-Fungible | D56: WUTC | E56: =+Input!$J$2&" Ln "&Input!A211 -> Schedule 1 Ln 155 | H56: =+Input!F199 -> 0.3972 | I56: =+Input!G199 -> 0.3972 | J56: =+Input!H199 -> 0.4268 | K56: =+Input!I199 -> 0.5659 | L56: =+Input!J199 -> 0.5479 | M56: =+Input!K199 -> 0.5189 | N56: =+Input!L199 -> 0.4712 | O56: =+Input!M199 -> 0.4598 | P56: =+Input!N199 -> 0.5297 | Q56: =+Input!O199 -> 0.6188 | R56: =+Input!P199 -> 0.4852 | S56: =+Input!Q199 -> 0.4752 | T56: =+Input!R199 -> 0.5335 | U56: =+Input!S199 -> 0.5146297723 | V56: =+Input!T199 -> 0.6275
A57: 45 | B57: FERNDALE to SEATTLE | C57: Fungible | D57: WUTC | E57: =+Input!$J$2&" Ln "&Input!A214 -> Schedule 1 Ln 158 | H57: =+Input!F200 -> 0.3431 | I57: =+Input!G200 -> 0.3431 | J57: =+Input!H200 -> 0.3686 | K57: =+Input!I200 -> 0.4888 | L57: =+Input!J200 -> 0.4733 | M57: =+Input!K200 -> 0.4483 | N57: =+Input!L200 -> 0.4071 | O57: =+Input!M200 -> 0.3972 | P57: =+Input!N200 -> 0.4575 | Q57: =+Input!O200 -> 0.5345 | R57: =+Input!P200 -> 0.4191 | S57: =+Input!Q200 -> 0.4105 | T57: =+Input!R200 -> 0.4609 | U57: =+Input!S200 -> 0.4445976796 | V57: =+Input!T200 -> 0.5421
A58: 46 | B58: FERNDALE to SEATTLE | C58: Non-Fungible | D58: WUTC | E58: =+Input!$J$2&" Ln "&Input!A215 -> Schedule 1 Ln 159 | H58: =+Input!F201 -> 0.3848 | I58: =+Input!G201 -> 0.3848 | J58: =+Input!H201 -> 0.4134 | K58: =+Input!I201 -> 0.5482 | L58: =+Input!J201 -> 0.5309 | M58: =+Input!K201 -> 0.5028 | N58: =+Input!L201 -> 0.4566 | O58: =+Input!M201 -> 0.4455 | P58: =+Input!N201 -> 0.5132 | Q58: =+Input!O201 -> 0.5996 | R58: =+Input!P201 -> 0.4702 | S58: =+Input!Q201 -> 0.4605 | T58: =+Input!R201 -> 0.517 | U58: =+Input!S201 -> 0.4987133876 | V58: =+Input!T201 -> 0.6081
A59: 47 | B59: ANACORTES to SPANAWAY | C59: Fungible | D59: WUTC | E59: =+Input!$J$2&" Ln "&Input!A216 -> Schedule 1 Ln 160 | H59: =+Input!F202 -> 0.3292 | I59: =+Input!G202 -> 0.3292 | J59: =+Input!H202 -> 0.3537 | K59: =+Input!I202 -> 0.469 | L59: =+Input!J202 -> 0.4542 | M59: =+Input!K202 -> 0.4302 | N59: =+Input!L202 -> 0.3906 | O59: =+Input!M202 -> 0.3811 | P59: =+Input!N202 -> 0.439 | Q59: =+Input!O202 -> 0.5129 | R59: =+Input!P202 -> 0 | S59: =+Input!Q202 -> 0 | T59: =+Input!R202 -> 0 | U59: =+Input!S202 -> 0 | V59: =+Input!T202 -> 0
A60: 48 | B60: ANACORTES to SPANAWAY | C60: Non-Fungible | D60: WUTC | E60: =+Input!$J$2&" Ln "&Input!A217 -> Schedule 1 Ln 161 | H60: =+Input!F203 -> 0.3709 | I60: =+Input!G203 -> 0.3709 | J60: =+Input!H203 -> 0.3985 | K60: =+Input!I203 -> 0.5284 | L60: =+Input!J203 -> 0.5117 | M60: =+Input!K203 -> 0.4847 | N60: =+Input!L203 -> 0.4401 | O60: =+Input!M203 -> 0.4294 | P60: =+Input!N203 -> 0.4946 | Q60: =+Input!O203 -> 0.5778 | R60: =+Input!P203 -> 0 | S60: =+Input!Q203 -> 0 | T60: =+Input!R203 -> 0 | U60: =+Input!S203 -> 0 | V60: =+Input!T203 -> 0
A61: 49 | B61: BAYVIEW to SPANAWAY | C61: Fungible | D61: WUTC | E61: =+Input!$J$2&" Ln "&Input!A218 -> Schedule 1 Ln 162 | H61: =+Input!F204 -> 0 | I61: =+Input!G204 -> 0 | J61: =+Input!H204 -> 0 | K61: =+Input!I204 -> 0 | L61: =+Input!J204 -> 0.3065 | M61: =+Input!K204 -> 0.2903 | N61: =+Input!L204 -> 0.2636 | O61: =+Input!M204 -> 0.2572 | P61: =+Input!N204 -> 0.2963 | Q61: =+Input!O204 -> 0.3462 | R61: =+Input!P204 -> 0 | S61: =+Input!Q204 -> 0 | T61: =+Input!R204 -> 0 | U61: =+Input!S204 -> 0 | V61: =+Input!T204 -> 0
A62: 50 | B62: BAYVIEW to SPANAWAY | C62: Non-Fungible | D62: WUTC | E62: =+Input!$J$2&" Ln "&Input!A219 -> Schedule 1 Ln 163 | H62: =+Input!F205 -> 0 | I62: =+Input!G205 -> 0 | J62: =+Input!H205 -> 0 | K62: =+Input!I205 -> 0 | L62: =+Input!J205 -> 0.3642 | M62: =+Input!K205 -> 0.3449 | N62: =+Input!L205 -> 0.3132 | O62: =+Input!M205 -> 0.3056 | P62: =+Input!N205 -> 0.352 | Q62: =+Input!O205 -> 0.4112 | R62: =+Input!P205 -> 0 | S62: =+Input!Q205 -> 0 | T62: =+Input!R205 -> 0 | U62: =+Input!S205 -> 0 | V62: =+Input!T205 -> 0
A63: 51 | B63: CHERRY POINT to SPANAWAY | C63: Fungible | D63: WUTC | E63: =+Input!$J$2&" Ln "&Input!A222 -> Schedule 1 Ln 166 | H63: =+Input!F206 -> 0.3986 | I63: =+Input!G206 -> 0.3986 | J63: =+Input!H206 -> 0.4283 | K63: =+Input!I206 -> 0.5679 | L63: =+Input!J206 -> 0.5499 | M63: =+Input!K206 -> 0.5208 | N63: =+Input!L206 -> 0.4729 | O63: =+Input!M206 -> 0.4614 | P63: =+Input!N206 -> 0.5315 | Q63: =+Input!O206 -> 0.6209 | R63: =+Input!P206 -> 0 | S63: =+Input!Q206 -> 0 | T63: =+Input!R206 -> 0 | U63: =+Input!S206 -> 0 | V63: =+Input!T206 -> 0
A64: 52 | B64: CHERRY POINT to SPANAWAY | C64: Non-Fungible | D64: WUTC | E64: =+Input!$J$2&" Ln "&Input!A223 -> Schedule 1 Ln 167 | H64: =+Input!F207 -> 0.4404 | I64: =+Input!G207 -> 0.4404 | J64: =+Input!H207 -> 0.4732 | K64: =+Input!I207 -> 0.6275 | L64: =+Input!J207 -> 0.6076 | M64: =+Input!K207 -> 0.5755 | N64: =+Input!L207 -> 0.5226 | O64: =+Input!M207 -> 0.5099 | P64: =+Input!N207 -> 0.5874 | Q64: =+Input!O207 -> 0.6863 | R64: =+Input!P207 -> 0 | S64: =+Input!Q207 -> 0 | T64: =+Input!R207 -> 0 | U64: =+Input!S207 -> 0 | V64: =+Input!T207 -> 0
A65: 53 | B65: FERNDALE to SPANAWAY | C65: Fungible | D65: WUTC | E65: =+Input!$J$2&" Ln "&Input!A224 -> Schedule 1 Ln 168 | H65: =+Input!F208 -> 0.3861 | I65: =+Input!G208 -> 0.3861 | J65: =+Input!H208 -> 0.4148 | K65: =+Input!I208 -> 0.55 | L65: =+Input!J208 -> 0.5325 | M65: =+Input!K208 -> 0.5044 | N65: =+Input!L208 -> 0.458 | O65: =+Input!M208 -> 0.4469 | P65: =+Input!N208 -> 0.5148 | Q65: =+Input!O208 -> 0.6014 | R65: =+Input!P208 -> 0 | S65: =+Input!Q208 -> 0 | T65: =+Input!R208 -> 0 | U65: =+Input!S208 -> 0 | V65: =+Input!T208 -> 0
A66: 54 | B66: FERNDALE to SPANAWAY | C66: Non-Fungible | D66: WUTC | E66: =+Input!$J$2&" Ln "&Input!A225 -> Schedule 1 Ln 169 | H66: =+Input!F209 -> 0.4279 | I66: =+Input!G209 -> 0.4279 | J66: =+Input!H209 -> 0.4597 | K66: =+Input!I209 -> 0.6096 | L66: =+Input!J209 -> 0.5903 | M66: =+Input!K209 -> 0.5591 | N66: =+Input!L209 -> 0.5077 | O66: =+Input!M209 -> 0.4954 | P66: =+Input!N209 -> 0.5707 | Q66: =+Input!O209 -> 0.6667 | R66: =+Input!P209 -> 0 | S66: =+Input!Q209 -> 0 | T66: =+Input!R209 -> 0 | U66: =+Input!S209 -> 0 | V66: =+Input!T209 -> 0
A67: 55 | B67: ANACORTES to TACOMA | C67: Fungible | D67: WUTC | E67: =+Input!$J$2&" Ln "&Input!A226 -> Schedule 1 Ln 170 | H67: =+Input!F210 -> 0.3208 | I67: =+Input!G210 -> 0.3208 | J67: =+Input!H210 -> 0.3447 | K67: =+Input!I210 -> 0.4571 | L67: =+Input!J210 -> 0.4426 | M67: =+Input!K210 -> 0.4192 | N67: =+Input!L210 -> 0.3806 | O67: =+Input!M210 -> 0.3714 | P67: =+Input!N210 -> 0.4278 | Q67: =+Input!O210 -> 0.4998 | R67: =+Input!P210 -> 0.3919 | S67: =+Input!Q210 -> 0.3838 | T67: =+Input!R210 -> 0.4308 | U67: =+Input!S210 -> 0.4155623354 | V67: =+Input!T210 -> 0.5067
A68: 56 | B68: ANACORTES to TACOMA | C68: Non-Fungible | D68: WUTC | E68: =+Input!$J$2&" Ln "&Input!A227 -> Schedule 1 Ln 171 | H68: =+Input!F211 -> 0.3626 | I68: =+Input!G211 -> 0.3626 | J68: =+Input!H211 -> 0.3896 | K68: =+Input!I211 -> 0.5166 | L68: =+Input!J211 -> 0.5002 | M68: =+Input!K211 -> 0.4738 | N68: =+Input!L211 -> 0.4302 | O68: =+Input!M211 -> 0.4198 | P68: =+Input!N211 -> 0.4836 | Q68: =+Input!O211 -> 0.565 | R68: =+Input!P211 -> 0.4431 | S68: =+Input!Q211 -> 0.434 | T68: =+Input!R211 -> 0.4872 | U68: =+Input!S211 -> 0.4699674322 | V68: =+Input!T211 -> 0.573
A69: 57 | B69: BAYVIEW to TACOMA | C69: Fungible | D69: WUTC | E69: =+Input!$J$2&" Ln "&Input!A230 -> Schedule 1 Ln 174 | H69: =+Input!F212 -> 0 | I69: =+Input!G212 -> 0 | J69: =+Input!H212 -> 0 | K69: =+Input!I212 -> 0 | L69: =+Input!J212 -> 0.2949 | M69: =+Input!K212 -> 0.2793 | N69: =+Input!L212 -> 0.2536 | O69: =+Input!M212 -> 0.2475 | P69: =+Input!N212 -> 0.2851 | Q69: =+Input!O212 -> 0.3331 | R69: =+Input!P212 -> 0.2612 | S69: =+Input!Q212 -> 0.2558 | T69: =+Input!R212 -> 0.2872 | U69: =+Input!S212 -> 0.2770415569 | V69: =+Input!T212 -> 0.3378
A70: 58 | B70: BAYVIEW to TACOMA | C70: Non-Fungible | D70: WUTC | E70: =+Input!$J$2&" Ln "&Input!A231 -> Schedule 1 Ln 175 | H70: =+Input!F213 -> 0 | I70: =+Input!G213 -> 0 | J70: =+Input!H213 -> 0 | K70: =+Input!I213 -> 0 | L70: =+Input!J213 -> 0.3526 | M70: =+Input!K213 -> 0.334 | N70: =+Input!L213 -> 0.3033 | O70: =+Input!M213 -> 0.296 | P70: =+Input!N213 -> 0.341 | Q70: =+Input!O213 -> 0.3984 | R70: =+Input!P213 -> 0.3124 | S70: =+Input!Q213 -> 0.306 | T70: =+Input!R213 -> 0.3435 | U70: =+Input!S213 -> 0.3313501908 | V70: =+Input!T213 -> 0.404
A71: 59 | B71: CHERRY POINT to TACOMA | C71: Fungible | D71: WUTC | E71: =+Input!$J$2&" Ln "&Input!A232 -> Schedule 1 Ln 176 | H71: =+Input!F214 -> 0.3903 | I71: =+Input!G214 -> 0.3903 | J71: =+Input!H214 -> 0.4193 | K71: =+Input!I214 -> 0.556 | L71: =+Input!J214 -> 0.5383 | M71: =+Input!K214 -> 0.5098 | N71: =+Input!L214 -> 0.4629 | O71: =+Input!M214 -> 0.4517 | P71: =+Input!N214 -> 0.5203 | Q71: =+Input!O214 -> 0.6079 | R71: =+Input!P214 -> 0.4767 | S71: =+Input!Q214 -> 0.4669 | T71: =+Input!R214 -> 0.5242 | U71: =+Input!S214 -> 0.5056587191 | V71: =+Input!T214 -> 0.6165
A72: 60 | B72: CHERRY POINT to TACOMA | C72: Non-Fungible | D72: WUTC | E72: =+Input!$J$2&" Ln "&Input!A233 -> Schedule 1 Ln 177 | H72: =+Input!F215 -> 0.432 | I72: =+Input!G215 -> 0.432 | J72: =+Input!H215 -> 0.4642 | K72: =+Input!I215 -> 0.6155 | L72: =+Input!J215 -> 0.596 | M72: =+Input!K215 -> 0.5645 | N72: =+Input!L215 -> 0.5126 | O72: =+Input!M215 -> 0.5002 | P72: =+Input!N215 -> 0.5762 | Q72: =+Input!O215 -> 0.6732 | R72: =+Input!P215 -> 0.5279 | S72: =+Input!Q215 -> 0.517 | T72: =+Input!R215 -> 0.5804 | U72: =+Input!S215 -> 0.5598708901 | V72: =+Input!T215 -> 0.6826
A73: 61 | B73: FERNDALE to TACOMA | C73: Fungible | D73: WUTC | E73: =+Input!$J$2&" Ln "&Input!A234 -> Schedule 1 Ln | H73: =+Input!F216 -> 0.3779 | I73: =+Input!G216 -> 0.3779 | J73: =+Input!H216 -> 0.406 | K73: =+Input!I216 -> 0.5384 | L73: =+Input!J216 -> 0.5213 | M73: =+Input!K216 -> 0.4937 | N73: =+Input!L216 -> 0.4483 | O73: =+Input!M216 -> 0.4374 | P73: =+Input!N216 -> 0.5039 | Q73: =+Input!O216 -> 0.5887 | R73: =+Input!P216 -> 0.4616 | S73: =+Input!Q216 -> 0.4521 | T73: =+Input!R216 -> 0.5076 | U73: =+Input!S216 -> 0.4896458715 | V73: =+Input!T216 -> 0.597
A74: 62 | B74: FERNDALE to TACOMA | C74: Non-Fungible | D74: WUTC | E74: =+Input!$J$2&" Ln "&Input!A235 -> Schedule 1 Ln | H74: =+Input!F217 -> 0.4195 | I74: =+Input!G217 -> 0.4195 | J74: =+Input!H217 -> 0.4507 | K74: =+Input!I217 -> 0.5976 | L74: =+Input!J217 -> 0.5787 | M74: =+Input!K217 -> 0.5481 | N74: =+Input!L217 -> 0.4977 | O74: =+Input!M217 -> 0.4856 | P74: =+Input!N217 -> 0.5594 | Q74: =+Input!O217 -> 0.6535 | R74: =+Input!P217 -> 0.5124 | S74: =+Input!Q217 -> 0.5018 | T74: =+Input!R217 -> 0.5633 | U74: =+Input!S217 -> 0.5433757277 | V74: =+Input!T217 -> 0.6625
A75: 63 | B75: ANACORTES to OLYMPIA | C75: Fungible | D75: WUTC | E75: =+Input!$J$2&" Ln "&Input!A236 -> Schedule 1 Ln Line | H75: =+Input!F218 -> 0.414 | I75: =+Input!G218 -> 0.414 | J75: =+Input!H218 -> 0.4448 | K75: =+Input!I218 -> 0.5898 | L75: =+Input!J218 -> 0.5711 | M75: =+Input!K218 -> 0.5409 | N75: =+Input!L218 -> 0.4911 | O75: =+Input!M218 -> 0.4792 | P75: =+Input!N218 -> 0.552 | Q75: =+Input!O218 -> 0.6449 | R75: =+Input!P218 -> 0 | S75: =+Input!Q218 -> 0 | T75: =+Input!R218 -> 0 | U75: =+Input!S218 -> 0 | V75: =+Input!T218 -> 0
A76: 64 | B76: ANACORTES to OLYMPIA | C76: Non-Fungible | D76: WUTC | E76: =+Input!$J$2&" Ln "&Input!A237 -> Schedule 1 Ln No. | H76: =+Input!F219 -> 0.4557 | I76: =+Input!G219 -> 0.4557 | J76: =+Input!H219 -> 0.4896 | K76: =+Input!I219 -> 0.6492 | L76: =+Input!J219 -> 0.6286 | M76: =+Input!K219 -> 0.5954 | N76: =+Input!L219 -> 0.5406 | O76: =+Input!M219 -> 0.5275 | P76: =+Input!N219 -> 0.6076 | Q76: =+Input!O219 -> 0.7099 | R76: =+Input!P219 -> 0 | S76: =+Input!Q219 -> 0 | T76: =+Input!R219 -> 0 | U76: =+Input!S219 -> 0 | V76: =+Input!T219 -> 0
A77: 65 | B77: BAYVIEW to OLYMPIA | C77: Fungible | D77: WUTC | E77: =+Input!$J$2&" Ln "&Input!A238 -> Schedule 1 Ln | H77: =+Input!F220 -> 0 | I77: =+Input!G220 -> 0 | J77: =+Input!H220 -> 0 | K77: =+Input!I220 -> 0 | L77: =+Input!J220 -> 0.4235 | M77: =+Input!K220 -> 0.4011 | N77: =+Input!L220 -> 0.3642 | O77: =+Input!M220 -> 0.3554 | P77: =+Input!N220 -> 0.4094 | Q77: =+Input!O220 -> 0.4783 | R77: =+Input!P220 -> 0 | S77: =+Input!Q220 -> 0 | T77: =+Input!R220 -> 0 | U77: =+Input!S220 -> 0 | V77: =+Input!T220 -> 0
A78: 66 | B78: BAYVIEW to OLYMPIA | C78: Non-Fungible | D78: WUTC | E78: =+Input!$J$2&" Ln "&Input!A239 -> Schedule 1 Ln | H78: =+Input!F221 -> 0 | I78: =+Input!G221 -> 0 | J78: =+Input!H221 -> 0 | K78: =+Input!I221 -> 0 | L78: =+Input!J221 -> 0.4809 | M78: =+Input!K221 -> 0.4555 | N78: =+Input!L221 -> 0.4136 | O78: =+Input!M221 -> 0.4036 | P78: =+Input!N221 -> 0.4649 | Q78: =+Input!O221 -> 0.5431 | R78: =+Input!P221 -> 0 | S78: =+Input!Q221 -> 0 | T78: =+Input!R221 -> 0 | U78: =+Input!S221 -> 0 | V78: =+Input!T221 -> 0
A79: 67 | B79: CHERRY POINT to OLYMPIA | C79: Fungible | D79: WUTC | E79: =+Input!$J$2&" Ln "&Input!A240 -> Schedule 1 Ln | H79: =+Input!F222 -> 0.4834 | I79: =+Input!G222 -> 0.4834 | J79: =+Input!H222 -> 0.5194 | K79: =+Input!I222 -> 0.6887 | L79: =+Input!J222 -> 0.6669 | M79: =+Input!K222 -> 0.6316 | N79: =+Input!L222 -> 0.5735 | O79: =+Input!M222 -> 0.5596 | P79: =+Input!N222 -> 0.6446 | Q79: =+Input!O222 -> 0.7531 | R79: =+Input!P222 -> 0 | S79: =+Input!Q222 -> 0 | T79: =+Input!R222 -> 0 | U79: =+Input!S222 -> 0 | V79: =+Input!T222 -> 0
A80: 68 | B80: CHERRY POINT to OLYMPIA | C80: Non-Fungible | D80: WUTC | E80: =+Input!$J$2&" Ln "&Input!A241 -> Schedule 1 Ln 178 | H80: =+Input!F223 -> 0.525 | I80: =+Input!G223 -> 0.525 | J80: =+Input!H223 -> 0.5641 | K80: =+Input!I223 -> 0.748 | L80: =+Input!J223 -> 0.7243 | M80: =+Input!K223 -> 0.686 | N80: =+Input!L223 -> 0.6229 | O80: =+Input!M223 -> 0.6078 | P80: =+Input!N223 -> 0.7001 | Q80: =+Input!O223 -> 0.8179 | R80: =+Input!P223 -> 0 | S80: =+Input!Q223 -> 0 | T80: =+Input!R223 -> 0 | U80: =+Input!S223 -> 0 | V80: =+Input!T223 -> 0
A81: 69 | B81: FERNDALE to OLYMPIA | C81: Fungible | D81: WUTC | E81: =+Input!$J$2&" Ln "&Input!A242 -> Schedule 1 Ln 179 | H81: =+Input!F224 -> 0.4708 | I81: =+Input!G224 -> 0.4708 | J81: =+Input!H224 -> 0.5058 | K81: =+Input!I224 -> 0.6707 | L81: =+Input!J224 -> 0.6495 | M81: =+Input!K224 -> 0.6152 | N81: =+Input!L224 -> 0.5586 | O81: =+Input!M224 -> 0.5451 | P81: =+Input!N224 -> 0.6279 | Q81: =+Input!O224 -> 0.7336 | R81: =+Input!P224 -> 0 | S81: =+Input!Q224 -> 0 | T81: =+Input!R224 -> 0 | U81: =+Input!S224 -> 0 | V81: =+Input!T224 -> 0
A82: =1+A81 -> 70 | B82: FERNDALE to OLYMPIA | C82: Non-Fungible | D82: WUTC | E82: =+Input!$J$2&" Ln "&Input!A243 -> Schedule 1 Ln 180 | H82: =+Input!F225 -> 0.5126 | I82: =+Input!G225 -> 0.5126 | J82: =+Input!H225 -> 0.5507 | K82: =+Input!I225 -> 0.7302 | L82: =+Input!J225 -> 0.707 | M82: =+Input!K225 -> 0.6696 | N82: =+Input!L225 -> 0.608 | O82: =+Input!M225 -> 0.5933 | P82: =+Input!N225 -> 0.6834 | Q82: =+Input!O225 -> 0.7984 | R82: =+Input!P225 -> 0 | S82: =+Input!Q225 -> 0 | T82: =+Input!R225 -> 0 | U82: =+Input!S225 -> 0 | V82: =+Input!T225 -> 0
A83: 71 | B83: ANACORTES to VANCOUVER | C83: Fungible | D83: WUTC | E83: =+Input!$J$2&" Ln "&Input!A244 -> Schedule 1 Ln 181 | H83: =+Input!F226 -> 0.6097 | I83: =+Input!G226 -> 0.6097 | J83: =+Input!H226 -> 0.6551 | K83: =+Input!I226 -> 0.8687 | L83: =+Input!J226 -> 0.8411 | M83: =+Input!K226 -> 0.7966 | N83: =+Input!L226 -> 0.7233 | O83: =+Input!M226 -> 0.7058 | P83: =+Input!N226 -> 0.813 | Q83: =+Input!O226 -> 0.9498 | R83: =+Input!P226 -> 0.7448 | S83: =+Input!Q226 -> 0.7294 | T83: =+Input!R226 -> 0.8189 | U83: =+Input!S226 -> 0.7899349963 | V83: =+Input!T226 -> 0.9632
A84: 72 | B84: ANACORTES to VANCOUVER | C84: Non-Fungible | D84: WUTC | E84: =+Input!$J$2&" Ln "&Input!A245 -> Schedule 1 Ln 182 | H84: =+Input!F227 -> 0.6515 | I84: =+Input!G227 -> 0.6515 | J84: =+Input!H227 -> 0.7 | K84: =+Input!I227 -> 0.9282 | L84: =+Input!J227 -> 0.8987 | M84: =+Input!K227 -> 0.8512 | N84: =+Input!L227 -> 0.7729 | O84: =+Input!M227 -> 0.7542 | P84: =+Input!N227 -> 0.8688 | Q84: =+Input!O227 -> 1.015 | R84: =+Input!P227 -> 0.7959 | S84: =+Input!Q227 -> 0.7795 | T84: =+Input!R227 -> 0.8751 | U84: =+Input!S227 -> 0.8441471673 | V84: =+Input!T227 -> 1.0293
A85: 73 | B85: BAYVIEW to VANCOUVER | C85: Fungible | D85: WUTC | E85: =+Input!$J$2&" Ln "&Input!A246 -> Schedule 1 Ln 183 | H85: =+Input!F228 -> 0 | I85: =+Input!G228 -> 0 | J85: =+Input!H228 -> 0 | K85: =+Input!I228 -> 0 | L85: =+Input!J228 -> 0.6935 | M85: =+Input!K228 -> 0.6568 | N85: =+Input!L228 -> 0.5964 | O85: =+Input!M228 -> 0.582 | P85: =+Input!N228 -> 0.6704 | Q85: =+Input!O228 -> 0.7832 | R85: =+Input!P228 -> 0.6142 | S85: =+Input!Q228 -> 0.6015 | T85: =+Input!R228 -> 0.6753 | U85: =+Input!S228 -> 0.6514142179 | V85: =+Input!T228 -> 0.7943
A86: 74 | B86: BAYVIEW to VANCOUVER | C86: Non-Fungible | D86: WUTC | E86: =+Input!$J$2&" Ln "&Input!A247 -> Schedule 1 Ln 184 | H86: =+Input!F229 -> 0 | I86: =+Input!G229 -> 0 | J86: =+Input!H229 -> 0 | K86: =+Input!I229 -> 0 | L86: =+Input!J229 -> 0.7512 | M86: =+Input!K229 -> 0.7115 | N86: =+Input!L229 -> 0.6461 | O86: =+Input!M229 -> 0.6305 | P86: =+Input!N229 -> 0.7263 | Q86: =+Input!O229 -> 0.8485 | R86: =+Input!P229 -> 0.6653 | S86: =+Input!Q229 -> 0.6516 | T86: =+Input!R229 -> 0.7315 | U86: =+Input!S229 -> 0.7056263889 | V86: =+Input!T229 -> 0.8604
A87: 75 | B87: CHERRY POINT to VANCOUVER | C87: Fungible | D87: WUTC | E87: =+Input!$J$2&" Ln "&Input!A248 -> Schedule 1 Ln 185 | H87: =+Input!F230 -> 0.6792 | I87: =+Input!G230 -> 0.6792 | J87: =+Input!H230 -> 0.7297 | K87: =+Input!I230 -> 0.9676 | L87: =+Input!J230 -> 0.9369 | M87: =+Input!K230 -> 0.8874 | N87: =+Input!L230 -> 0.8058 | O87: =+Input!M230 -> 0.7863 | P87: =+Input!N230 -> 0.9058 | Q87: =+Input!O230 -> 1.0582 | R87: =+Input!P230 -> 0.8298 | S87: =+Input!Q230 -> 0.8127 | T87: =+Input!R230 -> 0.9124 | U87: =+Input!S230 -> 0.880127843 | V87: =+Input!T230 -> 1.0731
A88: 76 | B88: CHERRY POINT to VANCOUVER | C88: Non-Fungible | D88: WUTC | E88: =+Input!$J$2&" Ln "&Input!A249 -> Schedule 1 Ln 186 | H88: =+Input!F231 -> 0.721 | I88: =+Input!G231 -> 0.721 | J88: =+Input!H231 -> 0.7747 | K88: =+Input!I231 -> 1.0272 | L88: =+Input!J231 -> 0.9946 | M88: =+Input!K231 -> 0.942 | N88: =+Input!L231 -> 0.8554 | O88: =+Input!M231 -> 0.8347 | P88: =+Input!N231 -> 0.9615 | Q88: =+Input!O231 -> 1.1233 | R88: =+Input!P231 -> 0.8808 | S88: =+Input!Q231 -> 0.8626 | T88: =+Input!R231 -> 0.9685 | U88: =+Input!S231 -> 0.9342435511 | V88: =+Input!T231 -> 1.1391
A89: 77 | B89: FERNDALE to VANCOUVER | C89: Fungible | D89: WUTC | E89: =+Input!$J$2&" Ln "&Input!A250 -> Schedule 1 Ln 187 | H89: =+Input!F232 -> 0.6668 | I89: =+Input!G232 -> 0.6668 | J89: =+Input!H232 -> 0.7164 | K89: =+Input!I232 -> 0.9499 | L89: =+Input!J232 -> 0.9198 | M89: =+Input!K232 -> 0.8712 | N89: =+Input!L232 -> 0.7911 | O89: =+Input!M232 -> 0.7719 | P89: =+Input!N232 -> 0.8892 | Q89: =+Input!O232 -> 1.0388 | R89: =+Input!P232 -> 0.8146 | S89: =+Input!Q232 -> 0.7978 | T89: =+Input!R232 -> 0.8957 | U89: =+Input!S232 -> 0.8640185325 | V89: =+Input!T232 -> 1.0535
A90: 78 | B90: FERNDALE to VANCOUVER | C90: Non-Fungible | D90: WUTC | E90: =+Input!$J$2&" Ln "&Input!A251 -> Schedule 1 Ln 188 | H90: =+Input!F233 -> 0.7085 | I90: =+Input!G233 -> 0.7085 | J90: =+Input!H233 -> 0.7612 | K90: =+Input!I233 -> 1.0093 | L90: =+Input!J233 -> 0.9773 | M90: =+Input!K233 -> 0.9256 | N90: =+Input!L233 -> 0.8405 | O90: =+Input!M233 -> 0.8201 | P90: =+Input!N233 -> 0.9447 | Q90: =+Input!O233 -> 1.1037 | R90: =+Input!P233 -> 0.8655 | S90: =+Input!Q233 -> 0.8476 | T90: =+Input!R233 -> 0.9516 | U90: =+Input!S233 -> 0.9179413146 | V90: =+Input!T233 -> 1.1192
A93: Line | U93: Page 2 of 2
A94: No. | B94: Description | E94: Source | H94: =+H7 -> 2004 | I94: =+I7 -> 2005 | J94: 2006 | K94: 2007 | L94: 2008 | M94: 2009 | N94: 2010 | O94: 2011 | P94: 2012 | Q94: 2013 | R94: =+R7 -> 2014 | S94: =+S7 -> 2015 | T94: =+T7 -> 2016 | U94: =+U7 -> 2017 | V94: =+V7 -> 2018
B95: Tariff Rates Based on Rate Adjustment Factor - Rates to be effective July 1 ($/Bbl)
A96: =1+A90 -> 79 | B96: =B16 -> ANACORTES to LINNTON | C96: Fungible | D96: FERC | E96: =+"Ln ("&$A$13&" * "&A16&")" -> Ln (3 * 4) | H96: =ROUND(H16*H$13,4) -> 0 | I96: =ROUND(I16*I$13,4) -> 0 | J96: 0 | K96: 0 | L96: 0 | M96: =ROUND(M16*M$13,4) -> 0 | N96: 0 | O96: =ROUND(O16*O$13,4) -> 0 | P96: 0 | Q96: 0 | R96: =ROUND(R16*R$13,4) -> 0 | S96: 0 | T96: =ROUND(T16*T$13,4) -> 0 | U96: =ROUND(U16*U$13,4) -> 0 | V96: 0.8871 | X96: NEW RATES EFFECTIVE
A97: =1+A96 -> 80 | B97: ANACORTES to LINNTON | C97: Non-Fungible | D97: FERC | E97: =+"Ln ("&$A$13&" * "&A17&")" -> Ln (3 * 5) | H97: =ROUND(H17*H$13,4) -> 0 | I97: 0 | J97: 0 | K97: 0 | L97: 0 | M97: 0 | N97: 0 | O97: 0 | P97: 0 | Q97: 0 | R97: 0 | S97: 0 | T97: =ROUND(T17*T$13,4) -> 0 | U97: 0 | V97: 0.9461 | X97: 07/01/2018
A98: =1+A97 -> 81 | B98: BAYVIEW to LINNTON | C98: Fungible | D98: FERC | E98: Ln (3 * 6) | H98: =ROUND(H18*H$13,4) -> 0 | I98: 0 | J98: 0 | K98: 0 | L98: 0 | M98: 0 | N98: 0 | O98: 0 | P98: 0 | Q98: 0 | R98: 0 | S98: 0 | T98: =ROUND(T18*T$13,4) -> 0 | U98: 0 | V98: 0.7438
A99: 82 | B99: BAYVIEW to LINNTON | C99: Non-Fungible | D99: FERC | E99: Ln (3 * 7) | H99: =ROUND(H19*H$13,4) -> 0 | I99: 0 | J99: 0 | K99: 0 | L99: 0 | M99: 0 | N99: 0 | O99: 0 | P99: 0 | Q99: 0 | R99: 0 | S99: 0 | T99: =ROUND(T19*T$13,4) -> 0 | U99: 0 | V99: 0.8035
A100: 83 | B100: CHERRY POINT to LINNTON | C100: Fungible | D100: FERC | E100: Ln (3 * 8) | H100: =ROUND(H20*H$13,4) -> 0 | I100: 0 | J100: 0 | K100: 0 | L100: 0 | M100: 0 | N100: 0 | O100: 0 | P100: 0 | Q100: 0 | R100: 0 | S100: 0 | T100: =ROUND(T20*T$13,4) -> 0 | U100: 0 | V100: 0.9895
A101: 84 | B101: CHERRY POINT to LINNTON | C101: Non-Fungible | D101: FERC | E101: Ln (3 * 9) | H101: =ROUND(H21*H$13,4) -> 0 | I101: 0 | J101: 0 | K101: 0 | L101: 0 | M101: 0 | N101: 0 | O101: 0 | P101: 0 | Q101: 0 | R101: 0 | S101: 0 | T101: =ROUND(T21*T$13,4) -> 0 | U101: 0 | V101: 1.0489
A102: 85 | B102: FERNDALE to LINNTON | C102: Fungible | D102: FERC | E102: Ln (3 * 10) | H102: =ROUND(H22*H$13,4) -> 0 | I102: 0 | J102: 0 | K102: 0 | L102: 0 | M102: 0 | N102: 0 | O102: 0 | P102: 0 | Q102: 0 | R102: 0 | S102: 0 | T102: =ROUND(T22*T$13,4) -> 0 | U102: 0 | V102: 0.9733
A103: 86 | B103: FERNDALE to LINNTON | C103: Non-Fungible | D103: FERC | E103: Ln (3 * 11) | H103: =ROUND(H23*H$13,4) -> 0 | I103: 0 | J103: 0 | K103: 0 | L103: 0 | M103: 0 | N103: 0 | O103: 0 | P103: 0 | Q103: 0 | R103: 0 | S103: 0 | T103: =ROUND(T23*T$13,4) -> 0 | U103: 0 | V103: 1.0328
A104: 87 | B104: ANACORTES to PORTLAND | C104: Fungible | D104: FERC | E104: Ln (3 * 12) | H104: =ROUND(H24*H$13,4) -> 0 | I104: 0 | J104: 0 | K104: 0 | L104: 0 | M104: 0 | N104: 0 | O104: 0 | P104: 0 | Q104: 0 | R104: 0 | S104: 0 | T104: =ROUND(T24*T$13,4) -> 0 | U104: 0 | V104: 0.8871
A105: 88 | B105: ANACORTES to PORTLAND | C105: Non-Fungible | D105: FERC | E105: Ln (3 * 13) | H105: =ROUND(H25*H$13,4) -> 0 | I105: 0 | J105: 0 | K105: 0 | L105: 0 | M105: 0 | N105: 0 | O105: 0 | P105: 0 | Q105: 0 | R105: 0 | S105: 0 | T105: =ROUND(T25*T$13,4) -> 0 | U105: 0 | V105: 0.9461
A106: 89 | B106: BAYVIEW to PORTLAND | C106: Fungible | D106: FERC | E106: Ln (3 * 14) | H106: =ROUND(H26*H$13,4) -> 0 | I106: 0 | J106: 0 | K106: 0 | L106: 0 | M106: 0 | N106: 0 | O106: 0 | P106: 0 | Q106: 0 | R106: 0 | S106: =ROUND(S26*S$13,4) -> 0 | T106: 0 | U106: 0 | V106: 0.7438
A107: 90 | B107: BAYVIEW to PORTLAND | C107: Non-Fungible | D107: FERC | E107: Ln (3 * 15) | H107: =ROUND(H27*H$13,4) -> 0 | I107: 0 | J107: 0 | K107: 0 | L107: 0 | M107: 0 | N107: 0 | O107: 0 | P107: 0 | Q107: 0 | R107: 0 | S107: 0 | T107: 0 | U107: 0 | V107: 0.8035
A108: 91 | B108: CHERRY POINT to PORTLAND | C108: Fungible | D108: FERC | E108: Ln (3 * 16) | H108: =ROUND(H28*H$13,4) -> 0 | I108: 0 | J108: 0 | K108: 0 | L108: 0 | M108: 0 | N108: 0 | O108: 0 | P108: 0 | Q108: 0 | R108: 0 | S108: 0 | T108: 0 | U108: 0 | V108: 0.9895
A109: 92 | B109: CHERRY POINT to PORTLAND | C109: Non-Fungible | D109: FERC | E109: Ln (3 * 17) | H109: =ROUND(H29*H$13,4) -> 0 | I109: 0 | J109: 0 | K109: 0 | L109: 0 | M109: 0 | N109: 0 | O109: 0 | P109: 0 | Q109: 0 | R109: 0 | S109: 0 | T109: 0 | U109: 0 | V109: 1.0489
A110: 93 | B110: =B30 -> FERNDALE to PORTLAND | C110: =C30 -> Fungible | D110: =D30 -> FERC | E110: Ln (3 * 18) | H110: =ROUND(H30*H$13,4) -> 0 | I110: 0 | J110: 0 | K110: 0 | L110: 0 | M110: 0 | N110: 0 | O110: 0 | P110: 0 | Q110: 0 | R110: 0 | S110: 0 | T110: 0 | U110: 0 | V110: 0.9733
A111: 94 | B111: =B31 -> FERNDALE to PORTLAND | C111: Non-Fungible | D111: FERC | E111: Ln (3 * 19) | H111: =ROUND(H31*H$13,4) -> 0 | I111: 0 | J111: 0 | K111: 0 | L111: 0 | M111: 0 | N111: 0 | O111: 0 | P111: 0 | Q111: 0 | R111: 0 | S111: 0 | T111: 0 | U111: 0 | V111: 1.0328
A112: 95 | B112: ANACORTES to BAYVIEW | C112: N/A | D112: WUTC | E112: Ln (3 * 20) | H112: =ROUND(H32*H$13,4) -> 0 | I112: 0 | J112: 0 | K112: 0 | L112: 0 | M112: 0 | N112: 0 | O112: 0 | P112: 0 | Q112: 0 | R112: 0 | S112: 0 | T112: 0 | U112: 0 | V112: 0.1489
A113: 96 | B113: =B33 -> CHERRY POINT to BAYVIEW | C113: N/A | D113: WUTC | E113: Ln (3 * 21) | H113: =ROUND(H33*H$13,4) -> 0 | I113: 0 | J113: 0 | K113: 0 | L113: 0 | M113: 0 | N113: 0 | O113: 0 | P113: 0 | Q113: 0 | R113: 0 | S113: 0 | T113: 0 | U113: 0 | V113: 0.2455
A114: 97 | B114: FERNDALE to BAYVIEW | C114: N/A | D114: WUTC | E114: Ln (3 * 22) | H114: =ROUND(H34*H$13,4) -> 0 | I114: 0 | J114: 0 | K114: 0 | L114: 0 | M114: 0 | N114: 0 | O114: 0 | P114: 0 | Q114: 0 | R114: 0 | S114: 0 | T114: 0 | U114: 0 | V114: 0.2282
A115: 98 | B115: ANACORTES to RENTON | C115: Fungible | D115: WUTC | E115: Ln (3 * 23) | H115: =ROUND(H35*H$13,4) -> 0 | I115: 0 | J115: 0 | K115: 0 | L115: 0 | M115: 0 | N115: 0 | O115: 0 | P115: 0 | Q115: 0 | R115: 0 | S115: 0 | T115: 0 | U115: 0 | V115: 0.3674
A116: 99 | B116: ANACORTES to RENTON | C116: Non-Fungible | D116: WUTC | E116: Ln (3 * 24) | H116: =ROUND(H36*H$13,4) -> 0 | I116: 0 | J116: 0 | K116: 0 | L116: 0 | M116: 0 | N116: 0 | O116: 0 | P116: 0 | Q116: 0 | R116: =ROUND(R36*R$13,4) -> 0 | S116: 0 | T116: 0 | U116: 0 | V116: 0.4252
A117: 100 | B117: BAYVIEW to RENTON | C117: Fungible | D117: WUTC | E117: Ln (3 * 25) | H117: =ROUND(H37*H$13,4) -> 0 | I117: 0 | J117: 0 | K117: 0 | L117: 0 | M117: 0 | N117: 0 | O117: 0 | P117: 0 | Q117: 0 | R117: 0 | S117: 0 | T117: 0 | U117: 0 | V117: 0.2183
A118: 101 | B118: BAYVIEW to RENTON | C118: Non-Fungible | D118: WUTC | E118: Ln (3 * 26) | H118: =ROUND(H38*H$13,4) -> 0 | I118: 0 | J118: 0 | K118: 0 | L118: 0 | M118: 0 | N118: 0 | O118: 0 | P118: 0 | Q118: 0 | R118: 0 | S118: 0 | T118: 0 | U118: 0 | V118: 0.2766
A119: 102 | B119: CHERRY POINT to RENTON | C119: Fungible | D119: WUTC | E119: Ln (3 * 27) | H119: =ROUND(H39*H$13,4) -> 0 | I119: 0 | J119: 0 | K119: 0 | L119: 0 | M119: 0 | N119: 0 | O119: 0 | P119: 0 | Q119: 0 | R119: 0 | S119: 0 | T119: 0 | U119: 0 | V119: 0.4641
A120: 103 | B120: CHERRY POINT to RENTON | C120: Non-Fungible | D120: WUTC | E120: Ln (3 * 28) | H120: =ROUND(H40*H$13,4) -> 0 | I120: 0 | J120: 0 | K120: 0 | L120: 0 | M120: 0 | N120: 0 | O120: 0 | P120: 0 | Q120: 0 | R120: 0 | S120: 0 | T120: 0 | U120: 0 | V120: 0.5222
A121: 104 | B121: FERNDALE to RENTON | C121: Fungible | D121: WUTC | E121: Ln (3 * 29) | H121: =ROUND(H41*H$13,4) -> 0 | I121: 0 | J121: 0 | K121: 0 | L121: 0 | M121: 0 | N121: 0 | O121: 0 | P121: 0 | Q121: 0 | R121: 0 | S121: 0 | T121: 0 | U121: 0 | V121: 0.4465
A122: 105 | B122: FERNDALE to RENTON | C122: Non-Fungible | D122: WUTC | E122: Ln (3 * 30) | H122: =ROUND(H42*H$13,4) -> 0 | I122: 0 | J122: 0 | K122: 0 | L122: 0 | M122: 0 | N122: 0 | O122: 0 | P122: 0 | Q122: 0 | R122: 0 | S122: 0 | T122: 0 | U122: 0 | V122: 0.5049
A123: 106 | B123: ANACORTES to SEA-TAC | C123: Fungible | D123: WUTC | E123: Ln (3 * 31) | H123: =ROUND(H43*H$13,4) -> 0 | I123: 0 | J123: 0 | K123: 0 | L123: 0 | M123: 0 | N123: 0 | O123: 0 | P123: 0 | Q123: 0 | R123: 0 | S123: 0 | T123: 0 | U123: 0 | V123: 0.4082
A124: 107 | B124: ANACORTES to SEA-TAC | C124: Non-Fungible | D124: WUTC | E124: Ln (3 * 32) | H124: =ROUND(H44*H$13,4) -> 0 | I124: 0 | J124: 0 | K124: 0 | L124: 0 | M124: 0 | N124: 0 | O124: 0 | P124: 0 | Q124: 0 | R124: 0 | S124: 0 | T124: 0 | U124: 0 | V124: 0.4663
A125: 108 | B125: BAYVIEW to SEA-TAC | C125: Fungible | D125: WUTC | E125: Ln (3 * 33) | H125: =ROUND(H45*H$13,4) -> 0 | I125: 0 | J125: 0 | K125: 0 | L125: 0 | M125: 0 | N125: 0 | O125: 0 | P125: 0 | Q125: 0 | R125: 0 | S125: 0 | T125: 0 | U125: 0 | V125: 0.2591
A126: 109 | B126: BAYVIEW to SEA-TAC | C126: Non-Fungible | D126: WUTC | E126: Ln (3 * 34) | H126: =ROUND(H46*H$13,4) -> 0 | I126: 0 | J126: 0 | K126: 0 | L126: 0 | M126: 0 | N126: 0 | O126: 0 | P126: 0 | Q126: 0 | R126: =ROUND(R46*R$13,4) -> 0 | S126: 0 | T126: 0 | U126: 0 | V126: 0.3169
A127: 110 | B127: CHERRY POINT to SEA-TAC | C127: Fungible | D127: WUTC | E127: Ln (3 * 35) | H127: =ROUND(H47*H$13,4) -> 0 | I127: 0 | J127: 0 | K127: 0 | L127: 0 | M127: 0 | N127: 0 | O127: 0 | P127: 0 | Q127: 0 | R127: 0 | S127: 0 | T127: 0 | U127: 0 | V127: 0.5049
A128: 111 | B128: CHERRY POINT to SEA-TAC | C128: Non-Fungible | D128: WUTC | E128: Ln (3 * 36) | H128: =ROUND(H48*H$13,4) -> 0 | I128: 0 | J128: 0 | K128: 0 | L128: 0 | M128: 0 | N128: 0 | O128: 0 | P128: 0 | Q128: 0 | R128: 0 | S128: 0 | T128: 0 | U128: 0 | V128: 0.5625
A129: 112 | B129: FERNDALE to SEA-TAC | C129: Fungible | D129: WUTC | E129: Ln (3 * 37) | H129: =ROUND(H49*H$13,4) -> 0 | I129: 0 | J129: 0 | K129: 0 | L129: 0 | M129: 0 | N129: 0 | O129: 0 | P129: 0 | Q129: 0 | R129: 0 | S129: 0 | T129: 0 | U129: 0 | V129: 0.4877
A130: 113 | B130: FERNDALE to SEA-TAC | C130: Non-Fungible | D130: WUTC | E130: Ln (3 * 38) | H130: =ROUND(H50*H$13,4) -> 0 | I130: 0 | J130: 0 | K130: 0 | L130: 0 | M130: 0 | N130: 0 | O130: 0 | P130: 0 | Q130: 0 | R130: 0 | S130: 0 | T130: 0 | U130: 0 | V130: 0.5454
A131: 114 | B131: ANACORTES to SEATTLE | C131: Fungible | D131: WUTC | E131: Ln (3 * 39) | H131: =ROUND(H51*H$13,4) -> 0 | I131: 0 | J131: 0 | K131: 0 | L131: 0 | M131: 0 | N131: 0 | O131: 0 | P131: 0 | Q131: 0 | R131: 0 | S131: 0 | T131: 0 | U131: 0 | V131: 0.3983
A132: 115 | B132: ANACORTES to SEATTLE | C132: Non-Fungible | D132: WUTC | E132: Ln (3 * 40) | H132: =ROUND(H52*H$13,4) -> 0 | I132: 0 | J132: 0 | K132: 0 | L132: 0 | M132: 0 | N132: 0 | O132: 0 | P132: 0 | Q132: 0 | R132: 0 | S132: 0 | T132: 0 | U132: 0 | V132: 0.4561
A133: 116 | B133: =B53 -> BAYVIEW to SEATTLE | C133: Fungible | D133: WUTC | E133: Ln (3 * 41) | H133: =ROUND(H53*H$13,4) -> 0 | I133: 0 | J133: 0 | K133: 0 | L133: 0 | M133: 0 | N133: 0 | O133: 0 | P133: 0 | Q133: 0 | R133: 0 | S133: 0 | T133: 0 | U133: 0 | V133: 0.2495
A134: 117 | B134: BAYVIEW to SEATTLE | C134: Non-Fungible | D134: WUTC | E134: Ln (3 * 42) | H134: =ROUND(H54*H$13,4) -> 0 | I134: 0 | J134: 0 | K134: 0 | L134: 0 | M134: 0 | N134: 0 | O134: 0 | P134: 0 | Q134: 0 | R134: 0 | S134: 0 | T134: 0 | U134: 0 | V134: 0.3073
A135: 118 | B135: CHERRY POINT to SEATTLE | C135: Fungible | D135: WUTC | E135: Ln (3 * 43) | H135: =ROUND(H55*H$13,4) -> 0 | I135: 0 | J135: 0 | K135: 0 | L135: 0 | M135: 0 | N135: 0 | O135: 0 | P135: 0 | Q135: 0 | R135: 0 | S135: 0 | T135: 0 | U135: 0 | V135: 0.4953
A136: 119 | B136: CHERRY POINT to SEATTLE | C136: Non-Fungible | D136: WUTC | E136: Ln (3 * 44) | H136: =ROUND(H56*H$13,4) -> 0 | I136: 0 | J136: 0 | K136: 0 | L136: 0 | M136: 0 | N136: 0 | O136: 0 | P136: 0 | Q136: 0 | R136: =ROUND(R56*R$13,4) -> 0 | S136: 0 | T136: 0 | U136: 0 | V136: 0.553
A137: 120 | B137: FERNDALE to SEATTLE | C137: Fungible | D137: WUTC | E137: Ln (3 * 45) | H137: =ROUND(H57*H$13,4) -> 0 | I137: 0 | J137: 0 | K137: 0 | L137: 0 | M137: 0 | N137: 0 | O137: 0 | P137: 0 | Q137: 0 | R137: 0 | S137: 0 | T137: 0 | U137: 0 | V137: 0.4777
A138: 121 | B138: FERNDALE to SEATTLE | C138: Non-Fungible | D138: WUTC | E138: Ln (3 * 46) | H138: =ROUND(H58*H$13,4) -> 0 | I138: 0 | J138: 0 | K138: 0 | L138: 0 | M138: 0 | N138: 0 | O138: 0 | P138: 0 | Q138: 0 | R138: 0 | S138: 0 | T138: 0 | U138: 0 | V138: 0.5359
A139: 122 | B139: ANACORTES to SPANAWAY | C139: Fungible | D139: WUTC | E139: Ln (3 * 47) | H139: =ROUND(H59*H$13,4) -> 0 | I139: 0 | J139: 0 | K139: 0 | L139: 0 | M139: 0 | N139: 0 | O139: 0 | P139: 0 | Q139: =ROUND(Q59*Q$13,4)*0 -> 0 | R139: 0 | S139: 0 | T139: 0 | U139: 0 | V139: 0
A140: 123 | B140: ANACORTES to SPANAWAY | C140: Non-Fungible | D140: WUTC | E140: Ln (3 * 48) | H140: =ROUND(H60*H$13,4) -> 0 | I140: 0 | J140: 0 | K140: 0 | L140: 0 | M140: 0 | N140: 0 | O140: 0 | P140: 0 | Q140: =ROUND(Q60*Q$13,4)*0 -> 0 | R140: 0 | S140: 0 | T140: 0 | U140: 0 | V140: 0
A141: 124 | B141: BAYVIEW to SPANAWAY | C141: Fungible | D141: WUTC | E141: Ln (3 * 49) | H141: =ROUND(H61*H$13,4) -> 0 | I141: 0 | J141: 0 | K141: 0 | L141: 0 | M141: 0 | N141: 0 | O141: 0 | P141: 0 | Q141: 0 | R141: 0 | S141: 0 | T141: 0 | U141: 0 | V141: 0
A142: 125 | B142: BAYVIEW to SPANAWAY | C142: Non-Fungible | D142: WUTC | E142: Ln (3 * 50) | H142: =ROUND(H62*H$13,4) -> 0 | I142: 0 | J142: 0 | K142: 0 | L142: 0 | M142: 0 | N142: 0 | O142: 0 | P142: 0 | Q142: 0 | R142: 0 | S142: 0 | T142: 0 | U142: 0 | V142: 0
A143: 126 | B143: CHERRY POINT to SPANAWAY | C143: Fungible | D143: WUTC | E143: Ln (3 * 51) | H143: =ROUND(H63*H$13,4) -> 0 | I143: 0 | J143: 0 | K143: 0 | L143: 0 | M143: 0 | N143: 0 | O143: 0 | P143: 0 | Q143: 0 | R143: 0 | S143: 0 | T143: 0 | U143: 0 | V143: 0
A144: 127 | B144: CHERRY POINT to SPANAWAY | C144: Non-Fungible | D144: WUTC | E144: Ln (3 * 52) | H144: =ROUND(H64*H$13,4) -> 0 | I144: 0 | J144: 0 | K144: 0 | L144: 0 | M144: 0 | N144: 0 | O144: 0 | P144: 0 | Q144: 0 | R144: 0 | S144: 0 | T144: 0 | U144: 0 | V144: 0
A145: 128 | B145: FERNDALE to SPANAWAY | C145: Fungible | D145: WUTC | E145: Ln (3 * 53) | H145: =ROUND(H65*H$13,4) -> 0 | I145: 0 | J145: 0 | K145: 0 | L145: 0 | M145: 0 | N145: 0 | O145: 0 | P145: 0 | Q145: 0 | R145: 0 | S145: 0 | T145: 0 | U145: 0 | V145: 0
A146: 129 | B146: FERNDALE to SPANAWAY | C146: Non-Fungible | D146: WUTC | E146: Ln (3 * 54) | H146: =ROUND(H66*H$13,4) -> 0 | I146: 0 | J146: 0 | K146: 0 | L146: 0 | M146: 0 | N146: 0 | O146: 0 | P146: 0 | Q146: 0 | R146: =ROUND(R66*R$13,4) -> 0 | S146: 0 | T146: 0 | U146: 0 | V146: 0
A147: 130 | B147: ANACORTES to TACOMA | C147: Fungible | D147: WUTC | E147: Ln (3 * 55) | H147: =ROUND(H67*H$13,4) -> 0 | I147: 0 | J147: 0 | K147: 0 | L147: 0 | M147: 0 | N147: 0 | O147: 0 | P147: 0 | Q147: 0 | R147: 0 | S147: 0 | T147: 0 | U147: 0 | V147: 0.4465
A148: 131 | B148: ANACORTES to TACOMA | C148: Non-Fungible | D148: WUTC | E148: Ln (3 * 56) | H148: =ROUND(H68*H$13,4) -> 0 | I148: =ROUND(I68*I$13,4) -> 0 | J148: 0 | K148: 0 | L148: 0 | M148: 0 | N148: 0 | O148: 0 | P148: 0 | Q148: 0 | R148: 0 | S148: 0 | T148: 0 | U148: 0 | V148: 0.5049
A149: 132 | B149: BAYVIEW to TACOMA | C149: Fungible | D149: WUTC | E149: Ln (3 * 57) | H149: =ROUND(H69*H$13,4) -> 0 | I149: 0 | J149: 0 | K149: 0 | L149: 0 | M149: 0 | N149: 0 | O149: 0 | P149: 0 | Q149: 0 | R149: 0 | S149: 0 | T149: 0 | U149: 0 | V149: 0.2977
A150: 133 | B150: BAYVIEW to TACOMA | C150: Non-Fungible | D150: WUTC | E150: Ln (3 * 58) | H150: =ROUND(H70*H$13,4) -> 0 | I150: 0 | J150: 0 | K150: 0 | L150: 0 | M150: 0 | N150: 0 | O150: 0 | P150: 0 | Q150: 0 | R150: 0 | S150: 0 | T150: 0 | U150: 0 | V150: 0.356
A151: 134 | B151: CHERRY POINT to TACOMA | C151: Fungible | D151: WUTC | E151: Ln (3 * 59) | H151: =ROUND(H71*H$13,4) -> 0 | I151: 0 | J151: 0 | K151: 0 | L151: 0 | M151: 0 | N151: 0 | O151: 0 | P151: 0 | Q151: 0 | R151: 0 | S151: 0 | T151: 0 | U151: 0 | V151: 0.5433
A152: 135 | B152: CHERRY POINT to TACOMA | C152: Non-Fungible | D152: WUTC | E152: Ln (3 * 60) | H152: =ROUND(H72*H$13,4) -> 0 | I152: 0 | J152: 0 | K152: 0 | L152: 0 | M152: 0 | N152: 0 | O152: 0 | P152: 0 | Q152: 0 | R152: 0 | S152: 0 | T152: 0 | U152: 0 | V152: 0.6015
A153: 136 | B153: =B73 -> FERNDALE to TACOMA | C153: Fungible | D153: WUTC | E153: =+"Ln ("&$A$13&" * "&A73&")" -> Ln (3 * 61) | H153: =ROUND(H73*H$13,4) -> 0 | I153: 0 | J153: 0 | K153: 0 | L153: 0 | M153: 0 | N153: 0 | O153: 0 | P153: 0 | Q153: 0 | R153: 0 | S153: 0 | T153: 0 | U153: 0 | V153: 0.5261
A154: 137 | B154: FERNDALE to TACOMA | C154: Non-Fungible | D154: WUTC | E154: Ln (3 * 62) | H154: =ROUND(H74*H$13,4) -> 0 | I154: 0 | J154: 0 | K154: 0 | L154: 0 | M154: 0 | N154: 0 | O154: 0 | P154: 0 | Q154: 0 | R154: 0 | S154: 0 | T154: 0 | U154: 0 | V154: 0.5838
A155: 138 | B155: ANACORTES to OLYMPIA | C155: Fungible | D155: WUTC | E155: Ln (3 * 63) | H155: =ROUND(H75*H$13,4) -> 0 | I155: 0 | J155: 0 | K155: 0 | L155: 0 | M155: 0 | N155: 0 | O155: 0 | P155: 0 | Q155: =ROUND(Q75*Q$13,4)*0 -> 0 | R155: 0 | S155: 0 | T155: 0 | U155: 0 | V155: 0
A156: 139 | B156: ANACORTES to OLYMPIA | C156: Non-Fungible | D156: WUTC | E156: Ln (3 * 64) | H156: =ROUND(H76*H$13,4) -> 0 | I156: 0 | J156: 0 | K156: 0 | L156: 0 | M156: 0 | N156: 0 | O156: 0 | P156: 0 | Q156: =ROUND(Q76*Q$13,4)*0 -> 0 | R156: 0 | S156: 0 | T156: 0 | U156: 0 | V156: 0
A157: 140 | B157: BAYVIEW to OLYMPIA | C157: Fungible | D157: WUTC | E157: Ln (3 * 65) | H157: =ROUND(H77*H$13,4) -> 0 | I157: 0 | J157: 0 | K157: 0 | L157: 0 | M157: 0 | N157: 0 | O157: 0 | P157: 0 | Q157: 0 | R157: 0 | S157: 0 | T157: 0 | U157: 0 | V157: 0
A158: 141 | B158: BAYVIEW to OLYMPIA | C158: Non-Fungible | D158: WUTC | E158: Ln (3 * 66) | H158: =ROUND(H78*H$13,4) -> 0 | I158: 0 | J158: 0 | K158: 0 | L158: 0 | M158: 0 | N158: 0 | O158: 0 | P158: 0 | Q158: 0 | R158: 0 | S158: 0 | T158: 0 | U158: 0 | V158: 0
A159: 142 | B159: CHERRY POINT to OLYMPIA | C159: Fungible | D159: WUTC | E159: Ln (3 * 67) | H159: =ROUND(H79*H$13,4) -> 0 | I159: 0 | J159: 0 | K159: 0 | L159: 0 | M159: 0 | N159: 0 | O159: 0 | P159: 0 | Q159: 0 | R159: 0 | S159: 0 | T159: 0 | U159: 0 | V159: 0
A160: 143 | B160: CHERRY POINT to OLYMPIA | C160: Non-Fungible | D160: WUTC | E160: Ln (3 * 68) | H160: =ROUND(H80*H$13,4) -> 0 | I160: 0 | J160: 0 | K160: 0 | L160: 0 | M160: 0 | N160: 0 | O160: 0 | P160: 0 | Q160: 0 | R160: 0 | S160: 0 | T160: 0 | U160: 0 | V160: 0
A161: 144 | B161: FERNDALE to OLYMPIA | C161: Fungible | D161: WUTC | E161: Ln (3 * 69) | H161: =ROUND(H81*H$13,4) -> 0 | I161: 0 | J161: 0 | K161: 0 | L161: 0 | M161: 0 | N161: 0 | O161: 0 | P161: 0 | Q161: 0 | R161: 0 | S161: 0 | T161: 0 | U161: 0 | V161: 0
A162: =1+A161 -> 145 | B162: FERNDALE to OLYMPIA | C162: Non-Fungible | D162: WUTC | E162: Ln (3 * 70) | H162: =ROUND(H82*H$13,4) -> 0 | I162: 0 | J162: 0 | K162: 0 | L162: 0 | M162: 0 | N162: 0 | O162: 0 | P162: 0 | Q162: 0 | R162: 0 | S162: 0 | T162: 0 | U162: 0 | V162: 0
A163: 146 | B163: ANACORTES to VANCOUVER | C163: Fungible | D163: WUTC | E163: Ln (3 * 71) | H163: =ROUND(H83*H$13,4) -> 0 | I163: 0 | J163: 0 | K163: 0 | L163: 0 | M163: 0 | N163: 0 | O163: 0 | P163: 0 | Q163: 0 | R163: 0 | S163: 0 | T163: 0 | U163: 0 | V163: 0.8488
A164: 147 | B164: ANACORTES to VANCOUVER | C164: Non-Fungible | D164: WUTC | E164: Ln (3 * 72) | H164: =ROUND(H84*H$13,4) -> 0 | I164: 0 | J164: 0 | K164: 0 | L164: 0 | M164: 0 | N164: 0 | O164: 0 | P164: 0 | Q164: 0 | R164: 0 | S164: 0 | T164: 0 | U164: 0 | V164: 0.907
A165: 148 | B165: BAYVIEW to VANCOUVER | C165: Fungible | D165: WUTC | E165: Ln (3 * 73) | H165: =ROUND(H85*H$13,4) -> 0 | I165: 0 | J165: 0 | K165: 0 | L165: 0 | M165: 0 | N165: 0 | O165: 0 | P165: 0 | Q165: 0 | R165: 0 | S165: 0 | T165: 0 | U165: 0 | V165: 0.7
A166: 149 | B166: BAYVIEW to VANCOUVER | C166: Non-Fungible | D166: WUTC | E166: Ln (3 * 74) | H166: =ROUND(H86*H$13,4) -> 0 | I166: 0 | J166: 0 | K166: 0 | L166: 0 | M166: 0 | N166: 0 | O166: 0 | P166: 0 | Q166: 0 | R166: 0 | S166: 0 | T166: 0 | U166: 0 | V166: 0.7582
A167: 150 | B167: CHERRY POINT to VANCOUVER | C167: Fungible | D167: WUTC | E167: Ln (3 * 75) | H167: =ROUND(H87*H$13,4) -> 0 | I167: 0 | J167: 0 | K167: 0 | L167: 0 | M167: 0 | N167: 0 | O167: 0 | P167: 0 | Q167: 0 | R167: 0 | S167: 0 | T167: 0 | U167: 0 | V167: 0.9456
A168: 151 | B168: CHERRY POINT to VANCOUVER | C168: Non-Fungible | D168: WUTC | E168: Ln (3 * 76) | H168: =ROUND(H88*H$13,4) -> 0 | I168: 0 | J168: 0 | K168: 0 | L168: 0 | M168: 0 | N168: 0 | O168: 0 | P168: 0 | Q168: 0 | R168: 0 | S168: 0 | T168: 0 | U168: 0 | V168: 1.0038
A169: 152 | B169: FERNDALE to VANCOUVER | C169: Fungible | D169: WUTC | E169: Ln (3 * 77) | H169: =ROUND(H89*H$13,4) -> 0 | I169: 0 | J169: 0 | K169: 0 | L169: 0 | M169: 0 | N169: 0 | O169: 0 | P169: =ROUND(P89*P$13,4) -> 0 | Q169: 0 | R169: 0 | S169: 0 | T169: 0 | U169: 0 | V169: 0.9284
A170: 153 | B170: FERNDALE to VANCOUVER | C170: Non-Fungible | D170: WUTC | E170: =+"Ln ("&$A$13&" * "&A90&")" -> Ln (3 * 78) | H170: 0 | I170: 0 | J170: 0 | K170: 0 | L170: 0 | M170: 0 | N170: 0 | O170: 0 | P170: 0 | Q170: 0 | R170: 0 | S170: 0 | T170: 0 | U170: 0 | V170: 0.9863
A172: 1/ Year 1 amount is stipulated.

Sheet Tput Adjuster
A1: =+Rates!A1 -> Olympic Pipe Line Company | U1: =+Rates!U1 -> Exhibit No. 1.4(a)
A2: =+Index!C25 -> Throughput Adjuster - Tariff Rates | U2: =+Index!B25 -> Schedule 16
U6: Page 1 of 5
A7: Line
A8: No | B8: Description | F8: Source | H8: =+Rates!H7 -> 2004 | I8: =+Rates!I7 -> 2005 | J8: =+Rates!J7 -> 2006 | K8: =+Rates!K7 -> 2007 | L8: =+Rates!L7 -> 2008 | M8: =+Rates!M7 -> 2009 | N8: =+Rates!N7 -> 2010 | O8: =+Rates!O7 -> 2011 | P8: =+Rates!P7 -> 2012 | Q8: =+Rates!Q7 -> 2013 | R8: =+Rates!R7 -> 2014 | S8: =+Rates!S7 -> 2015 | T8: =+Rates!T7 -> 2016 | U8: =+Rates!U7 -> 2017 | V8: =+Rates!V7 -> 2018
A10: 1 | B10: Throughput Adjuster - Threshold | F10: =+Input!$J$2&", Ln "&Input!A13 -> Schedule 1, Ln 5 | H10: =+Input!$D$13 -> 0.02 | I10: =+Input!$D$13 -> 0.02 | J10: =+Input!$D$13 -> 0.02 | K10: =+Input!$D$13 -> 0.02 | L10: =+Input!$D$13 -> 0.02 | M10: =+Input!$D$13 -> 0.02 | N10: =+Input!$D$13 -> 0.02 | O10: =+Input!$D$13 -> 0.02 | P10: =+Input!$D$13 -> 0.02 | Q10: =+Input!$D$13 -> 0.02 | R10: =+Input!$D$13 -> 0.02 | S10: =+Input!$D$13 -> 0.02 | T10: =+Input!$D$13 -> 0.02 | U10: =+Input!$D$13 -> 0.02 | V10: =+Input!$D$13 -> 0.02
A12: =1+A10 -> 2 | B12: =+Input!B150 -> Volume (000 bbls) - 12 mth Rolling Average - Quarter 1 | F12: =+Input!$J$2&", Ln "&Input!A150 -> Schedule 1, Ln 99 | H12: =+Input!F150 -> 106300.94 | I12: =+Input!G150 -> 105857.317 | J12: =+Input!H150 -> 104887.09 | K12: =+Input!I150 -> 104114.017 | L12: =+Input!J150 -> 104362.493 | M12: =+Input!K150 -> 103599.58 | N12: =+Input!L150 -> 99828.894 | O12: =+Input!M150 -> 98189.607 | P12: =+Input!N150 -> 98589.511 | Q12: =+Input!O150 -> 99411.582 | R12: =+Input!P150 -> 101862.716 | S12: =+Input!Q150 -> 105687.236 | T12: =+Input!R150 -> 107055.377 | U12: =+Input!S150 -> 107957.593 | V12: =+Input!T150 -> 107957.593
A13: =1+A12 -> 3 | B13: =+Input!B151 -> Volume (000 bbls) - 12 mth Rolling Average - Quarter 2 | F13: =+Input!$J$2&", Ln "&Input!A151 -> Schedule 1, Ln 100 | H13: =+Input!F151 -> 105472.152 | I13: =+Input!G151 -> 105521.321 | J13: =+Input!H151 -> 106032.194 | K13: =+Input!I151 -> 103887.407 | L13: =+Input!J151 -> 105418.218 | M13: =+Input!K151 -> 101470.451 | N13: =+Input!L151 -> 99086.339 | O13: =+Input!M151 -> 98236.414 | P13: =+Input!N151 -> 97925.119 | Q13: =+Input!O151 -> 101898.916 | R13: =+Input!P151 -> 102081.098 | S13: =+Input!Q151 -> 106107.19 | T13: =+Input!R151 -> 107457.649 | U13: =+Input!S151 -> 108656.644 | V13: =+Input!T151 -> 108656.644
A14: =1+A13 -> 4 | B14: =+Input!B152 -> Volume (000 bbls) - 12 mth Rolling Average - Quarter 3 | F14: =+Input!$J$2&", Ln "&Input!A152 -> Schedule 1, Ln 101 | H14: =+Input!F152 -> 106266.295 | I14: =+Input!G152 -> 103354.878 | J14: =+Input!H152 -> 106065.334 | K14: =+Input!I152 -> 103530.181 | L14: =+Input!J152 -> 107036.096 | M14: =+Input!K152 -> 100637.84 | N14: =+Input!L152 -> 97883.491 | O14: =+Input!M152 -> 100196.354 | P14: =+Input!N152 -> 97844.916 | Q14: =+Input!O152 -> 102257.91 | R14: =+Input!P152 -> 102835.681 | S14: =+Input!Q152 -> 105339.661 | T14: =+Input!R152 -> 109212.024 | U14: =+Input!S152 -> 109078.736 | V14: =+Input!T152 -> 109078.736
A15: =1+A14 -> 5 | B15: =+Input!B153 -> Volume (000 bbls) - 12 mth Rolling Average - Quarter 4 | F15: =+Input!$J$2&", Ln "&Input!A153 -> Schedule 1, Ln 102 | H15: =+Input!F153 -> 105960.814 | I15: =+Input!G153 -> 104055.1 | J15: =+Input!H153 -> 104885.263 | K15: =+Input!I153 -> 104230.097 | L15: =+Input!J153 -> 105295.312 | M15: =+Input!K153 -> 102426.906 | N15: =+Input!L153 -> 97528.093 | O15: =+Input!M153 -> 100173.816 | P15: =+Input!N153 -> 97251.913 | Q15: =+Input!O153 -> 102074.214 | R15: =+Input!P153 -> 104180.257 | S15: =+Input!Q153 -> 105481.092 | T15: =+Input!R153 -> 108993.917 | U15: =+Input!S153 -> 109779.977 | V15: =+Input!T153 -> 109779.977
A17: =1+A15 -> 6 | B17: Volume (000 bbls) - 12 mth Rolling Average - Changes from Prior - Quarter 1 | F17: 1/ | I17: =+I12-Input!G148/1000 -> 1802.217 | J17: =+J12-Input!H148/1000 -> 1.827 | K17: =+K12-Input!I148/1000 -> -116.08 | L17: =+L12-Input!J148/1000 -> -932.819 | M17: =+M12-Input!K148/1000 -> 1172.674 | N17: =+N12-Input!L148/1000 -> 2300.801 | O17: =+O12-Input!M148/1000 -> -1984.209 | P17: =+P12-Input!N148/1000 -> 1337.598 | Q17: =+Q12-Input!O148/1000 -> -2662.632 | R17: =+R12-Input!P148/1000 -> -2317.541 | S17: =+S12-Input!Q148/1000 -> 206.144 | T17: =+T12-Input!R148/1000 -> -1938.54 | U17: =+U12-Input!S148/1000 -> -1822.384 | V17: =+V12-Input!T148/1000 -> -1822.384
A18: =1+A17 -> 7 | B18: Volume (000 bbls) - 12 mth Rolling Average - Changes from Prior - Quarter 2 | F18: 2/ | I18: =IF(I27=1,I13-Input!G$148/1000,I13-I12) -> 1466.221 | J18: =IF(J27=1,J13-Input!H$148/1000,J13-J12) -> 1146.931 | K18: =IF(K27=1,K13-Input!I$148/1000,K13-K12) -> -342.69 | L18: =IF(L27=1,L13-Input!J$148/1000,L13-L12) -> 122.906 | M18: =IF(M27=1,M13-Input!K$148/1000,M13-M12) -> -956.455 | N18: =IF(N27=1,N13-Input!L$148/1000,N13-N12) -> -742.555 | O18: =IF(O27=1,O13-Input!M$148/1000,O13-O12) -> -1937.402 | P18: =IF(P27=1,P13-Input!N$148/1000,P13-P12) -> 673.206 | Q18: =IF(Q27=1,Q13-Input!O$148/1000,Q13-Q12) -> -175.298 | R18: =IF(R27=1,R13-Input!P$148/1000,R13-R12) -> -2099.159 | S18: =IF(S27=1,S13-Input!Q$148/1000,S13-S12) -> 626.098 | T18: =IF(T27=1,T13-Input!R$148/1000,T13-T12) -> -1536.268 | U18: =IF(U27=1,U13-Input!S$148/1000,U13-U12) -> -1123.333 | V18: =IF(V27=1,V13-Input!T$148/1000,V13-V12) -> -1123.333
A19: =1+A18 -> 8 | B19: Volume (000 bbls) - 12 mth Rolling Average - Changes from Prior - Quarter 3 | F19: 3/ | H19: =IF(H28=1,IF(H27=1,H14-Input!F$148/1000,H14-H12),H14-H13) -> 305.481 | I19: =IF(I28=1,IF(I27=1,I14-Input!G$148/1000,I14-I12),I14-I13) -> -700.222 | J19: =IF(J28=1,IF(J27=1,J14-Input!H$148/1000,J14-J12),J14-J13) -> 1180.071 | K19: =IF(K28=1,IF(K27=1,K14-Input!I$148/1000,K14-K12),K14-K13) -> -699.916 | L19: =IF(L28=1,IF(L27=1,L14-Input!J$148/1000,L14-L12),L14-L13) -> 1740.784 | M19: =IF(M28=1,IF(M27=1,M14-Input!K$148/1000,M14-M12),M14-M13) -> -1789.066 | N19: =IF(N28=1,IF(N27=1,N14-Input!L$148/1000,N14-N12),N14-N13) -> -1945.403 | O19: =IF(O28=1,IF(O27=1,O14-Input!M$148/1000,O14-O12),O14-O13) -> 22.538 | P19: =IF(P28=1,IF(P27=1,P14-Input!N$148/1000,P14-P12),P14-P13) -> 593.003 | Q19: =IF(Q28=1,IF(Q27=1,Q14-Input!O$148/1000,Q14-Q12),Q14-Q13) -> 183.696 | R19: =IF(R28=1,IF(R27=1,R14-Input!P$148/1000,R14-R12),R14-R13) -> -1344.576 | S19: =IF(S28=1,IF(S27=1,S14-Input!Q$148/1000,S14-S12),S14-S13) -> -141.431 | T19: =IF(T28=1,IF(T27=1,T14-Input!R$148/1000,T14-T12),T14-T13) -> 218.107 | U19: =IF(U28=1,IF(U27=1,U14-Input!S$148/1000,U14-U12),U14-U13) -> -701.241 | V19: =IF(V28=1,IF(V27=1,V14-Input!T$148/1000,V14-V12),V14-V13) -> -701.241
A20: =1+A19 -> 9 | B20: Volume (000 bbls) - 12 mth Rolling Average - Changes from Prior - Quarter 4 | F20: 4/ | H20: =IF(H29=1,IF(H28=1,IF(H27=1,H15-Input!F$148/1000,H15-H12),H15-H13),H15-H14) -> 0 | I20: =IF(I29=1,IF(I28=1,IF(I27=1,I15-Input!G$148/1000,I15-I12),I15-I13),I15-I14) -> 0 | J20: =IF(J29=1,IF(J28=1,IF(J27=1,J15-Input!H$148/1000,J15-J12),J15-J13),J15-J14) -> 0 | K20: =IF(K29=1,IF(K28=1,IF(K27=1,K15-Input!I$148/1000,K15-K12),K15-K13),K15-K14) -> 0 | L20: =IF(L29=1,IF(L28=1,IF(L27=1,L15-Input!J$148/1000,L15-L12),L15-L13),L15-L14) -> 0 | M20: =IF(M29=1,IF(M28=1,IF(M27=1,M15-Input!K$148/1000,M15-M12),M15-M13),M15-M14) -> 0 | N20: =IF(N29=1,IF(N28=1,IF(N27=1,N15-Input!L$148/1000,N15-N12),N15-N13),N15-N14) -> -2300.801 | O20: =IF(O29=1,IF(O28=1,IF(O27=1,O15-Input!M$148/1000,O15-O12),O15-O13),O15-O14) -> 0 | P20: =IF(P29=1,IF(P28=1,IF(P27=1,P15-Input!N$148/1000,P15-P12),P15-P13),P15-P14) -> 0 | Q20: =IF(Q29=1,IF(Q28=1,IF(Q27=1,Q15-Input!O$148/1000,Q15-Q12),Q15-Q13),Q15-Q14) -> 0 | R20: =IF(R29=1,IF(R28=1,IF(R27=1,R15-Input!P$148/1000,R15-R12),R15-R13),R15-R14) -> 0 | S20: =IF(S29=1,IF(S28=1,IF(S27=1,S15-Input!Q$148/1000,S15-S12),S15-S13),S15-S14) -> 0 | T20: =IF(T29=1,IF(T28=1,IF(T27=1,T15-Input!R$148/1000,T15-T12),T15-T13),T15-T14) -> 0 | U20: =IF(U29=1,IF(U28=1,IF(U27=1,U15-Input!S$148/1000,U15-U12),U15-U13),U15-U14) -> 0 | V20: =IF(V29=1,IF(V28=1,IF(V27=1,V15-Input!T$148/1000,V15-V12),V15-V13),V15-V14) -> 0
A22: =1+A20 -> 10 | B22: Volume (000 bbls) - 12 mth Rolling Average - Percentage Changes from Prior - Quarter 1 | F22: 5/ | I22: =IF(OR(H15=0,Input!G148=0),0,I17/(Input!G148/1000)) -> 0.01731983343 | J22: =IF(OR(I15=0,Input!H148=0),0,J17/(Input!H148/1000)) -> 1.741903436e-05 | K22: =IF(OR(J15=0,Input!I148=0),0,K17/(Input!I148/1000)) -> -0.00111368984 | L22: =IF(OR(K15=0,Input!J148=0),0,L17/(Input!J148/1000)) -> -0.008859074372 | M22: =IF(OR(L15=0,Input!K148=0),0,M17/(Input!K148/1000)) -> 0.01144888629 | N22: =IF(OR(M15=0,Input!L148=0),0,N17/(Input!L148/1000)) -> 0.02359116157 | O22: =IF(OR(N15=0,Input!M148=0),0,O17/(Input!M148/1000)) -> -0.01980766112 | P22: =IF(OR(O15=0,Input!N148=0),0,P17/(Input!N148/1000)) -> 0.01375395053 | Q22: =IF(OR(P15=0,Input!O148=0),0,Q17/(Input!O148/1000)) -> -0.02608525597 | R22: =IF(OR(Q15=0,Input!P148=0),0,R17/(Input!P148/1000)) -> -0.02224549129 | S22: =IF(OR(R15=0,Input!Q148=0),0,S17/(Input!Q148/1000)) -> 0.001954321823 | T22: =IF(OR(S15=0,Input!R148=0),0,T17/(Input!R148/1000)) -> -0.01778576322 | U22: =IF(OR(T15=0,Input!S148=0),0,U17/(Input!S148/1000)) -> -0.01660033141 | V22: =IF(OR(U15=0,Input!T148=0),0,V17/(Input!T148/1000)) -> -0.01660033141
A23: =1+A22 -> 11 | B23: Volume (000 bbls) - 12 mth Rolling Average - Percentage Changes from Prior - Quarter 2 | F23: 6/ | I23: =IF(I12=0,0,IF(I27=1,I18/(Input!G$148/1000),I18/I12)) -> 0.01409081342 | J23: =IF(J12=0,0,IF(J27=1,J18/(Input!H$148/1000),J18/J12)) -> 0.01093510153 | K23: =IF(K12=0,0,IF(K27=1,K18/(Input!I$148/1000),K18/K12)) -> -0.003287821943 | L23: =IF(L12=0,0,IF(L27=1,L18/(Input!J$148/1000),L18/L12)) -> 0.001167250447 | M23: =IF(M12=0,0,IF(M27=1,M18/(Input!K$148/1000),M18/M12)) -> -0.009337927283 | N23: =IF(N12=0,0,IF(N27=1,N18/(Input!L$148/1000),N18/N12)) -> -0.007438277339 | O23: =IF(O12=0,0,IF(O27=1,O18/(Input!M$148/1000),O18/O12)) -> -0.01934040328 | P23: =IF(P12=0,0,IF(P27=1,P18/(Input!N$148/1000),P18/P12)) -> 0.006922290567 | Q23: =IF(Q12=0,0,IF(Q27=1,Q18/(Input!O$148/1000),Q18/Q12)) -> -0.001717358313 | R23: =IF(R12=0,0,IF(R27=1,R18/(Input!P$148/1000),R18/R12)) -> -0.02014929758 | S23: =IF(S12=0,0,IF(S27=1,S18/(Input!Q$148/1000),S18/S12)) -> 0.005935642001 | T23: =IF(T12=0,0,IF(T27=1,T18/(Input!R$148/1000),T18/T12)) -> -0.01409498844 | U23: =IF(U12=0,0,IF(U27=1,U18/(Input!S$148/1000),U18/U12)) -> -0.01023258549 | V23: =IF(V12=0,0,IF(V27=1,V18/(Input!T$148/1000),V18/V12)) -> -0.01023258549
